{"text_format":"3","workbook":"xlsx","n_sheets":7,"sheets":["PopUp","Array","MyUDF","HideUnload","Events","Regex","Filter"],"not_rendered":{"images":3,"macros":1,"defined_names":87,"comments":1},"read":"whole","date_system":"1900"}

{"sheet":"PopUp","index":0,"n_rows":3,"n_cols":2,"rows_kept":3}
[]
["CheckBox1",true]
["TextBox1","Text2"]

{"sheet":"Array","index":1,"n_rows":7,"n_cols":2,"rows_kept":7}
[]
[null,"This sheet demonstrates difference in writing speeds between"]
[null,"a) to each individual cell of a range"]
[null,"b) filling an array first and then mass copy array to the worksheet range"]
[]
[null,"After clicking on the button step a) will be executed on cell range B12:EZ100. The letter \"W\" is written to each cell individually"]
[null,"Next the same range will be written with an array. The value A is written to an array individually and then mass copied to the range."]

{"sheet":"MyUDF","index":2,"n_rows":21,"n_cols":11,"rows_kept":21}
["Value1:","Value2:","MyUDF1:"]
[10,20,{"$f":"MyUDF1(TRUE,A2,B2)","v":{"$error":"#NAME?"}},"MYUDF1 on this line is volatile (first argument=TRUE). Cell is dependent on other cells. If these other cells change, Excel will always evaluate the formula"]
[30,40,{"$f":"MyUDF1(FALSE,A3,B3)","v":{"$error":"#NAME?"}},"MYUDF1 on this line is non-volatile (first argument=FALSE). Cell is dependent on other cells. If these other cells change, Excel will always evaluate the formula"]
[null,null,"MyUDF2:"]
[null,null,{"$f":"MyUDF2(TRUE)","v":{"$error":"#NAME?"}},"MYUDF2 on this line is volatile (argument=TRUE) and cell is not dependent on other cells. It is recalculated automatically by Excel"]
[null,null,{"$f":"MyUDF2(FALSE)","v":{"$error":"#NAME?"}},"MYUDF2 on this line is non-volatile (argument=FALSE) and cell is not dependent on other cells. It is not recalculated automatically. Recalculation can be forced with Ctrl-Alt-F9"]
[]
[null,null,"MyUDF3:","Element1","Element2","Element3","Element4","Element5","Element6",null,"MYUDF3 is non-volatile. But cell is dependent on other cells. If these other cells change, Excel will always evaluate the UDF formula"]
[null,null,"a,b,c,d",{"$f":"MyUDF3($C9,\",\",COLUMN(D9)-COLUMN($C9))","v":{"$error":"#NAME?"}},{"$f":"MyUDF3($C9,\",\",COLUMN(E9)-COLUMN($C9))","v":{"$error":"#NAME?"}},{"$error":"#NAME?"},{"$error":"#NAME?"},{"$f":"MyUDF3($C9,\",\",COLUMN(H9)-COLUMN($C9))","v":{"$error":"#NAME?"}},{"$f":"MyUDF3($C9,\",\",COLUMN(I9)-COLUMN($C9))","v":{"$error":"#NAME?"}},null,"Changing the List in cell C9 will automatically update the cells in D9...I9"]
[null,null,"0;1;2;3;4",{"$f":"MyUDF3($C10,\";\",1)","v":{"$error":"#NAME?"}},{"$f":"MyUDF3($C10,\";\",2)","v":{"$error":"#NAME?"}},{"$f":"MyUDF3($C10,\";\",3)","v":{"$error":"#NAME?"}},{"$f":"MyUDF3($C10,\";\",4)","v":{"$error":"#NAME?"}},{"$f":"MyUDF3($C10,\";\",5)","v":{"$error":"#NAME?"}},{"$f":"MyUDF3($C10,\";\",6)","v":{"$error":"#NAME?"}},null,"Changing the List in cell C10 will automatically update the cells in D10...I10"]
[]
[null,null,"MyUDF4:","Element1","Element2","Element3","Element4","Element5","Element6"]
[null,null,"e,f,g,h,i,k",{"$f":"MyUDF4(\"C13\",\",\")","v":{"$error":"#NAME?"}},{"$error":"#NAME?"},{"$error":"#NAME?"},{"$error":"#NAME?"},{"$error":"#NAME?"},{"$error":"#NAME?"},null,"MYUDF4 is non-volatile. Cell is not dependent on other cells. It is not recalculated automatically. Recalculation can be forced with Ctrl-Alt-F9"]
[null,null,"0;1;2;3;4;6",{"$f":"MyUDF4(\"C\"&ROW($C14),\";\")","v":{"$error":"#NAME?"}},{"$f":"MyUDF4(\"C\"&ROW($C14),\";\")","v":{"$error":"#NAME?"}},{"$error":"#NAME?"},{"$f":"MyUDF4(\"C\"&ROW($C14),\";\")","v":{"$error":"#NAME?"}},{"$error":"#NAME?"},{"$error":"#NAME?"},null,"MYUDF4 is non-volatile. Cell is dependent on other cells. If these other cells change, Excel will always evaluate the formula"]
[]
[null,null,"MyUDF5:","Element1","Element2","Element3","Element4","Element5","Element6",null,"MYUDF5 forced volatile. Excel will always evaluate the UDF formula"]
[null,null,"e,f,g,h,i,j",{"$f":"MyUDF5(\"C17\",\",\")","v":{"$error":"#NAME?"}},{"$f":"MyUDF5(\"C17\",\",\")","v":{"$error":"#NAME?"}},{"$error":"#NAME?"},{"$error":"#NAME?"},{"$error":"#NAME?"},{"$error":"#NAME?"},null,"MYUDF5 forced volatile. Excel will always evaluate the UDF formula"]
[null,null,"0;1;2;3;4;5",{"$f":"MyUDF5(\"C\"&ROW($C18),\";\")","v":{"$error":"#NAME?"}},{"$f":"MyUDF5(\"C\"&ROW($C18),\";\")","v":{"$error":"#NAME?"}},{"$error":"#NAME?"},{"$error":"#NAME?"},{"$error":"#NAME?"},{"$error":"#NAME?"},null,"MYUDF5 forced volatile. Excel will always evaluate the UDF formula"]
[]
[null,null,"MyUDF6:","Element1","Element2","Element3","Element4","Element5","Element6"]
[null,null,"e,f,g,h,i,g",{"$f":"MyUDF6(C21,\",\")","v":{"$error":"#NAME?"}},{"$nulls":6},"MYUDF6, automatically spill into adjacent cells due to array result of function"]

{"sheet":"HideUnload","index":3,"n_rows":5,"n_cols":2,"rows_kept":5}
[]
[null,"This sheet demonstrates the difference between UNLOAD and HIDE of a form"]
[null,"If you HIDE a form then the entered/changed values and the window position is re-stored when opened again."]
[null,"If you UNLOAD a form then it gets initalized again to the values of the properties during design time. The window position is reset."]
[null,"The form property 'StartUpPosition' is set to 'Manual'. So that the user can move the form to another location and (re)open it at that location"]

{"sheet":"Events","index":4,"n_rows":0,"n_cols":0,"rows_kept":0}

{"sheet":"Regex","index":5,"n_rows":2776,"n_cols":13,"rows_kept":2776}
["<SearchText>","The","Ther","Singles\\\\The\\s.+\\s-\\s","Singles\\\\(The)\\s(.+)\\s-\\s","Singles\\\\$2, $1 - ",null,"https://docs.microsoft.com/en-us/dotnet/standard/base-types/regular-expression-language-quick-reference"]
["Singles\\PSY - Gangnam Style.mp3",{"$f":"RegexTest(B$1,$A2)","v":{"$error":"#NAME?"}},{"$f":"RegexCount(C$1,$A2)","v":{"$error":"#NAME?"}},{"$f":"RegexFind(D$1,$A2)","v":{"$error":"#NAME?"}},{"$f":"RegexReplace(E$1,$A2,F$1)","v":{"$error":"#NAME?"}},null,null,"Char matches:"]
["Singles\\Van Velzen - Too Good To Lose.mp3",{"$f":"RegexTest(B$1,$A3)","v":{"$error":"#NAME?"}},{"$f":"RegexCount(C$1,$A3)","v":{"$error":"#NAME?"}},{"$f":"RegexFind(D$1,$A3)","v":{"$error":"#NAME?"}},{"$f":"RegexReplace(E$1,$A3,F$1)","v":{"$error":"#NAME?"}},null,null,"Char:","Description:","Pattern:","Matches:"]
["Singles\\The Rolling Stones - Emotional Rescue.Mp3",{"$f":"RegexTest(B$1,$A4)","v":{"$error":"#NAME?"}},{"$error":"#NAME?"},{"$f":"RegexFind(D$1,$A4)","v":{"$error":"#NAME?"}},{"$f":"RegexReplace(E$1,$A4,F$1)","v":{"$error":"#NAME?"}},null,null,"[group]","Matches any single character in character_group.","[ae]","a in \"gray\" \"a\", \"e\" in \"lane\""]
["Singles\\Black Slate - Amigo.mp3",{"$error":"#NAME?"},{"$error":"#NAME?"},{"$error":"#NAME?"},{"$f":"RegexReplace(E$1,$A5,F$1)","v":{"$error":"#NAME?"}},null,null,"[^group]","Negation: Matches any single character that is not in character_group","[^aei]","r, \"g\", \"n\" in \"reign\""]
["Singles\\Patsy Cline - Crazy.mp3",{"$error":"#NAME?"},{"$error":"#NAME?"},{"$error":"#NAME?"},{"$error":"#NAME?"},null,null,"[a-z]","Character range: Matches any single character in the range from first to last.","[A-Z]","A, \"B\" in \"AB123\""]
["Singles\\Justin Timberlake - Rock Your Body.mp3",{"$error":"#NAME?"},{"$error":"#NAME?"},{"$error":"#NAME?"},{"$error":"#NAME?"},null,null,".","Wildcard: Matches any single character except \\n ","a.e ","ave in \"nave\" \"ate\" in \"water\""]
["Singles\\Ricchi & Poveri - Mamma Maria.mp3",{"$error":"#NAME?"},{"$error":"#NAME?"},{"$error":"#NAME?"},{"$error":"#NAME?"},null,null,"\\w","Matches any word character.","\\w","I, \"D\", \"A\", \"1\", \"3\" in \"ID A1.3\""]
["Singles\\Gloria Estefan - Don't Wanna Lose You.mp3",{"$error":"#NAME?"},{"$error":"#NAME?"},{"$error":"#NAME?"},{"$error":"#NAME?"},null,null,"\\W","Matches any non-word character.","\\W"," , \".\" in \"ID A1.3\""]
["Singles\\Lisa Stansfield - Been Around The World.mp3",{"$f":"RegexTest(B$1,$A10)","v":{"$error":"#NAME?"}},{"$error":"#NAME?"},{"$error":"#NAME?"},{"$error":"#NAME?"},null,null,"\\s","Matches any white-space character.","\\w\\s","D  in \"ID A1.3\""]
["Singles\\Ben E King - Stand By Me.mp3",{"$error":"#NAME?"},{"$error":"#NAME?"},{"$error":"#NAME?"},{"$error":"#NAME?"},null,null,"\\S","Matches any non-white-space character.","\\s\\S"," _ in \"int __ctr\""]
["Singles\\The Beatles - The Ballad Of John And Yoko.mp3",{"$error":"#NAME?"},{"$error":"#NAME?"},{"$error":"#NAME?"},{"$f":"RegexReplace(E$1,$A12,F$1)","v":{"$error":"#NAME?"}},null,null,"\\d","Matches any decimal digit.","\\d","4 in \"4 = IV\""]
["Singles\\Michael Jackson - You Are Not Alone.mp3",{"$error":"#NAME?"},{"$error":"#NAME?"},{"$error":"#NAME?"},{"$error":"#NAME?"},null,null,"\\D","Matches any character other than a decimal digit.","\\D"," , \"=\", \" \", \"I\", \"V\" in \"4 = IV\""]
["Singles\\Bobbie Gentry - Ode To Billy Joe.mp3",{"$error":"#NAME?"},{"$error":"#NAME?"},{"$error":"#NAME?"},{"$error":"#NAME?"},null,null,"Escapes:"]
["Singles\\Eddie Cochran - C'mon Everybody.mp3",{"$error":"#NAME?"},{"$error":"#NAME?"},{"$error":"#NAME?"},{"$error":"#NAME?"},null,null,"\\. ","To match a literal character"]
["Singles\\Barry White - Can't Get Enough Of Your Love Baby.mp3",{"$error":"#NAME?"},{"$error":"#NAME?"},{"$error":"#NAME?"},{"$error":"#NAME?"},null,null,"\\\\"," To match a literal character \\"]
["Singles\\Gloria Estefan & The Miami Sound Machine - Falling In Love (Uh-Oh).mp3",{"$error":"#NAME?"},{"$error":"#NAME?"},{"$error":"#NAME?"},{"$error":"#NAME?"},null,null,"\\$ ","To match a literal character $"]
["Singles\\Jackpot - Is Everybody Happy.mp3",{"$error":"#NAME?"},{"$error":"#NAME?"},{"$error":"#NAME?"},{"$error":"#NAME?"},null,null,"Anchors:"]
["Singles\\Barclay James Harvest - Ring Of Changes.mp3",{"$error":"#NAME?"},{"$error":"#NAME?"},{"$error":"#NAME?"},{"$error":"#NAME?"},null,null,"^","By default, the match must start at the beginning of the string;","^\\d{3}","901 in \"901-333-\""]
["Singles\\Reunion - Life Is A Rock (But The Radio Rolled Me).mp3",{"$error":"#NAME?"},{"$error":"#NAME?"},{"$error":"#NAME?"},{"$error":"#NAME?"},null,null,"$","By default, the match must occur at the end of the string.","-\\d{3}$","-333 in \"-901-333\""]
["Singles\\Alexander Curly - Aggesus.mp3",{"$error":"#NAME?"},{"$error":"#NAME?"},{"$error":"#NAME?"},{"$error":"#NAME?"},null,null,"\\b","The match must occur on a boundary between a \\w (alphanumeric) and a \\W (nonalphanumeric) character.","\\b\\w+\\s\\w+\\b","them theme, \"them them\" in \"them theme them them\""]
["Singles\\Simply Red - Jericho.mp3",{"$error":"#NAME?"},{"$error":"#NAME?"},{"$error":"#NAME?"},{"$error":"#NAME?"},null,null,"\\B","The match must not occur on a \\b boundary.","\\Bend\\w*\\b","ends, \"ender\" in \"end sends endure lender\""]
["Singles\\Anouk - Places To Go.mp3",{"$error":"#NAME?"},{"$error":"#NAME?"},{"$error":"#NAME?"},{"$error":"#NAME?"},null,null,"Grouping:"]
["Singles\\John Denver - Calypso.mp3",{"$error":"#NAME?"},{"$error":"#NAME?"},{"$error":"#NAME?"},{"$error":"#NAME?"},null,null,"(subexpr)","Captures the matched subexpression and assigns it a one-based ordinal number.","(\\w)\\1","ee in \"deep\""]
["Singles\\Alice & Franco Battiato - I Treni De Tozeur.mp3",{"$error":"#NAME?"},{"$error":"#NAME?"},{"$error":"#NAME?"},{"$error":"#NAME?"},null,null,"\\1","Backreference. Matches the value of a numbered subexpression.","(\\w)\\1","ee in \"seek\""]
["Singles\\Marvin Gaye - Sexual Healing.mp3",{"$error":"#NAME?"},{"$error":"#NAME?"},{"$error":"#NAME?"},{"$error":"#NAME?"},null,null,"Quantifiers:"]
["Singles\\Dean Martin - That's Amore.mp3",{"$error":"#NAME?"},{"$error":"#NAME?"},{"$error":"#NAME?"},{"$error":"#NAME?"},null,null,"*","Matches the previous element zero or more times.","\\d*\\.\\d",".0, \"19.9\", \"219.9\""]
["Singles\\Katy Perry - Roar.mp3",{"$error":"#NAME?"},{"$error":"#NAME?"},{"$error":"#NAME?"},{"$error":"#NAME?"},null,null,"+","Matches the previous element one or more times.","be+","bee in \"been\", \"be\" in \"bent\""]
["Singles\\Doris Day - Whatever Will Be, Will Be (Que Sera, Sera).mp3",{"$error":"#NAME?"},{"$error":"#NAME?"},{"$error":"#NAME?"},{"$error":"#NAME?"},null,null,"?","Matches the previous element zero or one time.","rai?n","ran, \"rain\""]
["Singles\\Andrews Sisters - Bei Mir Bist Du Schön.mp3",{"$error":"#NAME?"},{"$error":"#NAME?"},{"$error":"#NAME?"},{"$error":"#NAME?"},null,null,"{n}","Matches the previous element exactly n times.",",\\d{3}",",043 in \"1,043.6\", \",876\", \",543\", and \",210\" in \"9,876,543,210\""]
["Singles\\Enigma - Sadeness.mp3",{"$error":"#NAME?"},{"$error":"#NAME?"},{"$error":"#NAME?"},{"$error":"#NAME?"},null,null,"{n,}","Matches the previous element at least n times.","\\d{2,}","166, \"29\", \"1930\""]
["Singles\\Skylark - Wild Flower (Let Her Cry For She's A Lady).mp3",{"$error":"#NAME?"},{"$error":"#NAME?"},{"$error":"#NAME?"},{"$error":"#NAME?"},null,null,"{n,m}","Matches the previous element at least n times, but no more than m times.","\\d{3,5}","166, \"17668\" \"19302\" in \"193024\""]
["Singles\\REO Speedwagon - Can't Fight This Feeling.mp3",{"$error":"#NAME?"},{"$error":"#NAME?"},{"$error":"#NAME?"},{"$error":"#NAME?"},null,null,"*?","Matches the previous element zero or more times, but as few times as possible.","\\d*?\\.\\d",".0, \"19.9\", \"219.9\""]
["Singles\\Rogue - Fallen Angel.mp3",{"$error":"#NAME?"},{"$error":"#NAME?"},{"$error":"#NAME?"},{"$error":"#NAME?"},null,null,"+?","Matches the previous element one or more times, but as few times as possible.","be+?","be in \"been\", \"be\" in \"bent\""]
["Singles\\Robbie Williams - Shame.mp3",{"$error":"#NAME?"},{"$error":"#NAME?"},{"$error":"#NAME?"},{"$error":"#NAME?"},null,null,"??","Matches the previous element zero or one time, but as few times as possible.","rai??n","ran, \"rain\""]
["Singles\\Kim Wilde - Kids In America.mp3",{"$error":"#NAME?"},{"$error":"#NAME?"},{"$error":"#NAME?"},{"$error":"#NAME?"},null,null,"{n}?","Matches the preceding element exactly n times.",",\\d{3}?",",043 in \"1,043.6\", \",876\", \",543\", and \",210\" in \"9,876,543,210\""]
["Singles\\Sandra Van Nieuwland - More.mp3",{"$error":"#NAME?"},{"$error":"#NAME?"},{"$error":"#NAME?"},{"$error":"#NAME?"},null,null,"{n,}?","Matches the previous element at least n times, but as few times as possible.","\\d{2,}?","166, \"29\", \"1930\""]
["Singles\\Jonathan Jeremiah - Happiness.mp3",{"$error":"#NAME?"},{"$error":"#NAME?"},{"$error":"#NAME?"},{"$error":"#NAME?"},null,null,"{n,m}?","Matches the previous element between n and m times, but as few times as possible.","\\d{3,5}?","166, \"17668\" \"193\", \"024\" in \"193024\""]
["Singles\\Norah Jones - Sunrise.mp3",{"$error":"#NAME?"},{"$error":"#NAME?"},{"$error":"#NAME?"},{"$error":"#NAME?"},null,null,"Alternation:"]
["Singles\\Snoop Dogg & Wiz Khalifa ft Bruno Mars - Young Wild And Free.mp3",{"$error":"#NAME?"},{"$error":"#NAME?"},{"$error":"#NAME?"},{"$error":"#NAME?"},null,null,"|","Matches any one element separated by the vertical bar (|) character.","th(e|is|at)","the, \"this\" in \"this is the day.\""]
["Singles\\Beyonce - Halo.mp3",{"$error":"#NAME?"},{"$error":"#NAME?"},{"$error":"#NAME?"},{"$error":"#NAME?"},null,null,"Substitutions:"]
["Singles\\Acda & De Munnik - Mis Ik Jou.mp3",{"$error":"#NAME?"},{"$error":"#NAME?"},{"$error":"#NAME?"},{"$error":"#NAME?"},null,null,"Char:","Description:","Pattern:","Replacement pattern:","Input String:","Result String:"]
["Singles\\MKTO - Thank You.mp3",{"$error":"#NAME?"},{"$error":"#NAME?"},{"$error":"#NAME?"},{"$error":"#NAME?"},null,null,"$n","Substitutes the substring matched by group number.","\\b(\\w+)(\\s)(\\w+)\\b","$3$2$1","one two","two one"]
["Singles\\Robbie Williams - Millennium.mp3",{"$error":"#NAME?"},{"$error":"#NAME?"},{"$error":"#NAME?"},{"$error":"#NAME?"},null,null,"$$","Substitutes a literal \"$\".","\\b(\\d+)\\s?USD","$$$1","103 USD","$103"]
["Singles\\Simone White - The Beep Beep Song.mp3",{"$error":"#NAME?"},{"$f":"RegexCount(C$1,$A45)","v":{"$error":"#NAME?"}},{"$error":"#NAME?"},{"$error":"#NAME?"},null,null,"$&","Substitutes a copy of the whole match.","\\$?\\d*\\.?\\d+","**$&**","$1.30","**$1.30**"]
["Singles\\Wim Sonneveld - Zo Heerlijk Rustig.mp3",{"$error":"#NAME?"},{"$error":"#NAME?"},{"$error":"#NAME?"},{"$error":"#NAME?"},null,null,"$`","Substitutes all the text of the input string before the match.","B+","$`","AABBCC","AAAACC"]
["Singles\\Sheila & The Black Devotion - Singing In The Rain.mp3",{"$error":"#NAME?"},{"$error":"#NAME?"},{"$error":"#NAME?"},{"$error":"#NAME?"},null,null,"$'","Substitutes all the text of the input string after the match.","B+","$'","AABBCC","AACCCC"]
["Singles\\Adam Lambert - Whataya Want From Me.mp3",{"$error":"#NAME?"},{"$error":"#NAME?"},{"$error":"#NAME?"},{"$error":"#NAME?"},null,null,"$+","Substitutes the last group that was captured.","B+(C+)","$+","AABBCCDD","AACCDD"]
["Singles\\Madonna - Sorry.mp3",{"$error":"#NAME?"},{"$error":"#NAME?"},{"$error":"#NAME?"},{"$error":"#NAME?"},null,null,"$_","Substitutes the entire input string.","B+","$_","AABBCC","AAAABBCCCC"]
["Singles\\Mike Oldfield - Tubular Bells.mp3",{"$error":"#NAME?"},{"$error":"#NAME?"},{"$error":"#NAME?"},{"$error":"#NAME?"}]
["Singles\\The Rolling Stones - (Get Your Kicks On) Route 66.mp3",{"$error":"#NAME?"},{"$error":"#NAME?"},{"$error":"#NAME?"},{"$error":"#NAME?"}]
["Singles\\Coldplay - Adventure Of A Lifetime.mp3",{"$error":"#NAME?"},{"$error":"#NAME?"},{"$error":"#NAME?"},{"$error":"#NAME?"}]
["Singles\\Gary Glitter - I Didn't Know I Loved You (Till I Saw You Rock And Roll).mp3",{"$error":"#NAME?"},{"$error":"#NAME?"},{"$error":"#NAME?"},{"$error":"#NAME?"}]
["Singles\\Cilla Black - You're My World.mp3",{"$error":"#NAME?"},{"$error":"#NAME?"},{"$error":"#NAME?"},{"$error":"#NAME?"}]
["Singles\\White Plains - My Baby Loves Lovin'.mp3",{"$error":"#NAME?"},{"$error":"#NAME?"},{"$error":"#NAME?"},{"$error":"#NAME?"}]
["Singles\\Michael Jackson - She's Out Of My Life.mp3",{"$error":"#NAME?"},{"$error":"#NAME?"},{"$error":"#NAME?"},{"$error":"#NAME?"}]
["Singles\\Rihanna - Love On The Brain.mp3",{"$error":"#NAME?"},{"$error":"#NAME?"},{"$error":"#NAME?"},{"$error":"#NAME?"}]
["Singles\\Rudimental ft John Newman - Feel The Love.mp3",{"$error":"#NAME?"},{"$error":"#NAME?"},{"$error":"#NAME?"},{"$error":"#NAME?"}]
["Singles\\Imagine Dragons - Demons.mp3",{"$error":"#NAME?"},{"$error":"#NAME?"},{"$error":"#NAME?"},{"$error":"#NAME?"}]
["Singles\\Elvis Presley - Teddy Bear.mp3",{"$error":"#NAME?"},{"$error":"#NAME?"},{"$error":"#NAME?"},{"$error":"#NAME?"}]
["Singles\\Janet Jackson - Let's Wait A While.mp3",{"$error":"#NAME?"},{"$error":"#NAME?"},{"$error":"#NAME?"},{"$error":"#NAME?"}]
["Singles\\REM - Drive.mp3",{"$error":"#NAME?"},{"$error":"#NAME?"},{"$error":"#NAME?"},{"$error":"#NAME?"}]
["Singles\\Anouk - Wanna Little Something.mp3",{"$error":"#NAME?"},{"$error":"#NAME?"},{"$error":"#NAME?"},{"$error":"#NAME?"}]
["Singles\\Michael Jackson - Off The Wall.mp3",{"$error":"#NAME?"},{"$error":"#NAME?"},{"$error":"#NAME?"},{"$error":"#NAME?"}]
["Singles\\Stevie Wonder - Master Blaster.mp3",{"$error":"#NAME?"},{"$error":"#NAME?"},{"$error":"#NAME?"},{"$error":"#NAME?"}]
["Singles\\Narada Michael Walden - Gimme, Gimme, Gimme.mp3",{"$error":"#NAME?"},{"$error":"#NAME?"},{"$error":"#NAME?"},{"$error":"#NAME?"}]
["Singles\\Bob Dylan - Just Like A Woman.mp3",{"$f":"RegexTest(B$1,$A67)","v":{"$error":"#NAME?"}},{"$f":"RegexCount(C$1,$A67)","v":{"$error":"#NAME?"}},{"$f":"RegexFind(D$1,$A67)","v":{"$error":"#NAME?"}},{"$f":"RegexReplace(E$1,$A67,F$1)","v":{"$error":"#NAME?"}}]
["Singles\\Alvaro Soler - La Cintura.mp3",{"$error":"#NAME?"},{"$error":"#NAME?"},{"$error":"#NAME?"},{"$error":"#NAME?"}]
["Singles\\Michael Andrews & Gary Jules - Mad World.mp3",{"$error":"#NAME?"},{"$error":"#NAME?"},{"$error":"#NAME?"},{"$error":"#NAME?"}]
["Singles\\Status Quo - Mystery Song.mp3",{"$error":"#NAME?"},{"$error":"#NAME?"},{"$error":"#NAME?"},{"$error":"#NAME?"}]
["Singles\\Donovan - Mellow Yellow.mp3",{"$error":"#NAME?"},{"$error":"#NAME?"},{"$error":"#NAME?"},{"$error":"#NAME?"}]
["Singles\\Bellini - Samba De Janeiro.mp3",{"$error":"#NAME?"},{"$error":"#NAME?"},{"$error":"#NAME?"},{"$error":"#NAME?"}]
["Singles\\James Morrison - Please Don't Stop The Rain.mp3",{"$error":"#NAME?"},{"$error":"#NAME?"},{"$error":"#NAME?"},{"$error":"#NAME?"}]
["Singles\\Bananarama - I Heard A Rumour.mp3",{"$error":"#NAME?"},{"$error":"#NAME?"},{"$error":"#NAME?"},{"$error":"#NAME?"}]
["Singles\\Anita Meyer - The One That You Love.mp3",{"$error":"#NAME?"},{"$error":"#NAME?"},{"$error":"#NAME?"},{"$error":"#NAME?"}]
["Singles\\Mick Jagger - Let's Work.mp3",{"$error":"#NAME?"},{"$error":"#NAME?"},{"$error":"#NAME?"},{"$error":"#NAME?"}]
["Singles\\Amanda Marshall - Let It Rain.mp3",{"$error":"#NAME?"},{"$error":"#NAME?"},{"$error":"#NAME?"},{"$error":"#NAME?"}]
["Singles\\Michael Jackson - PYT (Pretty Young Thing).mp3",{"$error":"#NAME?"},{"$error":"#NAME?"},{"$error":"#NAME?"},{"$error":"#NAME?"}]
["Singles\\Fais - Make Me Do.mp3",{"$error":"#NAME?"},{"$error":"#NAME?"},{"$error":"#NAME?"},{"$error":"#NAME?"}]
["Singles\\Dolly Dots - Love Me Just A Little Bit More.mp3",{"$error":"#NAME?"},{"$error":"#NAME?"},{"$error":"#NAME?"},{"$error":"#NAME?"}]
["Singles\\Miss Montreal - Say Heaven Say Hell.mp3",{"$error":"#NAME?"},{"$error":"#NAME?"},{"$error":"#NAME?"},{"$error":"#NAME?"}]
["Singles\\Dave Brubeck - Take Five.mp3",{"$error":"#NAME?"},{"$error":"#NAME?"},{"$error":"#NAME?"},{"$error":"#NAME?"}]
["Singles\\Sam Smith - How Do You Sleep.mp3",{"$error":"#NAME?"},{"$error":"#NAME?"},{"$error":"#NAME?"},{"$error":"#NAME?"}]
["Singles\\Andrea - I Am A Lover.mp3",{"$error":"#NAME?"},{"$error":"#NAME?"},{"$error":"#NAME?"},{"$error":"#NAME?"}]
["Singles\\Bruce Springsteen - My Hometown.mp3",{"$error":"#NAME?"},{"$error":"#NAME?"},{"$error":"#NAME?"},{"$error":"#NAME?"}]
["Singles\\The Cardigans - My Favourite Game.mp3",{"$error":"#NAME?"},{"$error":"#NAME?"},{"$error":"#NAME?"},{"$error":"#NAME?"}]
["Singles\\Normaal - Oerend Hard.mp3",{"$error":"#NAME?"},{"$error":"#NAME?"},{"$error":"#NAME?"},{"$error":"#NAME?"}]
["Singles\\1910 Fruitgum Company - Simple Simon Says.mp3",{"$error":"#NAME?"},{"$error":"#NAME?"},{"$error":"#NAME?"},{"$error":"#NAME?"}]
["Singles\\Plastic People - Dancing And Drinking.mp3",{"$error":"#NAME?"},{"$error":"#NAME?"},{"$error":"#NAME?"},{"$error":"#NAME?"}]
["Singles\\Madonna - Rain.mp3",{"$error":"#NAME?"},{"$error":"#NAME?"},{"$error":"#NAME?"},{"$error":"#NAME?"}]
["Singles\\Lisa Lois - Silhouette.mp3",{"$error":"#NAME?"},{"$error":"#NAME?"},{"$error":"#NAME?"},{"$error":"#NAME?"}]
["Singles\\Ariana Grande & The Weeknd - Love Me Harder.mp3",{"$error":"#NAME?"},{"$error":"#NAME?"},{"$error":"#NAME?"},{"$error":"#NAME?"}]
["Singles\\Alicia Keys - Teenage Love Affair.mp3",{"$error":"#NAME?"},{"$error":"#NAME?"},{"$error":"#NAME?"},{"$error":"#NAME?"}]
["Singles\\Is Ook Schitterend - Voltooid Verleden Tijd.mp3",{"$error":"#NAME?"},{"$error":"#NAME?"},{"$error":"#NAME?"},{"$error":"#NAME?"}]
["Singles\\Sir Henry & His Butlers - Camp.mp3",{"$error":"#NAME?"},{"$error":"#NAME?"},{"$error":"#NAME?"},{"$error":"#NAME?"}]
["Singles\\Kelly Family - David's Song.mp3",{"$error":"#NAME?"},{"$error":"#NAME?"},{"$error":"#NAME?"},{"$error":"#NAME?"}]
["Singles\\Elvis Presley - Heartbreak Hotel.mp3",{"$error":"#NAME?"},{"$error":"#NAME?"},{"$error":"#NAME?"},{"$error":"#NAME?"}]
["Singles\\Earth & Fire - Storm And Thunder.mp3",{"$error":"#NAME?"},{"$error":"#NAME?"},{"$error":"#NAME?"},{"$error":"#NAME?"}]
["Singles\\Earth Wind & Fire - September.mp3",{"$error":"#NAME?"},{"$error":"#NAME?"},{"$error":"#NAME?"},{"$error":"#NAME?"}]
["Singles\\Diana Ross - Its My Turn.mp3",{"$error":"#NAME?"},{"$error":"#NAME?"},{"$error":"#NAME?"},{"$error":"#NAME?"}]
["Singles\\Avicii ft Sandro Cavazza - Without You.mp3",{"$error":"#NAME?"},{"$error":"#NAME?"},{"$error":"#NAME?"},{"$error":"#NAME?"}]
["Singles\\XTC - Making Plans For Nigel.mp3",{"$error":"#NAME?"},{"$error":"#NAME?"},{"$error":"#NAME?"},{"$error":"#NAME?"}]
["Singles\\Hot Chocolate - No Doubt About It.mp3",{"$error":"#NAME?"},{"$error":"#NAME?"},{"$error":"#NAME?"},{"$error":"#NAME?"}]
["Singles\\Kitty Grant - Glad To Know You.mp3",{"$error":"#NAME?"},{"$error":"#NAME?"},{"$error":"#NAME?"},{"$error":"#NAME?"}]
["Singles\\Bachman Turner Overdrive - Roll On Down The Highway.mp3",{"$error":"#NAME?"},{"$error":"#NAME?"},{"$error":"#NAME?"},{"$error":"#NAME?"}]
["Singles\\Madonna - Hung Up.mp3",{"$error":"#NAME?"},{"$error":"#NAME?"},{"$error":"#NAME?"},{"$error":"#NAME?"}]
["Singles\\Pet Shop Boys - Go West.mp3",{"$error":"#NAME?"},{"$error":"#NAME?"},{"$error":"#NAME?"},{"$error":"#NAME?"}]
["Singles\\Ink Spots & Ella Fitzgerald - Into Each Life Some Rain Must Fall.mp3",{"$error":"#NAME?"},{"$error":"#NAME?"},{"$error":"#NAME?"},{"$error":"#NAME?"}]
["Singles\\Octopus - South Of The Border.mp3",{"$error":"#NAME?"},{"$error":"#NAME?"},{"$error":"#NAME?"},{"$error":"#NAME?"}]
["Singles\\A Balladeer - Swim With Sam.mp3",{"$error":"#NAME?"},{"$error":"#NAME?"},{"$error":"#NAME?"},{"$error":"#NAME?"}]
["Singles\\Phil Collins - A Groovy Kind Of Love.mp3",{"$error":"#NAME?"},{"$error":"#NAME?"},{"$error":"#NAME?"},{"$error":"#NAME?"}]
["Singles\\David Cassidy - Daydreamer.mp3",{"$error":"#NAME?"},{"$error":"#NAME?"},{"$error":"#NAME?"},{"$error":"#NAME?"}]
["Singles\\David Soul - Don't Give Up On Us Baby.mp3",{"$error":"#NAME?"},{"$error":"#NAME?"},{"$error":"#NAME?"},{"$error":"#NAME?"}]
["Singles\\One Direction - Best Song Ever.mp3",{"$error":"#NAME?"},{"$error":"#NAME?"},{"$error":"#NAME?"},{"$error":"#NAME?"}]
["Singles\\Brotherhood Of Man - Save Your Kisses For Me.mp3",{"$error":"#NAME?"},{"$error":"#NAME?"},{"$error":"#NAME?"},{"$error":"#NAME?"}]
["Singles\\Gavin DeGraw - Chariot.mp3",{"$error":"#NAME?"},{"$error":"#NAME?"},{"$error":"#NAME?"},{"$error":"#NAME?"}]
["Singles\\Harold Melvin & The Blue Notes - Don't Leave Me This Way.mp3",{"$error":"#NAME?"},{"$error":"#NAME?"},{"$error":"#NAME?"},{"$error":"#NAME?"}]
["Singles\\Del Shannon - Hats Off To Larry.mp3",{"$error":"#NAME?"},{"$error":"#NAME?"},{"$error":"#NAME?"},{"$error":"#NAME?"}]
["Singles\\Racoon - Oceaan.mp3",{"$error":"#NAME?"},{"$error":"#NAME?"},{"$error":"#NAME?"},{"$error":"#NAME?"}]
["Singles\\Stephan Sulke - Lotte.mp3",{"$error":"#NAME?"},{"$error":"#NAME?"},{"$error":"#NAME?"},{"$error":"#NAME?"}]
["Singles\\The Beatles - Got To Get You Into My Life.mp3",{"$error":"#NAME?"},{"$error":"#NAME?"},{"$error":"#NAME?"},{"$error":"#NAME?"}]
["Singles\\Owl City - Vanilla Twilight.mp3",{"$error":"#NAME?"},{"$error":"#NAME?"},{"$error":"#NAME?"},{"$error":"#NAME?"}]
["Singles\\Henry Mancini - Pink Panther Theme.mp3",{"$error":"#NAME?"},{"$error":"#NAME?"},{"$error":"#NAME?"},{"$error":"#NAME?"}]
["Singles\\Shirley Bassey - Diamonds Are Forever.mp3",{"$error":"#NAME?"},{"$error":"#NAME?"},{"$error":"#NAME?"},{"$error":"#NAME?"}]
["Singles\\Kensington - Streets.mp3",{"$error":"#NAME?"},{"$error":"#NAME?"},{"$error":"#NAME?"},{"$error":"#NAME?"}]
["Singles\\Ava Max - So Am I.mp3",{"$error":"#NAME?"},{"$error":"#NAME?"},{"$error":"#NAME?"},{"$error":"#NAME?"}]
["Singles\\Stevie Nicks - Rooms On Fire.mp3",{"$error":"#NAME?"},{"$error":"#NAME?"},{"$error":"#NAME?"},{"$error":"#NAME?"}]
["Singles\\Barbra Streisand & Barry Gibb - Guilty.mp3",{"$error":"#NAME?"},{"$error":"#NAME?"},{"$error":"#NAME?"},{"$error":"#NAME?"}]
["Singles\\Neil Diamond & Barbra Streisand - You Don't Bring Me Flowers.mp3",{"$error":"#NAME?"},{"$error":"#NAME?"},{"$error":"#NAME?"},{"$error":"#NAME?"}]
["Singles\\Dorus - Twee Motten.mp3",{"$error":"#NAME?"},{"$error":"#NAME?"},{"$error":"#NAME?"},{"$error":"#NAME?"}]
["Singles\\Cornelis Vreeswijk - Veronica 538.mp3",{"$f":"RegexTest(B$1,$A131)","v":{"$error":"#NAME?"}},{"$f":"RegexCount(C$1,$A131)","v":{"$error":"#NAME?"}},{"$f":"RegexFind(D$1,$A131)","v":{"$error":"#NAME?"}},{"$f":"RegexReplace(E$1,$A131,F$1)","v":{"$error":"#NAME?"}}]
["Singles\\Fairport Convention - Si Tu Dois Partir.mp3",{"$error":"#NAME?"},{"$error":"#NAME?"},{"$error":"#NAME?"},{"$error":"#NAME?"}]
["Singles\\Whitney Houston - All The Man That I Need.mp3",{"$error":"#NAME?"},{"$error":"#NAME?"},{"$error":"#NAME?"},{"$error":"#NAME?"}]
["Singles\\Chuck Berry - My Dingaling.mp3",{"$error":"#NAME?"},{"$error":"#NAME?"},{"$error":"#NAME?"},{"$error":"#NAME?"}]
["Singles\\Meghan Trainor ft John Legend - Like I'm Gonna Lose You.mp3",{"$error":"#NAME?"},{"$error":"#NAME?"},{"$error":"#NAME?"},{"$error":"#NAME?"}]
["Singles\\Het Goede Doel - Vriendschap.mp3",{"$error":"#NAME?"},{"$error":"#NAME?"},{"$error":"#NAME?"},{"$error":"#NAME?"}]
["Singles\\Aguaviva - Poetas Andaluces.mp3",{"$error":"#NAME?"},{"$error":"#NAME?"},{"$error":"#NAME?"},{"$error":"#NAME?"}]
["Singles\\Alan Parsons Project - Lucifer.mp3",{"$error":"#NAME?"},{"$error":"#NAME?"},{"$error":"#NAME?"},{"$error":"#NAME?"}]
["Singles\\The Carpenters - Sing.mp3",{"$error":"#NAME?"},{"$error":"#NAME?"},{"$error":"#NAME?"},{"$error":"#NAME?"}]
["Singles\\Mr Mister - Kyrie.mp3",{"$error":"#NAME?"},{"$error":"#NAME?"},{"$error":"#NAME?"},{"$error":"#NAME?"}]
["Singles\\Small Faces - Itchycoo Park.mp3",{"$error":"#NAME?"},{"$error":"#NAME?"},{"$error":"#NAME?"},{"$error":"#NAME?"}]
["Singles\\Herb Alpert & The Tijuana Brass - Spanish Flea.mp3",{"$error":"#NAME?"},{"$error":"#NAME?"},{"$error":"#NAME?"},{"$error":"#NAME?"}]
["Singles\\The Gentrys - Keep On Dancing.mp3",{"$error":"#NAME?"},{"$error":"#NAME?"},{"$error":"#NAME?"},{"$error":"#NAME?"}]
["Singles\\Barry White - You See The Trouble With Me.mp3",{"$error":"#NAME?"},{"$error":"#NAME?"},{"$error":"#NAME?"},{"$error":"#NAME?"}]
["Singles\\Jumping Jewels - Wheels.mp3",{"$error":"#NAME?"},{"$error":"#NAME?"},{"$error":"#NAME?"},{"$error":"#NAME?"}]
["Singles\\Supersister - Radio.mp3",{"$error":"#NAME?"},{"$error":"#NAME?"},{"$error":"#NAME?"},{"$error":"#NAME?"}]
["Singles\\Rock Steady Crew - (Hey You) The Rock Steady Crew.mp3",{"$error":"#NAME?"},{"$error":"#NAME?"},{"$error":"#NAME?"},{"$error":"#NAME?"}]
["Singles\\Lmfao - Sexy And I Know It.mp3",{"$error":"#NAME?"},{"$error":"#NAME?"},{"$error":"#NAME?"},{"$error":"#NAME?"}]
["Singles\\Ike & Tina Turner - Baby Get It On.mp3",{"$error":"#NAME?"},{"$error":"#NAME?"},{"$error":"#NAME?"},{"$error":"#NAME?"}]
["Singles\\Novastar - Wrong.mp3",{"$error":"#NAME?"},{"$error":"#NAME?"},{"$error":"#NAME?"},{"$error":"#NAME?"}]
["Singles\\Gnash ft Olivia O'Brien - I Hate U, I Love U.mp3",{"$error":"#NAME?"},{"$error":"#NAME?"},{"$error":"#NAME?"},{"$error":"#NAME?"}]
["Singles\\Peter André - Mysterious Girl.mp3",{"$error":"#NAME?"},{"$error":"#NAME?"},{"$error":"#NAME?"},{"$error":"#NAME?"}]
["Singles\\Glenn Medeiros - Long And Lasting Love.mp3",{"$error":"#NAME?"},{"$error":"#NAME?"},{"$error":"#NAME?"},{"$error":"#NAME?"}]
["Singles\\The Bee Gees - Spirits Having Flown.mp3",{"$error":"#NAME?"},{"$error":"#NAME?"},{"$error":"#NAME?"},{"$error":"#NAME?"}]
["Singles\\Maroon 5 - Animals.mp3",{"$error":"#NAME?"},{"$error":"#NAME?"},{"$error":"#NAME?"},{"$error":"#NAME?"}]
["Singles\\Pretenders - Message Of Love.mp3",{"$error":"#NAME?"},{"$error":"#NAME?"},{"$error":"#NAME?"},{"$error":"#NAME?"}]
["Singles\\Pearl Jam - Black.mp3",{"$error":"#NAME?"},{"$error":"#NAME?"},{"$error":"#NAME?"},{"$error":"#NAME?"}]
["Singles\\Justin Bieber - Sorry.mp3",{"$error":"#NAME?"},{"$error":"#NAME?"},{"$error":"#NAME?"},{"$error":"#NAME?"}]
["Singles\\Ilse DeLange - Next To Me.mp3",{"$error":"#NAME?"},{"$error":"#NAME?"},{"$error":"#NAME?"},{"$error":"#NAME?"}]
["Singles\\The Bee Gees - For Whom The Bell Tolls.mp3",{"$error":"#NAME?"},{"$error":"#NAME?"},{"$error":"#NAME?"},{"$error":"#NAME?"}]
["Singles\\Barry Ryan - Kitsch.mp3",{"$error":"#NAME?"},{"$error":"#NAME?"},{"$error":"#NAME?"},{"$error":"#NAME?"}]
["Singles\\Colbie Caillat - Bubbly.mp3",{"$error":"#NAME?"},{"$error":"#NAME?"},{"$error":"#NAME?"},{"$error":"#NAME?"}]
["Singles\\Alexis Jordan - Happiness.mp3",{"$error":"#NAME?"},{"$error":"#NAME?"},{"$error":"#NAME?"},{"$error":"#NAME?"}]
["Singles\\George Michael - You Have Been Loved.mp3",{"$error":"#NAME?"},{"$error":"#NAME?"},{"$error":"#NAME?"},{"$error":"#NAME?"}]
["Singles\\Olivia Newton-John - I Honestly Love You.mp3",{"$error":"#NAME?"},{"$error":"#NAME?"},{"$error":"#NAME?"},{"$error":"#NAME?"}]
["Singles\\Crazy World Of Arthur Brown - Fire!.mp3",{"$error":"#NAME?"},{"$error":"#NAME?"},{"$error":"#NAME?"},{"$error":"#NAME?"}]
["Singles\\The Police - De Do Do Do De Da Da Da.mp3",{"$error":"#NAME?"},{"$error":"#NAME?"},{"$error":"#NAME?"},{"$error":"#NAME?"}]
["Singles\\Mumford & Sons - The Cave.mp3",{"$error":"#NAME?"},{"$error":"#NAME?"},{"$error":"#NAME?"},{"$error":"#NAME?"}]
["Singles\\Pink - Please Don't Leave Me.mp3",{"$error":"#NAME?"},{"$error":"#NAME?"},{"$error":"#NAME?"},{"$error":"#NAME?"}]
["Singles\\Lisa Stansfield - In All The Right Places.mp3",{"$error":"#NAME?"},{"$error":"#NAME?"},{"$error":"#NAME?"},{"$error":"#NAME?"}]
["Singles\\Peabo Bryson & Celine Dion - A Whole New World.mp3",{"$error":"#NAME?"},{"$error":"#NAME?"},{"$error":"#NAME?"},{"$error":"#NAME?"}]
["Singles\\Whitney Houston - I'm Your Baby Tonight.mp3",{"$error":"#NAME?"},{"$error":"#NAME?"},{"$error":"#NAME?"},{"$error":"#NAME?"}]
["Singles\\The Byrds - America's Great National Pastime.mp3",{"$error":"#NAME?"},{"$error":"#NAME?"},{"$error":"#NAME?"},{"$error":"#NAME?"}]
["Singles\\Elvis Presley - Unchained Melody.mp3",{"$error":"#NAME?"},{"$error":"#NAME?"},{"$error":"#NAME?"},{"$error":"#NAME?"}]
["Singles\\Sandy Coast - And Her Name Is Amy.mp3",{"$error":"#NAME?"},{"$error":"#NAME?"},{"$error":"#NAME?"},{"$error":"#NAME?"}]
["Singles\\Pharrell Williams - Happy.mp3",{"$error":"#NAME?"},{"$error":"#NAME?"},{"$error":"#NAME?"},{"$error":"#NAME?"}]
["Singles\\Wess & Dori Ghezzi - Era.mp3",{"$error":"#NAME?"},{"$error":"#NAME?"},{"$error":"#NAME?"},{"$error":"#NAME?"}]
["Singles\\Ajr - Weak.mp3",{"$error":"#NAME?"},{"$error":"#NAME?"},{"$error":"#NAME?"},{"$error":"#NAME?"}]
["Singles\\Paul McCartney & Wings - Maybe I'm Amazed.mp3",{"$error":"#NAME?"},{"$error":"#NAME?"},{"$error":"#NAME?"},{"$error":"#NAME?"}]
["Singles\\Sam & Dave - You Don't Know What You Mean To Me.mp3",{"$error":"#NAME?"},{"$error":"#NAME?"},{"$error":"#NAME?"},{"$error":"#NAME?"}]
["Singles\\Blue Mink - Good Morning Freedom.mp3",{"$error":"#NAME?"},{"$error":"#NAME?"},{"$error":"#NAME?"},{"$error":"#NAME?"}]
["Singles\\Rene Klijn - Mr Blue.mp3",{"$error":"#NAME?"},{"$error":"#NAME?"},{"$error":"#NAME?"},{"$error":"#NAME?"}]
["Singles\\Calvin Harris ft Ellie Goulding - Outside.mp3",{"$error":"#NAME?"},{"$error":"#NAME?"},{"$error":"#NAME?"},{"$error":"#NAME?"}]
["Singles\\Shanice - I Love Your Smile.mp3",{"$error":"#NAME?"},{"$error":"#NAME?"},{"$error":"#NAME?"},{"$error":"#NAME?"}]
["Singles\\The Killers - Human.mp3",{"$error":"#NAME?"},{"$error":"#NAME?"},{"$error":"#NAME?"},{"$error":"#NAME?"}]
["Singles\\Phil Collins - Sussudio.mp3",{"$error":"#NAME?"},{"$error":"#NAME?"},{"$error":"#NAME?"},{"$error":"#NAME?"}]
["Singles\\Robbie Williams - Party Like A Russian.mp3",{"$error":"#NAME?"},{"$error":"#NAME?"},{"$error":"#NAME?"},{"$error":"#NAME?"}]
["Singles\\Randy Crawford - One Hello.mp3",{"$error":"#NAME?"},{"$error":"#NAME?"},{"$error":"#NAME?"},{"$error":"#NAME?"}]
["Singles\\Sugababes - Ugly.mp3",{"$error":"#NAME?"},{"$error":"#NAME?"},{"$error":"#NAME?"},{"$error":"#NAME?"}]
["Singles\\Billy Joel - Honesty.mp3",{"$error":"#NAME?"},{"$error":"#NAME?"},{"$error":"#NAME?"},{"$error":"#NAME?"}]
["Singles\\Uriah Heep - Return To Fantasy.mp3",{"$error":"#NAME?"},{"$error":"#NAME?"},{"$error":"#NAME?"},{"$error":"#NAME?"}]
["Singles\\Led Zeppelin - Whole Lotta Love.mp3",{"$error":"#NAME?"},{"$error":"#NAME?"},{"$error":"#NAME?"},{"$error":"#NAME?"}]
["Singles\\Ace Of Base - Perfect World.mp3",{"$error":"#NAME?"},{"$error":"#NAME?"},{"$error":"#NAME?"},{"$error":"#NAME?"}]
["Singles\\OneRepublic - Good Life.mp3",{"$error":"#NAME?"},{"$error":"#NAME?"},{"$error":"#NAME?"},{"$error":"#NAME?"}]
["Singles\\Andy Williams - Love Story (Where Do I Begin).mp3",{"$f":"RegexTest(B$1,$A195)","v":{"$error":"#NAME?"}},{"$f":"RegexCount(C$1,$A195)","v":{"$error":"#NAME?"}},{"$f":"RegexFind(D$1,$A195)","v":{"$error":"#NAME?"}},{"$f":"RegexReplace(E$1,$A195,F$1)","v":{"$error":"#NAME?"}}]
["Singles\\Manfred Mann - Ha Ha Said The Clown.mp3",{"$error":"#NAME?"},{"$error":"#NAME?"},{"$error":"#NAME?"},{"$error":"#NAME?"}]
["Singles\\La Bouche - Be My Lover.mp3",{"$error":"#NAME?"},{"$error":"#NAME?"},{"$error":"#NAME?"},{"$error":"#NAME?"}]
["Singles\\The Jackson 5 - I Want You Back.mp3",{"$error":"#NAME?"},{"$error":"#NAME?"},{"$error":"#NAME?"},{"$error":"#NAME?"}]
["Singles\\Double - The Captain Of Her Heart.mp3",{"$error":"#NAME?"},{"$error":"#NAME?"},{"$error":"#NAME?"},{"$error":"#NAME?"}]
["Singles\\Elli Medeiros - A Bailar Calypso.mp3",{"$error":"#NAME?"},{"$error":"#NAME?"},{"$error":"#NAME?"},{"$error":"#NAME?"}]
["Singles\\Afric Simone - Ramaya.mp3",{"$error":"#NAME?"},{"$error":"#NAME?"},{"$error":"#NAME?"},{"$error":"#NAME?"}]
["Singles\\Cliff Richard - Dreaming.mp3",{"$error":"#NAME?"},{"$error":"#NAME?"},{"$error":"#NAME?"},{"$error":"#NAME?"}]
["Singles\\Hot Butter - Popcorn.mp3",{"$error":"#NAME?"},{"$error":"#NAME?"},{"$error":"#NAME?"},{"$error":"#NAME?"}]
["Singles\\Manfred Mann - Sha La La.mp3",{"$error":"#NAME?"},{"$error":"#NAME?"},{"$error":"#NAME?"},{"$error":"#NAME?"}]
["Singles\\Vangelis - To The Unknown Man.mp3",{"$error":"#NAME?"},{"$error":"#NAME?"},{"$error":"#NAME?"},{"$error":"#NAME?"}]
["Singles\\Blof - Donker Hart.mp3",{"$error":"#NAME?"},{"$error":"#NAME?"},{"$error":"#NAME?"},{"$error":"#NAME?"}]
["Singles\\Jimmy Sommerville - To Love Somebody.mp3",{"$error":"#NAME?"},{"$error":"#NAME?"},{"$error":"#NAME?"},{"$error":"#NAME?"}]
["Singles\\Kovacs - My Love.mp3",{"$error":"#NAME?"},{"$error":"#NAME?"},{"$error":"#NAME?"},{"$error":"#NAME?"}]
["Singles\\Golden Earring - Dong Dong Diki Digi Dong.mp3",{"$error":"#NAME?"},{"$error":"#NAME?"},{"$error":"#NAME?"},{"$error":"#NAME?"}]
["Singles\\The Underdog Project - Summer Jam.mp3",{"$error":"#NAME?"},{"$error":"#NAME?"},{"$error":"#NAME?"},{"$error":"#NAME?"}]
["Singles\\Celine Dion - The Power Of Love.mp3",{"$error":"#NAME?"},{"$error":"#NAME?"},{"$error":"#NAME?"},{"$error":"#NAME?"}]
["Singles\\Clean Bandit ft Sean Paul And Anne Marie - Rockabye.mp3",{"$error":"#NAME?"},{"$error":"#NAME?"},{"$error":"#NAME?"},{"$error":"#NAME?"}]
["Singles\\Marc Anthony - I  Need To Know.mp3",{"$error":"#NAME?"},{"$error":"#NAME?"},{"$error":"#NAME?"},{"$error":"#NAME?"}]
["Singles\\Queen - I Want To Break Free.mp3",{"$error":"#NAME?"},{"$error":"#NAME?"},{"$error":"#NAME?"},{"$error":"#NAME?"}]
["Singles\\Kodaline - The One.mp3",{"$error":"#NAME?"},{"$error":"#NAME?"},{"$error":"#NAME?"},{"$error":"#NAME?"}]
["Singles\\Spin Doctors - Two Princess.mp3",{"$error":"#NAME?"},{"$error":"#NAME?"},{"$error":"#NAME?"},{"$error":"#NAME?"}]
["Singles\\Rod Stewart - Oh! No, Not My Baby.mp3",{"$error":"#NAME?"},{"$error":"#NAME?"},{"$error":"#NAME?"},{"$error":"#NAME?"}]
["Singles\\Waylon - Lose It.mp3",{"$error":"#NAME?"},{"$error":"#NAME?"},{"$error":"#NAME?"},{"$error":"#NAME?"}]
["Singles\\Miss Montreal - I Am Hunter.mp3",{"$error":"#NAME?"},{"$error":"#NAME?"},{"$error":"#NAME?"},{"$error":"#NAME?"}]
["Singles\\Michel Telo - Ai Se Eu Te Pego.mp3",{"$error":"#NAME?"},{"$error":"#NAME?"},{"$error":"#NAME?"},{"$error":"#NAME?"}]
["Singles\\Luv' - Trojan Horse.mp3",{"$error":"#NAME?"},{"$error":"#NAME?"},{"$error":"#NAME?"},{"$error":"#NAME?"}]
["Singles\\Alicia Keys - If I Ain't Got You.mp3",{"$error":"#NAME?"},{"$error":"#NAME?"},{"$error":"#NAME?"},{"$error":"#NAME?"}]
["Singles\\Andrea Bocelli & Sarah Brightman - Time To Say Goodbye.mp3",{"$error":"#NAME?"},{"$error":"#NAME?"},{"$error":"#NAME?"},{"$error":"#NAME?"}]
["Singles\\Beyonce & Jay Z - Crazy In Love.mp3",{"$error":"#NAME?"},{"$error":"#NAME?"},{"$error":"#NAME?"},{"$error":"#NAME?"}]
["Singles\\Calvin Harris ft John Newman - Blame.mp3",{"$error":"#NAME?"},{"$error":"#NAME?"},{"$error":"#NAME?"},{"$error":"#NAME?"}]
["Singles\\Otis Redding - Hard To Handle.mp3",{"$error":"#NAME?"},{"$error":"#NAME?"},{"$error":"#NAME?"},{"$error":"#NAME?"}]
["Singles\\Dotan - Shadow Wind.mp3",{"$error":"#NAME?"},{"$error":"#NAME?"},{"$error":"#NAME?"},{"$error":"#NAME?"}]
["Singles\\Zedd & Elley Duhé - Happy Now.mp3",{"$error":"#NAME?"},{"$error":"#NAME?"},{"$error":"#NAME?"},{"$error":"#NAME?"}]
["Singles\\Gerard Joling - No More Boleros.mp3",{"$error":"#NAME?"},{"$error":"#NAME?"},{"$error":"#NAME?"},{"$error":"#NAME?"}]
["Singles\\Art Of Noise - Love Beat.mp3",{"$error":"#NAME?"},{"$error":"#NAME?"},{"$error":"#NAME?"},{"$error":"#NAME?"}]
["Singles\\Sam Hunt - Leave The Night On.mp3",{"$error":"#NAME?"},{"$error":"#NAME?"},{"$error":"#NAME?"},{"$error":"#NAME?"}]
["Singles\\Kensington - War.mp3",{"$error":"#NAME?"},{"$error":"#NAME?"},{"$error":"#NAME?"},{"$error":"#NAME?"}]
["Singles\\Rita Hovink - Laat Me Alleen.mp3",{"$error":"#NAME?"},{"$error":"#NAME?"},{"$error":"#NAME?"},{"$error":"#NAME?"}]
["Singles\\Lindisfarne - Run For Home.mp3",{"$error":"#NAME?"},{"$error":"#NAME?"},{"$error":"#NAME?"},{"$error":"#NAME?"}]
["Singles\\Kid Creole & The Coconuts - I'm A Wonderful Thing Baby.mp3",{"$error":"#NAME?"},{"$error":"#NAME?"},{"$error":"#NAME?"},{"$error":"#NAME?"}]
["Singles\\Intwine - Cruel Man.mp3",{"$error":"#NAME?"},{"$error":"#NAME?"},{"$error":"#NAME?"},{"$error":"#NAME?"}]
["Singles\\The Byrds - Set You Free This Time.mp3",{"$error":"#NAME?"},{"$error":"#NAME?"},{"$error":"#NAME?"},{"$error":"#NAME?"}]
["Singles\\R Kelly - The World's Greatest.mp3",{"$error":"#NAME?"},{"$error":"#NAME?"},{"$error":"#NAME?"},{"$error":"#NAME?"}]
["Singles\\Swedish House Mafia ft John Martin - Don't You Worry Child.mp3",{"$error":"#NAME?"},{"$error":"#NAME?"},{"$error":"#NAME?"},{"$error":"#NAME?"}]
["Singles\\Iggy Pop - Real Wild Child.mp3",{"$error":"#NAME?"},{"$error":"#NAME?"},{"$error":"#NAME?"},{"$error":"#NAME?"}]
["Singles\\Yello - The Race.mp3",{"$error":"#NAME?"},{"$error":"#NAME?"},{"$error":"#NAME?"},{"$error":"#NAME?"}]
["Singles\\De Makkers - Zomerzon.mp3",{"$error":"#NAME?"},{"$error":"#NAME?"},{"$error":"#NAME?"},{"$error":"#NAME?"}]
["Singles\\Guus Meeuwis & Vagant - Zo Ver Weg.mp3",{"$error":"#NAME?"},{"$error":"#NAME?"},{"$error":"#NAME?"},{"$error":"#NAME?"}]
["Singles\\The Baseballs - Hey There Delilah.mp3",{"$error":"#NAME?"},{"$error":"#NAME?"},{"$error":"#NAME?"},{"$error":"#NAME?"}]
["Singles\\Pink - Get The Party Started.mp3",{"$error":"#NAME?"},{"$error":"#NAME?"},{"$error":"#NAME?"},{"$error":"#NAME?"}]
["Singles\\Ellie Goulding - Still Falling For You.mp3",{"$error":"#NAME?"},{"$error":"#NAME?"},{"$error":"#NAME?"},{"$error":"#NAME?"}]
["Singles\\Roberta Flack - The First Time Ever I Saw Your Face.mp3",{"$error":"#NAME?"},{"$error":"#NAME?"},{"$error":"#NAME?"},{"$error":"#NAME?"}]
["Singles\\Ultra Nate - Free.mp3",{"$error":"#NAME?"},{"$error":"#NAME?"},{"$error":"#NAME?"},{"$error":"#NAME?"}]
["Singles\\Rob De Nijs - Malle Babbe.mp3",{"$error":"#NAME?"},{"$error":"#NAME?"},{"$error":"#NAME?"},{"$error":"#NAME?"}]
["Singles\\Jody Watley - Real Love.mp3",{"$error":"#NAME?"},{"$error":"#NAME?"},{"$error":"#NAME?"},{"$error":"#NAME?"}]
["Singles\\Electric Light Orchestra - Big Wheels.mp3",{"$error":"#NAME?"},{"$error":"#NAME?"},{"$error":"#NAME?"},{"$error":"#NAME?"}]
["Singles\\Kate Bush - Cloudbusting.mp3",{"$error":"#NAME?"},{"$error":"#NAME?"},{"$error":"#NAME?"},{"$error":"#NAME?"}]
["Singles\\David Sylvian & Ryuichi Sakamoto - Forbidden Colours.mp3",{"$error":"#NAME?"},{"$error":"#NAME?"},{"$error":"#NAME?"},{"$error":"#NAME?"}]
["Singles\\Marco Borsato - De Bestemming.mp3",{"$error":"#NAME?"},{"$error":"#NAME?"},{"$error":"#NAME?"},{"$error":"#NAME?"}]
["Singles\\Tenpole Tudor - Wunderbar.mp3",{"$error":"#NAME?"},{"$error":"#NAME?"},{"$error":"#NAME?"},{"$error":"#NAME?"}]
["Singles\\Neil Diamond - Girl You'll Be A Woman Soon.mp3",{"$error":"#NAME?"},{"$error":"#NAME?"},{"$error":"#NAME?"},{"$error":"#NAME?"}]
["Singles\\LeAnn Rimes - Can't Fight The Moonlight.mp3",{"$error":"#NAME?"},{"$error":"#NAME?"},{"$error":"#NAME?"},{"$error":"#NAME?"}]
["Singles\\Bob Seger & The Silver Bullet Band - Mainstreet.mp3",{"$error":"#NAME?"},{"$error":"#NAME?"},{"$error":"#NAME?"},{"$error":"#NAME?"}]
["Singles\\Gary Shearston - I Get A Kick Out Of You.mp3",{"$f":"RegexTest(B$1,$A259)","v":{"$error":"#NAME?"}},{"$f":"RegexCount(C$1,$A259)","v":{"$error":"#NAME?"}},{"$f":"RegexFind(D$1,$A259)","v":{"$error":"#NAME?"}},{"$f":"RegexReplace(E$1,$A259,F$1)","v":{"$error":"#NAME?"}}]
["Singles\\The Cats - Lea.mp3",{"$error":"#NAME?"},{"$error":"#NAME?"},{"$error":"#NAME?"},{"$error":"#NAME?"}]
["Singles\\Julian Perretta - Miracle.mp3",{"$error":"#NAME?"},{"$error":"#NAME?"},{"$error":"#NAME?"},{"$error":"#NAME?"}]
["Singles\\Bastille - Good Grief.mp3",{"$error":"#NAME?"},{"$error":"#NAME?"},{"$error":"#NAME?"},{"$error":"#NAME?"}]
["Singles\\Dave Davies - Death Of A Clown.mp3",{"$error":"#NAME?"},{"$error":"#NAME?"},{"$error":"#NAME?"},{"$error":"#NAME?"}]
["Singles\\Rod Stewart - You're In My Heart.mp3",{"$error":"#NAME?"},{"$error":"#NAME?"},{"$error":"#NAME?"},{"$error":"#NAME?"}]
["Singles\\Iron Butterfly - In A Gadda Da Vida.mp3",{"$error":"#NAME?"},{"$error":"#NAME?"},{"$error":"#NAME?"},{"$error":"#NAME?"}]
["Singles\\Dave & Ansil Collins - Double Barrel.mp3",{"$error":"#NAME?"},{"$error":"#NAME?"},{"$error":"#NAME?"},{"$error":"#NAME?"}]
["Singles\\Ed Sheeran - Castle On The Hill.mp3",{"$error":"#NAME?"},{"$error":"#NAME?"},{"$error":"#NAME?"},{"$error":"#NAME?"}]
["Singles\\Eminem ft Rihanna - The Monster.mp3",{"$error":"#NAME?"},{"$error":"#NAME?"},{"$error":"#NAME?"},{"$error":"#NAME?"}]
["Singles\\Maxi Priest - Some Guys Have All The Luck.mp3",{"$error":"#NAME?"},{"$error":"#NAME?"},{"$error":"#NAME?"},{"$error":"#NAME?"}]
["Singles\\Ray Stevens - Bridget The Midget.mp3",{"$error":"#NAME?"},{"$error":"#NAME?"},{"$error":"#NAME?"},{"$error":"#NAME?"}]
["Singles\\Cliff Richard & The Shadows - Living Doll.mp3",{"$error":"#NAME?"},{"$error":"#NAME?"},{"$error":"#NAME?"},{"$error":"#NAME?"}]
["Singles\\Clannad - Theme From Harry's Game.mp3",{"$error":"#NAME?"},{"$error":"#NAME?"},{"$error":"#NAME?"},{"$error":"#NAME?"}]
["Singles\\Queen - Who Wants To Live Forever.mp3",{"$error":"#NAME?"},{"$error":"#NAME?"},{"$error":"#NAME?"},{"$error":"#NAME?"}]
["Singles\\The Shadows - 36-24-36.mp3",{"$error":"#NAME?"},{"$error":"#NAME?"},{"$error":"#NAME?"},{"$error":"#NAME?"}]
["Singles\\Amy Winehouse - Back To Black.mp3",{"$error":"#NAME?"},{"$error":"#NAME?"},{"$error":"#NAME?"},{"$error":"#NAME?"}]
["Singles\\The Bee Gees - Run To Me.mp3",{"$error":"#NAME?"},{"$error":"#NAME?"},{"$error":"#NAME?"},{"$error":"#NAME?"}]
["Singles\\Color Me Badd - I Wanna Sex You Up.mp3",{"$error":"#NAME?"},{"$error":"#NAME?"},{"$error":"#NAME?"},{"$error":"#NAME?"}]
["Singles\\Pink - What About Us.mp3",{"$error":"#NAME?"},{"$error":"#NAME?"},{"$error":"#NAME?"},{"$error":"#NAME?"}]
["Singles\\The Rolling Stones - That's How Strong My Love Is.mp3",{"$error":"#NAME?"},{"$error":"#NAME?"},{"$error":"#NAME?"},{"$error":"#NAME?"}]
["Singles\\Edmundo Ross - London Is The Place For Me.mp3",{"$error":"#NAME?"},{"$error":"#NAME?"},{"$error":"#NAME?"},{"$error":"#NAME?"}]
["Singles\\Ready For The World - Oh Sheila.mp3",{"$error":"#NAME?"},{"$error":"#NAME?"},{"$error":"#NAME?"},{"$error":"#NAME?"}]
["Singles\\U2 - When Love Comes To Town.mp3",{"$error":"#NAME?"},{"$error":"#NAME?"},{"$error":"#NAME?"},{"$error":"#NAME?"}]
["Singles\\Bryan Adams - Here I Am.mp3",{"$error":"#NAME?"},{"$error":"#NAME?"},{"$error":"#NAME?"},{"$error":"#NAME?"}]
["Singles\\Queen - Radio Gaga.mp3",{"$error":"#NAME?"},{"$error":"#NAME?"},{"$error":"#NAME?"},{"$error":"#NAME?"}]
["Singles\\Roy Orbison - It's Over.mp3",{"$error":"#NAME?"},{"$error":"#NAME?"},{"$error":"#NAME?"},{"$error":"#NAME?"}]
["Singles\\Luv' - Casanova.mp3",{"$error":"#NAME?"},{"$error":"#NAME?"},{"$error":"#NAME?"},{"$error":"#NAME?"}]
["Singles\\Lisa - Hallelujah.mp3",{"$error":"#NAME?"},{"$error":"#NAME?"},{"$error":"#NAME?"},{"$error":"#NAME?"}]
["Singles\\Nina Simone - Ain't Got No - I Got Life.mp3",{"$error":"#NAME?"},{"$error":"#NAME?"},{"$error":"#NAME?"},{"$error":"#NAME?"}]
["Singles\\Abba - Gimme Gimme Gimme.mp3",{"$error":"#NAME?"},{"$error":"#NAME?"},{"$error":"#NAME?"},{"$error":"#NAME?"}]
["Singles\\Cliff Richard - Devil Woman.mp3",{"$error":"#NAME?"},{"$error":"#NAME?"},{"$error":"#NAME?"},{"$error":"#NAME?"}]
["Singles\\Jerry Lee Lewis - Chantilly Lace.mp3",{"$error":"#NAME?"},{"$error":"#NAME?"},{"$error":"#NAME?"},{"$error":"#NAME?"}]
["Singles\\Billy Preston & Syreeta - With You I'm Born Again.mp3",{"$error":"#NAME?"},{"$error":"#NAME?"},{"$error":"#NAME?"},{"$error":"#NAME?"}]
["Singles\\Kelly Family - I Can't Help Myself.mp3",{"$error":"#NAME?"},{"$error":"#NAME?"},{"$error":"#NAME?"},{"$error":"#NAME?"}]
["Singles\\Elvis Costello - I Want You.mp3",{"$error":"#NAME?"},{"$error":"#NAME?"},{"$error":"#NAME?"},{"$error":"#NAME?"}]
["Singles\\Elton John - Song For Guy.mp3",{"$error":"#NAME?"},{"$error":"#NAME?"},{"$error":"#NAME?"},{"$error":"#NAME?"}]
["Singles\\Pitbull ft Ke$ha - Timber.mp3",{"$error":"#NAME?"},{"$error":"#NAME?"},{"$error":"#NAME?"},{"$error":"#NAME?"}]
["Singles\\Chicago - Baby, What A Big Surprise.mp3",{"$error":"#NAME?"},{"$error":"#NAME?"},{"$error":"#NAME?"},{"$error":"#NAME?"}]
["Singles\\Kate Ryan - Ella Elle La.mp3",{"$error":"#NAME?"},{"$error":"#NAME?"},{"$error":"#NAME?"},{"$error":"#NAME?"}]
["Singles\\Meat Loaf - I'd Do Anything For Love (But I Won't Do That).mp3",{"$error":"#NAME?"},{"$error":"#NAME?"},{"$error":"#NAME?"},{"$error":"#NAME?"}]
["Singles\\Charlie Puth ft Selena Gomez - We Don't Talk Anymore.mp3",{"$error":"#NAME?"},{"$error":"#NAME?"},{"$error":"#NAME?"},{"$error":"#NAME?"}]
["Singles\\O-Town - All Or Nothing.mp3",{"$error":"#NAME?"},{"$error":"#NAME?"},{"$error":"#NAME?"},{"$error":"#NAME?"}]
["Singles\\The Common Linnets - Calm After The Storm.mp3",{"$error":"#NAME?"},{"$error":"#NAME?"},{"$error":"#NAME?"},{"$error":"#NAME?"}]
["Singles\\Jackpot - Ginny Ginny.mp3",{"$error":"#NAME?"},{"$error":"#NAME?"},{"$error":"#NAME?"},{"$error":"#NAME?"}]
["Singles\\Angel - Winter Song.mp3",{"$error":"#NAME?"},{"$error":"#NAME?"},{"$error":"#NAME?"},{"$error":"#NAME?"}]
["Singles\\Felix Jaehn ft Jasmine Thompson - Ain't Nobody (Loves Me Better).mp3",{"$error":"#NAME?"},{"$error":"#NAME?"},{"$error":"#NAME?"},{"$error":"#NAME?"}]
["Singles\\Simply Red - Holding Back The Years.mp3",{"$error":"#NAME?"},{"$error":"#NAME?"},{"$error":"#NAME?"},{"$error":"#NAME?"}]
["Singles\\New Edition - Candy Girl.mp3",{"$error":"#NAME?"},{"$error":"#NAME?"},{"$error":"#NAME?"},{"$error":"#NAME?"}]
["Singles\\Frank Ashton & Mariska Van Kolck - Let Your Sun Shine.mp3",{"$error":"#NAME?"},{"$error":"#NAME?"},{"$error":"#NAME?"},{"$error":"#NAME?"}]
["Singles\\Shakatak - Night Birds.mp3",{"$error":"#NAME?"},{"$error":"#NAME?"},{"$error":"#NAME?"},{"$error":"#NAME?"}]
["Singles\\Guns N' Roses - Patience.mp3",{"$error":"#NAME?"},{"$error":"#NAME?"},{"$error":"#NAME?"},{"$error":"#NAME?"}]
["Singles\\Madonna - Borderline.mp3",{"$error":"#NAME?"},{"$error":"#NAME?"},{"$error":"#NAME?"},{"$error":"#NAME?"}]
["Singles\\Kraantje Pappie  ft Joshua Nolet - Liefde In De Lucht.mp3",{"$error":"#NAME?"},{"$error":"#NAME?"},{"$error":"#NAME?"},{"$error":"#NAME?"}]
["Singles\\Taylor Swift - Shake It Off.mp3",{"$error":"#NAME?"},{"$error":"#NAME?"},{"$error":"#NAME?"},{"$error":"#NAME?"}]
["Singles\\Racey - Runaround Sue.mp3",{"$error":"#NAME?"},{"$error":"#NAME?"},{"$error":"#NAME?"},{"$error":"#NAME?"}]
["Singles\\Santana - Oye Como Va.mp3",{"$error":"#NAME?"},{"$error":"#NAME?"},{"$error":"#NAME?"},{"$error":"#NAME?"}]
["Singles\\Barry White - What Am I Gonna Do With You.mp3",{"$error":"#NAME?"},{"$error":"#NAME?"},{"$error":"#NAME?"},{"$error":"#NAME?"}]
["Singles\\Carly Simon - It's Hard To Be Tender.mp3",{"$error":"#NAME?"},{"$error":"#NAME?"},{"$error":"#NAME?"},{"$error":"#NAME?"}]
["Singles\\Buggles - Video Killed The Radio Star.mp3",{"$error":"#NAME?"},{"$error":"#NAME?"},{"$error":"#NAME?"},{"$error":"#NAME?"}]
["Singles\\Diana Ross - When You Tell Me That You Love Me.mp3",{"$error":"#NAME?"},{"$error":"#NAME?"},{"$error":"#NAME?"},{"$error":"#NAME?"}]
["Singles\\Pussycat - Mississippi.mp3",{"$error":"#NAME?"},{"$error":"#NAME?"},{"$error":"#NAME?"},{"$error":"#NAME?"}]
["Singles\\Justin Timberlake - Cry Me A River.mp3",{"$error":"#NAME?"},{"$error":"#NAME?"},{"$error":"#NAME?"},{"$error":"#NAME?"}]
["Singles\\Bon Jovi - All About Lovin' You.mp3",{"$error":"#NAME?"},{"$error":"#NAME?"},{"$error":"#NAME?"},{"$error":"#NAME?"}]
["Singles\\The Surfaris - Wipe Out.mp3",{"$f":"RegexTest(B$1,$A323)","v":{"$error":"#NAME?"}},{"$f":"RegexCount(C$1,$A323)","v":{"$error":"#NAME?"}},{"$f":"RegexFind(D$1,$A323)","v":{"$error":"#NAME?"}},{"$f":"RegexReplace(E$1,$A323,F$1)","v":{"$error":"#NAME?"}}]
["Singles\\The Sweet - Teenage Rampage.mp3",{"$error":"#NAME?"},{"$error":"#NAME?"},{"$error":"#NAME?"},{"$error":"#NAME?"}]
["Singles\\Marco Borsato - Zij.mp3",{"$error":"#NAME?"},{"$error":"#NAME?"},{"$error":"#NAME?"},{"$error":"#NAME?"}]
["Singles\\Peter Schilling - Major Tom (Völlig Losgelöst).mp3",{"$error":"#NAME?"},{"$error":"#NAME?"},{"$error":"#NAME?"},{"$error":"#NAME?"}]
["Singles\\Jeroen Van Der Boom - Jij Bent Zo.mp3",{"$error":"#NAME?"},{"$error":"#NAME?"},{"$error":"#NAME?"},{"$error":"#NAME?"}]
["Singles\\Nena & Kim Wilde - Anyplace, Anywhere, Anytime.mp3",{"$error":"#NAME?"},{"$error":"#NAME?"},{"$error":"#NAME?"},{"$error":"#NAME?"}]
["Singles\\Elvis Presley & Junkie XL - A Little Less Conversation.mp3",{"$error":"#NAME?"},{"$error":"#NAME?"},{"$error":"#NAME?"},{"$error":"#NAME?"}]
["Singles\\Unit Gloria - Clap Your Hands And Stamp Your Feet.mp3",{"$error":"#NAME?"},{"$error":"#NAME?"},{"$error":"#NAME?"},{"$error":"#NAME?"}]
["Singles\\Adele - Make You Feel My Love.mp3",{"$error":"#NAME?"},{"$error":"#NAME?"},{"$error":"#NAME?"},{"$error":"#NAME?"}]
["Singles\\Paul McCartney & Stevie Wonder - Ebony And Ivory.mp3",{"$error":"#NAME?"},{"$error":"#NAME?"},{"$error":"#NAME?"},{"$error":"#NAME?"}]
["Singles\\Leo Rodriguez - Bara Bara Bere Bere.mp3",{"$error":"#NAME?"},{"$error":"#NAME?"},{"$error":"#NAME?"},{"$error":"#NAME?"}]
["Singles\\Ellie Goulding - Burn.mp3",{"$error":"#NAME?"},{"$error":"#NAME?"},{"$error":"#NAME?"},{"$error":"#NAME?"}]
["Singles\\Doris Day - A Guy Is A Guy.mp3",{"$error":"#NAME?"},{"$error":"#NAME?"},{"$error":"#NAME?"},{"$error":"#NAME?"}]
["Singles\\Eminem ft Rihanna - Love The Way You Lie.mp3",{"$error":"#NAME?"},{"$error":"#NAME?"},{"$error":"#NAME?"},{"$error":"#NAME?"}]
["Singles\\Nancy Sinatra & Dean Martin - Things.mp3",{"$error":"#NAME?"},{"$error":"#NAME?"},{"$error":"#NAME?"},{"$error":"#NAME?"}]
["Singles\\Tina Turner - When The Heartache Is Over.mp3",{"$error":"#NAME?"},{"$error":"#NAME?"},{"$error":"#NAME?"},{"$error":"#NAME?"}]
["Singles\\Herman Van Veen - Hilversum III.mp3",{"$error":"#NAME?"},{"$error":"#NAME?"},{"$error":"#NAME?"},{"$error":"#NAME?"}]
["Singles\\Dave Stewart & Colin Blunstone - What Becomes Of The Brokenhearted.mp3",{"$error":"#NAME?"},{"$error":"#NAME?"},{"$error":"#NAME?"},{"$error":"#NAME?"}]
["Singles\\Lucille Starr - The French Song.mp3",{"$error":"#NAME?"},{"$error":"#NAME?"},{"$error":"#NAME?"},{"$error":"#NAME?"}]
["Singles\\Genesis - Hold On My Heart.mp3",{"$error":"#NAME?"},{"$error":"#NAME?"},{"$error":"#NAME?"},{"$error":"#NAME?"}]
["Singles\\Billy Vaughn - Sail Along Silvery Moon.mp3",{"$error":"#NAME?"},{"$error":"#NAME?"},{"$error":"#NAME?"},{"$error":"#NAME?"}]
["Singles\\Jona Lewie - Come Away.mp3",{"$error":"#NAME?"},{"$error":"#NAME?"},{"$error":"#NAME?"},{"$error":"#NAME?"}]
["Singles\\Andre Hazes - Eenzame Kerst.mp3",{"$error":"#NAME?"},{"$error":"#NAME?"},{"$error":"#NAME?"},{"$error":"#NAME?"}]
["Singles\\Rocky Sharpe & The Replays - Rama Lama Ding Dong.mp3",{"$error":"#NAME?"},{"$error":"#NAME?"},{"$error":"#NAME?"},{"$error":"#NAME?"}]
["Singles\\Adèle Bloemendaal - Zallemenut (Nog 'n Keertje Overdoen).mp3",{"$error":"#NAME?"},{"$error":"#NAME?"},{"$error":"#NAME?"},{"$error":"#NAME?"}]
["Singles\\Aphrodite's Child - It's Five O'Clock.mp3",{"$error":"#NAME?"},{"$error":"#NAME?"},{"$error":"#NAME?"},{"$error":"#NAME?"}]
["Singles\\Gilbert O'Sullivan - Matrimony.mp3",{"$error":"#NAME?"},{"$error":"#NAME?"},{"$error":"#NAME?"},{"$error":"#NAME?"}]
["Singles\\Coldplay - Magic.mp3",{"$error":"#NAME?"},{"$error":"#NAME?"},{"$error":"#NAME?"},{"$error":"#NAME?"}]
["Singles\\Lucas & Steve & Deepend - Long Way Home.mp3",{"$error":"#NAME?"},{"$error":"#NAME?"},{"$error":"#NAME?"},{"$error":"#NAME?"}]
["Singles\\Stars On 45 - Andrews Sisters.mp3",{"$error":"#NAME?"},{"$error":"#NAME?"},{"$error":"#NAME?"},{"$error":"#NAME?"}]
["Singles\\Shirley Zwerus - Heel Even.mp3",{"$error":"#NAME?"},{"$error":"#NAME?"},{"$error":"#NAME?"},{"$error":"#NAME?"}]
["Singles\\Davina Michelle - Skyward.mp3",{"$error":"#NAME?"},{"$error":"#NAME?"},{"$error":"#NAME?"},{"$error":"#NAME?"}]
["Singles\\Wet Wet Wet - Angel Eyes.mp3",{"$error":"#NAME?"},{"$error":"#NAME?"},{"$error":"#NAME?"},{"$error":"#NAME?"}]
["Singles\\The Outlaws - There Goes Another Love Song.mp3",{"$error":"#NAME?"},{"$error":"#NAME?"},{"$error":"#NAME?"},{"$error":"#NAME?"}]
["Singles\\Colbie Caillat - The Little Things.mp3",{"$error":"#NAME?"},{"$error":"#NAME?"},{"$error":"#NAME?"},{"$error":"#NAME?"}]
["Singles\\Cranberries - Linger.mp3",{"$error":"#NAME?"},{"$error":"#NAME?"},{"$error":"#NAME?"},{"$error":"#NAME?"}]
["Singles\\Jenniffer Kae - Little White Lies.mp3",{"$error":"#NAME?"},{"$error":"#NAME?"},{"$error":"#NAME?"},{"$error":"#NAME?"}]
["Singles\\Mika - Grace Kelly.mp3",{"$error":"#NAME?"},{"$error":"#NAME?"},{"$error":"#NAME?"},{"$error":"#NAME?"}]
["Singles\\Sammi Smith - Help Me Make It Through The Night.mp3",{"$error":"#NAME?"},{"$error":"#NAME?"},{"$error":"#NAME?"},{"$error":"#NAME?"}]
["Singles\\Climax Blues Band - Gotta Have More Love.mp3",{"$error":"#NAME?"},{"$error":"#NAME?"},{"$error":"#NAME?"},{"$error":"#NAME?"}]
["Singles\\Joe Cocker & Jennifer Warnes - Up Where We Belong.mp3",{"$error":"#NAME?"},{"$error":"#NAME?"},{"$error":"#NAME?"},{"$error":"#NAME?"}]
["Singles\\Blue Ridge Rangers - Hearts Of Stone.mp3",{"$error":"#NAME?"},{"$error":"#NAME?"},{"$error":"#NAME?"},{"$error":"#NAME?"}]
["Singles\\Bob Marley - Iron Lion Zion.mp3",{"$error":"#NAME?"},{"$error":"#NAME?"},{"$error":"#NAME?"},{"$error":"#NAME?"}]
["Singles\\Jewel - Intuition.mp3",{"$error":"#NAME?"},{"$error":"#NAME?"},{"$error":"#NAME?"},{"$error":"#NAME?"}]
["Singles\\Ottawan - D.I.S.C.O.mp3",{"$error":"#NAME?"},{"$error":"#NAME?"},{"$error":"#NAME?"},{"$error":"#NAME?"}]
["Singles\\Kygo & Imagine Dragons - Born To Be Yours.mp3",{"$error":"#NAME?"},{"$error":"#NAME?"},{"$error":"#NAME?"},{"$error":"#NAME?"}]
["Singles\\Walk The Moon - Shut Up + Dance.mp3",{"$error":"#NAME?"},{"$error":"#NAME?"},{"$error":"#NAME?"},{"$error":"#NAME?"}]
["Singles\\John Newman - Come And Get It.mp3",{"$error":"#NAME?"},{"$error":"#NAME?"},{"$error":"#NAME?"},{"$error":"#NAME?"}]
["Singles\\ZZ & De Maskers - Ik Heb Genoeg Van Jou.mp3",{"$error":"#NAME?"},{"$error":"#NAME?"},{"$error":"#NAME?"},{"$error":"#NAME?"}]
["Singles\\Barry White - I'm Gonna Love You Just A Little More, Baby.mp3",{"$error":"#NAME?"},{"$error":"#NAME?"},{"$error":"#NAME?"},{"$error":"#NAME?"}]
["Singles\\Greenfield & Cook - Melody.mp3",{"$error":"#NAME?"},{"$error":"#NAME?"},{"$error":"#NAME?"},{"$error":"#NAME?"}]
["Singles\\David Bowie - Ashes To Ashes.mp3",{"$error":"#NAME?"},{"$error":"#NAME?"},{"$error":"#NAME?"},{"$error":"#NAME?"}]
["Singles\\Acda & De Munnik - Het Regent Zonnestralen.mp3",{"$error":"#NAME?"},{"$error":"#NAME?"},{"$error":"#NAME?"},{"$error":"#NAME?"}]
["Singles\\The Rolling Stones - Little Red Rooster.mp3",{"$error":"#NAME?"},{"$error":"#NAME?"},{"$error":"#NAME?"},{"$error":"#NAME?"}]
["Singles\\Ladysmith Black Mambazo - Swing Low Sweet Chariot.mp3",{"$error":"#NAME?"},{"$error":"#NAME?"},{"$error":"#NAME?"},{"$error":"#NAME?"}]
["Singles\\Andre Van Duin - Duudeljoo.mp3",{"$error":"#NAME?"},{"$error":"#NAME?"},{"$error":"#NAME?"},{"$error":"#NAME?"}]
["Singles\\Brat - Chalk Dust (The Umpire Strikes Back).mp3",{"$error":"#NAME?"},{"$error":"#NAME?"},{"$error":"#NAME?"},{"$error":"#NAME?"}]
["Singles\\Mezzoforte - Garden Party.mp3",{"$error":"#NAME?"},{"$error":"#NAME?"},{"$error":"#NAME?"},{"$error":"#NAME?"}]
["Singles\\Christina Aguilera - Hurt.mp3",{"$error":"#NAME?"},{"$error":"#NAME?"},{"$error":"#NAME?"},{"$error":"#NAME?"}]
["Singles\\Doe Maar - Pa.mp3",{"$error":"#NAME?"},{"$error":"#NAME?"},{"$error":"#NAME?"},{"$error":"#NAME?"}]
["Singles\\Freddy Breck - Rote Rosen.mp3",{"$error":"#NAME?"},{"$error":"#NAME?"},{"$error":"#NAME?"},{"$error":"#NAME?"}]
["Singles\\Sandra - Maria Magdalena.mp3",{"$error":"#NAME?"},{"$error":"#NAME?"},{"$error":"#NAME?"},{"$error":"#NAME?"}]
["Singles\\Alain Clark - Good Days.mp3",{"$error":"#NAME?"},{"$error":"#NAME?"},{"$error":"#NAME?"},{"$error":"#NAME?"}]
["Singles\\Carlos - Big Bisou.mp3",{"$error":"#NAME?"},{"$error":"#NAME?"},{"$error":"#NAME?"},{"$error":"#NAME?"}]
["Singles\\The Shadows - Foot Tapper.mp3",{"$f":"RegexTest(B$1,$A387)","v":{"$error":"#NAME?"}},{"$f":"RegexCount(C$1,$A387)","v":{"$error":"#NAME?"}},{"$f":"RegexFind(D$1,$A387)","v":{"$error":"#NAME?"}},{"$f":"RegexReplace(E$1,$A387,F$1)","v":{"$error":"#NAME?"}}]
["Singles\\Ed Sheeran - Happier.mp3",{"$error":"#NAME?"},{"$error":"#NAME?"},{"$error":"#NAME?"},{"$error":"#NAME?"}]
["Singles\\Dean Martin - Everybody Loves Somebody.mp3",{"$error":"#NAME?"},{"$error":"#NAME?"},{"$error":"#NAME?"},{"$error":"#NAME?"}]
["Singles\\Living In A Box - Blow The House Down.mp3",{"$error":"#NAME?"},{"$error":"#NAME?"},{"$error":"#NAME?"},{"$error":"#NAME?"}]
["Singles\\Belle Perez - Dime.mp3",{"$error":"#NAME?"},{"$error":"#NAME?"},{"$error":"#NAME?"},{"$error":"#NAME?"}]
["Singles\\Hind - Summer All Over Again.mp3",{"$error":"#NAME?"},{"$error":"#NAME?"},{"$error":"#NAME?"},{"$error":"#NAME?"}]
["Singles\\Leen Jongewaard & Wim Sonneveld - In Een Rijtuigje.mp3",{"$error":"#NAME?"},{"$error":"#NAME?"},{"$error":"#NAME?"},{"$error":"#NAME?"}]
["Singles\\Dimitri Vegas & Like Mike & David Guetta & Daddy Yankee & Afro Bro's & Natti Natasha - Instagram.mp3",{"$error":"#NAME?"},{"$error":"#NAME?"},{"$error":"#NAME?"},{"$error":"#NAME?"}]
["Singles\\Lene Lovich - Bird Song.mp3",{"$error":"#NAME?"},{"$error":"#NAME?"},{"$error":"#NAME?"},{"$error":"#NAME?"}]
["Singles\\Living In A Box - Living In A Box.mp3",{"$error":"#NAME?"},{"$error":"#NAME?"},{"$error":"#NAME?"},{"$error":"#NAME?"}]
["Singles\\Rare Earth - Get Ready.mp3",{"$error":"#NAME?"},{"$error":"#NAME?"},{"$error":"#NAME?"},{"$error":"#NAME?"}]
["Singles\\Electric Light Orchestra - Steppin' Out.mp3",{"$error":"#NAME?"},{"$error":"#NAME?"},{"$error":"#NAME?"},{"$error":"#NAME?"}]
["Singles\\Ray Charles - Georgia On My Mind.mp3",{"$error":"#NAME?"},{"$error":"#NAME?"},{"$error":"#NAME?"},{"$error":"#NAME?"}]
["Singles\\The Christians - In My Hour Of Need.mp3",{"$error":"#NAME?"},{"$error":"#NAME?"},{"$error":"#NAME?"},{"$error":"#NAME?"}]
["Singles\\Britney Spears - Till The World Ends.mp3",{"$error":"#NAME?"},{"$error":"#NAME?"},{"$error":"#NAME?"},{"$error":"#NAME?"}]
["Singles\\The Shadows - Atlantis.mp3",{"$error":"#NAME?"},{"$error":"#NAME?"},{"$error":"#NAME?"},{"$error":"#NAME?"}]
["Singles\\Asaf Avidan & The Mojos - Reckoning Song (One Day).mp3",{"$error":"#NAME?"},{"$error":"#NAME?"},{"$error":"#NAME?"},{"$error":"#NAME?"}]
["Singles\\Shawn Mendes - If I Can’t Have You.mp3",{"$error":"#NAME?"},{"$error":"#NAME?"},{"$error":"#NAME?"},{"$error":"#NAME?"}]
["Singles\\The Trammps - The Night The Lights Went Out In New York City.mp3",{"$error":"#NAME?"},{"$error":"#NAME?"},{"$error":"#NAME?"},{"$error":"#NAME?"}]
["Singles\\Peter Blanker - 't Is Moeilijk Bescheiden Te Blijven.mp3",{"$error":"#NAME?"},{"$error":"#NAME?"},{"$error":"#NAME?"},{"$error":"#NAME?"}]
["Singles\\Leen Jongewaard & Hetty Blok - M'n Opa.mp3",{"$error":"#NAME?"},{"$error":"#NAME?"},{"$error":"#NAME?"},{"$error":"#NAME?"}]
["Singles\\Genesis - Tell Me Why.mp3",{"$error":"#NAME?"},{"$error":"#NAME?"},{"$error":"#NAME?"},{"$error":"#NAME?"}]
["Singles\\Rene Froger - Alles Kan Een Mens Gelukkig Maken.mp3",{"$error":"#NAME?"},{"$error":"#NAME?"},{"$error":"#NAME?"},{"$error":"#NAME?"}]
["Singles\\Minnie Riperton - Lovin' You.mp3",{"$error":"#NAME?"},{"$error":"#NAME?"},{"$error":"#NAME?"},{"$error":"#NAME?"}]
["Singles\\Maroon 5 ft Kendrick Lamar - Don't Wanna Know.mp3",{"$error":"#NAME?"},{"$error":"#NAME?"},{"$error":"#NAME?"},{"$error":"#NAME?"}]
["Singles\\Alexander Curly - Guus Kom Naar Huus.mp3",{"$error":"#NAME?"},{"$error":"#NAME?"},{"$error":"#NAME?"},{"$error":"#NAME?"}]
["Singles\\Maywood - Mother How Are You Today.mp3",{"$error":"#NAME?"},{"$error":"#NAME?"},{"$error":"#NAME?"},{"$error":"#NAME?"}]
["Singles\\Bad Manners - Can Can.mp3",{"$error":"#NAME?"},{"$error":"#NAME?"},{"$error":"#NAME?"},{"$error":"#NAME?"}]
["Singles\\Osibisa - Sunshine Day.mp3",{"$error":"#NAME?"},{"$error":"#NAME?"},{"$error":"#NAME?"},{"$error":"#NAME?"}]
["Singles\\Ben Howard - Keep Your Head Up.mp3",{"$error":"#NAME?"},{"$error":"#NAME?"},{"$error":"#NAME?"},{"$error":"#NAME?"}]
["Singles\\Armin Van Buuren ft Josh Cumbee - Sunny Days.mp3",{"$error":"#NAME?"},{"$error":"#NAME?"},{"$error":"#NAME?"},{"$error":"#NAME?"}]
["Singles\\Snow Patrol - Chasing Cars.mp3",{"$error":"#NAME?"},{"$error":"#NAME?"},{"$error":"#NAME?"},{"$error":"#NAME?"}]
["Singles\\Celine Dion & The Bee Gees - Immortality.mp3",{"$error":"#NAME?"},{"$error":"#NAME?"},{"$error":"#NAME?"},{"$error":"#NAME?"}]
["Singles\\Phil Collins - Do You Remember.mp3",{"$error":"#NAME?"},{"$error":"#NAME?"},{"$error":"#NAME?"},{"$error":"#NAME?"}]
["Singles\\Jeremy Loops & Motheo Moleko - Down South.mp3",{"$error":"#NAME?"},{"$error":"#NAME?"},{"$error":"#NAME?"},{"$error":"#NAME?"}]
["Singles\\Johnny Otis - Williie And The Hand Jive.mp3",{"$error":"#NAME?"},{"$error":"#NAME?"},{"$error":"#NAME?"},{"$error":"#NAME?"}]
["Singles\\Showaddywaddy - Why Do Lovers Break Each Others Hearts.mp3",{"$error":"#NAME?"},{"$error":"#NAME?"},{"$error":"#NAME?"},{"$error":"#NAME?"}]
["Singles\\Elvis Presley - Gentle On My Mind.mp3",{"$error":"#NAME?"},{"$error":"#NAME?"},{"$error":"#NAME?"},{"$error":"#NAME?"}]
["Singles\\Donald Fagen - The Nightfly.mp3",{"$error":"#NAME?"},{"$error":"#NAME?"},{"$error":"#NAME?"},{"$error":"#NAME?"}]
["Singles\\Michael Nesmith & The First National Band - Silver Moon.mp3",{"$error":"#NAME?"},{"$error":"#NAME?"},{"$error":"#NAME?"},{"$error":"#NAME?"}]
["Singles\\Peter Schaap - Adem Mijn Adem.mp3",{"$error":"#NAME?"},{"$error":"#NAME?"},{"$error":"#NAME?"},{"$error":"#NAME?"}]
["Singles\\Michael Jackson - The Way You Make Me Feel.mp3",{"$error":"#NAME?"},{"$error":"#NAME?"},{"$error":"#NAME?"},{"$error":"#NAME?"}]
["Singles\\Mohombi - Bumpy Ride.mp3",{"$error":"#NAME?"},{"$error":"#NAME?"},{"$error":"#NAME?"},{"$error":"#NAME?"}]
["Singles\\INXS - Never Tear Us Apart.mp3",{"$error":"#NAME?"},{"$error":"#NAME?"},{"$error":"#NAME?"},{"$error":"#NAME?"}]
["Singles\\Alessia Cara - Scars To Your Beautiful.mp3",{"$error":"#NAME?"},{"$error":"#NAME?"},{"$error":"#NAME?"},{"$error":"#NAME?"}]
["Singles\\Bob Dylan - Like A Rolling Stone.mp3",{"$error":"#NAME?"},{"$error":"#NAME?"},{"$error":"#NAME?"},{"$error":"#NAME?"}]
["Singles\\Avicii ft Aloe Blacc - SOS.mp3",{"$error":"#NAME?"},{"$error":"#NAME?"},{"$error":"#NAME?"},{"$error":"#NAME?"}]
["Singles\\Champs - Tequila.mp3",{"$error":"#NAME?"},{"$error":"#NAME?"},{"$error":"#NAME?"},{"$error":"#NAME?"}]
["Singles\\St Germain - Rose Rouge.mp3",{"$error":"#NAME?"},{"$error":"#NAME?"},{"$error":"#NAME?"},{"$error":"#NAME?"}]
["Singles\\Tina Turner - Let's Stay Together.mp3",{"$error":"#NAME?"},{"$error":"#NAME?"},{"$error":"#NAME?"},{"$error":"#NAME?"}]
["Singles\\James Brown - Sex Machine.mp3",{"$error":"#NAME?"},{"$error":"#NAME?"},{"$error":"#NAME?"},{"$error":"#NAME?"}]
["Singles\\Van Velzen - Love Song.mp3",{"$error":"#NAME?"},{"$error":"#NAME?"},{"$error":"#NAME?"},{"$error":"#NAME?"}]
["Singles\\Level 42 - Tracie.mp3",{"$error":"#NAME?"},{"$error":"#NAME?"},{"$error":"#NAME?"},{"$error":"#NAME?"}]
["Singles\\Electric Light Orchestra - Sweet Is The Night.mp3",{"$error":"#NAME?"},{"$error":"#NAME?"},{"$error":"#NAME?"},{"$error":"#NAME?"}]
["Singles\\Surfers - Windsurfin'.mp3",{"$error":"#NAME?"},{"$error":"#NAME?"},{"$error":"#NAME?"},{"$error":"#NAME?"}]
["Singles\\Steve Rowland & The Family Dogg - Rikers Island.mp3",{"$error":"#NAME?"},{"$error":"#NAME?"},{"$error":"#NAME?"},{"$error":"#NAME?"}]
["Singles\\De La Soul - Me, Myself, And I.mp3",{"$error":"#NAME?"},{"$error":"#NAME?"},{"$error":"#NAME?"},{"$error":"#NAME?"}]
["Singles\\Duane Eddy - Rebel Rouser.mp3",{"$error":"#NAME?"},{"$error":"#NAME?"},{"$error":"#NAME?"},{"$error":"#NAME?"}]
["Singles\\Raymond Van Het Groenewoud - Je Veux De L'Amour.mp3",{"$error":"#NAME?"},{"$error":"#NAME?"},{"$error":"#NAME?"},{"$error":"#NAME?"}]
["Singles\\Robbie Williams - Go Gentle.mp3",{"$error":"#NAME?"},{"$error":"#NAME?"},{"$error":"#NAME?"},{"$error":"#NAME?"}]
["Singles\\Percy Sledge - My Special Prayer.mp3",{"$error":"#NAME?"},{"$error":"#NAME?"},{"$error":"#NAME?"},{"$error":"#NAME?"}]
["Singles\\3t - Stuck On You.mp3",{"$error":"#NAME?"},{"$error":"#NAME?"},{"$error":"#NAME?"},{"$error":"#NAME?"}]
["Singles\\Debbie Harry - French Kissin' In The USA.mp3",{"$error":"#NAME?"},{"$error":"#NAME?"},{"$error":"#NAME?"},{"$error":"#NAME?"}]
["Singles\\Brooke Fraser - Something In The Water.mp3",{"$error":"#NAME?"},{"$error":"#NAME?"},{"$error":"#NAME?"},{"$error":"#NAME?"}]
["Singles\\The Trammps - Disco Inferno.mp3",{"$f":"RegexTest(B$1,$A451)","v":{"$error":"#NAME?"}},{"$f":"RegexCount(C$1,$A451)","v":{"$error":"#NAME?"}},{"$f":"RegexFind(D$1,$A451)","v":{"$error":"#NAME?"}},{"$f":"RegexReplace(E$1,$A451,F$1)","v":{"$error":"#NAME?"}}]
["Singles\\John Lennon & Ringo Starr - It Don't Come Easy.mp3",{"$error":"#NAME?"},{"$error":"#NAME?"},{"$error":"#NAME?"},{"$error":"#NAME?"}]
["Singles\\Elvis Presley - Fools Rush In.mp3",{"$error":"#NAME?"},{"$error":"#NAME?"},{"$error":"#NAME?"},{"$error":"#NAME?"}]
["Singles\\Cliff Richard - Miss You Nights.mp3",{"$error":"#NAME?"},{"$error":"#NAME?"},{"$error":"#NAME?"},{"$error":"#NAME?"}]
["Singles\\Neil Diamond - Play Me.mp3",{"$error":"#NAME?"},{"$error":"#NAME?"},{"$error":"#NAME?"},{"$error":"#NAME?"}]
["Singles\\Akon - Mr Lonely.mp3",{"$error":"#NAME?"},{"$error":"#NAME?"},{"$error":"#NAME?"},{"$error":"#NAME?"}]
["Singles\\Amanda Lear - Follow Me.mp3",{"$error":"#NAME?"},{"$error":"#NAME?"},{"$error":"#NAME?"},{"$error":"#NAME?"}]
["Singles\\The Doors - Waiting For The Sun.mp3",{"$error":"#NAME?"},{"$error":"#NAME?"},{"$error":"#NAME?"},{"$error":"#NAME?"}]
["Singles\\Julio Iglesias - Quiereme Mucho.mp3",{"$error":"#NAME?"},{"$error":"#NAME?"},{"$error":"#NAME?"},{"$error":"#NAME?"}]
["Singles\\Dolly Parton - You Are.mp3",{"$error":"#NAME?"},{"$error":"#NAME?"},{"$error":"#NAME?"},{"$error":"#NAME?"}]
["Singles\\UB40 - Red Red Wine.mp3",{"$error":"#NAME?"},{"$error":"#NAME?"},{"$error":"#NAME?"},{"$error":"#NAME?"}]
["Singles\\Status Quo - Pictures Of Matchstick Men.mp3",{"$error":"#NAME?"},{"$error":"#NAME?"},{"$error":"#NAME?"},{"$error":"#NAME?"}]
["Singles\\Elvis Presley - All Shook Up.mp3",{"$error":"#NAME?"},{"$error":"#NAME?"},{"$error":"#NAME?"},{"$error":"#NAME?"}]
["Singles\\P!nk & Khalid - Hurts 2B Human.mp3",{"$error":"#NAME?"},{"$error":"#NAME?"},{"$error":"#NAME?"},{"$error":"#NAME?"}]
["Singles\\Backstreet Boys - Everybody.mp3",{"$error":"#NAME?"},{"$error":"#NAME?"},{"$error":"#NAME?"},{"$error":"#NAME?"}]
["Singles\\Tom Tom Club - Wordy Rappinghood.mp3",{"$error":"#NAME?"},{"$error":"#NAME?"},{"$error":"#NAME?"},{"$error":"#NAME?"}]
["Singles\\Keane - Sovereign Light Cafe.mp3",{"$error":"#NAME?"},{"$error":"#NAME?"},{"$error":"#NAME?"},{"$error":"#NAME?"}]
["Singles\\Adamo - Dolce Paola.mp3",{"$error":"#NAME?"},{"$error":"#NAME?"},{"$error":"#NAME?"},{"$error":"#NAME?"}]
["Singles\\Robert Miles - Children.mp3",{"$error":"#NAME?"},{"$error":"#NAME?"},{"$error":"#NAME?"},{"$error":"#NAME?"}]
["Singles\\Elton John - Circle Of Life.mp3",{"$error":"#NAME?"},{"$error":"#NAME?"},{"$error":"#NAME?"},{"$error":"#NAME?"}]
["Singles\\Mia - Tanz Der Molekuele.mp3",{"$error":"#NAME?"},{"$error":"#NAME?"},{"$error":"#NAME?"},{"$error":"#NAME?"}]
["Singles\\Duffy - Warwick Avenue.mp3",{"$error":"#NAME?"},{"$error":"#NAME?"},{"$error":"#NAME?"},{"$error":"#NAME?"}]
["Singles\\Oscar Harris - Try A Little Love.mp3",{"$error":"#NAME?"},{"$error":"#NAME?"},{"$error":"#NAME?"},{"$error":"#NAME?"}]
["Singles\\Clannad & Bono - In A Lifetime.mp3",{"$error":"#NAME?"},{"$error":"#NAME?"},{"$error":"#NAME?"},{"$error":"#NAME?"}]
["Singles\\Ed Sheeran - Galway Girl.mp3",{"$error":"#NAME?"},{"$error":"#NAME?"},{"$error":"#NAME?"},{"$error":"#NAME?"}]
["Singles\\Boston - Amanda.mp3",{"$error":"#NAME?"},{"$error":"#NAME?"},{"$error":"#NAME?"},{"$error":"#NAME?"}]
["Singles\\Kiesza - Hideaway.mp3",{"$error":"#NAME?"},{"$error":"#NAME?"},{"$error":"#NAME?"},{"$error":"#NAME?"}]
["Singles\\Demis Roussos - Forever And Ever.mp3",{"$error":"#NAME?"},{"$error":"#NAME?"},{"$error":"#NAME?"},{"$error":"#NAME?"}]
["Singles\\Ian Dury - Hit Me With Your Rhythm Stick.mp3",{"$error":"#NAME?"},{"$error":"#NAME?"},{"$error":"#NAME?"},{"$error":"#NAME?"}]
["Singles\\Johnny Hallyday - Pour Moi La Vie Va Commencer.mp3",{"$error":"#NAME?"},{"$error":"#NAME?"},{"$error":"#NAME?"},{"$error":"#NAME?"}]
["Singles\\Shangri-Las - Remember (Walking In The Sand).mp3",{"$error":"#NAME?"},{"$error":"#NAME?"},{"$error":"#NAME?"},{"$error":"#NAME?"}]
["Singles\\Cliff Richard - Power To All Our Friends.mp3",{"$error":"#NAME?"},{"$error":"#NAME?"},{"$error":"#NAME?"},{"$error":"#NAME?"}]
["Singles\\Patti LaBelle - Lady Marmalade.mp3",{"$error":"#NAME?"},{"$error":"#NAME?"},{"$error":"#NAME?"},{"$error":"#NAME?"}]
["Singles\\Clairy Browne - Love Song To The World.mp3",{"$error":"#NAME?"},{"$error":"#NAME?"},{"$error":"#NAME?"},{"$error":"#NAME?"}]
["Singles\\Izabella - Shame Shame Shame.mp3",{"$error":"#NAME?"},{"$error":"#NAME?"},{"$error":"#NAME?"},{"$error":"#NAME?"}]
["Singles\\Yello & Shirley Bassey - The Rhythm Divine.mp3",{"$error":"#NAME?"},{"$error":"#NAME?"},{"$error":"#NAME?"},{"$error":"#NAME?"}]
["Singles\\Lemming - Lucifera.mp3",{"$error":"#NAME?"},{"$error":"#NAME?"},{"$error":"#NAME?"},{"$error":"#NAME?"}]
["Singles\\Gwen Stefani ft Akon - The Sweet Escape.mp3",{"$error":"#NAME?"},{"$error":"#NAME?"},{"$error":"#NAME?"},{"$error":"#NAME?"}]
["Singles\\Al Bano & Romina Power - Felicita.mp3",{"$error":"#NAME?"},{"$error":"#NAME?"},{"$error":"#NAME?"},{"$error":"#NAME?"}]
["Singles\\Raffaella Cara - A Far L'amore Comincia Tu.mp3",{"$error":"#NAME?"},{"$error":"#NAME?"},{"$error":"#NAME?"},{"$error":"#NAME?"}]
["Singles\\Guy Sebastian - Before I Go.mp3",{"$error":"#NAME?"},{"$error":"#NAME?"},{"$error":"#NAME?"},{"$error":"#NAME?"}]
["Singles\\Katy Perry - Firework.mp3",{"$error":"#NAME?"},{"$error":"#NAME?"},{"$error":"#NAME?"},{"$error":"#NAME?"}]
["Singles\\Roberto Jacketti & The Scooters - I Save The Day.mp3",{"$error":"#NAME?"},{"$error":"#NAME?"},{"$error":"#NAME?"},{"$error":"#NAME?"}]
["Singles\\The Beach Boys - Bluebirds Over The Mountain.mp3",{"$error":"#NAME?"},{"$error":"#NAME?"},{"$error":"#NAME?"},{"$error":"#NAME?"}]
["Singles\\Elton John - Rocket Man.mp3",{"$error":"#NAME?"},{"$error":"#NAME?"},{"$error":"#NAME?"},{"$error":"#NAME?"}]
["Singles\\Ramses Shaffy & Liesbeth List - Shaffy Cantate.mp3",{"$error":"#NAME?"},{"$error":"#NAME?"},{"$error":"#NAME?"},{"$error":"#NAME?"}]
["Singles\\Barry Manilow - Mandy.mp3",{"$error":"#NAME?"},{"$error":"#NAME?"},{"$error":"#NAME?"},{"$error":"#NAME?"}]
["Singles\\Niall Horan - Slow Hands.mp3",{"$error":"#NAME?"},{"$error":"#NAME?"},{"$error":"#NAME?"},{"$error":"#NAME?"}]
["Singles\\Gilla - Bend Me Shape Me.mp3",{"$error":"#NAME?"},{"$error":"#NAME?"},{"$error":"#NAME?"},{"$error":"#NAME?"}]
["Singles\\Big Mouth & Little Eve - What A Beautiful Day.mp3",{"$error":"#NAME?"},{"$error":"#NAME?"},{"$error":"#NAME?"},{"$error":"#NAME?"}]
["Singles\\Robbie Williams - Heart And I.mp3",{"$error":"#NAME?"},{"$error":"#NAME?"},{"$error":"#NAME?"},{"$error":"#NAME?"}]
["Singles\\Colbie Caillat - Fallin' For You.mp3",{"$error":"#NAME?"},{"$error":"#NAME?"},{"$error":"#NAME?"},{"$error":"#NAME?"}]
["Singles\\Adventures Of Stevie V - Dirty Cash (Money Talks).mp3",{"$error":"#NAME?"},{"$error":"#NAME?"},{"$error":"#NAME?"},{"$error":"#NAME?"}]
["Singles\\Cindy & Bert - Ich Komm' Bald Wieder.mp3",{"$error":"#NAME?"},{"$error":"#NAME?"},{"$error":"#NAME?"},{"$error":"#NAME?"}]
["Singles\\Shola Ama - You Might Need Somebody.mp3",{"$error":"#NAME?"},{"$error":"#NAME?"},{"$error":"#NAME?"},{"$error":"#NAME?"}]
["Singles\\John Spencer - Lana.mp3",{"$error":"#NAME?"},{"$error":"#NAME?"},{"$error":"#NAME?"},{"$error":"#NAME?"}]
["Singles\\Frank Sinatra - Strangers In The Night.mp3",{"$error":"#NAME?"},{"$error":"#NAME?"},{"$error":"#NAME?"},{"$error":"#NAME?"}]
["Singles\\Royal Guardsmen - Snoopy vs The Red Baron.mp3",{"$error":"#NAME?"},{"$error":"#NAME?"},{"$error":"#NAME?"},{"$error":"#NAME?"}]
["Singles\\Taio Cruz - Troublemaker.mp3",{"$error":"#NAME?"},{"$error":"#NAME?"},{"$error":"#NAME?"},{"$error":"#NAME?"}]
["Singles\\Isaac Hayes - Theme From Shaft.mp3",{"$error":"#NAME?"},{"$error":"#NAME?"},{"$error":"#NAME?"},{"$error":"#NAME?"}]
["Singles\\Buddy Holly - Because I Love You.mp3",{"$error":"#NAME?"},{"$error":"#NAME?"},{"$error":"#NAME?"},{"$error":"#NAME?"}]
["Singles\\Falco - Rock Me Amadeus.mp3",{"$error":"#NAME?"},{"$error":"#NAME?"},{"$error":"#NAME?"},{"$error":"#NAME?"}]
["Singles\\Rihanna - Man Down.mp3",{"$error":"#NAME?"},{"$error":"#NAME?"},{"$error":"#NAME?"},{"$error":"#NAME?"}]
["Singles\\Alicia Keys - Girl On Fire.mp3",{"$error":"#NAME?"},{"$error":"#NAME?"},{"$error":"#NAME?"},{"$error":"#NAME?"}]
["Singles\\Jive Bunny & The Mastermixers - That Sounds Good To Me.mp3",{"$f":"RegexTest(B$1,$A515)","v":{"$error":"#NAME?"}},{"$f":"RegexCount(C$1,$A515)","v":{"$error":"#NAME?"}},{"$f":"RegexFind(D$1,$A515)","v":{"$error":"#NAME?"}},{"$f":"RegexReplace(E$1,$A515,F$1)","v":{"$error":"#NAME?"}}]
["Singles\\Michel Polnareff - Ta Ta Ta.mp3",{"$error":"#NAME?"},{"$error":"#NAME?"},{"$error":"#NAME?"},{"$error":"#NAME?"}]
["Singles\\Engelbert Humperdinck - Am I That Easy To Forget.mp3",{"$error":"#NAME?"},{"$error":"#NAME?"},{"$error":"#NAME?"},{"$error":"#NAME?"}]
["Singles\\The Pasadenas - Tribute (Right On).mp3",{"$error":"#NAME?"},{"$error":"#NAME?"},{"$error":"#NAME?"},{"$error":"#NAME?"}]
["Singles\\Take That - The Flood.mp3",{"$error":"#NAME?"},{"$error":"#NAME?"},{"$error":"#NAME?"},{"$error":"#NAME?"}]
["Singles\\Chicago - You're The Inspiration.mp3",{"$error":"#NAME?"},{"$error":"#NAME?"},{"$error":"#NAME?"},{"$error":"#NAME?"}]
["Singles\\Justin Bieber - Company.mp3",{"$error":"#NAME?"},{"$error":"#NAME?"},{"$error":"#NAME?"},{"$error":"#NAME?"}]
["Singles\\Culture Club - Karma Chameleon.mp3",{"$error":"#NAME?"},{"$error":"#NAME?"},{"$error":"#NAME?"},{"$error":"#NAME?"}]
["Singles\\James Bay - Let It Go.mp3",{"$error":"#NAME?"},{"$error":"#NAME?"},{"$error":"#NAME?"},{"$error":"#NAME?"}]
["Singles\\Crystal Fighters - Plage.mp3",{"$error":"#NAME?"},{"$error":"#NAME?"},{"$error":"#NAME?"},{"$error":"#NAME?"}]
["Singles\\Diana Ross & The Supremes - Love Child.mp3",{"$error":"#NAME?"},{"$error":"#NAME?"},{"$error":"#NAME?"},{"$error":"#NAME?"}]
["Singles\\Marco Borsato - Binnen.mp3",{"$error":"#NAME?"},{"$error":"#NAME?"},{"$error":"#NAME?"},{"$error":"#NAME?"}]
["Singles\\Ike & Tina Turner - River Deep Mountain High.mp3",{"$error":"#NAME?"},{"$error":"#NAME?"},{"$error":"#NAME?"},{"$error":"#NAME?"}]
["Singles\\David Essex - Rock On.mp3",{"$error":"#NAME?"},{"$error":"#NAME?"},{"$error":"#NAME?"},{"$error":"#NAME?"}]
["Singles\\The Beloves - Sweet Harmony.mp3",{"$error":"#NAME?"},{"$error":"#NAME?"},{"$error":"#NAME?"},{"$error":"#NAME?"}]
["Singles\\Julee Cruise - Falling.mp3",{"$error":"#NAME?"},{"$error":"#NAME?"},{"$error":"#NAME?"},{"$error":"#NAME?"}]
["Singles\\Sandra & Andres - Als Het Om De Liefde Gaat.mp3",{"$error":"#NAME?"},{"$error":"#NAME?"},{"$error":"#NAME?"},{"$error":"#NAME?"}]
["Singles\\Years & Years - Desire.mp3",{"$error":"#NAME?"},{"$error":"#NAME?"},{"$error":"#NAME?"},{"$error":"#NAME?"}]
["Singles\\Joe Cocker - A Little Help From My Friends.mp3",{"$error":"#NAME?"},{"$error":"#NAME?"},{"$error":"#NAME?"},{"$error":"#NAME?"}]
["Singles\\Bobby Darin - Mack The Knife.mp3",{"$error":"#NAME?"},{"$error":"#NAME?"},{"$error":"#NAME?"},{"$error":"#NAME?"}]
["Singles\\Them - It's All Over Now, Baby Blue.mp3",{"$error":"#NAME?"},{"$error":"#NAME?"},{"$error":"#NAME?"},{"$error":"#NAME?"}]
["Singles\\Train ft Ashley Monroe - Bruises.mp3",{"$error":"#NAME?"},{"$error":"#NAME?"},{"$error":"#NAME?"},{"$error":"#NAME?"}]
["Singles\\Dawn Penn - You Don't Love Me (No, No, No).mp3",{"$error":"#NAME?"},{"$error":"#NAME?"},{"$error":"#NAME?"},{"$error":"#NAME?"}]
["Singles\\Elvis Presley - You're The Devil In Disguise.mp3",{"$error":"#NAME?"},{"$error":"#NAME?"},{"$error":"#NAME?"},{"$error":"#NAME?"}]
["Singles\\O'G3NE - Magic.mp3",{"$error":"#NAME?"},{"$error":"#NAME?"},{"$error":"#NAME?"},{"$error":"#NAME?"}]
["Singles\\Lauren Daigle - You Say.mp3",{"$error":"#NAME?"},{"$error":"#NAME?"},{"$error":"#NAME?"},{"$error":"#NAME?"}]
["Singles\\MFSB & Three Degrees - TSOP (The Sound Of Philadelphia).mp3",{"$error":"#NAME?"},{"$error":"#NAME?"},{"$error":"#NAME?"},{"$error":"#NAME?"}]
["Singles\\Ilse DeLange - Miracle.mp3",{"$error":"#NAME?"},{"$error":"#NAME?"},{"$error":"#NAME?"},{"$error":"#NAME?"}]
["Singles\\Tavares - Whodunit.mp3",{"$error":"#NAME?"},{"$error":"#NAME?"},{"$error":"#NAME?"},{"$error":"#NAME?"}]
["Singles\\Lutricia McNeal - My Side Of Town.mp3",{"$error":"#NAME?"},{"$error":"#NAME?"},{"$error":"#NAME?"},{"$error":"#NAME?"}]
["Singles\\John Legend - All Of Me.mp3",{"$error":"#NAME?"},{"$error":"#NAME?"},{"$error":"#NAME?"},{"$error":"#NAME?"}]
["Singles\\Soulful Dynamics - Mademoiselle Ninette.mp3",{"$error":"#NAME?"},{"$error":"#NAME?"},{"$error":"#NAME?"},{"$error":"#NAME?"}]
["Singles\\Blof - Alles Is Liefde.mp3",{"$error":"#NAME?"},{"$error":"#NAME?"},{"$error":"#NAME?"},{"$error":"#NAME?"}]
["Singles\\Beyonce - Irreplaceable.mp3",{"$error":"#NAME?"},{"$error":"#NAME?"},{"$error":"#NAME?"},{"$error":"#NAME?"}]
["Singles\\Elvis Presley - Hound Dog.mp3",{"$error":"#NAME?"},{"$error":"#NAME?"},{"$error":"#NAME?"},{"$error":"#NAME?"}]
["Singles\\Madonna - Crazy For You.mp3",{"$error":"#NAME?"},{"$error":"#NAME?"},{"$error":"#NAME?"},{"$error":"#NAME?"}]
["Singles\\Spinners - I'll Be Around.mp3",{"$error":"#NAME?"},{"$error":"#NAME?"},{"$error":"#NAME?"},{"$error":"#NAME?"}]
["Singles\\The Script - Breakeven.mp3",{"$error":"#NAME?"},{"$error":"#NAME?"},{"$error":"#NAME?"},{"$error":"#NAME?"}]
["Singles\\Modern Romance - Everybody Salsa.mp3",{"$error":"#NAME?"},{"$error":"#NAME?"},{"$error":"#NAME?"},{"$error":"#NAME?"}]
["Singles\\Georges Moustaki - Le Meteque.mp3",{"$error":"#NAME?"},{"$error":"#NAME?"},{"$error":"#NAME?"},{"$error":"#NAME?"}]
["Singles\\Long John Baldry - (Walk Me Out In The) Morning Dew.mp3",{"$error":"#NAME?"},{"$error":"#NAME?"},{"$error":"#NAME?"},{"$error":"#NAME?"}]
["Singles\\Gilbert O'Sullivan - Underneath The Blanket Go.mp3",{"$error":"#NAME?"},{"$error":"#NAME?"},{"$error":"#NAME?"},{"$error":"#NAME?"}]
["Singles\\Jamie Cullum - All At Sea.mp3",{"$error":"#NAME?"},{"$error":"#NAME?"},{"$error":"#NAME?"},{"$error":"#NAME?"}]
["Singles\\Elvis Presley - Jailhouse Rock.mp3",{"$error":"#NAME?"},{"$error":"#NAME?"},{"$error":"#NAME?"},{"$error":"#NAME?"}]
["Singles\\ATC - All Around The World.mp3",{"$error":"#NAME?"},{"$error":"#NAME?"},{"$error":"#NAME?"},{"$error":"#NAME?"}]
["Singles\\Sister Sledge - All American Girls.mp3",{"$error":"#NAME?"},{"$error":"#NAME?"},{"$error":"#NAME?"},{"$error":"#NAME?"}]
["Singles\\Godley & Creme - Cry.mp3",{"$error":"#NAME?"},{"$error":"#NAME?"},{"$error":"#NAME?"},{"$error":"#NAME?"}]
["Singles\\Laura Pausini - Strani Amori.mp3",{"$error":"#NAME?"},{"$error":"#NAME?"},{"$error":"#NAME?"},{"$error":"#NAME?"}]
["Singles\\The Bee Gees - You Should Be Dancing.mp3",{"$error":"#NAME?"},{"$error":"#NAME?"},{"$error":"#NAME?"},{"$error":"#NAME?"}]
["Singles\\David Bowie - Life On Mars.mp3",{"$error":"#NAME?"},{"$error":"#NAME?"},{"$error":"#NAME?"},{"$error":"#NAME?"}]
["Singles\\The Peels - Juanita Banana.mp3",{"$error":"#NAME?"},{"$error":"#NAME?"},{"$error":"#NAME?"},{"$error":"#NAME?"}]
["Singles\\Eagles - The Last Resort.mp3",{"$error":"#NAME?"},{"$error":"#NAME?"},{"$error":"#NAME?"},{"$error":"#NAME?"}]
["Singles\\Blof - Zo Stil.mp3",{"$error":"#NAME?"},{"$error":"#NAME?"},{"$error":"#NAME?"},{"$error":"#NAME?"}]
["Singles\\Anouk - Good God.mp3",{"$error":"#NAME?"},{"$error":"#NAME?"},{"$error":"#NAME?"},{"$error":"#NAME?"}]
["Singles\\Van Morrison - Have I Told You Lately That I Love You.mp3",{"$error":"#NAME?"},{"$error":"#NAME?"},{"$error":"#NAME?"},{"$error":"#NAME?"}]
["Singles\\Electric Light Orchestra - It's Over.mp3",{"$error":"#NAME?"},{"$error":"#NAME?"},{"$error":"#NAME?"},{"$error":"#NAME?"}]
["Singles\\Shoes - Osaka.mp3",{"$error":"#NAME?"},{"$error":"#NAME?"},{"$error":"#NAME?"},{"$error":"#NAME?"}]
["Singles\\Chorale - Riu Riu.mp3",{"$error":"#NAME?"},{"$error":"#NAME?"},{"$error":"#NAME?"},{"$error":"#NAME?"}]
["Singles\\Culture Club - Move Away.mp3",{"$error":"#NAME?"},{"$error":"#NAME?"},{"$error":"#NAME?"},{"$error":"#NAME?"}]
["Singles\\Donna Summer - She Works Hard For The Money.mp3",{"$error":"#NAME?"},{"$error":"#NAME?"},{"$error":"#NAME?"},{"$error":"#NAME?"}]
["Singles\\Spooky & Sue - You Talk Too Much.mp3",{"$error":"#NAME?"},{"$error":"#NAME?"},{"$error":"#NAME?"},{"$error":"#NAME?"}]
["Singles\\Keane - Bend And Break.mp3",{"$error":"#NAME?"},{"$error":"#NAME?"},{"$error":"#NAME?"},{"$error":"#NAME?"}]
["Singles\\Basto! - Gregory's Theme.mp3",{"$error":"#NAME?"},{"$error":"#NAME?"},{"$error":"#NAME?"},{"$error":"#NAME?"}]
["Singles\\Marco Borsato - Ik Leef Niet Meer Voor Jou.mp3",{"$error":"#NAME?"},{"$error":"#NAME?"},{"$error":"#NAME?"},{"$error":"#NAME?"}]
["Singles\\Frank Sinatra - I Get A Kick Out Of You.mp3",{"$f":"RegexTest(B$1,$A579)","v":{"$error":"#NAME?"}},{"$f":"RegexCount(C$1,$A579)","v":{"$error":"#NAME?"}},{"$f":"RegexFind(D$1,$A579)","v":{"$error":"#NAME?"}},{"$f":"RegexReplace(E$1,$A579,F$1)","v":{"$error":"#NAME?"}}]
["Singles\\Avicii - Addicted To You.mp3",{"$error":"#NAME?"},{"$error":"#NAME?"},{"$error":"#NAME?"},{"$error":"#NAME?"}]
["Singles\\Nickelback - Rockstar.mp3",{"$error":"#NAME?"},{"$error":"#NAME?"},{"$error":"#NAME?"},{"$error":"#NAME?"}]
["Singles\\James Bay - If You Ever Want To Be In Love.mp3",{"$error":"#NAME?"},{"$error":"#NAME?"},{"$error":"#NAME?"},{"$error":"#NAME?"}]
["Singles\\Bruno Mars - It Will Rain.mp3",{"$error":"#NAME?"},{"$error":"#NAME?"},{"$error":"#NAME?"},{"$error":"#NAME?"}]
["Singles\\Ashton , Gardner & Dyke - Resurrection Shuffle.mp3",{"$error":"#NAME?"},{"$error":"#NAME?"},{"$error":"#NAME?"},{"$error":"#NAME?"}]
["Singles\\Skunk Anansie - Hedonism.mp3",{"$error":"#NAME?"},{"$error":"#NAME?"},{"$error":"#NAME?"},{"$error":"#NAME?"}]
["Singles\\John Parr - St Elmo's Fire (Man In Motion).mp3",{"$error":"#NAME?"},{"$error":"#NAME?"},{"$error":"#NAME?"},{"$error":"#NAME?"}]
["Singles\\The Motions - Wasted Words.mp3",{"$error":"#NAME?"},{"$error":"#NAME?"},{"$error":"#NAME?"},{"$error":"#NAME?"}]
["Singles\\The Drifters - Save The Last Dance For Me.mp3",{"$error":"#NAME?"},{"$error":"#NAME?"},{"$error":"#NAME?"},{"$error":"#NAME?"}]
["Singles\\Bangles - Hazy Shade Of Winter.mp3",{"$error":"#NAME?"},{"$error":"#NAME?"},{"$error":"#NAME?"},{"$error":"#NAME?"}]
["Singles\\Pop Tops - Suzanne Suzanne.mp3",{"$error":"#NAME?"},{"$error":"#NAME?"},{"$error":"#NAME?"},{"$error":"#NAME?"}]
["Singles\\Blondie - Hanging On The Telephone.mp3",{"$error":"#NAME?"},{"$error":"#NAME?"},{"$error":"#NAME?"},{"$error":"#NAME?"}]
["Singles\\Honeycombs - That's The Way.mp3",{"$error":"#NAME?"},{"$error":"#NAME?"},{"$error":"#NAME?"},{"$error":"#NAME?"}]
["Singles\\Madonna - The Power Of Goodbye.mp3",{"$error":"#NAME?"},{"$error":"#NAME?"},{"$error":"#NAME?"},{"$error":"#NAME?"}]
["Singles\\Anouk - Three Days In A Row.mp3",{"$error":"#NAME?"},{"$error":"#NAME?"},{"$error":"#NAME?"},{"$error":"#NAME?"}]
["Singles\\Rihanna - Diamonds.mp3",{"$error":"#NAME?"},{"$error":"#NAME?"},{"$error":"#NAME?"},{"$error":"#NAME?"}]
["Singles\\Kris Kross Amsterdam & Nielson - Ik Sta Jou Beter.mp3",{"$error":"#NAME?"},{"$error":"#NAME?"},{"$error":"#NAME?"},{"$error":"#NAME?"}]
["Singles\\Fleetwood Mac - Man Of The World.mp3",{"$error":"#NAME?"},{"$error":"#NAME?"},{"$error":"#NAME?"},{"$error":"#NAME?"}]
["Singles\\Randy Crawford - Almaz.mp3",{"$error":"#NAME?"},{"$error":"#NAME?"},{"$error":"#NAME?"},{"$error":"#NAME?"}]
["Singles\\Vicky Leandros - Ich Hab' Die Liebe Gesehn.mp3",{"$error":"#NAME?"},{"$error":"#NAME?"},{"$error":"#NAME?"},{"$error":"#NAME?"}]
["Singles\\Frank Sinatra - Dancing Cheek To Cheek.mp3",{"$error":"#NAME?"},{"$error":"#NAME?"},{"$error":"#NAME?"},{"$error":"#NAME?"}]
["Singles\\Benny Mardones - Into The Night (If I Could Fly, I'd Pick You Up).mp3",{"$error":"#NAME?"},{"$error":"#NAME?"},{"$error":"#NAME?"},{"$error":"#NAME?"}]
["Singles\\Deep Purple - Smoke On The Water.mp3",{"$error":"#NAME?"},{"$error":"#NAME?"},{"$error":"#NAME?"},{"$error":"#NAME?"}]
["Singles\\Maan - Ride It.mp3",{"$error":"#NAME?"},{"$error":"#NAME?"},{"$error":"#NAME?"},{"$error":"#NAME?"}]
["Singles\\Breeze - Gypsy Woman.mp3",{"$error":"#NAME?"},{"$error":"#NAME?"},{"$error":"#NAME?"},{"$error":"#NAME?"}]
["Singles\\Mark Forster ft Sido - Au Revoir.mp3",{"$error":"#NAME?"},{"$error":"#NAME?"},{"$error":"#NAME?"},{"$error":"#NAME?"}]
["Singles\\The Baseballs - Hard Not To Cry.mp3",{"$error":"#NAME?"},{"$error":"#NAME?"},{"$error":"#NAME?"},{"$error":"#NAME?"}]
["Singles\\Andrea Bocelli - Con Te Partiro.mp3",{"$error":"#NAME?"},{"$error":"#NAME?"},{"$error":"#NAME?"},{"$error":"#NAME?"}]
["Singles\\James Morrison - Slave To The Music.mp3",{"$error":"#NAME?"},{"$error":"#NAME?"},{"$error":"#NAME?"},{"$error":"#NAME?"}]
["Singles\\Rainbows - Balla Balla.mp3",{"$error":"#NAME?"},{"$error":"#NAME?"},{"$error":"#NAME?"},{"$error":"#NAME?"}]
["Singles\\The Beatles - In My Life.mp3",{"$error":"#NAME?"},{"$error":"#NAME?"},{"$error":"#NAME?"},{"$error":"#NAME?"}]
["Singles\\Andy Kim - Be My Baby.mp3",{"$error":"#NAME?"},{"$error":"#NAME?"},{"$error":"#NAME?"},{"$error":"#NAME?"}]
["Singles\\Kaoma - Lambada.mp3",{"$error":"#NAME?"},{"$error":"#NAME?"},{"$error":"#NAME?"},{"$error":"#NAME?"}]
["Singles\\Leapy Lee - Little Arrows.mp3",{"$error":"#NAME?"},{"$error":"#NAME?"},{"$error":"#NAME?"},{"$error":"#NAME?"}]
["Singles\\Alan Parsons Project - Gemini.mp3",{"$error":"#NAME?"},{"$error":"#NAME?"},{"$error":"#NAME?"},{"$error":"#NAME?"}]
["Singles\\Craig David - Rise And Fall.mp3",{"$error":"#NAME?"},{"$error":"#NAME?"},{"$error":"#NAME?"},{"$error":"#NAME?"}]
["Singles\\Johnny Logan - Hold Me Now.mp3",{"$error":"#NAME?"},{"$error":"#NAME?"},{"$error":"#NAME?"},{"$error":"#NAME?"}]
["Singles\\Nino Ferrer - Agata.mp3",{"$error":"#NAME?"},{"$error":"#NAME?"},{"$error":"#NAME?"},{"$error":"#NAME?"}]
["Singles\\Dario G - Carnaval De Paris.mp3",{"$error":"#NAME?"},{"$error":"#NAME?"},{"$error":"#NAME?"},{"$error":"#NAME?"}]
["Singles\\Kate & Anna McGarrigle - Complainte Pour Ste. Catherine.mp3",{"$error":"#NAME?"},{"$error":"#NAME?"},{"$error":"#NAME?"},{"$error":"#NAME?"}]
["Singles\\Jose Feliciano - Che Sara.mp3",{"$error":"#NAME?"},{"$error":"#NAME?"},{"$error":"#NAME?"},{"$error":"#NAME?"}]
["Singles\\The Beatles - Across The Universe.mp3",{"$error":"#NAME?"},{"$error":"#NAME?"},{"$error":"#NAME?"},{"$error":"#NAME?"}]
["Singles\\Kylie Minogue & Jason Donovan - Especially For You.mp3",{"$error":"#NAME?"},{"$error":"#NAME?"},{"$error":"#NAME?"},{"$error":"#NAME?"}]
["Singles\\Silk City & Dua Lipa ft Diplo & Mark Ronson - Electricity.mp3",{"$error":"#NAME?"},{"$error":"#NAME?"},{"$error":"#NAME?"},{"$error":"#NAME?"}]
["Singles\\Ginger Ninja - Sunshine.mp3",{"$error":"#NAME?"},{"$error":"#NAME?"},{"$error":"#NAME?"},{"$error":"#NAME?"}]
["Singles\\The Beatles - Sgt Pepper's Lonely Hearts Club Band.mp3",{"$error":"#NAME?"},{"$error":"#NAME?"},{"$error":"#NAME?"},{"$error":"#NAME?"}]
["Singles\\Peppers - Pepper Box.mp3",{"$error":"#NAME?"},{"$error":"#NAME?"},{"$error":"#NAME?"},{"$error":"#NAME?"}]
["Singles\\Frank Boeijen Groep - Linda.mp3",{"$error":"#NAME?"},{"$error":"#NAME?"},{"$error":"#NAME?"},{"$error":"#NAME?"}]
["Singles\\Buggles - Lenny.mp3",{"$error":"#NAME?"},{"$error":"#NAME?"},{"$error":"#NAME?"},{"$error":"#NAME?"}]
["Singles\\Ricky Martin - She's All I Ever Had.mp3",{"$error":"#NAME?"},{"$error":"#NAME?"},{"$error":"#NAME?"},{"$error":"#NAME?"}]
["Singles\\Geier Sturzflug - Bruttosozialprodukt.mp3",{"$error":"#NAME?"},{"$error":"#NAME?"},{"$error":"#NAME?"},{"$error":"#NAME?"}]
["Singles\\Aerosmith - Crazy.mp3",{"$error":"#NAME?"},{"$error":"#NAME?"},{"$error":"#NAME?"},{"$error":"#NAME?"}]
["Singles\\Lukas Graham - 7 Years.mp3",{"$error":"#NAME?"},{"$error":"#NAME?"},{"$error":"#NAME?"},{"$error":"#NAME?"}]
["Singles\\George Michael - Faith.mp3",{"$error":"#NAME?"},{"$error":"#NAME?"},{"$error":"#NAME?"},{"$error":"#NAME?"}]
["Singles\\Bananarama - Cruel Summer.mp3",{"$error":"#NAME?"},{"$error":"#NAME?"},{"$error":"#NAME?"},{"$error":"#NAME?"}]
["Singles\\Kool & The Gang - Joanna.mp3",{"$error":"#NAME?"},{"$error":"#NAME?"},{"$error":"#NAME?"},{"$error":"#NAME?"}]
["Singles\\Martin Garrix ft Khalid - Ocean.mp3",{"$error":"#NAME?"},{"$error":"#NAME?"},{"$error":"#NAME?"},{"$error":"#NAME?"}]
["Singles\\Blof - Open Je Ogen.mp3",{"$error":"#NAME?"},{"$error":"#NAME?"},{"$error":"#NAME?"},{"$error":"#NAME?"}]
["Singles\\The Tokens - The Lion Sleeps Tonight.mp3",{"$error":"#NAME?"},{"$error":"#NAME?"},{"$error":"#NAME?"},{"$error":"#NAME?"}]
["Singles\\Zara Larsson & MNEK - Never Forget You.mp3",{"$error":"#NAME?"},{"$error":"#NAME?"},{"$error":"#NAME?"},{"$error":"#NAME?"}]
["Singles\\Eric Burdon & The Animals - Ring Of Fire.mp3",{"$error":"#NAME?"},{"$error":"#NAME?"},{"$error":"#NAME?"},{"$error":"#NAME?"}]
["Singles\\The Charlie Daniels Band - Devil Went Down To Georgia.mp3",{"$error":"#NAME?"},{"$error":"#NAME?"},{"$error":"#NAME?"},{"$error":"#NAME?"}]
["Singles\\Blancmange - Don't Tell Me.mp3",{"$error":"#NAME?"},{"$error":"#NAME?"},{"$error":"#NAME?"},{"$error":"#NAME?"}]
["Singles\\All 4 One - I Swear.mp3",{"$f":"RegexTest(B$1,$A643)","v":{"$error":"#NAME?"}},{"$f":"RegexCount(C$1,$A643)","v":{"$error":"#NAME?"}},{"$f":"RegexFind(D$1,$A643)","v":{"$error":"#NAME?"}},{"$f":"RegexReplace(E$1,$A643,F$1)","v":{"$error":"#NAME?"}}]
["Singles\\Simply Red - A New Flame.mp3",{"$error":"#NAME?"},{"$error":"#NAME?"},{"$error":"#NAME?"},{"$error":"#NAME?"}]
["Singles\\Love Affair - Everlasting Love.mp3",{"$error":"#NAME?"},{"$error":"#NAME?"},{"$error":"#NAME?"},{"$error":"#NAME?"}]
["Singles\\Marco Borsato & Sita - Lopen Op Het Water.mp3",{"$error":"#NAME?"},{"$error":"#NAME?"},{"$error":"#NAME?"},{"$error":"#NAME?"}]
["Singles\\Roberto Jacketti & The Scooters - Love Cat.mp3",{"$error":"#NAME?"},{"$error":"#NAME?"},{"$error":"#NAME?"},{"$error":"#NAME?"}]
["Singles\\Cat Stevens - Banapple Gas.mp3",{"$error":"#NAME?"},{"$error":"#NAME?"},{"$error":"#NAME?"},{"$error":"#NAME?"}]
["Singles\\Manu Chao - Me Gustas Tu.mp3",{"$error":"#NAME?"},{"$error":"#NAME?"},{"$error":"#NAME?"},{"$error":"#NAME?"}]
["Singles\\Alessandro Safina - Luna.mp3",{"$error":"#NAME?"},{"$error":"#NAME?"},{"$error":"#NAME?"},{"$error":"#NAME?"}]
["Singles\\Tom Jones - She's A Lady.mp3",{"$error":"#NAME?"},{"$error":"#NAME?"},{"$error":"#NAME?"},{"$error":"#NAME?"}]
["Singles\\Herb Alpert & The Tijuana Brass - A Taste Of Honey.mp3",{"$error":"#NAME?"},{"$error":"#NAME?"},{"$error":"#NAME?"},{"$error":"#NAME?"}]
["Singles\\Doris D & The Pins - The Marvellous Marionettes.mp3",{"$error":"#NAME?"},{"$error":"#NAME?"},{"$error":"#NAME?"},{"$error":"#NAME?"}]
["Singles\\Bonzo Dog Doo-Dah Band - I'm The Urban Spaceman.mp3",{"$error":"#NAME?"},{"$error":"#NAME?"},{"$error":"#NAME?"},{"$error":"#NAME?"}]
["Singles\\Jeroen Van Der Boom - Betekenis.mp3",{"$error":"#NAME?"},{"$error":"#NAME?"},{"$error":"#NAME?"},{"$error":"#NAME?"}]
["Singles\\Basshunter - Now You're Gone.mp3",{"$error":"#NAME?"},{"$error":"#NAME?"},{"$error":"#NAME?"},{"$error":"#NAME?"}]
["Singles\\Daft Punk - One More Time.mp3",{"$error":"#NAME?"},{"$error":"#NAME?"},{"$error":"#NAME?"},{"$error":"#NAME?"}]
["Singles\\Cliff Richard - Constantly.mp3",{"$error":"#NAME?"},{"$error":"#NAME?"},{"$error":"#NAME?"},{"$error":"#NAME?"}]
["Singles\\Johnny Wakelin - In Zaire.mp3",{"$error":"#NAME?"},{"$error":"#NAME?"},{"$error":"#NAME?"},{"$error":"#NAME?"}]
["Singles\\Otis Redding - Amen.mp3",{"$error":"#NAME?"},{"$error":"#NAME?"},{"$error":"#NAME?"},{"$error":"#NAME?"}]
["Singles\\Hollenboer - Busje Komt Zo.MP3",{"$error":"#NAME?"},{"$error":"#NAME?"},{"$error":"#NAME?"},{"$error":"#NAME?"}]
["Singles\\5 Seconds Of Summer - Youngblood.mp3",{"$error":"#NAME?"},{"$error":"#NAME?"},{"$error":"#NAME?"},{"$error":"#NAME?"}]
["Singles\\Cunningham - Norma Jean Wants To Be A Movie Star.mp3",{"$error":"#NAME?"},{"$error":"#NAME?"},{"$error":"#NAME?"},{"$error":"#NAME?"}]
["Singles\\Ellie Goulding & Diplo & Swae Lee - Close To Me.mp3",{"$error":"#NAME?"},{"$error":"#NAME?"},{"$error":"#NAME?"},{"$error":"#NAME?"}]
["Singles\\David Bowie - Blue Jean.mp3",{"$error":"#NAME?"},{"$error":"#NAME?"},{"$error":"#NAME?"},{"$error":"#NAME?"}]
["Singles\\Frankie Laine - High Noon.mp3",{"$error":"#NAME?"},{"$error":"#NAME?"},{"$error":"#NAME?"},{"$error":"#NAME?"}]
["Singles\\Kayak - Mammoth.mp3",{"$error":"#NAME?"},{"$error":"#NAME?"},{"$error":"#NAME?"},{"$error":"#NAME?"}]
["Singles\\Andre Brasseur - Big Fat Spiritual.mp3",{"$error":"#NAME?"},{"$error":"#NAME?"},{"$error":"#NAME?"},{"$error":"#NAME?"}]
["Singles\\Rihanna - Only Girl (In The  World).mp3",{"$error":"#NAME?"},{"$error":"#NAME?"},{"$error":"#NAME?"},{"$error":"#NAME?"}]
["Singles\\The Commodores - Goin' To The Bank.mp3",{"$error":"#NAME?"},{"$error":"#NAME?"},{"$error":"#NAME?"},{"$error":"#NAME?"}]
["Singles\\Lionel Richie - Love Will Conquer All.mp3",{"$error":"#NAME?"},{"$error":"#NAME?"},{"$error":"#NAME?"},{"$error":"#NAME?"}]
["Singles\\Gym Class Heroes ft Adam Levine - Stereo Hearts.mp3",{"$error":"#NAME?"},{"$error":"#NAME?"},{"$error":"#NAME?"},{"$error":"#NAME?"}]
["Singles\\Elton John - Sacrifice.mp3",{"$error":"#NAME?"},{"$error":"#NAME?"},{"$error":"#NAME?"},{"$error":"#NAME?"}]
["Singles\\Neil Sedaka - Happy Birthday Sweet Sixteen.mp3",{"$error":"#NAME?"},{"$error":"#NAME?"},{"$error":"#NAME?"},{"$error":"#NAME?"}]
["Singles\\Acda & De Munnik - Als Het Vuur Gedoofd Is.mp3",{"$error":"#NAME?"},{"$error":"#NAME?"},{"$error":"#NAME?"},{"$error":"#NAME?"}]
["Singles\\Johnny Hates Jazz - Heart Of Gold.mp3",{"$error":"#NAME?"},{"$error":"#NAME?"},{"$error":"#NAME?"},{"$error":"#NAME?"}]
["Singles\\Duncan Laurence - Arcade.mp3",{"$error":"#NAME?"},{"$error":"#NAME?"},{"$error":"#NAME?"},{"$error":"#NAME?"}]
["Singles\\Santana - Black Magic Woman.mp3",{"$error":"#NAME?"},{"$error":"#NAME?"},{"$error":"#NAME?"},{"$error":"#NAME?"}]
["Singles\\Tina Turner - Way Of The World.mp3",{"$error":"#NAME?"},{"$error":"#NAME?"},{"$error":"#NAME?"},{"$error":"#NAME?"}]
["Singles\\John Legend - Love Me Now.mp3",{"$error":"#NAME?"},{"$error":"#NAME?"},{"$error":"#NAME?"},{"$error":"#NAME?"}]
["Singles\\REO Speedwagon - Roll With The Changes.mp3",{"$error":"#NAME?"},{"$error":"#NAME?"},{"$error":"#NAME?"},{"$error":"#NAME?"}]
["Singles\\REO Speedwagon - Ridin' The Storm Out.mp3",{"$error":"#NAME?"},{"$error":"#NAME?"},{"$error":"#NAME?"},{"$error":"#NAME?"}]
["Singles\\Meat Loaf - I'd Lie For You.mp3",{"$error":"#NAME?"},{"$error":"#NAME?"},{"$error":"#NAME?"},{"$error":"#NAME?"}]
["Singles\\Meat Loaf - You Took The Words Right Out Of My Mouth (Hot Summer Night).mp3",{"$error":"#NAME?"},{"$error":"#NAME?"},{"$error":"#NAME?"},{"$error":"#NAME?"}]
["Singles\\Steve Forbert - Goin' Down To Laurel.mp3",{"$error":"#NAME?"},{"$error":"#NAME?"},{"$error":"#NAME?"},{"$error":"#NAME?"}]
["Singles\\Snow Patrol - Shut Your Eyes.mp3",{"$error":"#NAME?"},{"$error":"#NAME?"},{"$error":"#NAME?"},{"$error":"#NAME?"}]
["Singles\\Matt Bianco - Just Can't Stand It.mp3",{"$error":"#NAME?"},{"$error":"#NAME?"},{"$error":"#NAME?"},{"$error":"#NAME?"}]
["Singles\\Timeflies - Once In A While.mp3",{"$error":"#NAME?"},{"$error":"#NAME?"},{"$error":"#NAME?"},{"$error":"#NAME?"}]
["Singles\\Faul And Wad Ad vs Pnau - Changes.mp3",{"$error":"#NAME?"},{"$error":"#NAME?"},{"$error":"#NAME?"},{"$error":"#NAME?"}]
["Singles\\Lionel Richie - All Night Long.mp3",{"$error":"#NAME?"},{"$error":"#NAME?"},{"$error":"#NAME?"},{"$error":"#NAME?"}]
["Singles\\Roger Glover & Butterfly Ball - Love Is All.mp3",{"$error":"#NAME?"},{"$error":"#NAME?"},{"$error":"#NAME?"},{"$error":"#NAME?"}]
["Singles\\Paul & Paula - Hey Paula.mp3",{"$error":"#NAME?"},{"$error":"#NAME?"},{"$error":"#NAME?"},{"$error":"#NAME?"}]
["Singles\\Nickelback - How You Remind Me.mp3",{"$error":"#NAME?"},{"$error":"#NAME?"},{"$error":"#NAME?"},{"$error":"#NAME?"}]
["Singles\\Penny Mclean - Lady Bump.mp3",{"$error":"#NAME?"},{"$error":"#NAME?"},{"$error":"#NAME?"},{"$error":"#NAME?"}]
["Singles\\Lucille Starr - Colinda.mp3",{"$error":"#NAME?"},{"$error":"#NAME?"},{"$error":"#NAME?"},{"$error":"#NAME?"}]
["Singles\\Vicky Leandros - Theo, Wir Fahr'n Nach Lodz.mp3",{"$error":"#NAME?"},{"$error":"#NAME?"},{"$error":"#NAME?"},{"$error":"#NAME?"}]
["Singles\\Lori Spee - How Many Times.mp3",{"$error":"#NAME?"},{"$error":"#NAME?"},{"$error":"#NAME?"},{"$error":"#NAME?"}]
["Singles\\Malando - Ole Guapa.mp3",{"$error":"#NAME?"},{"$error":"#NAME?"},{"$error":"#NAME?"},{"$error":"#NAME?"}]
["Singles\\Zucchero & Cheb Mami - Cosi Celeste.mp3",{"$error":"#NAME?"},{"$error":"#NAME?"},{"$error":"#NAME?"},{"$error":"#NAME?"}]
["Singles\\Twarres - Wêr Bisto.mp3",{"$error":"#NAME?"},{"$error":"#NAME?"},{"$error":"#NAME?"},{"$error":"#NAME?"}]
["Singles\\John Spencer - 'n Steelgitaar, Een Glaasje Wijn.mp3",{"$error":"#NAME?"},{"$error":"#NAME?"},{"$error":"#NAME?"},{"$error":"#NAME?"}]
["Singles\\C&C Music Factory - Gonna Make You Sweat.mp3",{"$error":"#NAME?"},{"$error":"#NAME?"},{"$error":"#NAME?"},{"$error":"#NAME?"}]
["Singles\\Frank Mills - Music Box Dancer.mp3",{"$error":"#NAME?"},{"$error":"#NAME?"},{"$error":"#NAME?"},{"$error":"#NAME?"}]
["Singles\\Randy Newman & Lyle Lovett - You've Got A Friend In Me.mp3",{"$error":"#NAME?"},{"$error":"#NAME?"},{"$error":"#NAME?"},{"$error":"#NAME?"}]
["Singles\\Adele - Hello.mp3",{"$error":"#NAME?"},{"$error":"#NAME?"},{"$error":"#NAME?"},{"$error":"#NAME?"}]
["Singles\\Madonna - La Isla Bonita.mp3",{"$error":"#NAME?"},{"$error":"#NAME?"},{"$error":"#NAME?"},{"$error":"#NAME?"}]
["Singles\\Bob Marley - Three Little Birds (Don't Worry Everythings Gonna Be Alright).mp3",{"$f":"RegexTest(B$1,$A707)","v":{"$error":"#NAME?"}},{"$f":"RegexCount(C$1,$A707)","v":{"$error":"#NAME?"}},{"$f":"RegexFind(D$1,$A707)","v":{"$error":"#NAME?"}},{"$f":"RegexReplace(E$1,$A707,F$1)","v":{"$error":"#NAME?"}}]
["Singles\\Donna Summer - Hot Stuff.mp3",{"$error":"#NAME?"},{"$error":"#NAME?"},{"$error":"#NAME?"},{"$error":"#NAME?"}]
["Singles\\Joe Dolce - Shaddup Your Face.mp3",{"$error":"#NAME?"},{"$error":"#NAME?"},{"$error":"#NAME?"},{"$error":"#NAME?"}]
["Singles\\Vangelis - Chariots Of Fire.mp3",{"$error":"#NAME?"},{"$error":"#NAME?"},{"$error":"#NAME?"},{"$error":"#NAME?"}]
["Singles\\Whistle - Just Buggin.mp3",{"$error":"#NAME?"},{"$error":"#NAME?"},{"$error":"#NAME?"},{"$error":"#NAME?"}]
["Singles\\Perry Como - It's Impossible.mp3",{"$error":"#NAME?"},{"$error":"#NAME?"},{"$error":"#NAME?"},{"$error":"#NAME?"}]
["Singles\\Daft Punk ft Pharrell Williams - Get Lucky.mp3",{"$error":"#NAME?"},{"$error":"#NAME?"},{"$error":"#NAME?"},{"$error":"#NAME?"}]
["Singles\\Bino - Mama Leone.mp3",{"$error":"#NAME?"},{"$error":"#NAME?"},{"$error":"#NAME?"},{"$error":"#NAME?"}]
["Singles\\Giant - I'll See You In My Dreams.mp3",{"$error":"#NAME?"},{"$error":"#NAME?"},{"$error":"#NAME?"},{"$error":"#NAME?"}]
["Singles\\Tony Orlando & Dawn - Tie A Yellow Ribbon Round The Ole Oak Tree.mp3",{"$error":"#NAME?"},{"$error":"#NAME?"},{"$error":"#NAME?"},{"$error":"#NAME?"}]
["Singles\\White Soxx - Versailles.mp3",{"$error":"#NAME?"},{"$error":"#NAME?"},{"$error":"#NAME?"},{"$error":"#NAME?"}]
["Singles\\Oh Sixteen Oh Seven - Het Leven Is Goed In M'n Brabantse Land.mp3",{"$error":"#NAME?"},{"$error":"#NAME?"},{"$error":"#NAME?"},{"$error":"#NAME?"}]
["Singles\\Karin Kent - Dans Je De Hele Nacht Met Mij.mp3",{"$error":"#NAME?"},{"$error":"#NAME?"},{"$error":"#NAME?"},{"$error":"#NAME?"}]
["Singles\\Mika - Love Today.mp3",{"$error":"#NAME?"},{"$error":"#NAME?"},{"$error":"#NAME?"},{"$error":"#NAME?"}]
["Singles\\Natalie Cole - Pink Cadillac.mp3",{"$error":"#NAME?"},{"$error":"#NAME?"},{"$error":"#NAME?"},{"$error":"#NAME?"}]
["Singles\\Bobby Darin - Dream Lover.mp3",{"$error":"#NAME?"},{"$error":"#NAME?"},{"$error":"#NAME?"},{"$error":"#NAME?"}]
["Singles\\Ernie K-Doe - Mother In Law.mp3",{"$error":"#NAME?"},{"$error":"#NAME?"},{"$error":"#NAME?"},{"$error":"#NAME?"}]
["Singles\\Barclay James Harvest - Paraiso Dos Cavalos (Paradise Of The Horses).mp3",{"$error":"#NAME?"},{"$error":"#NAME?"},{"$error":"#NAME?"},{"$error":"#NAME?"}]
["Singles\\Miss Montreal - Love You Now.mp3",{"$error":"#NAME?"},{"$error":"#NAME?"},{"$error":"#NAME?"},{"$error":"#NAME?"}]
["Singles\\The Buoys - Give Up Your Guns.mp3",{"$error":"#NAME?"},{"$error":"#NAME?"},{"$error":"#NAME?"},{"$error":"#NAME?"}]
["Singles\\The Kinks - You Really Got Me.mp3",{"$error":"#NAME?"},{"$error":"#NAME?"},{"$error":"#NAME?"},{"$error":"#NAME?"}]
["Singles\\Marco Borsato - Vrij Zijn.mp3",{"$error":"#NAME?"},{"$error":"#NAME?"},{"$error":"#NAME?"},{"$error":"#NAME?"}]
["Singles\\Ladysmith Black Mambazo - Hey, Hey Beautiful Girl.mp3",{"$error":"#NAME?"},{"$error":"#NAME?"},{"$error":"#NAME?"},{"$error":"#NAME?"}]
["Singles\\Sister Sledge - He's The Greatest Dancer.mp3",{"$error":"#NAME?"},{"$error":"#NAME?"},{"$error":"#NAME?"},{"$error":"#NAME?"}]
["Singles\\REO Speedwagon - Take It On The Run.mp3",{"$error":"#NAME?"},{"$error":"#NAME?"},{"$error":"#NAME?"},{"$error":"#NAME?"}]
["Singles\\Anastacia & Eros Ramazotti - I Belong To You.mp3",{"$error":"#NAME?"},{"$error":"#NAME?"},{"$error":"#NAME?"},{"$error":"#NAME?"}]
["Singles\\Katy Perry - Wide Awake.mp3",{"$error":"#NAME?"},{"$error":"#NAME?"},{"$error":"#NAME?"},{"$error":"#NAME?"}]
["Singles\\Emeli Sande - Clown.mp3",{"$error":"#NAME?"},{"$error":"#NAME?"},{"$error":"#NAME?"},{"$error":"#NAME?"}]
["Singles\\Herb Alpert & Tijuna Brass - A Banda.mp3",{"$error":"#NAME?"},{"$error":"#NAME?"},{"$error":"#NAME?"},{"$error":"#NAME?"}]
["Singles\\Milky Chance - Stolen Dance.mp3",{"$error":"#NAME?"},{"$error":"#NAME?"},{"$error":"#NAME?"},{"$error":"#NAME?"}]
["Singles\\Gary Glitter - Do You Wanna Touch Me (Oh Yeah).mp3",{"$error":"#NAME?"},{"$error":"#NAME?"},{"$error":"#NAME?"},{"$error":"#NAME?"}]
["Singles\\Devo - Whip It.mp3",{"$error":"#NAME?"},{"$error":"#NAME?"},{"$error":"#NAME?"},{"$error":"#NAME?"}]
["Singles\\Kiss - I Was Made For Loving You.mp3",{"$error":"#NAME?"},{"$error":"#NAME?"},{"$error":"#NAME?"},{"$error":"#NAME?"}]
["Singles\\The Lovin' Spoonful - Did You Ever Have To Make Up Your Mind.mp3",{"$error":"#NAME?"},{"$error":"#NAME?"},{"$error":"#NAME?"},{"$error":"#NAME?"}]
["Singles\\Benny Neyman - 'k Zal Je Heb.mp3",{"$error":"#NAME?"},{"$error":"#NAME?"},{"$error":"#NAME?"},{"$error":"#NAME?"}]
["Singles\\Michael Jackson - Black Or White.mp3",{"$error":"#NAME?"},{"$error":"#NAME?"},{"$error":"#NAME?"},{"$error":"#NAME?"}]
["Singles\\Alan Sorrenti - Tu Sei L'unica Donna Per Me.mp3",{"$error":"#NAME?"},{"$error":"#NAME?"},{"$error":"#NAME?"},{"$error":"#NAME?"}]
["Singles\\Joe Dassin - Les Champs Elysées.mp3",{"$error":"#NAME?"},{"$error":"#NAME?"},{"$error":"#NAME?"},{"$error":"#NAME?"}]
["Singles\\Lionel Richie - Say You Say Me.mp3",{"$error":"#NAME?"},{"$error":"#NAME?"},{"$error":"#NAME?"},{"$error":"#NAME?"}]
["Singles\\Andrea Bocelli & Gerardina Trovato - Vivere.mp3",{"$error":"#NAME?"},{"$error":"#NAME?"},{"$error":"#NAME?"},{"$error":"#NAME?"}]
["Singles\\Michel Sardou - Les Lacs Du Connemara.mp3",{"$error":"#NAME?"},{"$error":"#NAME?"},{"$error":"#NAME?"},{"$error":"#NAME?"}]
["Singles\\R. Kelly ft Nas - Did You Ever Think.mp3",{"$error":"#NAME?"},{"$error":"#NAME?"},{"$error":"#NAME?"},{"$error":"#NAME?"}]
["Singles\\Bruce Springsteen - Born To Run.mp3",{"$error":"#NAME?"},{"$error":"#NAME?"},{"$error":"#NAME?"},{"$error":"#NAME?"}]
["Singles\\Thomas Jack - Rivers.mp3",{"$error":"#NAME?"},{"$error":"#NAME?"},{"$error":"#NAME?"},{"$error":"#NAME?"}]
["Singles\\Alyssa Reid ft Jump Smokers - Alone Again.mp3",{"$error":"#NAME?"},{"$error":"#NAME?"},{"$error":"#NAME?"},{"$error":"#NAME?"}]
["Singles\\Alanis Morissette - You Oughta Know.mp3",{"$error":"#NAME?"},{"$error":"#NAME?"},{"$error":"#NAME?"},{"$error":"#NAME?"}]
["Singles\\Ike & Tina Turner - Proud Mary.mp3",{"$error":"#NAME?"},{"$error":"#NAME?"},{"$error":"#NAME?"},{"$error":"#NAME?"}]
["Singles\\Jason Mraz - I'm Yours.mp3",{"$error":"#NAME?"},{"$error":"#NAME?"},{"$error":"#NAME?"},{"$error":"#NAME?"}]
["Singles\\Flo Rida ft Sia - Wild Ones.mp3",{"$error":"#NAME?"},{"$error":"#NAME?"},{"$error":"#NAME?"},{"$error":"#NAME?"}]
["Singles\\Gene Vincent - Be Bop A Lula.mp3",{"$error":"#NAME?"},{"$error":"#NAME?"},{"$error":"#NAME?"},{"$error":"#NAME?"}]
["Singles\\Sam Feldt Lucas & Steve ft Wulf - Summer On You.mp3",{"$error":"#NAME?"},{"$error":"#NAME?"},{"$error":"#NAME?"},{"$error":"#NAME?"}]
["Singles\\Lionel Richie - Se La.mp3",{"$error":"#NAME?"},{"$error":"#NAME?"},{"$error":"#NAME?"},{"$error":"#NAME?"}]
["Singles\\Danny Williams - Dancing Easy.mp3",{"$error":"#NAME?"},{"$error":"#NAME?"},{"$error":"#NAME?"},{"$error":"#NAME?"}]
["Singles\\Wiz Khalifa ft Charlie Puth - See You Again.mp3",{"$error":"#NAME?"},{"$error":"#NAME?"},{"$error":"#NAME?"},{"$error":"#NAME?"}]
["Singles\\Don Mclean - Vincent.mp3",{"$error":"#NAME?"},{"$error":"#NAME?"},{"$error":"#NAME?"},{"$error":"#NAME?"}]
["Singles\\Keane - Is It Any Wonder.mp3",{"$error":"#NAME?"},{"$error":"#NAME?"},{"$error":"#NAME?"},{"$error":"#NAME?"}]
["Singles\\The Common Linnets - We Don't Make The Wind Blow.mp3",{"$error":"#NAME?"},{"$error":"#NAME?"},{"$error":"#NAME?"},{"$error":"#NAME?"}]
["Singles\\The Rolling Stones - Wild Horses.mp3",{"$error":"#NAME?"},{"$error":"#NAME?"},{"$error":"#NAME?"},{"$error":"#NAME?"}]
["Singles\\Marco Borsato - Afscheid Nemen Bestaat Niet.mp3",{"$error":"#NAME?"},{"$error":"#NAME?"},{"$error":"#NAME?"},{"$error":"#NAME?"}]
["Singles\\Charlie Puth - Attention.mp3",{"$error":"#NAME?"},{"$error":"#NAME?"},{"$error":"#NAME?"},{"$error":"#NAME?"}]
["Singles\\Herman's Hermits - Mrs Brown You've Got A Lovely Daughter.mp3",{"$error":"#NAME?"},{"$error":"#NAME?"},{"$error":"#NAME?"},{"$error":"#NAME?"}]
["Singles\\Mike & The Mechanics - St Elmo's Fire.mp3",{"$error":"#NAME?"},{"$error":"#NAME?"},{"$error":"#NAME?"},{"$error":"#NAME?"}]
["Singles\\Ramones - Rock 'n Roll High School.mp3",{"$error":"#NAME?"},{"$error":"#NAME?"},{"$error":"#NAME?"},{"$error":"#NAME?"}]
["Singles\\Paul Anka - Having My Baby.mp3",{"$error":"#NAME?"},{"$error":"#NAME?"},{"$error":"#NAME?"},{"$error":"#NAME?"}]
["Singles\\Janieck - Feel The Love.mp3",{"$f":"RegexTest(B$1,$A771)","v":{"$error":"#NAME?"}},{"$f":"RegexCount(C$1,$A771)","v":{"$error":"#NAME?"}},{"$f":"RegexFind(D$1,$A771)","v":{"$error":"#NAME?"}},{"$f":"RegexReplace(E$1,$A771,F$1)","v":{"$error":"#NAME?"}}]
["Singles\\Frank Sinatra - Love And Marriage.mp3",{"$error":"#NAME?"},{"$error":"#NAME?"},{"$error":"#NAME?"},{"$error":"#NAME?"}]
["Singles\\Bette Midler - Wind Beneath My Wings.mp3",{"$error":"#NAME?"},{"$error":"#NAME?"},{"$error":"#NAME?"},{"$error":"#NAME?"}]
["Singles\\Zapp & Roger - I Want To Be Your Man.mp3",{"$error":"#NAME?"},{"$error":"#NAME?"},{"$error":"#NAME?"},{"$error":"#NAME?"}]
["Singles\\Canned Heat - Goin' Up The Country.mp3",{"$error":"#NAME?"},{"$error":"#NAME?"},{"$error":"#NAME?"},{"$error":"#NAME?"}]
["Singles\\The Supremes - Stop! In The Name Of Love.mp3",{"$error":"#NAME?"},{"$error":"#NAME?"},{"$error":"#NAME?"},{"$error":"#NAME?"}]
["Singles\\UB40 - Sing Our Own Song.mp3",{"$error":"#NAME?"},{"$error":"#NAME?"},{"$error":"#NAME?"},{"$error":"#NAME?"}]
["Singles\\Timbaland & Keri Hilson & D.o.e. - The Way I Are.mp3",{"$error":"#NAME?"},{"$error":"#NAME?"},{"$error":"#NAME?"},{"$error":"#NAME?"}]
["Singles\\Nicole McCloud - Don't You Want My Love.mp3",{"$error":"#NAME?"},{"$error":"#NAME?"},{"$error":"#NAME?"},{"$error":"#NAME?"}]
["Singles\\The Rolling Stones - Heart Of Stone.mp3",{"$error":"#NAME?"},{"$error":"#NAME?"},{"$error":"#NAME?"},{"$error":"#NAME?"}]
["Singles\\Ellie Goulding - Love Me Like You Do.mp3",{"$error":"#NAME?"},{"$error":"#NAME?"},{"$error":"#NAME?"},{"$error":"#NAME?"}]
["Singles\\Robin McNamara - Lay A Little Lovin' On Me.mp3",{"$error":"#NAME?"},{"$error":"#NAME?"},{"$error":"#NAME?"},{"$error":"#NAME?"}]
["Singles\\Nena - In Meinem Leben.mp3",{"$error":"#NAME?"},{"$error":"#NAME?"},{"$error":"#NAME?"},{"$error":"#NAME?"}]
["Singles\\Dave - Du Cote De Chez Swann.mp3",{"$error":"#NAME?"},{"$error":"#NAME?"},{"$error":"#NAME?"},{"$error":"#NAME?"}]
["Singles\\Tom Jones - Whats New Pussycat.mp3",{"$error":"#NAME?"},{"$error":"#NAME?"},{"$error":"#NAME?"},{"$error":"#NAME?"}]
["Singles\\Marie Myriam - L'Oiseau Et L'Enfant.mp3",{"$error":"#NAME?"},{"$error":"#NAME?"},{"$error":"#NAME?"},{"$error":"#NAME?"}]
["Singles\\The 5th Dimension - Up, Up And Away (In My Beautiful Balloon).mp3",{"$error":"#NAME?"},{"$error":"#NAME?"},{"$error":"#NAME?"},{"$error":"#NAME?"}]
["Singles\\Gabrielle - Dreams.mp3",{"$error":"#NAME?"},{"$error":"#NAME?"},{"$error":"#NAME?"},{"$error":"#NAME?"}]
["Singles\\Labi Siffre - Listen To The Voices.mp3",{"$error":"#NAME?"},{"$error":"#NAME?"},{"$error":"#NAME?"},{"$error":"#NAME?"}]
["Singles\\Alannah Myles - A Song Instead Of A Kiss.mp3",{"$error":"#NAME?"},{"$error":"#NAME?"},{"$error":"#NAME?"},{"$error":"#NAME?"}]
["Singles\\Fall Out Boy - Alone Together.mp3",{"$error":"#NAME?"},{"$error":"#NAME?"},{"$error":"#NAME?"},{"$error":"#NAME?"}]
["Singles\\Harry Chapin - W.O.L.D. (I Am The Morning DJ).mp3",{"$error":"#NAME?"},{"$error":"#NAME?"},{"$error":"#NAME?"},{"$error":"#NAME?"}]
["Singles\\Eros Ramazzotti - Ma Che Bello Questo Amore.mp3",{"$error":"#NAME?"},{"$error":"#NAME?"},{"$error":"#NAME?"},{"$error":"#NAME?"}]
["Singles\\Beyonce ft Jay-Z - Crazy In Love.mp3",{"$error":"#NAME?"},{"$error":"#NAME?"},{"$error":"#NAME?"},{"$error":"#NAME?"}]
["Singles\\KC & The Sunshine Band - Queen Of Clubs.mp3",{"$error":"#NAME?"},{"$error":"#NAME?"},{"$error":"#NAME?"},{"$error":"#NAME?"}]
["Singles\\Chordettes - Lollipop.mp3",{"$error":"#NAME?"},{"$error":"#NAME?"},{"$error":"#NAME?"},{"$error":"#NAME?"}]
["Singles\\Yazz & The Plastic Population - Stand Up For Your Love Rights.mp3",{"$error":"#NAME?"},{"$error":"#NAME?"},{"$error":"#NAME?"},{"$error":"#NAME?"}]
["Singles\\Gompie - Alice (Who The Fuck Is).mp3",{"$error":"#NAME?"},{"$error":"#NAME?"},{"$error":"#NAME?"},{"$error":"#NAME?"}]
["Singles\\Johnny Hates Jazz - I Don't Want To Be A Hero.mp3",{"$error":"#NAME?"},{"$error":"#NAME?"},{"$error":"#NAME?"},{"$error":"#NAME?"}]
["Singles\\Bon Jovi - Living On A Prayer.mp3",{"$error":"#NAME?"},{"$error":"#NAME?"},{"$error":"#NAME?"},{"$error":"#NAME?"}]
["Singles\\Brotherhood Of Man - Angelo.mp3",{"$error":"#NAME?"},{"$error":"#NAME?"},{"$error":"#NAME?"},{"$error":"#NAME?"}]
["Singles\\The Cats - One Way Wind.mp3",{"$error":"#NAME?"},{"$error":"#NAME?"},{"$error":"#NAME?"},{"$error":"#NAME?"}]
["Singles\\Hans De Booij - Een Vrouw Zoals Jij.mp3",{"$error":"#NAME?"},{"$error":"#NAME?"},{"$error":"#NAME?"},{"$error":"#NAME?"}]
["Singles\\Los Diablos - Un Rayo Del Sol.mp3",{"$error":"#NAME?"},{"$error":"#NAME?"},{"$error":"#NAME?"},{"$error":"#NAME?"}]
["Singles\\Live - Run To The Water.mp3",{"$error":"#NAME?"},{"$error":"#NAME?"},{"$error":"#NAME?"},{"$error":"#NAME?"}]
["Singles\\Bonnie Tyler & Shakin' Stevens - It's A Rockin' Good Way.mp3",{"$error":"#NAME?"},{"$error":"#NAME?"},{"$error":"#NAME?"},{"$error":"#NAME?"}]
["Singles\\O'Jays - I Love Music.mp3",{"$error":"#NAME?"},{"$error":"#NAME?"},{"$error":"#NAME?"},{"$error":"#NAME?"}]
["Singles\\Bon Jovi - You Give Love A Bad Name.mp3",{"$error":"#NAME?"},{"$error":"#NAME?"},{"$error":"#NAME?"},{"$error":"#NAME?"}]
["Singles\\Trijntje Oosterhuis - Vlieg Met Me Mee (Het Avontuur).mp3",{"$error":"#NAME?"},{"$error":"#NAME?"},{"$error":"#NAME?"},{"$error":"#NAME?"}]
["Singles\\Dimitri Van Toren - He, Kom Aan.mp3",{"$error":"#NAME?"},{"$error":"#NAME?"},{"$error":"#NAME?"},{"$error":"#NAME?"}]
["Singles\\Pretenders - 2000 Miles.mp3",{"$error":"#NAME?"},{"$error":"#NAME?"},{"$error":"#NAME?"},{"$error":"#NAME?"}]
["Singles\\Tom Petty - A Face In The Crowd.mp3",{"$error":"#NAME?"},{"$error":"#NAME?"},{"$error":"#NAME?"},{"$error":"#NAME?"}]
["Singles\\Wrabel - 11 Blocks.mp3",{"$error":"#NAME?"},{"$error":"#NAME?"},{"$error":"#NAME?"},{"$error":"#NAME?"}]
["Singles\\The Ritchie Family - Best Disco In Town.mp3",{"$error":"#NAME?"},{"$error":"#NAME?"},{"$error":"#NAME?"},{"$error":"#NAME?"}]
["Singles\\Wayne Fontana - Pamela Pamela.mp3",{"$error":"#NAME?"},{"$error":"#NAME?"},{"$error":"#NAME?"},{"$error":"#NAME?"}]
["Singles\\Basto! - Again And Again.mp3",{"$error":"#NAME?"},{"$error":"#NAME?"},{"$error":"#NAME?"},{"$error":"#NAME?"}]
["Singles\\The Wanted - Chasing The Sun.mp3",{"$error":"#NAME?"},{"$error":"#NAME?"},{"$error":"#NAME?"},{"$error":"#NAME?"}]
["Singles\\Cliff Richard - Maria No Mas.mp3",{"$error":"#NAME?"},{"$error":"#NAME?"},{"$error":"#NAME?"},{"$error":"#NAME?"}]
["Singles\\Bryan Adams - Everything I Do I Do It For You.mp3",{"$error":"#NAME?"},{"$error":"#NAME?"},{"$error":"#NAME?"},{"$error":"#NAME?"}]
["Singles\\Sam Means - Yeah Yeah.mp3",{"$error":"#NAME?"},{"$error":"#NAME?"},{"$error":"#NAME?"},{"$error":"#NAME?"}]
["Singles\\Bertus Staigerpaip - Rits.mp3",{"$error":"#NAME?"},{"$error":"#NAME?"},{"$error":"#NAME?"},{"$error":"#NAME?"}]
["Singles\\Fais - Know You Better.mp3",{"$error":"#NAME?"},{"$error":"#NAME?"},{"$error":"#NAME?"},{"$error":"#NAME?"}]
["Singles\\Miquel Brown - So Many Men So Little Time.mp3",{"$error":"#NAME?"},{"$error":"#NAME?"},{"$error":"#NAME?"},{"$error":"#NAME?"}]
["Singles\\Pet Shop Boys - Heart.mp3",{"$error":"#NAME?"},{"$error":"#NAME?"},{"$error":"#NAME?"},{"$error":"#NAME?"}]
["Singles\\Helen Reddy - I Don't Know How To Love Him.mp3",{"$error":"#NAME?"},{"$error":"#NAME?"},{"$error":"#NAME?"},{"$error":"#NAME?"}]
["Singles\\Erma Franklin - Piece Of My Heart.mp3",{"$error":"#NAME?"},{"$error":"#NAME?"},{"$error":"#NAME?"},{"$error":"#NAME?"}]
["Singles\\Massara - Margherita.mp3",{"$error":"#NAME?"},{"$error":"#NAME?"},{"$error":"#NAME?"},{"$error":"#NAME?"}]
["Singles\\A-Ha - Cry Wolf.mp3",{"$error":"#NAME?"},{"$error":"#NAME?"},{"$error":"#NAME?"},{"$error":"#NAME?"}]
["Singles\\The Ventures - Hawaii Five-O.mp3",{"$error":"#NAME?"},{"$error":"#NAME?"},{"$error":"#NAME?"},{"$error":"#NAME?"}]
["Singles\\Bennet & Bee - Take It Or Leave It.mp3",{"$error":"#NAME?"},{"$error":"#NAME?"},{"$error":"#NAME?"},{"$error":"#NAME?"}]
["Singles\\Jenny Arian & Frans Halsema - Vluchten Kan Niet Meer.mp3",{"$error":"#NAME?"},{"$error":"#NAME?"},{"$error":"#NAME?"},{"$error":"#NAME?"}]
["Singles\\Philadelphia International All-Stars - Let's Clean Up The Ghetto.mp3",{"$error":"#NAME?"},{"$error":"#NAME?"},{"$error":"#NAME?"},{"$error":"#NAME?"}]
["Singles\\Phil Collins - Can't Stop Loving You.mp3",{"$error":"#NAME?"},{"$error":"#NAME?"},{"$error":"#NAME?"},{"$error":"#NAME?"}]
["Singles\\Lewis Capaldi - Someone You Loved.mp3",{"$error":"#NAME?"},{"$error":"#NAME?"},{"$error":"#NAME?"},{"$error":"#NAME?"}]
["Singles\\Adele - Skyfall.mp3",{"$f":"RegexTest(B$1,$A835)","v":{"$error":"#NAME?"}},{"$f":"RegexCount(C$1,$A835)","v":{"$error":"#NAME?"}},{"$f":"RegexFind(D$1,$A835)","v":{"$error":"#NAME?"}},{"$f":"RegexReplace(E$1,$A835,F$1)","v":{"$error":"#NAME?"}}]
["Singles\\Opus - Live Is Life.mp3",{"$error":"#NAME?"},{"$error":"#NAME?"},{"$error":"#NAME?"},{"$error":"#NAME?"}]
["Singles\\Joe Jackson - (He's A) Shape In A Drape.mp3",{"$error":"#NAME?"},{"$error":"#NAME?"},{"$error":"#NAME?"},{"$error":"#NAME?"}]
["Singles\\The Walkers - There's No More Corn On The Brasos.mp3",{"$error":"#NAME?"},{"$error":"#NAME?"},{"$error":"#NAME?"},{"$error":"#NAME?"}]
["Singles\\First Choice - Dr Love.mp3",{"$error":"#NAME?"},{"$error":"#NAME?"},{"$error":"#NAME?"},{"$error":"#NAME?"}]
["Singles\\Alain Clark - This Ain't Gonna Work.mp3",{"$error":"#NAME?"},{"$error":"#NAME?"},{"$error":"#NAME?"},{"$error":"#NAME?"}]
["Singles\\Neil Diamond - Hello Again.mp3",{"$error":"#NAME?"},{"$error":"#NAME?"},{"$error":"#NAME?"},{"$error":"#NAME?"}]
["Singles\\James Blunt - Goodbye My Lover.mp3",{"$error":"#NAME?"},{"$error":"#NAME?"},{"$error":"#NAME?"},{"$error":"#NAME?"}]
["Singles\\The Bee Gees - I've Gotta Get A Message To You.mp3",{"$error":"#NAME?"},{"$error":"#NAME?"},{"$error":"#NAME?"},{"$error":"#NAME?"}]
["Singles\\The Police - Invisible Sun.mp3",{"$error":"#NAME?"},{"$error":"#NAME?"},{"$error":"#NAME?"},{"$error":"#NAME?"}]
["Singles\\Roy Orbison - She's A Mystery To Me.mp3",{"$error":"#NAME?"},{"$error":"#NAME?"},{"$error":"#NAME?"},{"$error":"#NAME?"}]
["Singles\\Andreas Bourani - Auf Uns.mp3",{"$error":"#NAME?"},{"$error":"#NAME?"},{"$error":"#NAME?"},{"$error":"#NAME?"}]
["Singles\\The Flirtations - Someone Out There.mp3",{"$error":"#NAME?"},{"$error":"#NAME?"},{"$error":"#NAME?"},{"$error":"#NAME?"}]
["Singles\\O'Jays - Love Train.mp3",{"$error":"#NAME?"},{"$error":"#NAME?"},{"$error":"#NAME?"},{"$error":"#NAME?"}]
["Singles\\Golden Earring - Daddy Buy Me A Girl.mp3",{"$error":"#NAME?"},{"$error":"#NAME?"},{"$error":"#NAME?"},{"$error":"#NAME?"}]
["Singles\\Golden Earring - Long Blond Animal.mp3",{"$error":"#NAME?"},{"$error":"#NAME?"},{"$error":"#NAME?"},{"$error":"#NAME?"}]
["Singles\\The Broads - Sing Sing Sing.mp3",{"$error":"#NAME?"},{"$error":"#NAME?"},{"$error":"#NAME?"},{"$error":"#NAME?"}]
["Singles\\The Beach Boys - Heroes And Villains.mp3",{"$error":"#NAME?"},{"$error":"#NAME?"},{"$error":"#NAME?"},{"$error":"#NAME?"}]
["Singles\\Dua Lipa - Homesick.mp3",{"$error":"#NAME?"},{"$error":"#NAME?"},{"$error":"#NAME?"},{"$error":"#NAME?"}]
["Singles\\Alan Price - Changes.mp3",{"$error":"#NAME?"},{"$error":"#NAME?"},{"$error":"#NAME?"},{"$error":"#NAME?"}]
["Singles\\Van Morrison - Moondance.mp3",{"$error":"#NAME?"},{"$error":"#NAME?"},{"$error":"#NAME?"},{"$error":"#NAME?"}]
["Singles\\Robbie Williams - She's Madonna.mp3",{"$error":"#NAME?"},{"$error":"#NAME?"},{"$error":"#NAME?"},{"$error":"#NAME?"}]
["Singles\\Guus Meeuwis - Geef Mij Je Angst.mp3",{"$error":"#NAME?"},{"$error":"#NAME?"},{"$error":"#NAME?"},{"$error":"#NAME?"}]
["Singles\\Cocktail Trio - Kangoeroe Eiland.mp3",{"$error":"#NAME?"},{"$error":"#NAME?"},{"$error":"#NAME?"},{"$error":"#NAME?"}]
["Singles\\Peter Koelewijn - Kom Van Dat Dak Af.mp3",{"$error":"#NAME?"},{"$error":"#NAME?"},{"$error":"#NAME?"},{"$error":"#NAME?"}]
["Singles\\Rod Stewart - Every Beat Of My Heart.mp3",{"$error":"#NAME?"},{"$error":"#NAME?"},{"$error":"#NAME?"},{"$error":"#NAME?"}]
["Singles\\Smash Mouth - All Star.mp3",{"$error":"#NAME?"},{"$error":"#NAME?"},{"$error":"#NAME?"},{"$error":"#NAME?"}]
["Singles\\Sophia George - Girlie Girlie.mp3",{"$error":"#NAME?"},{"$error":"#NAME?"},{"$error":"#NAME?"},{"$error":"#NAME?"}]
["Singles\\Julio Iglesias & Willie Nelson - To All The Girls I've Loved Before.mp3",{"$error":"#NAME?"},{"$error":"#NAME?"},{"$error":"#NAME?"},{"$error":"#NAME?"}]
["Singles\\Nick & Simon - Een Nieuwe Dag.mp3",{"$error":"#NAME?"},{"$error":"#NAME?"},{"$error":"#NAME?"},{"$error":"#NAME?"}]
["Singles\\The Jags - Back Of My Hand.mp3",{"$error":"#NAME?"},{"$error":"#NAME?"},{"$error":"#NAME?"},{"$error":"#NAME?"}]
["Singles\\The Casuals - Jesamine.mp3",{"$error":"#NAME?"},{"$error":"#NAME?"},{"$error":"#NAME?"},{"$error":"#NAME?"}]
["Singles\\Hanson - Mmmbop.mp3",{"$error":"#NAME?"},{"$error":"#NAME?"},{"$error":"#NAME?"},{"$error":"#NAME?"}]
["Singles\\Righeira - Vamos A La Playa.mp3",{"$error":"#NAME?"},{"$error":"#NAME?"},{"$error":"#NAME?"},{"$error":"#NAME?"}]
["Singles\\Bill Medley & Jennifer Warnes - I've Had The Time Of My Life.mp3",{"$error":"#NAME?"},{"$error":"#NAME?"},{"$error":"#NAME?"},{"$error":"#NAME?"}]
["Singles\\Jason Derulo - Want To Want Me.mp3",{"$error":"#NAME?"},{"$error":"#NAME?"},{"$error":"#NAME?"},{"$error":"#NAME?"}]
["Singles\\Milk & Honey - Hallelujah.mp3",{"$error":"#NAME?"},{"$error":"#NAME?"},{"$error":"#NAME?"},{"$error":"#NAME?"}]
["Singles\\Thomas Dolby - She Blinded Me With Science.mp3",{"$error":"#NAME?"},{"$error":"#NAME?"},{"$error":"#NAME?"},{"$error":"#NAME?"}]
["Singles\\Anouk - I Don't Wanna Hurt.mp3",{"$error":"#NAME?"},{"$error":"#NAME?"},{"$error":"#NAME?"},{"$error":"#NAME?"}]
["Singles\\Hans De Booij - Annabel.mp3",{"$error":"#NAME?"},{"$error":"#NAME?"},{"$error":"#NAME?"},{"$error":"#NAME?"}]
["Singles\\O-Zone - Dragostea Din Tei.mp3",{"$error":"#NAME?"},{"$error":"#NAME?"},{"$error":"#NAME?"},{"$error":"#NAME?"}]
["Singles\\Van Halen - Running With The Devil.mp3",{"$error":"#NAME?"},{"$error":"#NAME?"},{"$error":"#NAME?"},{"$error":"#NAME?"}]
["Singles\\Tee Set - Linda Linda.mp3",{"$error":"#NAME?"},{"$error":"#NAME?"},{"$error":"#NAME?"},{"$error":"#NAME?"}]
["Singles\\Elton John - Daniel.mp3",{"$error":"#NAME?"},{"$error":"#NAME?"},{"$error":"#NAME?"},{"$error":"#NAME?"}]
["Singles\\Radiohead - Creep.mp3",{"$error":"#NAME?"},{"$error":"#NAME?"},{"$error":"#NAME?"},{"$error":"#NAME?"}]
["Singles\\Yarbrough & Peoples - Heartbeats.mp3",{"$error":"#NAME?"},{"$error":"#NAME?"},{"$error":"#NAME?"},{"$error":"#NAME?"}]
["Singles\\Phil Collins - Another Day In Paradise.mp3",{"$error":"#NAME?"},{"$error":"#NAME?"},{"$error":"#NAME?"},{"$error":"#NAME?"}]
["Singles\\The Chordettes - Mr Sandman.mp3",{"$error":"#NAME?"},{"$error":"#NAME?"},{"$error":"#NAME?"},{"$error":"#NAME?"}]
["Singles\\Alejandro Sanz & Shakira - La Tortura.mp3",{"$error":"#NAME?"},{"$error":"#NAME?"},{"$error":"#NAME?"},{"$error":"#NAME?"}]
["Singles\\Dobie Gray - Drift Away.mp3",{"$error":"#NAME?"},{"$error":"#NAME?"},{"$error":"#NAME?"},{"$error":"#NAME?"}]
["Singles\\Imagine Dragons - I Bet My Life.mp3",{"$error":"#NAME?"},{"$error":"#NAME?"},{"$error":"#NAME?"},{"$error":"#NAME?"}]
["Singles\\Abba - Voulez Vous.mp3",{"$error":"#NAME?"},{"$error":"#NAME?"},{"$error":"#NAME?"},{"$error":"#NAME?"}]
["Singles\\Muenchener Freiheit - Tausendmal Du.mp3",{"$error":"#NAME?"},{"$error":"#NAME?"},{"$error":"#NAME?"},{"$error":"#NAME?"}]
["Singles\\Conny Vandenbos & Janis Ian - Don't Leave Tonight.mp3",{"$error":"#NAME?"},{"$error":"#NAME?"},{"$error":"#NAME?"},{"$error":"#NAME?"}]
["Singles\\Frizzle Sizzle - Alles Heeft Een Ritme.mp3",{"$error":"#NAME?"},{"$error":"#NAME?"},{"$error":"#NAME?"},{"$error":"#NAME?"}]
["Singles\\Brothers Johnson - Stomp.mp3",{"$error":"#NAME?"},{"$error":"#NAME?"},{"$error":"#NAME?"},{"$error":"#NAME?"}]
["Singles\\Santana - Say It Again.mp3",{"$error":"#NAME?"},{"$error":"#NAME?"},{"$error":"#NAME?"},{"$error":"#NAME?"}]
["Singles\\Bryan Adams - I'm Ready.mp3",{"$error":"#NAME?"},{"$error":"#NAME?"},{"$error":"#NAME?"},{"$error":"#NAME?"}]
["Singles\\The Bee Gees - New York Mining Disaster 1941.mp3",{"$error":"#NAME?"},{"$error":"#NAME?"},{"$error":"#NAME?"},{"$error":"#NAME?"}]
["Singles\\Gavin James - The Book Of Love.mp3",{"$error":"#NAME?"},{"$error":"#NAME?"},{"$error":"#NAME?"},{"$error":"#NAME?"}]
["Singles\\Bob Dylan - Hurricane.mp3",{"$error":"#NAME?"},{"$error":"#NAME?"},{"$error":"#NAME?"},{"$error":"#NAME?"}]
["Singles\\Tiësto, Jonas Blue & Rita Ora - Ritual.mp3",{"$error":"#NAME?"},{"$error":"#NAME?"},{"$error":"#NAME?"},{"$error":"#NAME?"}]
["Singles\\Duane Eddy - Because They're Young.mp3",{"$error":"#NAME?"},{"$error":"#NAME?"},{"$error":"#NAME?"},{"$error":"#NAME?"}]
["Singles\\Rosie Vela - Magic Smile.mp3",{"$error":"#NAME?"},{"$error":"#NAME?"},{"$error":"#NAME?"},{"$error":"#NAME?"}]
["Singles\\Jermaine Jackson & Pia Zadorra - When The Rain Begins To Fall.mp3",{"$f":"RegexTest(B$1,$A899)","v":{"$error":"#NAME?"}},{"$f":"RegexCount(C$1,$A899)","v":{"$error":"#NAME?"}},{"$f":"RegexFind(D$1,$A899)","v":{"$error":"#NAME?"}},{"$f":"RegexReplace(E$1,$A899,F$1)","v":{"$error":"#NAME?"}}]
["Singles\\Everly Brothers - Love Is Strange.mp3",{"$error":"#NAME?"},{"$error":"#NAME?"},{"$error":"#NAME?"},{"$error":"#NAME?"}]
["Singles\\Kensington - Done With It.mp3",{"$error":"#NAME?"},{"$error":"#NAME?"},{"$error":"#NAME?"},{"$error":"#NAME?"}]
["Singles\\Joan Jett & The Blackhearts - I Hate Myself For Loving You.mp3",{"$error":"#NAME?"},{"$error":"#NAME?"},{"$error":"#NAME?"},{"$error":"#NAME?"}]
["Singles\\Alexis Jordan - Hush Hush.mp3",{"$error":"#NAME?"},{"$error":"#NAME?"},{"$error":"#NAME?"},{"$error":"#NAME?"}]
["Singles\\Diana Ross - Why Do Fools Fall In Love.mp3",{"$error":"#NAME?"},{"$error":"#NAME?"},{"$error":"#NAME?"},{"$error":"#NAME?"}]
["Singles\\The Beatles - She's Leaving Home.mp3",{"$error":"#NAME?"},{"$error":"#NAME?"},{"$error":"#NAME?"},{"$error":"#NAME?"}]
["Singles\\Wizzard - See My Baby Jive.mp3",{"$error":"#NAME?"},{"$error":"#NAME?"},{"$error":"#NAME?"},{"$error":"#NAME?"}]
["Singles\\Alec Benjamin - Let Me Down Slowly.mp3",{"$error":"#NAME?"},{"$error":"#NAME?"},{"$error":"#NAME?"},{"$error":"#NAME?"}]
["Singles\\Marianne Rosenberg - Ich Bin Wie Du.mp3",{"$error":"#NAME?"},{"$error":"#NAME?"},{"$error":"#NAME?"},{"$error":"#NAME?"}]
["Singles\\Freddy Quinn - Junge Komm Bald Wieder.mp3",{"$error":"#NAME?"},{"$error":"#NAME?"},{"$error":"#NAME?"},{"$error":"#NAME?"}]
["Singles\\Deorro ft Elvis Crespo - Bailar.mp3",{"$error":"#NAME?"},{"$error":"#NAME?"},{"$error":"#NAME?"},{"$error":"#NAME?"}]
["Singles\\Simplistisch Verbond - Zoek Jezelf.mp3",{"$error":"#NAME?"},{"$error":"#NAME?"},{"$error":"#NAME?"},{"$error":"#NAME?"}]
["Singles\\Tammy Wynette - Stand By Your Man.mp3",{"$error":"#NAME?"},{"$error":"#NAME?"},{"$error":"#NAME?"},{"$error":"#NAME?"}]
["Singles\\Lia Velasco - 5.05 PM.mp3",{"$error":"#NAME?"},{"$error":"#NAME?"},{"$error":"#NAME?"},{"$error":"#NAME?"}]
["Singles\\U2 - Mysterious Ways.mp3",{"$error":"#NAME?"},{"$error":"#NAME?"},{"$error":"#NAME?"},{"$error":"#NAME?"}]
["Singles\\Jack Johnson - Sitting, Waiting, Wishing.mp3",{"$error":"#NAME?"},{"$error":"#NAME?"},{"$error":"#NAME?"},{"$error":"#NAME?"}]
["Singles\\Mink DeVille - Mazurka.mp3",{"$error":"#NAME?"},{"$error":"#NAME?"},{"$error":"#NAME?"},{"$error":"#NAME?"}]
["Singles\\Justin Bieber - What Do You Mean.mp3",{"$error":"#NAME?"},{"$error":"#NAME?"},{"$error":"#NAME?"},{"$error":"#NAME?"}]
["Singles\\Rod Stewart - Baby Jane.mp3",{"$error":"#NAME?"},{"$error":"#NAME?"},{"$error":"#NAME?"},{"$error":"#NAME?"}]
["Singles\\Mike & The Mechanics - Over My Shoulder.mp3",{"$error":"#NAME?"},{"$error":"#NAME?"},{"$error":"#NAME?"},{"$error":"#NAME?"}]
["Singles\\Nickelback - Photograph.mp3",{"$error":"#NAME?"},{"$error":"#NAME?"},{"$error":"#NAME?"},{"$error":"#NAME?"}]
["Singles\\Sammy Davis Jr - The Candy Man.mp3",{"$error":"#NAME?"},{"$error":"#NAME?"},{"$error":"#NAME?"},{"$error":"#NAME?"}]
["Singles\\Celine Dion - Think Twice.mp3",{"$error":"#NAME?"},{"$error":"#NAME?"},{"$error":"#NAME?"},{"$error":"#NAME?"}]
["Singles\\The Rolling Stones - Angie.mp3",{"$error":"#NAME?"},{"$error":"#NAME?"},{"$error":"#NAME?"},{"$error":"#NAME?"}]
["Singles\\Michael Jackson - Stranger In Moscow.mp3",{"$error":"#NAME?"},{"$error":"#NAME?"},{"$error":"#NAME?"},{"$error":"#NAME?"}]
["Singles\\A-Ha - The Living Daylights.mp3",{"$error":"#NAME?"},{"$error":"#NAME?"},{"$error":"#NAME?"},{"$error":"#NAME?"}]
["Singles\\Ilse DeLange - Blue Bittersweet.mp3",{"$error":"#NAME?"},{"$error":"#NAME?"},{"$error":"#NAME?"},{"$error":"#NAME?"}]
["Singles\\Oliver Onions - Dune Buggy.mp3",{"$error":"#NAME?"},{"$error":"#NAME?"},{"$error":"#NAME?"},{"$error":"#NAME?"}]
["Singles\\Shakira ft Freshly Ground - Waka Waka (This Time For Africa).mp3",{"$error":"#NAME?"},{"$error":"#NAME?"},{"$error":"#NAME?"},{"$error":"#NAME?"}]
["Singles\\Status Quo - Anniversary Waltz (Part1).mp3",{"$error":"#NAME?"},{"$error":"#NAME?"},{"$error":"#NAME?"},{"$error":"#NAME?"}]
["Singles\\Marianne Faithfull - The Ballad Of Lucy Jordan.mp3",{"$error":"#NAME?"},{"$error":"#NAME?"},{"$error":"#NAME?"},{"$error":"#NAME?"}]
["Singles\\Alain Barriere & Nicole Croisille - Tu T'en Vas.mp3",{"$error":"#NAME?"},{"$error":"#NAME?"},{"$error":"#NAME?"},{"$error":"#NAME?"}]
["Singles\\Robert Long - Iedereen Doet Het.mp3",{"$error":"#NAME?"},{"$error":"#NAME?"},{"$error":"#NAME?"},{"$error":"#NAME?"}]
["Singles\\Ed Sheeran - Photograph.mp3",{"$error":"#NAME?"},{"$error":"#NAME?"},{"$error":"#NAME?"},{"$error":"#NAME?"}]
["Singles\\The Script ft Will.I.Am - Hall Of Fame.mp3",{"$error":"#NAME?"},{"$error":"#NAME?"},{"$error":"#NAME?"},{"$error":"#NAME?"}]
["Singles\\Shocking Blue - Send Me A Postcard.mp3",{"$error":"#NAME?"},{"$error":"#NAME?"},{"$error":"#NAME?"},{"$error":"#NAME?"}]
["Singles\\Kirsty Maccoll - A Guy Works Down The Chip Shop.mp3",{"$error":"#NAME?"},{"$error":"#NAME?"},{"$error":"#NAME?"},{"$error":"#NAME?"}]
["Singles\\Pixie Lott - Mama Do.mp3",{"$error":"#NAME?"},{"$error":"#NAME?"},{"$error":"#NAME?"},{"$error":"#NAME?"}]
["Singles\\Cat Stevens - Father And Son.mp3",{"$error":"#NAME?"},{"$error":"#NAME?"},{"$error":"#NAME?"},{"$error":"#NAME?"}]
["Singles\\Georgie Fame - Sunny.mp3",{"$error":"#NAME?"},{"$error":"#NAME?"},{"$error":"#NAME?"},{"$error":"#NAME?"}]
["Singles\\Bastille - Laura Palmer.mp3",{"$error":"#NAME?"},{"$error":"#NAME?"},{"$error":"#NAME?"},{"$error":"#NAME?"}]
["Singles\\Neil Young - Harvest.mp3",{"$error":"#NAME?"},{"$error":"#NAME?"},{"$error":"#NAME?"},{"$error":"#NAME?"}]
["Singles\\Patty & Shift - Wonderful.mp3",{"$error":"#NAME?"},{"$error":"#NAME?"},{"$error":"#NAME?"},{"$error":"#NAME?"}]
["Singles\\Kane - Damn Those Eyes.mp3",{"$error":"#NAME?"},{"$error":"#NAME?"},{"$error":"#NAME?"},{"$error":"#NAME?"}]
["Singles\\Whitney Houston - Love Will Save The Day.mp3",{"$error":"#NAME?"},{"$error":"#NAME?"},{"$error":"#NAME?"},{"$error":"#NAME?"}]
["Singles\\Garland Jeffreys - Wild In The Streets.mp3",{"$error":"#NAME?"},{"$error":"#NAME?"},{"$error":"#NAME?"},{"$error":"#NAME?"}]
["Singles\\David Bowie & Tina Turner - Tonight.mp3",{"$error":"#NAME?"},{"$error":"#NAME?"},{"$error":"#NAME?"},{"$error":"#NAME?"}]
["Singles\\Spargo - One Night Affair.mp3",{"$error":"#NAME?"},{"$error":"#NAME?"},{"$error":"#NAME?"},{"$error":"#NAME?"}]
["Singles\\A Great Big World Ft Christina Aguillera - Say Something.mp3",{"$error":"#NAME?"},{"$error":"#NAME?"},{"$error":"#NAME?"},{"$error":"#NAME?"}]
["Singles\\Pointer Sisters - Fire.mp3",{"$error":"#NAME?"},{"$error":"#NAME?"},{"$error":"#NAME?"},{"$error":"#NAME?"}]
["Singles\\Johnny Mathis & Deniece Williams - Too Much, Too Little, Too Late.mp3",{"$error":"#NAME?"},{"$error":"#NAME?"},{"$error":"#NAME?"},{"$error":"#NAME?"}]
["Singles\\Tröckener Kecks - Met Hart En Ziel.mp3",{"$error":"#NAME?"},{"$error":"#NAME?"},{"$error":"#NAME?"},{"$error":"#NAME?"}]
["Singles\\Pink - Family Portrait.mp3",{"$error":"#NAME?"},{"$error":"#NAME?"},{"$error":"#NAME?"},{"$error":"#NAME?"}]
["Singles\\Barbra Streisand & The Bee Gees - Woman In Love.mp3",{"$error":"#NAME?"},{"$error":"#NAME?"},{"$error":"#NAME?"},{"$error":"#NAME?"}]
["Singles\\Phillip Phillips - Home.mp3",{"$error":"#NAME?"},{"$error":"#NAME?"},{"$error":"#NAME?"},{"$error":"#NAME?"}]
["Singles\\Flirtations - Nothing But A Heartache.mp3",{"$error":"#NAME?"},{"$error":"#NAME?"},{"$error":"#NAME?"},{"$error":"#NAME?"}]
["Singles\\The Beatles - For No One.mp3",{"$error":"#NAME?"},{"$error":"#NAME?"},{"$error":"#NAME?"},{"$error":"#NAME?"}]
["Singles\\Enya - Orinoco Flow.mp3",{"$error":"#NAME?"},{"$error":"#NAME?"},{"$error":"#NAME?"},{"$error":"#NAME?"}]
["Singles\\Doris Day - Sentimental Journey.mp3",{"$error":"#NAME?"},{"$error":"#NAME?"},{"$error":"#NAME?"},{"$error":"#NAME?"}]
["Singles\\Andy Williams - Speak Softly Love.mp3",{"$error":"#NAME?"},{"$error":"#NAME?"},{"$error":"#NAME?"},{"$error":"#NAME?"}]
["Singles\\Celine Dion - Thats The Way It Is.mp3",{"$error":"#NAME?"},{"$error":"#NAME?"},{"$error":"#NAME?"},{"$error":"#NAME?"}]
["Singles\\Sammy Johns - Chevy Van.mp3",{"$error":"#NAME?"},{"$error":"#NAME?"},{"$error":"#NAME?"},{"$error":"#NAME?"}]
["Singles\\Prince - I Would Die 4 U (For You).mp3",{"$error":"#NAME?"},{"$error":"#NAME?"},{"$error":"#NAME?"},{"$error":"#NAME?"}]
["Singles\\Imagine Dragons - Whatever It Takes.mp3",{"$f":"RegexTest(B$1,$A963)","v":{"$error":"#NAME?"}},{"$f":"RegexCount(C$1,$A963)","v":{"$error":"#NAME?"}},{"$f":"RegexFind(D$1,$A963)","v":{"$error":"#NAME?"}},{"$f":"RegexReplace(E$1,$A963,F$1)","v":{"$error":"#NAME?"}}]
["Singles\\Johnny Pearson - Sleepy Shores.mp3",{"$error":"#NAME?"},{"$error":"#NAME?"},{"$error":"#NAME?"},{"$error":"#NAME?"}]
["Singles\\Pet Shop Boys & Dusty Springfield - Nothing Has Been Proved.mp3",{"$error":"#NAME?"},{"$error":"#NAME?"},{"$error":"#NAME?"},{"$error":"#NAME?"}]
["Singles\\Katy Perry - I Kissed A Girl.mp3",{"$error":"#NAME?"},{"$error":"#NAME?"},{"$error":"#NAME?"},{"$error":"#NAME?"}]
["Singles\\James Ingram & Patti Austin - Baby Come To Me.mp3",{"$error":"#NAME?"},{"$error":"#NAME?"},{"$error":"#NAME?"},{"$error":"#NAME?"}]
["Singles\\Cliff Richard - Some People.mp3",{"$error":"#NAME?"},{"$error":"#NAME?"},{"$error":"#NAME?"},{"$error":"#NAME?"}]
["Singles\\Handsome Poets - Sky On Fire.mp3",{"$error":"#NAME?"},{"$error":"#NAME?"},{"$error":"#NAME?"},{"$error":"#NAME?"}]
["Singles\\Alexandra Stan - Mr Saxobeat.mp3",{"$error":"#NAME?"},{"$error":"#NAME?"},{"$error":"#NAME?"},{"$error":"#NAME?"}]
["Singles\\Queen - Tie Your Mother Down.mp3",{"$error":"#NAME?"},{"$error":"#NAME?"},{"$error":"#NAME?"},{"$error":"#NAME?"}]
["Singles\\Intwine - Happy.mp3",{"$error":"#NAME?"},{"$error":"#NAME?"},{"$error":"#NAME?"},{"$error":"#NAME?"}]
["Singles\\Bobby Vinton - Blue Velvet.mp3",{"$error":"#NAME?"},{"$error":"#NAME?"},{"$error":"#NAME?"},{"$error":"#NAME?"}]
["Singles\\Take That - Patience.mp3",{"$error":"#NAME?"},{"$error":"#NAME?"},{"$error":"#NAME?"},{"$error":"#NAME?"}]
["Singles\\Pilot - January.mp3",{"$error":"#NAME?"},{"$error":"#NAME?"},{"$error":"#NAME?"},{"$error":"#NAME?"}]
["Singles\\Queen - Innuendo.mp3",{"$error":"#NAME?"},{"$error":"#NAME?"},{"$error":"#NAME?"},{"$error":"#NAME?"}]
["Singles\\Sam Cooke - You Send Me.mp3",{"$error":"#NAME?"},{"$error":"#NAME?"},{"$error":"#NAME?"},{"$error":"#NAME?"}]
["Singles\\Blondie - Atomic.mp3",{"$error":"#NAME?"},{"$error":"#NAME?"},{"$error":"#NAME?"},{"$error":"#NAME?"}]
["Singles\\Leona Lewis - A Moment Like This.mp3",{"$error":"#NAME?"},{"$error":"#NAME?"},{"$error":"#NAME?"},{"$error":"#NAME?"}]
["Singles\\Marmalade - Rainbow.mp3",{"$error":"#NAME?"},{"$error":"#NAME?"},{"$error":"#NAME?"},{"$error":"#NAME?"}]
["Singles\\Jacques Herb - Manuela.mp3",{"$error":"#NAME?"},{"$error":"#NAME?"},{"$error":"#NAME?"},{"$error":"#NAME?"}]
["Singles\\Tina Turner - Private Dancer.mp3",{"$error":"#NAME?"},{"$error":"#NAME?"},{"$error":"#NAME?"},{"$error":"#NAME?"}]
["Singles\\Di-Rect - Young Ones.mp3",{"$error":"#NAME?"},{"$error":"#NAME?"},{"$error":"#NAME?"},{"$error":"#NAME?"}]
["Singles\\Nicki Minaj - Starships.mp3",{"$error":"#NAME?"},{"$error":"#NAME?"},{"$error":"#NAME?"},{"$error":"#NAME?"}]
["Singles\\Salt 'n' Pepa - Push It.mp3",{"$error":"#NAME?"},{"$error":"#NAME?"},{"$error":"#NAME?"},{"$error":"#NAME?"}]
["Singles\\Piet, Adèle & Leen - Als Je Mekaar Niet Meer Vertrouwen Kan.mp3",{"$error":"#NAME?"},{"$error":"#NAME?"},{"$error":"#NAME?"},{"$error":"#NAME?"}]
["Singles\\Fifth Harmony ft Kid Ink - Worth It.mp3",{"$error":"#NAME?"},{"$error":"#NAME?"},{"$error":"#NAME?"},{"$error":"#NAME?"}]
["Singles\\Reel 2 Real ft The Mad Stuntman - I Like To Move It.mp3",{"$error":"#NAME?"},{"$error":"#NAME?"},{"$error":"#NAME?"},{"$error":"#NAME?"}]
["Singles\\Righeira - No Tengo Dinero.mp3",{"$error":"#NAME?"},{"$error":"#NAME?"},{"$error":"#NAME?"},{"$error":"#NAME?"}]
["Singles\\Kenny Rogers - Lucille.mp3",{"$error":"#NAME?"},{"$error":"#NAME?"},{"$error":"#NAME?"},{"$error":"#NAME?"}]
["Singles\\Modern Talking - Cheri Cheri Lady.mp3",{"$error":"#NAME?"},{"$error":"#NAME?"},{"$error":"#NAME?"},{"$error":"#NAME?"}]
["Singles\\Mike & The Mechanics - The Living Years.mp3",{"$error":"#NAME?"},{"$error":"#NAME?"},{"$error":"#NAME?"},{"$error":"#NAME?"}]
["Singles\\Steely Dan - Bodhisattva.mp3",{"$error":"#NAME?"},{"$error":"#NAME?"},{"$error":"#NAME?"},{"$error":"#NAME?"}]
["Singles\\J Geils Band - Centerfold.mp3",{"$error":"#NAME?"},{"$error":"#NAME?"},{"$error":"#NAME?"},{"$error":"#NAME?"}]
["Singles\\10cc - Life Is A Minestrone.mp3",{"$error":"#NAME?"},{"$error":"#NAME?"},{"$error":"#NAME?"},{"$error":"#NAME?"}]
["Singles\\The Yardbirds - Still I'm Sad.mp3",{"$error":"#NAME?"},{"$error":"#NAME?"},{"$error":"#NAME?"},{"$error":"#NAME?"}]
["Singles\\Train - Angel In Blue Jeans.mp3",{"$error":"#NAME?"},{"$error":"#NAME?"},{"$error":"#NAME?"},{"$error":"#NAME?"}]
["Singles\\Bobby Vinton - Roses Are Red (My Love).mp3",{"$error":"#NAME?"},{"$error":"#NAME?"},{"$error":"#NAME?"},{"$error":"#NAME?"}]
["Singles\\Kate Bush - Wuthering Heights.mp3",{"$error":"#NAME?"},{"$error":"#NAME?"},{"$error":"#NAME?"},{"$error":"#NAME?"}]
["Singles\\John Mayer - Heartbreak Warfare.mp3",{"$error":"#NAME?"},{"$error":"#NAME?"},{"$error":"#NAME?"},{"$error":"#NAME?"}]
["Singles\\Anouk - Modern World.mp3",{"$error":"#NAME?"},{"$error":"#NAME?"},{"$error":"#NAME?"},{"$error":"#NAME?"}]
["Singles\\Bingo Players - Cry (Just A Little).mp3",{"$error":"#NAME?"},{"$error":"#NAME?"},{"$error":"#NAME?"},{"$error":"#NAME?"}]
["Singles\\Madcon ft Ray Dalton - Don't Worry.mp3",{"$error":"#NAME?"},{"$error":"#NAME?"},{"$error":"#NAME?"},{"$error":"#NAME?"}]
["Singles\\George Baker Selection - Marie Jeanne.mp3",{"$error":"#NAME?"},{"$error":"#NAME?"},{"$error":"#NAME?"},{"$error":"#NAME?"}]
["Singles\\Lady Gaga - Million Reasons.mp3",{"$error":"#NAME?"},{"$error":"#NAME?"},{"$error":"#NAME?"},{"$error":"#NAME?"}]
["Singles\\Polle Eduard - Ik Wil Jou.mp3",{"$error":"#NAME?"},{"$error":"#NAME?"},{"$error":"#NAME?"},{"$error":"#NAME?"}]
["Singles\\Armin Van Buuren ft Mr Probz - Another You.mp3",{"$error":"#NAME?"},{"$error":"#NAME?"},{"$error":"#NAME?"},{"$error":"#NAME?"}]
["Singles\\Jan & Dean - Surf City.mp3",{"$error":"#NAME?"},{"$error":"#NAME?"},{"$error":"#NAME?"},{"$error":"#NAME?"}]
["Singles\\The Wanted - Glad You Came.mp3",{"$error":"#NAME?"},{"$error":"#NAME?"},{"$error":"#NAME?"},{"$error":"#NAME?"}]
["Singles\\Stereophonics - Have A Nice Day.mp3",{"$error":"#NAME?"},{"$error":"#NAME?"},{"$error":"#NAME?"},{"$error":"#NAME?"}]
["Singles\\Katie Melua - My Aphrodisiac Is You.mp3",{"$error":"#NAME?"},{"$error":"#NAME?"},{"$error":"#NAME?"},{"$error":"#NAME?"}]
["Singles\\Frida Boccara - Cent Mille Chansons.mp3",{"$error":"#NAME?"},{"$error":"#NAME?"},{"$error":"#NAME?"},{"$error":"#NAME?"}]
["Singles\\The Script - Rain.mp3",{"$error":"#NAME?"},{"$error":"#NAME?"},{"$error":"#NAME?"},{"$error":"#NAME?"}]
["Singles\\M People - Moving On Up.mp3",{"$error":"#NAME?"},{"$error":"#NAME?"},{"$error":"#NAME?"},{"$error":"#NAME?"}]
["Singles\\Time Bandits - Endless Road.mp3",{"$error":"#NAME?"},{"$error":"#NAME?"},{"$error":"#NAME?"},{"$error":"#NAME?"}]
["Singles\\Adam Lambert - Ghost Town.mp3",{"$error":"#NAME?"},{"$error":"#NAME?"},{"$error":"#NAME?"},{"$error":"#NAME?"}]
["Singles\\The Rolling Stones - We Love You.mp3",{"$error":"#NAME?"},{"$error":"#NAME?"},{"$error":"#NAME?"},{"$error":"#NAME?"}]
["Singles\\Alan Parsons Project - Time.mp3",{"$error":"#NAME?"},{"$error":"#NAME?"},{"$error":"#NAME?"},{"$error":"#NAME?"}]
["Singles\\Rod Stewart & Tina Turner - It Takes Two.mp3",{"$error":"#NAME?"},{"$error":"#NAME?"},{"$error":"#NAME?"},{"$error":"#NAME?"}]
["Singles\\Raymond Van Het Groenewoud - Liefde Voor Muziek.mp3",{"$error":"#NAME?"},{"$error":"#NAME?"},{"$error":"#NAME?"},{"$error":"#NAME?"}]
["Singles\\Bon Jovi - Wanted Dead Or Alive.mp3",{"$error":"#NAME?"},{"$error":"#NAME?"},{"$error":"#NAME?"},{"$error":"#NAME?"}]
["Singles\\Miss Montreal & Paskal Jakobsen - Ik_Zoek Alleen Mezelf.mp3",{"$error":"#NAME?"},{"$error":"#NAME?"},{"$error":"#NAME?"},{"$error":"#NAME?"}]
["Singles\\Tracy Chapman - Crossroads.mp3",{"$error":"#NAME?"},{"$error":"#NAME?"},{"$error":"#NAME?"},{"$error":"#NAME?"}]
["Singles\\Normaal - Hoe-J 't Ok Doet.mp3",{"$error":"#NAME?"},{"$error":"#NAME?"},{"$error":"#NAME?"},{"$error":"#NAME?"}]
["Singles\\Lady GaGa - Alejandro.mp3",{"$error":"#NAME?"},{"$error":"#NAME?"},{"$error":"#NAME?"},{"$error":"#NAME?"}]
["Singles\\Abba - Super Trouper.mp3",{"$error":"#NAME?"},{"$error":"#NAME?"},{"$error":"#NAME?"},{"$error":"#NAME?"}]
["Singles\\The Rolling Stones - Get Off My Cloud.mp3",{"$f":"RegexTest(B$1,$A1027)","v":{"$error":"#NAME?"}},{"$f":"RegexCount(C$1,$A1027)","v":{"$error":"#NAME?"}},{"$f":"RegexFind(D$1,$A1027)","v":{"$error":"#NAME?"}},{"$f":"RegexReplace(E$1,$A1027,F$1)","v":{"$error":"#NAME?"}}]
["Singles\\Dionne Warwick - I'll Never Love This Way Again.mp3",{"$error":"#NAME?"},{"$error":"#NAME?"},{"$error":"#NAME?"},{"$error":"#NAME?"}]
["Singles\\Jay Sean ft Sean Paul - Make My Love Go.mp3",{"$error":"#NAME?"},{"$error":"#NAME?"},{"$error":"#NAME?"},{"$error":"#NAME?"}]
["Singles\\Jonas Blue ft William Singe - Mama.mp3",{"$error":"#NAME?"},{"$error":"#NAME?"},{"$error":"#NAME?"},{"$error":"#NAME?"}]
["Singles\\Pearl Jam - Alive.mp3",{"$error":"#NAME?"},{"$error":"#NAME?"},{"$error":"#NAME?"},{"$error":"#NAME?"}]
["Singles\\Selena Gomez & Marshmello - Wolves.mp3",{"$error":"#NAME?"},{"$error":"#NAME?"},{"$error":"#NAME?"},{"$error":"#NAME?"}]
["Singles\\The Shadows - Guitar Tango.mp3",{"$error":"#NAME?"},{"$error":"#NAME?"},{"$error":"#NAME?"},{"$error":"#NAME?"}]
["Singles\\Mel & Kim - Showing Out (Get Fresh At The Weekend).mp3",{"$error":"#NAME?"},{"$error":"#NAME?"},{"$error":"#NAME?"},{"$error":"#NAME?"}]
["Singles\\Guus Meeuwis - Ik Ook Van Jou.mp3",{"$error":"#NAME?"},{"$error":"#NAME?"},{"$error":"#NAME?"},{"$error":"#NAME?"}]
["Singles\\Charles Aznavour - For Me Formidable.mp3",{"$error":"#NAME?"},{"$error":"#NAME?"},{"$error":"#NAME?"},{"$error":"#NAME?"}]
["Singles\\Mary Hopkin - Goodbye.mp3",{"$error":"#NAME?"},{"$error":"#NAME?"},{"$error":"#NAME?"},{"$error":"#NAME?"}]
["Singles\\Bastille - Pompeii.mp3",{"$error":"#NAME?"},{"$error":"#NAME?"},{"$error":"#NAME?"},{"$error":"#NAME?"}]
["Singles\\Helen Reddy - Delta Dawn.mp3",{"$error":"#NAME?"},{"$error":"#NAME?"},{"$error":"#NAME?"},{"$error":"#NAME?"}]
["Singles\\Kings Of Leon - Sex On Fire.mp3",{"$error":"#NAME?"},{"$error":"#NAME?"},{"$error":"#NAME?"},{"$error":"#NAME?"}]
["Singles\\John Leyton - Johnny Remember Me.mp3",{"$error":"#NAME?"},{"$error":"#NAME?"},{"$error":"#NAME?"},{"$error":"#NAME?"}]
["Singles\\Don Henley - New York Minute.mp3",{"$error":"#NAME?"},{"$error":"#NAME?"},{"$error":"#NAME?"},{"$error":"#NAME?"}]
["Singles\\Paul Anka - Dance On Little Girl.mp3",{"$error":"#NAME?"},{"$error":"#NAME?"},{"$error":"#NAME?"},{"$error":"#NAME?"}]
["Singles\\REM - Man On The Moon.mp3",{"$error":"#NAME?"},{"$error":"#NAME?"},{"$error":"#NAME?"},{"$error":"#NAME?"}]
["Singles\\The Kinks - A Well Respected Man.mp3",{"$error":"#NAME?"},{"$error":"#NAME?"},{"$error":"#NAME?"},{"$error":"#NAME?"}]
["Singles\\Peter Schreiber - Nooit Meer Verliefd.mp3",{"$error":"#NAME?"},{"$error":"#NAME?"},{"$error":"#NAME?"},{"$error":"#NAME?"}]
["Singles\\Buffoons - It's The End.mp3",{"$error":"#NAME?"},{"$error":"#NAME?"},{"$error":"#NAME?"},{"$error":"#NAME?"}]
["Singles\\Shawn Mendes - There's Nothing Holdin' Me Back.mp3",{"$error":"#NAME?"},{"$error":"#NAME?"},{"$error":"#NAME?"},{"$error":"#NAME?"}]
["Singles\\Bruno Mars - Just The Way You Are.mp3",{"$error":"#NAME?"},{"$error":"#NAME?"},{"$error":"#NAME?"},{"$error":"#NAME?"}]
["Singles\\Fugees - Ready Or Not.mp3",{"$error":"#NAME?"},{"$error":"#NAME?"},{"$error":"#NAME?"},{"$error":"#NAME?"}]
["Singles\\Jonas Blue ft JP Cooper - Perfect Strangers.mp3",{"$error":"#NAME?"},{"$error":"#NAME?"},{"$error":"#NAME?"},{"$error":"#NAME?"}]
["Singles\\Abba - Waterloo.mp3",{"$error":"#NAME?"},{"$error":"#NAME?"},{"$error":"#NAME?"},{"$error":"#NAME?"}]
["Singles\\Rochelle ft Kalibwoy - Way Up.mp3",{"$error":"#NAME?"},{"$error":"#NAME?"},{"$error":"#NAME?"},{"$error":"#NAME?"}]
["Singles\\Barry Mann - Who Put The In The Bomp Bomp Bomp.mp3",{"$error":"#NAME?"},{"$error":"#NAME?"},{"$error":"#NAME?"},{"$error":"#NAME?"}]
["Singles\\LL Cool J - I Need Love.mp3",{"$error":"#NAME?"},{"$error":"#NAME?"},{"$error":"#NAME?"},{"$error":"#NAME?"}]
["Singles\\Bruce Springsteen - Hungry Heart.mp3",{"$error":"#NAME?"},{"$error":"#NAME?"},{"$error":"#NAME?"},{"$error":"#NAME?"}]
["Singles\\David Guetta ft Kelly Rowland - When Love Takes Over.mp3",{"$error":"#NAME?"},{"$error":"#NAME?"},{"$error":"#NAME?"},{"$error":"#NAME?"}]
["Singles\\Lene Lovich - Lucky Number.mp3",{"$error":"#NAME?"},{"$error":"#NAME?"},{"$error":"#NAME?"},{"$error":"#NAME?"}]
["Singles\\Jeff Beck - Hi-Ho Silver Lining.mp3",{"$error":"#NAME?"},{"$error":"#NAME?"},{"$error":"#NAME?"},{"$error":"#NAME?"}]
["Singles\\Pharrell Williams - Marilyn Monroe.mp3",{"$error":"#NAME?"},{"$error":"#NAME?"},{"$error":"#NAME?"},{"$error":"#NAME?"}]
["Singles\\Creedence Clearwater Revival - Good Golly Miss Molly.mp3",{"$error":"#NAME?"},{"$error":"#NAME?"},{"$error":"#NAME?"},{"$error":"#NAME?"}]
["Singles\\Alan Parsons Project - Mammagamma.mp3",{"$error":"#NAME?"},{"$error":"#NAME?"},{"$error":"#NAME?"},{"$error":"#NAME?"}]
["Singles\\The Kinks - Waterloo Sunset.mp3",{"$error":"#NAME?"},{"$error":"#NAME?"},{"$error":"#NAME?"},{"$error":"#NAME?"}]
["Singles\\Kelly - Je Bent Niet Hip.mp3",{"$error":"#NAME?"},{"$error":"#NAME?"},{"$error":"#NAME?"},{"$error":"#NAME?"}]
["Singles\\Sade - No Ordinary Love.mp3",{"$error":"#NAME?"},{"$error":"#NAME?"},{"$error":"#NAME?"},{"$error":"#NAME?"}]
["Singles\\Stars On 45 - Stars On 45 (Medley).mp3",{"$error":"#NAME?"},{"$error":"#NAME?"},{"$error":"#NAME?"},{"$error":"#NAME?"}]
["Singles\\East 17 - Stay Another Day.mp3",{"$error":"#NAME?"},{"$error":"#NAME?"},{"$error":"#NAME?"},{"$error":"#NAME?"}]
["Singles\\Jimmy Cliff - Wild World.mp3",{"$error":"#NAME?"},{"$error":"#NAME?"},{"$error":"#NAME?"},{"$error":"#NAME?"}]
["Singles\\Raymond Froggatt - Callow La Vita.mp3",{"$error":"#NAME?"},{"$error":"#NAME?"},{"$error":"#NAME?"},{"$error":"#NAME?"}]
["Singles\\Tommy Roe - Dizzy.mp3",{"$error":"#NAME?"},{"$error":"#NAME?"},{"$error":"#NAME?"},{"$error":"#NAME?"}]
["Singles\\Sheppard - Coming Home.mp3",{"$error":"#NAME?"},{"$error":"#NAME?"},{"$error":"#NAME?"},{"$error":"#NAME?"}]
["Singles\\Lionel Richie - Penny Lover.mp3",{"$error":"#NAME?"},{"$error":"#NAME?"},{"$error":"#NAME?"},{"$error":"#NAME?"}]
["Singles\\Average White Band - Pick Up The Pieces.mp3",{"$error":"#NAME?"},{"$error":"#NAME?"},{"$error":"#NAME?"},{"$error":"#NAME?"}]
["Singles\\Naughty Boy ft Sam Smith - La La La.mp3",{"$error":"#NAME?"},{"$error":"#NAME?"},{"$error":"#NAME?"},{"$error":"#NAME?"}]
["Singles\\Peter Henn - Flip Flap.mp3",{"$error":"#NAME?"},{"$error":"#NAME?"},{"$error":"#NAME?"},{"$error":"#NAME?"}]
["Singles\\Duke Dumont - Ocean Drive.mp3",{"$error":"#NAME?"},{"$error":"#NAME?"},{"$error":"#NAME?"},{"$error":"#NAME?"}]
["Singles\\Michel Polnareff - La Poupee Qui Fait Non.mp3",{"$error":"#NAME?"},{"$error":"#NAME?"},{"$error":"#NAME?"},{"$error":"#NAME?"}]
["Singles\\Stromae - Papaoutai.mp3",{"$error":"#NAME?"},{"$error":"#NAME?"},{"$error":"#NAME?"},{"$error":"#NAME?"}]
["Singles\\Spargo - You And Me.mp3",{"$error":"#NAME?"},{"$error":"#NAME?"},{"$error":"#NAME?"},{"$error":"#NAME?"}]
["Singles\\Doble RR (Trafassi) - Zullen We Maar Weer.mp3",{"$error":"#NAME?"},{"$error":"#NAME?"},{"$error":"#NAME?"},{"$error":"#NAME?"}]
["Singles\\Tom Browne - Funkin' For Jamaica (N.Y.).mp3",{"$error":"#NAME?"},{"$error":"#NAME?"},{"$error":"#NAME?"},{"$error":"#NAME?"}]
["Singles\\The Baseballs - Paparazzi.mp3",{"$error":"#NAME?"},{"$error":"#NAME?"},{"$error":"#NAME?"},{"$error":"#NAME?"}]
["Singles\\Maarten Peters - White Horses In The Snow.mp3",{"$error":"#NAME?"},{"$error":"#NAME?"},{"$error":"#NAME?"},{"$error":"#NAME?"}]
["Singles\\Cheryl Cole - Fight For This Love.mp3",{"$error":"#NAME?"},{"$error":"#NAME?"},{"$error":"#NAME?"},{"$error":"#NAME?"}]
["Singles\\Dermot Kennedy - Power Over Me.mp3",{"$error":"#NAME?"},{"$error":"#NAME?"},{"$error":"#NAME?"},{"$error":"#NAME?"}]
["Singles\\Les Reed Orchestra - Man Of Action.mp3",{"$error":"#NAME?"},{"$error":"#NAME?"},{"$error":"#NAME?"},{"$error":"#NAME?"}]
["Singles\\Sheila & The Black Devotion - Spacer.mp3",{"$error":"#NAME?"},{"$error":"#NAME?"},{"$error":"#NAME?"},{"$error":"#NAME?"}]
["Singles\\Boudewijn De Groot - Welterusten, Mijnheer De President.mp3",{"$error":"#NAME?"},{"$error":"#NAME?"},{"$error":"#NAME?"},{"$error":"#NAME?"}]
["Singles\\Stacy Lattisaw - Jump To The Beat.mp3",{"$error":"#NAME?"},{"$error":"#NAME?"},{"$error":"#NAME?"},{"$error":"#NAME?"}]
["Singles\\Stef Bos - Pappa.mp3",{"$error":"#NAME?"},{"$error":"#NAME?"},{"$error":"#NAME?"},{"$error":"#NAME?"}]
["Singles\\Madonna - Don't Tell Me.mp3",{"$f":"RegexTest(B$1,$A1091)","v":{"$error":"#NAME?"}},{"$f":"RegexCount(C$1,$A1091)","v":{"$error":"#NAME?"}},{"$f":"RegexFind(D$1,$A1091)","v":{"$error":"#NAME?"}},{"$f":"RegexReplace(E$1,$A1091,F$1)","v":{"$error":"#NAME?"}}]
["Singles\\Demis Roussos & Nancy Boyd - Summerwine.mp3",{"$error":"#NAME?"},{"$error":"#NAME?"},{"$error":"#NAME?"},{"$error":"#NAME?"}]
["Singles\\Merrymen - The Big Bamboo.mp3",{"$error":"#NAME?"},{"$error":"#NAME?"},{"$error":"#NAME?"},{"$error":"#NAME?"}]
["Singles\\Massada - Dansa (Don't Quit Dancing).mp3",{"$error":"#NAME?"},{"$error":"#NAME?"},{"$error":"#NAME?"},{"$error":"#NAME?"}]
["Singles\\Michael Bolton - How Am I Supposed To Live Without You.mp3",{"$error":"#NAME?"},{"$error":"#NAME?"},{"$error":"#NAME?"},{"$error":"#NAME?"}]
["Singles\\Robert Palmer & UB40 - I'll Be Your Baby Tonight.mp3",{"$error":"#NAME?"},{"$error":"#NAME?"},{"$error":"#NAME?"},{"$error":"#NAME?"}]
["Singles\\Hazell Dean - Searchin' (I Gotta Find A Man).mp3",{"$error":"#NAME?"},{"$error":"#NAME?"},{"$error":"#NAME?"},{"$error":"#NAME?"}]
["Singles\\The Byrds - So You Want To Be A Rock 'n' Roll Star.mp3",{"$error":"#NAME?"},{"$error":"#NAME?"},{"$error":"#NAME?"},{"$error":"#NAME?"}]
["Singles\\Sharon Brown - I Specialize In Love.mp3",{"$error":"#NAME?"},{"$error":"#NAME?"},{"$error":"#NAME?"},{"$error":"#NAME?"}]
["Singles\\OneRepublic - Wherever I Go.mp3",{"$error":"#NAME?"},{"$error":"#NAME?"},{"$error":"#NAME?"},{"$error":"#NAME?"}]
["Singles\\Guns N' Roses - Sweet Child O' Mine.mp3",{"$error":"#NAME?"},{"$error":"#NAME?"},{"$error":"#NAME?"},{"$error":"#NAME?"}]
["Singles\\Sak Noel - Loca People.mp3",{"$error":"#NAME?"},{"$error":"#NAME?"},{"$error":"#NAME?"},{"$error":"#NAME?"}]
["Singles\\The Beatles - Magical Mystery Tour.mp3",{"$error":"#NAME?"},{"$error":"#NAME?"},{"$error":"#NAME?"},{"$error":"#NAME?"}]
["Singles\\The Rolling Stones - Tell Me.mp3",{"$error":"#NAME?"},{"$error":"#NAME?"},{"$error":"#NAME?"},{"$error":"#NAME?"}]
["Singles\\The Beatles - Yellow Submarine.mp3",{"$error":"#NAME?"},{"$error":"#NAME?"},{"$error":"#NAME?"},{"$error":"#NAME?"}]
["Singles\\Timi Yuro - You Are My Special Angel.mp3",{"$error":"#NAME?"},{"$error":"#NAME?"},{"$error":"#NAME?"},{"$error":"#NAME?"}]
["Singles\\Miss Montreal - Tututu.mp3",{"$error":"#NAME?"},{"$error":"#NAME?"},{"$error":"#NAME?"},{"$error":"#NAME?"}]
["Singles\\Peter Gabriel & Kate Bush - Don't Give Up.mp3",{"$error":"#NAME?"},{"$error":"#NAME?"},{"$error":"#NAME?"},{"$error":"#NAME?"}]
["Singles\\Abba - Dancing Queen.mp3",{"$error":"#NAME?"},{"$error":"#NAME?"},{"$error":"#NAME?"},{"$error":"#NAME?"}]
["Singles\\Mouth & Macneal - Ik Zie Een Ster.mp3",{"$error":"#NAME?"},{"$error":"#NAME?"},{"$error":"#NAME?"},{"$error":"#NAME?"}]
["Singles\\Billie Eilish - Bad Guy.mp3",{"$error":"#NAME?"},{"$error":"#NAME?"},{"$error":"#NAME?"},{"$error":"#NAME?"}]
["Singles\\Krystl - Bottles.mp3",{"$error":"#NAME?"},{"$error":"#NAME?"},{"$error":"#NAME?"},{"$error":"#NAME?"}]
["Singles\\Klein Orkest - De Leugenaar.mp3",{"$error":"#NAME?"},{"$error":"#NAME?"},{"$error":"#NAME?"},{"$error":"#NAME?"}]
["Singles\\The Broads - I Got Rhythm.mp3",{"$error":"#NAME?"},{"$error":"#NAME?"},{"$error":"#NAME?"},{"$error":"#NAME?"}]
["Singles\\Marc Hamilton - Comme J'ai Toujours Envie D'aimer.mp3",{"$error":"#NAME?"},{"$error":"#NAME?"},{"$error":"#NAME?"},{"$error":"#NAME?"}]
["Singles\\Everly Brothers - Claudette.mp3",{"$error":"#NAME?"},{"$error":"#NAME?"},{"$error":"#NAME?"},{"$error":"#NAME?"}]
["Singles\\The Rembrandts - Ill Be There For You.mp3",{"$error":"#NAME?"},{"$error":"#NAME?"},{"$error":"#NAME?"},{"$error":"#NAME?"}]
["Singles\\Take That & Lulu - Relight My Fire.mp3",{"$error":"#NAME?"},{"$error":"#NAME?"},{"$error":"#NAME?"},{"$error":"#NAME?"}]
["Singles\\Genesis - Invisible Touch.mp3",{"$error":"#NAME?"},{"$error":"#NAME?"},{"$error":"#NAME?"},{"$error":"#NAME?"}]
["Singles\\Kayak - Ruthless Queen.mp3",{"$error":"#NAME?"},{"$error":"#NAME?"},{"$error":"#NAME?"},{"$error":"#NAME?"}]
["Singles\\Gilbert O'Sullivan - Ooh Wakka Doo Wakka Day.mp3",{"$error":"#NAME?"},{"$error":"#NAME?"},{"$error":"#NAME?"},{"$error":"#NAME?"}]
["Singles\\Lady Gaga & Bradley Cooper - Shallow.mp3",{"$error":"#NAME?"},{"$error":"#NAME?"},{"$error":"#NAME?"},{"$error":"#NAME?"}]
["Singles\\Randy Newman - Birmingham.mp3",{"$error":"#NAME?"},{"$error":"#NAME?"},{"$error":"#NAME?"},{"$error":"#NAME?"}]
["Singles\\Mr Probz - Waves.mp3",{"$error":"#NAME?"},{"$error":"#NAME?"},{"$error":"#NAME?"},{"$error":"#NAME?"}]
["Singles\\Frank Sinatra - I've Got You Under My Skin.mp3",{"$error":"#NAME?"},{"$error":"#NAME?"},{"$error":"#NAME?"},{"$error":"#NAME?"}]
["Singles\\Amy MacDonald - Mr Rock & Roll.mp3",{"$error":"#NAME?"},{"$error":"#NAME?"},{"$error":"#NAME?"},{"$error":"#NAME?"}]
["Singles\\Katy Perry - Chained To The Rhythm.mp3",{"$error":"#NAME?"},{"$error":"#NAME?"},{"$error":"#NAME?"},{"$error":"#NAME?"}]
["Singles\\Soeur Sourire - Dominique.mp3",{"$error":"#NAME?"},{"$error":"#NAME?"},{"$error":"#NAME?"},{"$error":"#NAME?"}]
["Singles\\Freeez - I.O.U..mp3",{"$error":"#NAME?"},{"$error":"#NAME?"},{"$error":"#NAME?"},{"$error":"#NAME?"}]
["Singles\\Liesbeth List - Brussel.mp3",{"$error":"#NAME?"},{"$error":"#NAME?"},{"$error":"#NAME?"},{"$error":"#NAME?"}]
["Singles\\Jonas Brothers - Only Human.mp3",{"$error":"#NAME?"},{"$error":"#NAME?"},{"$error":"#NAME?"},{"$error":"#NAME?"}]
["Singles\\Loreen - Euphoria.mp3",{"$error":"#NAME?"},{"$error":"#NAME?"},{"$error":"#NAME?"},{"$error":"#NAME?"}]
["Singles\\Jason Mraz - Have It All.mp3",{"$error":"#NAME?"},{"$error":"#NAME?"},{"$error":"#NAME?"},{"$error":"#NAME?"}]
["Singles\\Kreuners - Ik Wil Je.mp3",{"$error":"#NAME?"},{"$error":"#NAME?"},{"$error":"#NAME?"},{"$error":"#NAME?"}]
["Singles\\Bon Jovi - Keep The Faith.mp3",{"$error":"#NAME?"},{"$error":"#NAME?"},{"$error":"#NAME?"},{"$error":"#NAME?"}]
["Singles\\June Lodge - Someone Loves You Honey.mp3",{"$error":"#NAME?"},{"$error":"#NAME?"},{"$error":"#NAME?"},{"$error":"#NAME?"}]
["Singles\\The Christians - Community Of Spirit.mp3",{"$error":"#NAME?"},{"$error":"#NAME?"},{"$error":"#NAME?"},{"$error":"#NAME?"}]
["Singles\\Scaffold - Lily The Pink.mp3",{"$error":"#NAME?"},{"$error":"#NAME?"},{"$error":"#NAME?"},{"$error":"#NAME?"}]
["Singles\\Jimmy Frey - Yet I Know.mp3",{"$error":"#NAME?"},{"$error":"#NAME?"},{"$error":"#NAME?"},{"$error":"#NAME?"}]
["Singles\\Middle Of The Road - Bottoms Up.mp3",{"$error":"#NAME?"},{"$error":"#NAME?"},{"$error":"#NAME?"},{"$error":"#NAME?"}]
["Singles\\Abba - Bang-A-Boomerang.mp3",{"$error":"#NAME?"},{"$error":"#NAME?"},{"$error":"#NAME?"},{"$error":"#NAME?"}]
["Singles\\Piet, Adèle & Leen - We Zijn Toch Op De Wereld.mp3",{"$error":"#NAME?"},{"$error":"#NAME?"},{"$error":"#NAME?"},{"$error":"#NAME?"}]
["Singles\\Martin Solveig ft Dragonette - Hello.mp3",{"$error":"#NAME?"},{"$error":"#NAME?"},{"$error":"#NAME?"},{"$error":"#NAME?"}]
["Singles\\Coldplay - Viva La Vida.mp3",{"$error":"#NAME?"},{"$error":"#NAME?"},{"$error":"#NAME?"},{"$error":"#NAME?"}]
["Singles\\Tee Set - Ma Belle Amie.mp3",{"$error":"#NAME?"},{"$error":"#NAME?"},{"$error":"#NAME?"},{"$error":"#NAME?"}]
["Singles\\Nova - Aurora.mp3",{"$error":"#NAME?"},{"$error":"#NAME?"},{"$error":"#NAME?"},{"$error":"#NAME?"}]
["Singles\\Arthur Conley - Sweet Soul Music.mp3",{"$error":"#NAME?"},{"$error":"#NAME?"},{"$error":"#NAME?"},{"$error":"#NAME?"}]
["Singles\\Les Humphries Singers - Mexico.mp3",{"$error":"#NAME?"},{"$error":"#NAME?"},{"$error":"#NAME?"},{"$error":"#NAME?"}]
["Singles\\The Beatles - Michelle.mp3",{"$error":"#NAME?"},{"$error":"#NAME?"},{"$error":"#NAME?"},{"$error":"#NAME?"}]
["Singles\\Clean Bandit ft Louisa Johnson - Tears.mp3",{"$error":"#NAME?"},{"$error":"#NAME?"},{"$error":"#NAME?"},{"$error":"#NAME?"}]
["Singles\\Stray Cats - Rock This Town.mp3",{"$error":"#NAME?"},{"$error":"#NAME?"},{"$error":"#NAME?"},{"$error":"#NAME?"}]
["Singles\\The Beatles - Blackbird.mp3",{"$error":"#NAME?"},{"$error":"#NAME?"},{"$error":"#NAME?"},{"$error":"#NAME?"}]
["Singles\\Bobby McFerrin - Don't Worry Be Happy.mp3",{"$error":"#NAME?"},{"$error":"#NAME?"},{"$error":"#NAME?"},{"$error":"#NAME?"}]
["Singles\\Jackie Wilson - I Get The Sweetest Feeling.mp3",{"$error":"#NAME?"},{"$error":"#NAME?"},{"$error":"#NAME?"},{"$error":"#NAME?"}]
["Singles\\Santana - Jingo.mp3",{"$f":"RegexTest(B$1,$A1155)","v":{"$error":"#NAME?"}},{"$f":"RegexCount(C$1,$A1155)","v":{"$error":"#NAME?"}},{"$f":"RegexFind(D$1,$A1155)","v":{"$error":"#NAME?"}},{"$f":"RegexReplace(E$1,$A1155,F$1)","v":{"$error":"#NAME?"}}]
["Singles\\The Baseballs - Ghetto Superstar.mp3",{"$error":"#NAME?"},{"$error":"#NAME?"},{"$error":"#NAME?"},{"$error":"#NAME?"}]
["Singles\\The Velvet Underground - Sweet Jane.mp3",{"$error":"#NAME?"},{"$error":"#NAME?"},{"$error":"#NAME?"},{"$error":"#NAME?"}]
["Singles\\Plastic Ono Band - Give Peace A Chance.mp3",{"$error":"#NAME?"},{"$error":"#NAME?"},{"$error":"#NAME?"},{"$error":"#NAME?"}]
["Singles\\Mike Posner - I Took A Pill In Ibiza.mp3",{"$error":"#NAME?"},{"$error":"#NAME?"},{"$error":"#NAME?"},{"$error":"#NAME?"}]
["Singles\\Bon Jovi - Bed Of Roses.mp3",{"$error":"#NAME?"},{"$error":"#NAME?"},{"$error":"#NAME?"},{"$error":"#NAME?"}]
["Singles\\Edwyn Collins - A Girl Like You.mp3",{"$error":"#NAME?"},{"$error":"#NAME?"},{"$error":"#NAME?"},{"$error":"#NAME?"}]
["Singles\\Cliff Richard & The Shadows - Please Don't Tease.mp3",{"$error":"#NAME?"},{"$error":"#NAME?"},{"$error":"#NAME?"},{"$error":"#NAME?"}]
["Singles\\One Direction - Live While We're Young.mp3",{"$error":"#NAME?"},{"$error":"#NAME?"},{"$error":"#NAME?"},{"$error":"#NAME?"}]
["Singles\\De Kast - Woorden Zonder Woorden.mp3",{"$error":"#NAME?"},{"$error":"#NAME?"},{"$error":"#NAME?"},{"$error":"#NAME?"}]
["Singles\\Meduza ft Goodboys - Piece Of Your Heart.mp3",{"$error":"#NAME?"},{"$error":"#NAME?"},{"$error":"#NAME?"},{"$error":"#NAME?"}]
["Singles\\Al Martino - Spanish Eyes.mp3",{"$error":"#NAME?"},{"$error":"#NAME?"},{"$error":"#NAME?"},{"$error":"#NAME?"}]
["Singles\\Anouk - Sacrifice.mp3",{"$error":"#NAME?"},{"$error":"#NAME?"},{"$error":"#NAME?"},{"$error":"#NAME?"}]
["Singles\\Jimmy Cliff - Many Rivers To Cross.mp3",{"$error":"#NAME?"},{"$error":"#NAME?"},{"$error":"#NAME?"},{"$error":"#NAME?"}]
["Singles\\Brenda Lee - I'm Sorry.mp3",{"$error":"#NAME?"},{"$error":"#NAME?"},{"$error":"#NAME?"},{"$error":"#NAME?"}]
["Singles\\Kygo ft Justin Jesso - Stargazing.mp3",{"$error":"#NAME?"},{"$error":"#NAME?"},{"$error":"#NAME?"},{"$error":"#NAME?"}]
["Singles\\Frankie Miller - Darlin'.mp3",{"$error":"#NAME?"},{"$error":"#NAME?"},{"$error":"#NAME?"},{"$error":"#NAME?"}]
["Singles\\Niall Horan - This Town.mp3",{"$error":"#NAME?"},{"$error":"#NAME?"},{"$error":"#NAME?"},{"$error":"#NAME?"}]
["Singles\\The Byrds - Turn Turn Turn.mp3",{"$error":"#NAME?"},{"$error":"#NAME?"},{"$error":"#NAME?"},{"$error":"#NAME?"}]
["Singles\\Rodney Franklin - The Groove.mp3",{"$error":"#NAME?"},{"$error":"#NAME?"},{"$error":"#NAME?"},{"$error":"#NAME?"}]
["Singles\\Left Side - (Like A) Locomotion.mp3",{"$error":"#NAME?"},{"$error":"#NAME?"},{"$error":"#NAME?"},{"$error":"#NAME?"}]
["Singles\\Luv' - Ooh, Yes I Do.mp3",{"$error":"#NAME?"},{"$error":"#NAME?"},{"$error":"#NAME?"},{"$error":"#NAME?"}]
["Singles\\Jim Reeves - Adios Amigo.mp3",{"$error":"#NAME?"},{"$error":"#NAME?"},{"$error":"#NAME?"},{"$error":"#NAME?"}]
["Singles\\Backstreet Boys - Quit Playing Games.mp3",{"$error":"#NAME?"},{"$error":"#NAME?"},{"$error":"#NAME?"},{"$error":"#NAME?"}]
["Singles\\The Las - There She Goes.mp3",{"$error":"#NAME?"},{"$error":"#NAME?"},{"$error":"#NAME?"},{"$error":"#NAME?"}]
["Singles\\Frankie Avalon - Venus.mp3",{"$error":"#NAME?"},{"$error":"#NAME?"},{"$error":"#NAME?"},{"$error":"#NAME?"}]
["Singles\\Danny Vera - Roller Coaster.mp3",{"$error":"#NAME?"},{"$error":"#NAME?"},{"$error":"#NAME?"},{"$error":"#NAME?"}]
["Singles\\Robert Palmer - Riptide.mp3",{"$error":"#NAME?"},{"$error":"#NAME?"},{"$error":"#NAME?"},{"$error":"#NAME?"}]
["Singles\\Lucas And Steve - Up Till Dawn (On The Move).mp3",{"$error":"#NAME?"},{"$error":"#NAME?"},{"$error":"#NAME?"},{"$error":"#NAME?"}]
["Singles\\The Alan Price Set - The House That Jack Built.mp3",{"$error":"#NAME?"},{"$error":"#NAME?"},{"$error":"#NAME?"},{"$error":"#NAME?"}]
["Singles\\Bert Kaempfert - Red Roses For A Blue Lady.mp3",{"$error":"#NAME?"},{"$error":"#NAME?"},{"$error":"#NAME?"},{"$error":"#NAME?"}]
["Singles\\Martin Garrix & Dua Lipa - Scared To Be Lonely.mp3",{"$error":"#NAME?"},{"$error":"#NAME?"},{"$error":"#NAME?"},{"$error":"#NAME?"}]
["Singles\\Pink ft Lily Rose Cooper - True Love.mp3",{"$error":"#NAME?"},{"$error":"#NAME?"},{"$error":"#NAME?"},{"$error":"#NAME?"}]
["Singles\\Dusty Springfield - You Don't Own Me.mp3",{"$error":"#NAME?"},{"$error":"#NAME?"},{"$error":"#NAME?"},{"$error":"#NAME?"}]
["Singles\\The Style Council - Have You Ever Had It Blue.mp3",{"$error":"#NAME?"},{"$error":"#NAME?"},{"$error":"#NAME?"},{"$error":"#NAME?"}]
["Singles\\Expose - When I Looked At Him.mp3",{"$error":"#NAME?"},{"$error":"#NAME?"},{"$error":"#NAME?"},{"$error":"#NAME?"}]
["Singles\\Van Velzen - Sing Sing Sing.mp3",{"$error":"#NAME?"},{"$error":"#NAME?"},{"$error":"#NAME?"},{"$error":"#NAME?"}]
["Singles\\Rene Froger - Calling Out Your Name.mp3",{"$error":"#NAME?"},{"$error":"#NAME?"},{"$error":"#NAME?"},{"$error":"#NAME?"}]
["Singles\\Daryl Hall & John Oates - Out Of Touch.mp3",{"$error":"#NAME?"},{"$error":"#NAME?"},{"$error":"#NAME?"},{"$error":"#NAME?"}]
["Singles\\Umberto Tozzi - Gente Di Mare.mp3",{"$error":"#NAME?"},{"$error":"#NAME?"},{"$error":"#NAME?"},{"$error":"#NAME?"}]
["Singles\\Andrews Sisters - Don't Sit Under The Apple Tree.mp3",{"$error":"#NAME?"},{"$error":"#NAME?"},{"$error":"#NAME?"},{"$error":"#NAME?"}]
["Singles\\Will Smith - Men In Black.mp3",{"$error":"#NAME?"},{"$error":"#NAME?"},{"$error":"#NAME?"},{"$error":"#NAME?"}]
["Singles\\Lifehouse - Hanging By A Moment.mp3",{"$error":"#NAME?"},{"$error":"#NAME?"},{"$error":"#NAME?"},{"$error":"#NAME?"}]
["Singles\\Poco - Call It Love.mp3",{"$error":"#NAME?"},{"$error":"#NAME?"},{"$error":"#NAME?"},{"$error":"#NAME?"}]
["Singles\\Roxy Music - Angel Eyes.mp3",{"$error":"#NAME?"},{"$error":"#NAME?"},{"$error":"#NAME?"},{"$error":"#NAME?"}]
["Singles\\Marco Borsato - De Speeltuin.mp3",{"$error":"#NAME?"},{"$error":"#NAME?"},{"$error":"#NAME?"},{"$error":"#NAME?"}]
["Singles\\Mika - Lollipop.mp3",{"$error":"#NAME?"},{"$error":"#NAME?"},{"$error":"#NAME?"},{"$error":"#NAME?"}]
["Singles\\Gene Kelly - Singing In The Rain.mp3",{"$error":"#NAME?"},{"$error":"#NAME?"},{"$error":"#NAME?"},{"$error":"#NAME?"}]
["Singles\\Indeep - Last Night A DJ Saved My Life.mp3",{"$error":"#NAME?"},{"$error":"#NAME?"},{"$error":"#NAME?"},{"$error":"#NAME?"}]
["Singles\\Aneka - Japanese Boy.mp3",{"$error":"#NAME?"},{"$error":"#NAME?"},{"$error":"#NAME?"},{"$error":"#NAME?"}]
["Singles\\Axwell & Ingrosso - Dreamer.mp3",{"$error":"#NAME?"},{"$error":"#NAME?"},{"$error":"#NAME?"},{"$error":"#NAME?"}]
["Singles\\George Baker Selection - Sing A Song Of Love.mp3",{"$error":"#NAME?"},{"$error":"#NAME?"},{"$error":"#NAME?"},{"$error":"#NAME?"}]
["Singles\\Cyndi Lauper - True Colors.mp3",{"$error":"#NAME?"},{"$error":"#NAME?"},{"$error":"#NAME?"},{"$error":"#NAME?"}]
["Singles\\Kool & The Gang - Straight Ahead.mp3",{"$error":"#NAME?"},{"$error":"#NAME?"},{"$error":"#NAME?"},{"$error":"#NAME?"}]
["Singles\\Gavin DeGraw - Soldier.mp3",{"$error":"#NAME?"},{"$error":"#NAME?"},{"$error":"#NAME?"},{"$error":"#NAME?"}]
["Singles\\Piet, Adèle & Leen - Het Zal Je Kind Maar Wezen.mp3",{"$error":"#NAME?"},{"$error":"#NAME?"},{"$error":"#NAME?"},{"$error":"#NAME?"}]
["Singles\\Oasis - Wonderwall.mp3",{"$error":"#NAME?"},{"$error":"#NAME?"},{"$error":"#NAME?"},{"$error":"#NAME?"}]
["Singles\\Roger Whittaker - The Last Farewell.mp3",{"$error":"#NAME?"},{"$error":"#NAME?"},{"$error":"#NAME?"},{"$error":"#NAME?"}]
["Singles\\Alphabeat - Boyfriend.mp3",{"$error":"#NAME?"},{"$error":"#NAME?"},{"$error":"#NAME?"},{"$error":"#NAME?"}]
["Singles\\Miss Montreal - One Last Drink.mp3",{"$error":"#NAME?"},{"$error":"#NAME?"},{"$error":"#NAME?"},{"$error":"#NAME?"}]
["Singles\\Alanis Morissette - Head Over Feet.mp3",{"$error":"#NAME?"},{"$error":"#NAME?"},{"$error":"#NAME?"},{"$error":"#NAME?"}]
["Singles\\Cornelis Vreeswijk - Misschien Wordt Het Morgen Beter.mp3",{"$error":"#NAME?"},{"$error":"#NAME?"},{"$error":"#NAME?"},{"$error":"#NAME?"}]
["Singles\\Sailcat - Motorcycle Mama.mp3",{"$error":"#NAME?"},{"$error":"#NAME?"},{"$error":"#NAME?"},{"$error":"#NAME?"}]
["Singles\\Timex Social Club - Rumors.mp3",{"$error":"#NAME?"},{"$error":"#NAME?"},{"$error":"#NAME?"},{"$error":"#NAME?"}]
["Singles\\Tambourine - High Under The Moon.mp3",{"$f":"RegexTest(B$1,$A1219)","v":{"$error":"#NAME?"}},{"$f":"RegexCount(C$1,$A1219)","v":{"$error":"#NAME?"}},{"$f":"RegexFind(D$1,$A1219)","v":{"$error":"#NAME?"}},{"$f":"RegexReplace(E$1,$A1219,F$1)","v":{"$error":"#NAME?"}}]
["Singles\\Dalida - J'áttendrai.mp3",{"$error":"#NAME?"},{"$error":"#NAME?"},{"$error":"#NAME?"},{"$error":"#NAME?"}]
["Singles\\Debbie - Everybody Join Hands.mp3",{"$error":"#NAME?"},{"$error":"#NAME?"},{"$error":"#NAME?"},{"$error":"#NAME?"}]
["Singles\\Lionel Richie - My Destiny.mp3",{"$error":"#NAME?"},{"$error":"#NAME?"},{"$error":"#NAME?"},{"$error":"#NAME?"}]
["Singles\\Tears For Fears & Oleta Adams - Woman In Chains.mp3",{"$error":"#NAME?"},{"$error":"#NAME?"},{"$error":"#NAME?"},{"$error":"#NAME?"}]
["Singles\\The Kinks - Celluloid Heroes.mp3",{"$error":"#NAME?"},{"$error":"#NAME?"},{"$error":"#NAME?"},{"$error":"#NAME?"}]
["Singles\\Joe Dassin - Ca Va Pas Changer Le Monde.mp3",{"$error":"#NAME?"},{"$error":"#NAME?"},{"$error":"#NAME?"},{"$error":"#NAME?"}]
["Singles\\Bruno Mars - 24K Magic.mp3",{"$error":"#NAME?"},{"$error":"#NAME?"},{"$error":"#NAME?"},{"$error":"#NAME?"}]
["Singles\\Pat Boone - Moody River.mp3",{"$error":"#NAME?"},{"$error":"#NAME?"},{"$error":"#NAME?"},{"$error":"#NAME?"}]
["Singles\\Jerry Lee Lewis - Great Balls Of Fire.mp3",{"$error":"#NAME?"},{"$error":"#NAME?"},{"$error":"#NAME?"},{"$error":"#NAME?"}]
["Singles\\Gerard Cox - 't Is Weer Voorbij Die Mooie Zomer.mp3",{"$error":"#NAME?"},{"$error":"#NAME?"},{"$error":"#NAME?"},{"$error":"#NAME?"}]
["Singles\\Alicia Keys - No One.mp3",{"$error":"#NAME?"},{"$error":"#NAME?"},{"$error":"#NAME?"},{"$error":"#NAME?"}]
["Singles\\Edwin Starr - War (What Is It Good For).mp3",{"$error":"#NAME?"},{"$error":"#NAME?"},{"$error":"#NAME?"},{"$error":"#NAME?"}]
["Singles\\UB40 - Cherry Oh Baby.mp3",{"$error":"#NAME?"},{"$error":"#NAME?"},{"$error":"#NAME?"},{"$error":"#NAME?"}]
["Singles\\Culture Club - It's A Miracle.mp3",{"$error":"#NAME?"},{"$error":"#NAME?"},{"$error":"#NAME?"},{"$error":"#NAME?"}]
["Singles\\The Script - No Good In Goodbye.mp3",{"$error":"#NAME?"},{"$error":"#NAME?"},{"$error":"#NAME?"},{"$error":"#NAME?"}]
["Singles\\Ray Charles & Norah Jones - Here We Go Again.mp3",{"$error":"#NAME?"},{"$error":"#NAME?"},{"$error":"#NAME?"},{"$error":"#NAME?"}]
["Singles\\Gordon - Kon Ik Maar Even Bij Je Zijn.mp3",{"$error":"#NAME?"},{"$error":"#NAME?"},{"$error":"#NAME?"},{"$error":"#NAME?"}]
["Singles\\Midge Ure - If I Was.mp3",{"$error":"#NAME?"},{"$error":"#NAME?"},{"$error":"#NAME?"},{"$error":"#NAME?"}]
["Singles\\Aerosmith - Cryin.mp3",{"$error":"#NAME?"},{"$error":"#NAME?"},{"$error":"#NAME?"},{"$error":"#NAME?"}]
["Singles\\Chicago - Stay The Night.mp3",{"$error":"#NAME?"},{"$error":"#NAME?"},{"$error":"#NAME?"},{"$error":"#NAME?"}]
["Singles\\Bow Wow Wow - I Want Candy.mp3",{"$error":"#NAME?"},{"$error":"#NAME?"},{"$error":"#NAME?"},{"$error":"#NAME?"}]
["Singles\\Tom & Dick - Bloody Mary.mp3",{"$error":"#NAME?"},{"$error":"#NAME?"},{"$error":"#NAME?"},{"$error":"#NAME?"}]
["Singles\\Neil Young - Old Man.mp3",{"$error":"#NAME?"},{"$error":"#NAME?"},{"$error":"#NAME?"},{"$error":"#NAME?"}]
["Singles\\Cirque Du Soleil - Alegria.mp3",{"$error":"#NAME?"},{"$error":"#NAME?"},{"$error":"#NAME?"},{"$error":"#NAME?"}]
["Singles\\Shirley Bassey - This Is My Life.mp3",{"$error":"#NAME?"},{"$error":"#NAME?"},{"$error":"#NAME?"},{"$error":"#NAME?"}]
["Singles\\Nelly Furtado - Turn Out The Light.mp3",{"$error":"#NAME?"},{"$error":"#NAME?"},{"$error":"#NAME?"},{"$error":"#NAME?"}]
["Singles\\Axis - Ela Ela.mp3",{"$error":"#NAME?"},{"$error":"#NAME?"},{"$error":"#NAME?"},{"$error":"#NAME?"}]
["Singles\\Brandy & Monica - The Boy Is Mine.mp3",{"$error":"#NAME?"},{"$error":"#NAME?"},{"$error":"#NAME?"},{"$error":"#NAME?"}]
["Singles\\Marcels - Blue Moon.mp3",{"$error":"#NAME?"},{"$error":"#NAME?"},{"$error":"#NAME?"},{"$error":"#NAME?"}]
["Singles\\Cocktail Trio - Wie Heeft De Sleutel Van De Jukebox Gezien.mp3",{"$error":"#NAME?"},{"$error":"#NAME?"},{"$error":"#NAME?"},{"$error":"#NAME?"}]
["Singles\\Pigbag - Papa's Got A Brand New Pigbag.mp3",{"$error":"#NAME?"},{"$error":"#NAME?"},{"$error":"#NAME?"},{"$error":"#NAME?"}]
["Singles\\Blof & Nielson - Mannenharten.mp3",{"$error":"#NAME?"},{"$error":"#NAME?"},{"$error":"#NAME?"},{"$error":"#NAME?"}]
["Singles\\Alain Clark - Love Is Everywhere.mp3",{"$error":"#NAME?"},{"$error":"#NAME?"},{"$error":"#NAME?"},{"$error":"#NAME?"}]
["Singles\\Status Quo - Rain.Mp3",{"$error":"#NAME?"},{"$error":"#NAME?"},{"$error":"#NAME?"},{"$error":"#NAME?"}]
["Singles\\Abc - The Look Of Love.mp3",{"$error":"#NAME?"},{"$error":"#NAME?"},{"$error":"#NAME?"},{"$error":"#NAME?"}]
["Singles\\The Edgar Winter Group - Frankenstein.mp3",{"$error":"#NAME?"},{"$error":"#NAME?"},{"$error":"#NAME?"},{"$error":"#NAME?"}]
["Singles\\Madonna - True Blue.mp3",{"$error":"#NAME?"},{"$error":"#NAME?"},{"$error":"#NAME?"},{"$error":"#NAME?"}]
["Singles\\Ava Max - Sweet But Psycho.mp3",{"$error":"#NAME?"},{"$error":"#NAME?"},{"$error":"#NAME?"},{"$error":"#NAME?"}]
["Singles\\Ruth Jacott Paul De Leeuw - Blijf Bij Mij.mp3",{"$error":"#NAME?"},{"$error":"#NAME?"},{"$error":"#NAME?"},{"$error":"#NAME?"}]
["Singles\\Gavin DeGraw - Make A Move.mp3",{"$error":"#NAME?"},{"$error":"#NAME?"},{"$error":"#NAME?"},{"$error":"#NAME?"}]
["Singles\\Lady Antebellum - Just A Kiss.mp3",{"$error":"#NAME?"},{"$error":"#NAME?"},{"$error":"#NAME?"},{"$error":"#NAME?"}]
["Singles\\Hank B Memphis - Oh Julie.mp3",{"$error":"#NAME?"},{"$error":"#NAME?"},{"$error":"#NAME?"},{"$error":"#NAME?"}]
["Singles\\Bruce Springsteen - I'm On Fire.mp3",{"$error":"#NAME?"},{"$error":"#NAME?"},{"$error":"#NAME?"},{"$error":"#NAME?"}]
["Singles\\Donna Summer - Bad Girls.mp3",{"$error":"#NAME?"},{"$error":"#NAME?"},{"$error":"#NAME?"},{"$error":"#NAME?"}]
["Singles\\Chuck Berry - (Get Your Kicks On) Route 66.mp3",{"$error":"#NAME?"},{"$error":"#NAME?"},{"$error":"#NAME?"},{"$error":"#NAME?"}]
["Singles\\Jurgen Marcus - Ein Festival Der Liebe.mp3",{"$error":"#NAME?"},{"$error":"#NAME?"},{"$error":"#NAME?"},{"$error":"#NAME?"}]
["Singles\\The Wanted - Walks Like Rihanna.mp3",{"$error":"#NAME?"},{"$error":"#NAME?"},{"$error":"#NAME?"},{"$error":"#NAME?"}]
["Singles\\Tove Lo ft Hippie Sabotage - Stay High.mp3",{"$error":"#NAME?"},{"$error":"#NAME?"},{"$error":"#NAME?"},{"$error":"#NAME?"}]
["Singles\\Moody Blues - The Story In Your Eyes.mp3",{"$error":"#NAME?"},{"$error":"#NAME?"},{"$error":"#NAME?"},{"$error":"#NAME?"}]
["Singles\\James Blunt - Same Mistake.mp3",{"$error":"#NAME?"},{"$error":"#NAME?"},{"$error":"#NAME?"},{"$error":"#NAME?"}]
["Singles\\Booker T & The MG's - Green Onions.mp3",{"$error":"#NAME?"},{"$error":"#NAME?"},{"$error":"#NAME?"},{"$error":"#NAME?"}]
["Singles\\Kurt Nilsen - She's So High.mp3",{"$error":"#NAME?"},{"$error":"#NAME?"},{"$error":"#NAME?"},{"$error":"#NAME?"}]
["Singles\\Rod Stewart - Waltzing Mathilda.mp3",{"$error":"#NAME?"},{"$error":"#NAME?"},{"$error":"#NAME?"},{"$error":"#NAME?"}]
["Singles\\Elaine Paige & Barbara Dickson - I Know Him So Well.mp3",{"$error":"#NAME?"},{"$error":"#NAME?"},{"$error":"#NAME?"},{"$error":"#NAME?"}]
["Singles\\Starley - Call On Me.mp3",{"$error":"#NAME?"},{"$error":"#NAME?"},{"$error":"#NAME?"},{"$error":"#NAME?"}]
["Singles\\Sia  ft Kendrick Lamar - The Greatest.mp3",{"$error":"#NAME?"},{"$error":"#NAME?"},{"$error":"#NAME?"},{"$error":"#NAME?"}]
["Singles\\Waylon - Happy Song.mp3",{"$error":"#NAME?"},{"$error":"#NAME?"},{"$error":"#NAME?"},{"$error":"#NAME?"}]
["Singles\\Snelle - Reünie.mp3",{"$error":"#NAME?"},{"$error":"#NAME?"},{"$error":"#NAME?"},{"$error":"#NAME?"}]
["Singles\\Sting - When We Dance.mp3",{"$error":"#NAME?"},{"$error":"#NAME?"},{"$error":"#NAME?"},{"$error":"#NAME?"}]
["Singles\\Traffic - Paper Sun.mp3",{"$error":"#NAME?"},{"$error":"#NAME?"},{"$error":"#NAME?"},{"$error":"#NAME?"}]
["Singles\\Amanda Marshall - Beautiful Goodbye.mp3",{"$error":"#NAME?"},{"$error":"#NAME?"},{"$error":"#NAME?"},{"$error":"#NAME?"}]
["Singles\\Enrique Iglesias - Subeme La Radio.mp3",{"$error":"#NAME?"},{"$error":"#NAME?"},{"$error":"#NAME?"},{"$error":"#NAME?"}]
["Singles\\Simple Minds - Belfast Child.mp3",{"$error":"#NAME?"},{"$error":"#NAME?"},{"$error":"#NAME?"},{"$error":"#NAME?"}]
["Singles\\Sting - Fields Of Gold.mp3",{"$f":"RegexTest(B$1,$A1283)","v":{"$error":"#NAME?"}},{"$f":"RegexCount(C$1,$A1283)","v":{"$error":"#NAME?"}},{"$f":"RegexFind(D$1,$A1283)","v":{"$error":"#NAME?"}},{"$f":"RegexReplace(E$1,$A1283,F$1)","v":{"$error":"#NAME?"}}]
["Singles\\Adele - Rolling In The Deep.mp3",{"$error":"#NAME?"},{"$error":"#NAME?"},{"$error":"#NAME?"},{"$error":"#NAME?"}]
["Singles\\Lenny Kravitz - Fly Away.mp3",{"$error":"#NAME?"},{"$error":"#NAME?"},{"$error":"#NAME?"},{"$error":"#NAME?"}]
["Singles\\Katie Melua - Spider's Web.mp3",{"$error":"#NAME?"},{"$error":"#NAME?"},{"$error":"#NAME?"},{"$error":"#NAME?"}]
["Singles\\Westlife - Bop Bop Baby.mp3",{"$error":"#NAME?"},{"$error":"#NAME?"},{"$error":"#NAME?"},{"$error":"#NAME?"}]
["Singles\\Skunk Anansie - Weak.mp3",{"$error":"#NAME?"},{"$error":"#NAME?"},{"$error":"#NAME?"},{"$error":"#NAME?"}]
["Singles\\Sugababes - Push The Button.mp3",{"$error":"#NAME?"},{"$error":"#NAME?"},{"$error":"#NAME?"},{"$error":"#NAME?"}]
["Singles\\RedOne ft Enrique Iiglesias & R City & Serayah & Shaggy - Don't You Need Somebody.mp3",{"$error":"#NAME?"},{"$error":"#NAME?"},{"$error":"#NAME?"},{"$error":"#NAME?"}]
["Singles\\Klangkarussell - Sonnentanz.mp3",{"$error":"#NAME?"},{"$error":"#NAME?"},{"$error":"#NAME?"},{"$error":"#NAME?"}]
["Singles\\Madonna - Miles Away.mp3",{"$error":"#NAME?"},{"$error":"#NAME?"},{"$error":"#NAME?"},{"$error":"#NAME?"}]
["Singles\\The Beatles - I Feel Fine.mp3",{"$error":"#NAME?"},{"$error":"#NAME?"},{"$error":"#NAME?"},{"$error":"#NAME?"}]
["Singles\\Bryan Adams - Summer Of 69.mp3",{"$error":"#NAME?"},{"$error":"#NAME?"},{"$error":"#NAME?"},{"$error":"#NAME?"}]
["Singles\\Peter Koelewijn - Je Wordt Ouder Papa.mp3",{"$error":"#NAME?"},{"$error":"#NAME?"},{"$error":"#NAME?"},{"$error":"#NAME?"}]
["Singles\\Les Poppys - Isabelle Je t'aime.mp3",{"$error":"#NAME?"},{"$error":"#NAME?"},{"$error":"#NAME?"},{"$error":"#NAME?"}]
["Singles\\Chaplin Band - Il Veliero.mp3",{"$error":"#NAME?"},{"$error":"#NAME?"},{"$error":"#NAME?"},{"$error":"#NAME?"}]
["Singles\\George Baker Selection - Baby Blue.mp3",{"$error":"#NAME?"},{"$error":"#NAME?"},{"$error":"#NAME?"},{"$error":"#NAME?"}]
["Singles\\Alan Walker Ft Aura & Tomine Harket - Darkside.mp3",{"$error":"#NAME?"},{"$error":"#NAME?"},{"$error":"#NAME?"},{"$error":"#NAME?"}]
["Singles\\The Beatles - All You Need Is Love.mp3",{"$error":"#NAME?"},{"$error":"#NAME?"},{"$error":"#NAME?"},{"$error":"#NAME?"}]
["Singles\\M.A.S.H. - Suicide Is Painless.mp3",{"$error":"#NAME?"},{"$error":"#NAME?"},{"$error":"#NAME?"},{"$error":"#NAME?"}]
["Singles\\Pino D'Angio - Ma Quale Idea.mp3",{"$error":"#NAME?"},{"$error":"#NAME?"},{"$error":"#NAME?"},{"$error":"#NAME?"}]
["Singles\\Klingande - Jubel.mp3",{"$error":"#NAME?"},{"$error":"#NAME?"},{"$error":"#NAME?"},{"$error":"#NAME?"}]
["Singles\\The Move - I Can Hear The Grass Grow.mp3",{"$error":"#NAME?"},{"$error":"#NAME?"},{"$error":"#NAME?"},{"$error":"#NAME?"}]
["Singles\\Jonathan King - Everyone's Gone To The Moon.mp3",{"$error":"#NAME?"},{"$error":"#NAME?"},{"$error":"#NAME?"},{"$error":"#NAME?"}]
["Singles\\The Chainsmokers ft Daya - Don't Let Me Down.mp3",{"$error":"#NAME?"},{"$error":"#NAME?"},{"$error":"#NAME?"},{"$error":"#NAME?"}]
["Singles\\Bryan Adams - Can't Stop This Thing We Started.mp3",{"$error":"#NAME?"},{"$error":"#NAME?"},{"$error":"#NAME?"},{"$error":"#NAME?"}]
["Singles\\Steve Miller Band - Macho City.mp3",{"$error":"#NAME?"},{"$error":"#NAME?"},{"$error":"#NAME?"},{"$error":"#NAME?"}]
["Singles\\Alicia Keys - Empire State Of Mind.mp3",{"$error":"#NAME?"},{"$error":"#NAME?"},{"$error":"#NAME?"},{"$error":"#NAME?"}]
["Singles\\Roberta Flack &  Peabo Bryson - Tonight I Celebrate My Love.mp3",{"$error":"#NAME?"},{"$error":"#NAME?"},{"$error":"#NAME?"},{"$error":"#NAME?"}]
["Singles\\Diggy Dex ft Eva De Roovere - Slaap Lekker (Fantastig Toch).mp3",{"$error":"#NAME?"},{"$error":"#NAME?"},{"$error":"#NAME?"},{"$error":"#NAME?"}]
["Singles\\Macklemore & Ryan Lewis ft Ray Dalton - Can't Hold Us.mp3",{"$error":"#NAME?"},{"$error":"#NAME?"},{"$error":"#NAME?"},{"$error":"#NAME?"}]
["Singles\\Gene Pitney - 24 Hours From Tulsa.mp3",{"$error":"#NAME?"},{"$error":"#NAME?"},{"$error":"#NAME?"},{"$error":"#NAME?"}]
["Singles\\Crazy Town - Butterfly.mp3",{"$error":"#NAME?"},{"$error":"#NAME?"},{"$error":"#NAME?"},{"$error":"#NAME?"}]
["Singles\\Alain Clark - Blow Me Away.mp3",{"$error":"#NAME?"},{"$error":"#NAME?"},{"$error":"#NAME?"},{"$error":"#NAME?"}]
["Singles\\Lieutenant Pigeon - Mouldy Old Dough.mp3",{"$error":"#NAME?"},{"$error":"#NAME?"},{"$error":"#NAME?"},{"$error":"#NAME?"}]
["Singles\\The Bee Gees - Massachusetts.mp3",{"$error":"#NAME?"},{"$error":"#NAME?"},{"$error":"#NAME?"},{"$error":"#NAME?"}]
["Singles\\Elvis Presley - Moody Blue.mp3",{"$error":"#NAME?"},{"$error":"#NAME?"},{"$error":"#NAME?"},{"$error":"#NAME?"}]
["Singles\\The Script - If You Could See Me Now.mp3",{"$error":"#NAME?"},{"$error":"#NAME?"},{"$error":"#NAME?"},{"$error":"#NAME?"}]
["Singles\\The New Seekers - Never Ending Song Of Love.mp3",{"$error":"#NAME?"},{"$error":"#NAME?"},{"$error":"#NAME?"},{"$error":"#NAME?"}]
["Singles\\U2 - Walk On.mp3",{"$error":"#NAME?"},{"$error":"#NAME?"},{"$error":"#NAME?"},{"$error":"#NAME?"}]
["Singles\\The Calling - Wherever You Will Go.mp3",{"$error":"#NAME?"},{"$error":"#NAME?"},{"$error":"#NAME?"},{"$error":"#NAME?"}]
["Singles\\Ilse DeLange - Winter Of Love.mp3",{"$error":"#NAME?"},{"$error":"#NAME?"},{"$error":"#NAME?"},{"$error":"#NAME?"}]
["Singles\\Edith Piaf - Milord.mp3",{"$error":"#NAME?"},{"$error":"#NAME?"},{"$error":"#NAME?"},{"$error":"#NAME?"}]
["Singles\\Pink Floyd - Arnold Layne.mp3",{"$error":"#NAME?"},{"$error":"#NAME?"},{"$error":"#NAME?"},{"$error":"#NAME?"}]
["Singles\\Meat Loaf - Two Out Of Three Ain't Bad.mp3",{"$error":"#NAME?"},{"$error":"#NAME?"},{"$error":"#NAME?"},{"$error":"#NAME?"}]
["Singles\\Seal - Walk On By.mp3",{"$error":"#NAME?"},{"$error":"#NAME?"},{"$error":"#NAME?"},{"$error":"#NAME?"}]
["Singles\\10cc - Rubber Bullets.mp3",{"$error":"#NAME?"},{"$error":"#NAME?"},{"$error":"#NAME?"},{"$error":"#NAME?"}]
["Singles\\Duffy - Stepping Stone.mp3",{"$error":"#NAME?"},{"$error":"#NAME?"},{"$error":"#NAME?"},{"$error":"#NAME?"}]
["Singles\\Duran Duran - The Reflex.mp3",{"$error":"#NAME?"},{"$error":"#NAME?"},{"$error":"#NAME?"},{"$error":"#NAME?"}]
["Singles\\The Jive Five - My True Story.mp3",{"$error":"#NAME?"},{"$error":"#NAME?"},{"$error":"#NAME?"},{"$error":"#NAME?"}]
["Singles\\Whitney Houston - Saving All My Love For You.mp3",{"$error":"#NAME?"},{"$error":"#NAME?"},{"$error":"#NAME?"},{"$error":"#NAME?"}]
["Singles\\Jacques Brel - Ne Me Quitte Pas.mp3",{"$error":"#NAME?"},{"$error":"#NAME?"},{"$error":"#NAME?"},{"$error":"#NAME?"}]
["Singles\\Jordin Sparks - Tattoo.mp3",{"$error":"#NAME?"},{"$error":"#NAME?"},{"$error":"#NAME?"},{"$error":"#NAME?"}]
["Singles\\Fats Domino - There Goes My Heart Again.mp3",{"$error":"#NAME?"},{"$error":"#NAME?"},{"$error":"#NAME?"},{"$error":"#NAME?"}]
["Singles\\Martin Garrix ft Usher - Don't Look Down.mp3",{"$error":"#NAME?"},{"$error":"#NAME?"},{"$error":"#NAME?"},{"$error":"#NAME?"}]
["Singles\\George Ezra - Shotgun.mp3",{"$error":"#NAME?"},{"$error":"#NAME?"},{"$error":"#NAME?"},{"$error":"#NAME?"}]
["Singles\\Afrojack Ft Wrabel - Ten Feet Tall.mp3",{"$error":"#NAME?"},{"$error":"#NAME?"},{"$error":"#NAME?"},{"$error":"#NAME?"}]
["Singles\\Little Richard - Good Golly Miss Molly.mp3",{"$error":"#NAME?"},{"$error":"#NAME?"},{"$error":"#NAME?"},{"$error":"#NAME?"}]
["Singles\\Steely Dan - Haitian Divorce.mp3",{"$error":"#NAME?"},{"$error":"#NAME?"},{"$error":"#NAME?"},{"$error":"#NAME?"}]
["Singles\\Chips - You Name It I'll Do It.mp3",{"$error":"#NAME?"},{"$error":"#NAME?"},{"$error":"#NAME?"},{"$error":"#NAME?"}]
["Singles\\Anouk - I'm A Cliche.mp3",{"$error":"#NAME?"},{"$error":"#NAME?"},{"$error":"#NAME?"},{"$error":"#NAME?"}]
["Singles\\Coldplay - Clocks.mp3",{"$error":"#NAME?"},{"$error":"#NAME?"},{"$error":"#NAME?"},{"$error":"#NAME?"}]
["Singles\\Baltimora - Tarzan Boy.mp3",{"$error":"#NAME?"},{"$error":"#NAME?"},{"$error":"#NAME?"},{"$error":"#NAME?"}]
["Singles\\Bitty McLean - It Keeps Raining.mp3",{"$error":"#NAME?"},{"$error":"#NAME?"},{"$error":"#NAME?"},{"$error":"#NAME?"}]
["Singles\\Lou Christie - Lightning Strikes.mp3",{"$error":"#NAME?"},{"$error":"#NAME?"},{"$error":"#NAME?"},{"$error":"#NAME?"}]
["Singles\\Suzi Quatro - Devil Gate Drive.mp3",{"$f":"RegexTest(B$1,$A1347)","v":{"$error":"#NAME?"}},{"$f":"RegexCount(C$1,$A1347)","v":{"$error":"#NAME?"}},{"$f":"RegexFind(D$1,$A1347)","v":{"$error":"#NAME?"}},{"$f":"RegexReplace(E$1,$A1347,F$1)","v":{"$error":"#NAME?"}}]
["Singles\\Otto Knows ft Avicii - Back Where I Belong.mp3",{"$error":"#NAME?"},{"$error":"#NAME?"},{"$error":"#NAME?"},{"$error":"#NAME?"}]
["Singles\\Hank Locklin - Please Help Me I'm Falling.mp3",{"$error":"#NAME?"},{"$error":"#NAME?"},{"$error":"#NAME?"},{"$error":"#NAME?"}]
["Singles\\Drs P - Knolraap En Lof Schorseneren En Prei.mp3",{"$error":"#NAME?"},{"$error":"#NAME?"},{"$error":"#NAME?"},{"$error":"#NAME?"}]
["Singles\\Catherine Ferry - Un, Deux, Trois.mp3",{"$error":"#NAME?"},{"$error":"#NAME?"},{"$error":"#NAME?"},{"$error":"#NAME?"}]
["Singles\\Supertramp - Fool's Overture.mp3",{"$error":"#NAME?"},{"$error":"#NAME?"},{"$error":"#NAME?"},{"$error":"#NAME?"}]
["Singles\\Katy Perry ft Juicy J - Dark Horse.mp3",{"$error":"#NAME?"},{"$error":"#NAME?"},{"$error":"#NAME?"},{"$error":"#NAME?"}]
["Singles\\Laura Jansen - Use Somebody.mp3",{"$error":"#NAME?"},{"$error":"#NAME?"},{"$error":"#NAME?"},{"$error":"#NAME?"}]
["Singles\\Titanic - Sultana.mp3",{"$error":"#NAME?"},{"$error":"#NAME?"},{"$error":"#NAME?"},{"$error":"#NAME?"}]
["Singles\\Randy Crawford - You Might Need Somebody.mp3",{"$error":"#NAME?"},{"$error":"#NAME?"},{"$error":"#NAME?"},{"$error":"#NAME?"}]
["Singles\\Pink - Just Like A Pill.mp3",{"$error":"#NAME?"},{"$error":"#NAME?"},{"$error":"#NAME?"},{"$error":"#NAME?"}]
["Singles\\The Five Americans - Western Union.mp3",{"$error":"#NAME?"},{"$error":"#NAME?"},{"$error":"#NAME?"},{"$error":"#NAME?"}]
["Singles\\Katie Melua - If You Were A Sailboat.mp3",{"$error":"#NAME?"},{"$error":"#NAME?"},{"$error":"#NAME?"},{"$error":"#NAME?"}]
["Singles\\Avicii - Hey Brother.mp3",{"$error":"#NAME?"},{"$error":"#NAME?"},{"$error":"#NAME?"},{"$error":"#NAME?"}]
["Singles\\Hep Stars - Sunny Girl.mp3",{"$error":"#NAME?"},{"$error":"#NAME?"},{"$error":"#NAME?"},{"$error":"#NAME?"}]
["Singles\\Nelly Furtado - Força.mp3",{"$error":"#NAME?"},{"$error":"#NAME?"},{"$error":"#NAME?"},{"$error":"#NAME?"}]
["Singles\\Bruno Mars - Moonshine.mp3",{"$error":"#NAME?"},{"$error":"#NAME?"},{"$error":"#NAME?"},{"$error":"#NAME?"}]
["Singles\\The Christians - One More Baby In Black.mp3",{"$error":"#NAME?"},{"$error":"#NAME?"},{"$error":"#NAME?"},{"$error":"#NAME?"}]
["Singles\\Milli Vanilli - Baby Don't Forget My Number.mp3",{"$error":"#NAME?"},{"$error":"#NAME?"},{"$error":"#NAME?"},{"$error":"#NAME?"}]
["Singles\\De Dijk - Mag Het Licht Uit.mp3",{"$error":"#NAME?"},{"$error":"#NAME?"},{"$error":"#NAME?"},{"$error":"#NAME?"}]
["Singles\\O'Jays - Backstabbers.mp3",{"$error":"#NAME?"},{"$error":"#NAME?"},{"$error":"#NAME?"},{"$error":"#NAME?"}]
["Singles\\Aerosmith - I Don't Wanna Miss A Thing.mp3",{"$error":"#NAME?"},{"$error":"#NAME?"},{"$error":"#NAME?"},{"$error":"#NAME?"}]
["Singles\\Charles Aznavour - Yesterday When I Was Young.mp3",{"$error":"#NAME?"},{"$error":"#NAME?"},{"$error":"#NAME?"},{"$error":"#NAME?"}]
["Singles\\Captain Sensible - Happy Talk.mp3",{"$error":"#NAME?"},{"$error":"#NAME?"},{"$error":"#NAME?"},{"$error":"#NAME?"}]
["Singles\\Richard Marx - Right Here Waiting For You.mp3",{"$error":"#NAME?"},{"$error":"#NAME?"},{"$error":"#NAME?"},{"$error":"#NAME?"}]
["Singles\\Jonas Blue ft Jack & Jack - Rise.mp3",{"$error":"#NAME?"},{"$error":"#NAME?"},{"$error":"#NAME?"},{"$error":"#NAME?"}]
["Singles\\Bruno Mars - The Lazy Song.mp3",{"$error":"#NAME?"},{"$error":"#NAME?"},{"$error":"#NAME?"},{"$error":"#NAME?"}]
["Singles\\Vicky Leandros - Apres Toi.mp3",{"$error":"#NAME?"},{"$error":"#NAME?"},{"$error":"#NAME?"},{"$error":"#NAME?"}]
["Singles\\Steely Dan - FM (No Static At All).mp3",{"$error":"#NAME?"},{"$error":"#NAME?"},{"$error":"#NAME?"},{"$error":"#NAME?"}]
["Singles\\Ilse DeLange - We're Alright.mp3",{"$error":"#NAME?"},{"$error":"#NAME?"},{"$error":"#NAME?"},{"$error":"#NAME?"}]
["Singles\\Alvaro Soler - Sofia .mp3",{"$error":"#NAME?"},{"$error":"#NAME?"},{"$error":"#NAME?"},{"$error":"#NAME?"}]
["Singles\\Sue Thompson - Norman.mp3",{"$error":"#NAME?"},{"$error":"#NAME?"},{"$error":"#NAME?"},{"$error":"#NAME?"}]
["Singles\\Stan Ridgeway - Camouflage.mp3",{"$error":"#NAME?"},{"$error":"#NAME?"},{"$error":"#NAME?"},{"$error":"#NAME?"}]
["Singles\\Calvin Harris & Dua Lipa - One Kiss.mp3",{"$error":"#NAME?"},{"$error":"#NAME?"},{"$error":"#NAME?"},{"$error":"#NAME?"}]
["Singles\\Blof ft Counting Crows - Holiday In Spain.mp3",{"$error":"#NAME?"},{"$error":"#NAME?"},{"$error":"#NAME?"},{"$error":"#NAME?"}]
["Singles\\Jason Mraz - The Freedom Song.mp3",{"$error":"#NAME?"},{"$error":"#NAME?"},{"$error":"#NAME?"},{"$error":"#NAME?"}]
["Singles\\Snow Patrol - Just Say Yes.mp3",{"$error":"#NAME?"},{"$error":"#NAME?"},{"$error":"#NAME?"},{"$error":"#NAME?"}]
["Singles\\Jaap Dekker Boogie Set - In Een Groen Groen Knollenland.mp3",{"$error":"#NAME?"},{"$error":"#NAME?"},{"$error":"#NAME?"},{"$error":"#NAME?"}]
["Singles\\The Asteroids Galaxy Tour - Suburban Space Invader.mp3",{"$error":"#NAME?"},{"$error":"#NAME?"},{"$error":"#NAME?"},{"$error":"#NAME?"}]
["Singles\\Herd - Paradise Lost.mp3",{"$error":"#NAME?"},{"$error":"#NAME?"},{"$error":"#NAME?"},{"$error":"#NAME?"}]
["Singles\\The Beach Boys - Help Me Rhonda.mp3",{"$error":"#NAME?"},{"$error":"#NAME?"},{"$error":"#NAME?"},{"$error":"#NAME?"}]
["Singles\\Backstreet Boys - Show Me The Meaning Of Being Lonely.mp3",{"$error":"#NAME?"},{"$error":"#NAME?"},{"$error":"#NAME?"},{"$error":"#NAME?"}]
["Singles\\Barbara Dickson - My Heart Lies.mp3",{"$error":"#NAME?"},{"$error":"#NAME?"},{"$error":"#NAME?"},{"$error":"#NAME?"}]
["Singles\\US 3 - Cantaloop.mp3",{"$error":"#NAME?"},{"$error":"#NAME?"},{"$error":"#NAME?"},{"$error":"#NAME?"}]
["Singles\\Kenny Rogers - Lady.mp3",{"$error":"#NAME?"},{"$error":"#NAME?"},{"$error":"#NAME?"},{"$error":"#NAME?"}]
["Singles\\Neil Diamond - Let Me Take You In My Arms Again.mp3",{"$error":"#NAME?"},{"$error":"#NAME?"},{"$error":"#NAME?"},{"$error":"#NAME?"}]
["Singles\\Ian Carey ft Michelle Shellers - Keep On Rising.mp3",{"$error":"#NAME?"},{"$error":"#NAME?"},{"$error":"#NAME?"},{"$error":"#NAME?"}]
["Singles\\Clean Bandit ft Zara Larsson - Symphony.mp3",{"$error":"#NAME?"},{"$error":"#NAME?"},{"$error":"#NAME?"},{"$error":"#NAME?"}]
["Singles\\Andre Van Duin (Hein De Gokker) - Bingo (Ringo).mp3",{"$error":"#NAME?"},{"$error":"#NAME?"},{"$error":"#NAME?"},{"$error":"#NAME?"}]
["Singles\\Ace Of Base - Beautiful Morning.mp3",{"$error":"#NAME?"},{"$error":"#NAME?"},{"$error":"#NAME?"},{"$error":"#NAME?"}]
["Singles\\Toendra's - Ik Wil Weer Naar Huis.mp3",{"$error":"#NAME?"},{"$error":"#NAME?"},{"$error":"#NAME?"},{"$error":"#NAME?"}]
["Singles\\Michael Jackson - Remember The Time.mp3",{"$error":"#NAME?"},{"$error":"#NAME?"},{"$error":"#NAME?"},{"$error":"#NAME?"}]
["Singles\\Yves Larock - Rise Up.mp3",{"$error":"#NAME?"},{"$error":"#NAME?"},{"$error":"#NAME?"},{"$error":"#NAME?"}]
["Singles\\The Beatles - Getting Better.mp3",{"$error":"#NAME?"},{"$error":"#NAME?"},{"$error":"#NAME?"},{"$error":"#NAME?"}]
["Singles\\Elvis Presley - Wooden Heart.mp3",{"$error":"#NAME?"},{"$error":"#NAME?"},{"$error":"#NAME?"},{"$error":"#NAME?"}]
["Singles\\The Smiths - Girlfriend In A Coma.mp3",{"$error":"#NAME?"},{"$error":"#NAME?"},{"$error":"#NAME?"},{"$error":"#NAME?"}]
["Singles\\Jason Donovan - Too Many Broken Hearts.mp3",{"$error":"#NAME?"},{"$error":"#NAME?"},{"$error":"#NAME?"},{"$error":"#NAME?"}]
["Singles\\Paul Weller - You Do Something To Me.mp3",{"$error":"#NAME?"},{"$error":"#NAME?"},{"$error":"#NAME?"},{"$error":"#NAME?"}]
["Singles\\Jules De Corte - Hallo Koning Onbenul.mp3",{"$error":"#NAME?"},{"$error":"#NAME?"},{"$error":"#NAME?"},{"$error":"#NAME?"}]
["Singles\\Mick Jagger - Just Another Night.mp3",{"$error":"#NAME?"},{"$error":"#NAME?"},{"$error":"#NAME?"},{"$error":"#NAME?"}]
["Singles\\The Classics - My Lady Of Spain.mp3",{"$error":"#NAME?"},{"$error":"#NAME?"},{"$error":"#NAME?"},{"$error":"#NAME?"}]
["Singles\\Kenny Loggins - Footloose.mp3",{"$error":"#NAME?"},{"$error":"#NAME?"},{"$error":"#NAME?"},{"$error":"#NAME?"}]
["Singles\\Ohio Express - Chewy Chewy.mp3",{"$error":"#NAME?"},{"$error":"#NAME?"},{"$error":"#NAME?"},{"$error":"#NAME?"}]
["Singles\\Total Touch - I'll Say Goodbye.mp3",{"$error":"#NAME?"},{"$error":"#NAME?"},{"$error":"#NAME?"},{"$error":"#NAME?"}]
["Singles\\Pearl Jam - Yellow Ledbetter.mp3",{"$f":"RegexTest(B$1,$A1411)","v":{"$error":"#NAME?"}},{"$f":"RegexCount(C$1,$A1411)","v":{"$error":"#NAME?"}},{"$f":"RegexFind(D$1,$A1411)","v":{"$error":"#NAME?"}},{"$f":"RegexReplace(E$1,$A1411,F$1)","v":{"$error":"#NAME?"}}]
["Singles\\Rob 'n' Raz ft Leila K - Got To Get.mp3",{"$error":"#NAME?"},{"$error":"#NAME?"},{"$error":"#NAME?"},{"$error":"#NAME?"}]
["Singles\\MC Hammer - Have You Seen Her.mp3",{"$error":"#NAME?"},{"$error":"#NAME?"},{"$error":"#NAME?"},{"$error":"#NAME?"}]
["Singles\\Inner Circle - Bad Boys.mp3",{"$error":"#NAME?"},{"$error":"#NAME?"},{"$error":"#NAME?"},{"$error":"#NAME?"}]
["Singles\\The Beatles - From Me To You.mp3",{"$error":"#NAME?"},{"$error":"#NAME?"},{"$error":"#NAME?"},{"$error":"#NAME?"}]
["Singles\\Miss Montreal - Heavy Heart.mp3",{"$error":"#NAME?"},{"$error":"#NAME?"},{"$error":"#NAME?"},{"$error":"#NAME?"}]
["Singles\\Simple Plan ft Natasha Bedingfield - Jet Lag.mp3",{"$error":"#NAME?"},{"$error":"#NAME?"},{"$error":"#NAME?"},{"$error":"#NAME?"}]
["Singles\\Toto - Mushanga.mp3",{"$error":"#NAME?"},{"$error":"#NAME?"},{"$error":"#NAME?"},{"$error":"#NAME?"}]
["Singles\\Lenny Kravitz - Again.mp3",{"$error":"#NAME?"},{"$error":"#NAME?"},{"$error":"#NAME?"},{"$error":"#NAME?"}]
["Singles\\Whitesnake - Is This Love.mp3",{"$error":"#NAME?"},{"$error":"#NAME?"},{"$error":"#NAME?"},{"$error":"#NAME?"}]
["Singles\\David Bowie - China Girl.mp3",{"$error":"#NAME?"},{"$error":"#NAME?"},{"$error":"#NAME?"},{"$error":"#NAME?"}]
["Singles\\Jim Reeves - I Love You Because.mp3",{"$error":"#NAME?"},{"$error":"#NAME?"},{"$error":"#NAME?"},{"$error":"#NAME?"}]
["Singles\\Anne Marie David - Tu Te Reconnaitras.mp3",{"$error":"#NAME?"},{"$error":"#NAME?"},{"$error":"#NAME?"},{"$error":"#NAME?"}]
["Singles\\Severine - Un Banc Un Arbre Une Rue.mp3",{"$error":"#NAME?"},{"$error":"#NAME?"},{"$error":"#NAME?"},{"$error":"#NAME?"}]
["Singles\\Paul McCartney - My Brave Face.mp3",{"$error":"#NAME?"},{"$error":"#NAME?"},{"$error":"#NAME?"},{"$error":"#NAME?"}]
["Singles\\Simon & Garfunkel - Scarborough Fair.mp3",{"$error":"#NAME?"},{"$error":"#NAME?"},{"$error":"#NAME?"},{"$error":"#NAME?"}]
["Singles\\Neneh Cherry - Manchild.mp3",{"$error":"#NAME?"},{"$error":"#NAME?"},{"$error":"#NAME?"},{"$error":"#NAME?"}]
["Singles\\Edward Maya & Vika Jigulina - Stereo Love.mp3",{"$error":"#NAME?"},{"$error":"#NAME?"},{"$error":"#NAME?"},{"$error":"#NAME?"}]
["Singles\\The Blow Monkeys - You Don't Own Me.mp3",{"$error":"#NAME?"},{"$error":"#NAME?"},{"$error":"#NAME?"},{"$error":"#NAME?"}]
["Singles\\Don Mclean - Dreidel.mp3",{"$error":"#NAME?"},{"$error":"#NAME?"},{"$error":"#NAME?"},{"$error":"#NAME?"}]
["Singles\\Kensington - Fiji.mp3",{"$error":"#NAME?"},{"$error":"#NAME?"},{"$error":"#NAME?"},{"$error":"#NAME?"}]
["Singles\\Lily Allen - 22.mp3",{"$error":"#NAME?"},{"$error":"#NAME?"},{"$error":"#NAME?"},{"$error":"#NAME?"}]
["Singles\\Roxette - How Do You Do!.mp3",{"$error":"#NAME?"},{"$error":"#NAME?"},{"$error":"#NAME?"},{"$error":"#NAME?"}]
["Singles\\The Angels - My Boyfriend's Back.mp3",{"$error":"#NAME?"},{"$error":"#NAME?"},{"$error":"#NAME?"},{"$error":"#NAME?"}]
["Singles\\The Magician ft Years And Years - Sunlight.mp3",{"$error":"#NAME?"},{"$error":"#NAME?"},{"$error":"#NAME?"},{"$error":"#NAME?"}]
["Singles\\The Marbles - The Walls Fell Down.mp3",{"$error":"#NAME?"},{"$error":"#NAME?"},{"$error":"#NAME?"},{"$error":"#NAME?"}]
["Singles\\Adele - When We Were Young.mp3",{"$error":"#NAME?"},{"$error":"#NAME?"},{"$error":"#NAME?"},{"$error":"#NAME?"}]
["Singles\\Paco - Amor De Mis Amores.mp3",{"$error":"#NAME?"},{"$error":"#NAME?"},{"$error":"#NAME?"},{"$error":"#NAME?"}]
["Singles\\Van Halen - Jump.mp3",{"$error":"#NAME?"},{"$error":"#NAME?"},{"$error":"#NAME?"},{"$error":"#NAME?"}]
["Singles\\Andre Hazes - Een Beetje Verliefd.mp3",{"$error":"#NAME?"},{"$error":"#NAME?"},{"$error":"#NAME?"},{"$error":"#NAME?"}]
["Singles\\Avicii - The Nights.mp3",{"$error":"#NAME?"},{"$error":"#NAME?"},{"$error":"#NAME?"},{"$error":"#NAME?"}]
["Singles\\Dr Alban - Sing Hallelujah.mp3",{"$error":"#NAME?"},{"$error":"#NAME?"},{"$error":"#NAME?"},{"$error":"#NAME?"}]
["Singles\\Mika - Relax (Take It Easy).mp3",{"$error":"#NAME?"},{"$error":"#NAME?"},{"$error":"#NAME?"},{"$error":"#NAME?"}]
["Singles\\Jordin Sparks ft Chris Brown - No Air.mp3",{"$error":"#NAME?"},{"$error":"#NAME?"},{"$error":"#NAME?"},{"$error":"#NAME?"}]
["Singles\\Kane - Love Over Healing.mp3",{"$error":"#NAME?"},{"$error":"#NAME?"},{"$error":"#NAME?"},{"$error":"#NAME?"}]
["Singles\\Travie Mccoy ft Bruno Mars - Billionaire.mp3",{"$error":"#NAME?"},{"$error":"#NAME?"},{"$error":"#NAME?"},{"$error":"#NAME?"}]
["Singles\\Donovan - Universal Soldier.mp3",{"$error":"#NAME?"},{"$error":"#NAME?"},{"$error":"#NAME?"},{"$error":"#NAME?"}]
["Singles\\War - Why Can't We Be Friends.mp3",{"$error":"#NAME?"},{"$error":"#NAME?"},{"$error":"#NAME?"},{"$error":"#NAME?"}]
["Singles\\Urban Heroes - Not Another World War.mp3",{"$error":"#NAME?"},{"$error":"#NAME?"},{"$error":"#NAME?"},{"$error":"#NAME?"}]
["Singles\\Charles Aznavour - Dance In The Old Fashioned Way.mp3",{"$error":"#NAME?"},{"$error":"#NAME?"},{"$error":"#NAME?"},{"$error":"#NAME?"}]
["Singles\\Neet Oet Lottum - Hald Mich 's Vas.mp3",{"$error":"#NAME?"},{"$error":"#NAME?"},{"$error":"#NAME?"},{"$error":"#NAME?"}]
["Singles\\Aerosmith - Dream On.mp3",{"$error":"#NAME?"},{"$error":"#NAME?"},{"$error":"#NAME?"},{"$error":"#NAME?"}]
["Singles\\Sigala - Easy Love.mp3",{"$error":"#NAME?"},{"$error":"#NAME?"},{"$error":"#NAME?"},{"$error":"#NAME?"}]
["Singles\\Pink - Just Like Fire.mp3",{"$error":"#NAME?"},{"$error":"#NAME?"},{"$error":"#NAME?"},{"$error":"#NAME?"}]
["Singles\\The Rolling Stones - Jumping Jack Flash.mp3",{"$error":"#NAME?"},{"$error":"#NAME?"},{"$error":"#NAME?"},{"$error":"#NAME?"}]
["Singles\\Peter Orloff - Ein Maedchen Fuer Immer.mp3",{"$error":"#NAME?"},{"$error":"#NAME?"},{"$error":"#NAME?"},{"$error":"#NAME?"}]
["Singles\\U2 - Sunday Bloody Sunday.mp3",{"$error":"#NAME?"},{"$error":"#NAME?"},{"$error":"#NAME?"},{"$error":"#NAME?"}]
["Singles\\Ritmo Dynamic - Calinda.mp3",{"$error":"#NAME?"},{"$error":"#NAME?"},{"$error":"#NAME?"},{"$error":"#NAME?"}]
["Singles\\Monie Love ft True Image - It's A Shame (My Sister).mp3",{"$error":"#NAME?"},{"$error":"#NAME?"},{"$error":"#NAME?"},{"$error":"#NAME?"}]
["Singles\\Pink - Today's The Day.mp3",{"$error":"#NAME?"},{"$error":"#NAME?"},{"$error":"#NAME?"},{"$error":"#NAME?"}]
["Singles\\John Lennon - Imagine.mp3",{"$error":"#NAME?"},{"$error":"#NAME?"},{"$error":"#NAME?"},{"$error":"#NAME?"}]
["Singles\\The Cats - Marian.mp3",{"$error":"#NAME?"},{"$error":"#NAME?"},{"$error":"#NAME?"},{"$error":"#NAME?"}]
["Singles\\Taio Cruz - Dynamite.mp3",{"$error":"#NAME?"},{"$error":"#NAME?"},{"$error":"#NAME?"},{"$error":"#NAME?"}]
["Singles\\Vitesse - Rosalyn.mp3",{"$error":"#NAME?"},{"$error":"#NAME?"},{"$error":"#NAME?"},{"$error":"#NAME?"}]
["Singles\\Rihanna & Kanye West & Paul McCartney - FourFiveSeconds.mp3",{"$error":"#NAME?"},{"$error":"#NAME?"},{"$error":"#NAME?"},{"$error":"#NAME?"}]
["Singles\\Radiohead - Karma Police.mp3",{"$error":"#NAME?"},{"$error":"#NAME?"},{"$error":"#NAME?"},{"$error":"#NAME?"}]
["Singles\\The Kinks - Mr. Pleasant.mp3",{"$error":"#NAME?"},{"$error":"#NAME?"},{"$error":"#NAME?"},{"$error":"#NAME?"}]
["Singles\\Wim Sonneveld - Het Dorp.mp3",{"$error":"#NAME?"},{"$error":"#NAME?"},{"$error":"#NAME?"},{"$error":"#NAME?"}]
["Singles\\Taylor Swift - Blank Space.mp3",{"$error":"#NAME?"},{"$error":"#NAME?"},{"$error":"#NAME?"},{"$error":"#NAME?"}]
["Singles\\Eurythmics - Sex Crime 1984.mp3",{"$error":"#NAME?"},{"$error":"#NAME?"},{"$error":"#NAME?"},{"$error":"#NAME?"}]
["Singles\\Walking On Cars - Speeding Cars.mp3",{"$error":"#NAME?"},{"$error":"#NAME?"},{"$error":"#NAME?"},{"$error":"#NAME?"}]
["Singles\\Exile - Heart And Soul.mp3",{"$error":"#NAME?"},{"$error":"#NAME?"},{"$error":"#NAME?"},{"$error":"#NAME?"}]
["Singles\\Rita Coolidge - All Time High.mp3",{"$error":"#NAME?"},{"$error":"#NAME?"},{"$error":"#NAME?"},{"$error":"#NAME?"}]
["Singles\\Nelly Furtado - In Gods Hands.mp3",{"$error":"#NAME?"},{"$error":"#NAME?"},{"$error":"#NAME?"},{"$error":"#NAME?"}]
["Singles\\Holland - Magic Mary.mp3",{"$f":"RegexTest(B$1,$A1475)","v":{"$error":"#NAME?"}},{"$f":"RegexCount(C$1,$A1475)","v":{"$error":"#NAME?"}},{"$f":"RegexFind(D$1,$A1475)","v":{"$error":"#NAME?"}},{"$f":"RegexReplace(E$1,$A1475,F$1)","v":{"$error":"#NAME?"}}]
["Singles\\Boney M - Baby Do You Wanna Bump.mp3",{"$error":"#NAME?"},{"$error":"#NAME?"},{"$error":"#NAME?"},{"$error":"#NAME?"}]
["Singles\\Dire Straits - Calling Elvis.mp3",{"$error":"#NAME?"},{"$error":"#NAME?"},{"$error":"#NAME?"},{"$error":"#NAME?"}]
["Singles\\Lukas Graham - You're Not There.mp3",{"$error":"#NAME?"},{"$error":"#NAME?"},{"$error":"#NAME?"},{"$error":"#NAME?"}]
["Singles\\Tom Jones - Detroit City.mp3",{"$error":"#NAME?"},{"$error":"#NAME?"},{"$error":"#NAME?"},{"$error":"#NAME?"}]
["Singles\\Chris Barber's Jazzband - Ice Cream.mp3",{"$error":"#NAME?"},{"$error":"#NAME?"},{"$error":"#NAME?"},{"$error":"#NAME?"}]
["Singles\\Frank Duval - Angel Of Mine.mp3",{"$error":"#NAME?"},{"$error":"#NAME?"},{"$error":"#NAME?"},{"$error":"#NAME?"}]
["Singles\\Prince - Raspberry Beret.mp3",{"$error":"#NAME?"},{"$error":"#NAME?"},{"$error":"#NAME?"},{"$error":"#NAME?"}]
["Singles\\Rita Ora - Let You Love Me.mp3",{"$error":"#NAME?"},{"$error":"#NAME?"},{"$error":"#NAME?"},{"$error":"#NAME?"}]
["Singles\\Rubettes - I Can Do It.mp3",{"$error":"#NAME?"},{"$error":"#NAME?"},{"$error":"#NAME?"},{"$error":"#NAME?"}]
["Singles\\Ed Sheeran - I See Fire.mp3",{"$error":"#NAME?"},{"$error":"#NAME?"},{"$error":"#NAME?"},{"$error":"#NAME?"}]
["Singles\\Mr Bloe - Groovin' With Mr Bloe.mp3",{"$error":"#NAME?"},{"$error":"#NAME?"},{"$error":"#NAME?"},{"$error":"#NAME?"}]
["Singles\\Milow - You And Me (In My Pocket).mp3",{"$error":"#NAME?"},{"$error":"#NAME?"},{"$error":"#NAME?"},{"$error":"#NAME?"}]
["Singles\\Toni Braxton - Another Sad Love Song.mp3",{"$error":"#NAME?"},{"$error":"#NAME?"},{"$error":"#NAME?"},{"$error":"#NAME?"}]
["Singles\\Bruce Springsteen - Human Touch.mp3",{"$error":"#NAME?"},{"$error":"#NAME?"},{"$error":"#NAME?"},{"$error":"#NAME?"}]
["Singles\\Lois Lane - Amsterdamned.mp3",{"$error":"#NAME?"},{"$error":"#NAME?"},{"$error":"#NAME?"},{"$error":"#NAME?"}]
["Singles\\OneRepublic - I Lived.mp3",{"$error":"#NAME?"},{"$error":"#NAME?"},{"$error":"#NAME?"},{"$error":"#NAME?"}]
["Singles\\Mica Paris - My One Temptation.mp3",{"$error":"#NAME?"},{"$error":"#NAME?"},{"$error":"#NAME?"},{"$error":"#NAME?"}]
["Singles\\Whitney Houston - I Wanna Dance With Somebody.mp3",{"$error":"#NAME?"},{"$error":"#NAME?"},{"$error":"#NAME?"},{"$error":"#NAME?"}]
["Singles\\Queen - These Are The Days Of Our Lives.mp3",{"$error":"#NAME?"},{"$error":"#NAME?"},{"$error":"#NAME?"},{"$error":"#NAME?"}]
["Singles\\Nelly Furtado - Powerless (Say What You Want).mp3",{"$error":"#NAME?"},{"$error":"#NAME?"},{"$error":"#NAME?"},{"$error":"#NAME?"}]
["Singles\\Pink - Sober.mp3",{"$error":"#NAME?"},{"$error":"#NAME?"},{"$error":"#NAME?"},{"$error":"#NAME?"}]
["Singles\\Anne Murray - Snowbird.mp3",{"$error":"#NAME?"},{"$error":"#NAME?"},{"$error":"#NAME?"},{"$error":"#NAME?"}]
["Singles\\Mark Ronson ft Bruno Mars - Uptown Funk!.mp3",{"$error":"#NAME?"},{"$error":"#NAME?"},{"$error":"#NAME?"},{"$error":"#NAME?"}]
["Singles\\Doe Maar - Een Nacht Alleen.mp3",{"$error":"#NAME?"},{"$error":"#NAME?"},{"$error":"#NAME?"},{"$error":"#NAME?"}]
["Singles\\Teddy Pendergrass & Whitney Houston - Hold Me.mp3",{"$error":"#NAME?"},{"$error":"#NAME?"},{"$error":"#NAME?"},{"$error":"#NAME?"}]
["Singles\\Michael Jackson - Rock With You.mp3",{"$error":"#NAME?"},{"$error":"#NAME?"},{"$error":"#NAME?"},{"$error":"#NAME?"}]
["Singles\\Rob De Nijs - Ritme Van De Regen.mp3",{"$error":"#NAME?"},{"$error":"#NAME?"},{"$error":"#NAME?"},{"$error":"#NAME?"}]
["Singles\\Chris Brown & Benny Benassi - Beautiful People.mp3",{"$error":"#NAME?"},{"$error":"#NAME?"},{"$error":"#NAME?"},{"$error":"#NAME?"}]
["Singles\\Art Of Noise - Peter Gunn.mp3",{"$error":"#NAME?"},{"$error":"#NAME?"},{"$error":"#NAME?"},{"$error":"#NAME?"}]
["Singles\\Rod Stewart - Tonight I'm Yours.mp3",{"$error":"#NAME?"},{"$error":"#NAME?"},{"$error":"#NAME?"},{"$error":"#NAME?"}]
["Singles\\Hot Blood - Soul Dracula.mp3",{"$error":"#NAME?"},{"$error":"#NAME?"},{"$error":"#NAME?"},{"$error":"#NAME?"}]
["Singles\\Duffy - Serious.mp3",{"$error":"#NAME?"},{"$error":"#NAME?"},{"$error":"#NAME?"},{"$error":"#NAME?"}]
["Singles\\Alive And Kicking - Tighter & Tighter.mp3",{"$error":"#NAME?"},{"$error":"#NAME?"},{"$error":"#NAME?"},{"$error":"#NAME?"}]
["Singles\\The Lovin' Spoonful - Do You Believe In Magic.mp3",{"$error":"#NAME?"},{"$error":"#NAME?"},{"$error":"#NAME?"},{"$error":"#NAME?"}]
["Singles\\Richie Valens - Come On Let's Go.mp3",{"$error":"#NAME?"},{"$error":"#NAME?"},{"$error":"#NAME?"},{"$error":"#NAME?"}]
["Singles\\Fifth Harmony ft Ty Dolla $ign - Work From Home.mp3",{"$error":"#NAME?"},{"$error":"#NAME?"},{"$error":"#NAME?"},{"$error":"#NAME?"}]
["Singles\\Mike Oldfield - In Dulci Jubilo.mp3",{"$error":"#NAME?"},{"$error":"#NAME?"},{"$error":"#NAME?"},{"$error":"#NAME?"}]
["Singles\\Peter Cetera - Glory Of Love.mp3",{"$error":"#NAME?"},{"$error":"#NAME?"},{"$error":"#NAME?"},{"$error":"#NAME?"}]
["Singles\\Dr Alban - It's My Life.mp3",{"$error":"#NAME?"},{"$error":"#NAME?"},{"$error":"#NAME?"},{"$error":"#NAME?"}]
["Singles\\Mr Walkie Talkie - Be My Boogie Woogie Baby.mp3",{"$error":"#NAME?"},{"$error":"#NAME?"},{"$error":"#NAME?"},{"$error":"#NAME?"}]
["Singles\\Pink Floyd - Astronomy Domine.mp3",{"$error":"#NAME?"},{"$error":"#NAME?"},{"$error":"#NAME?"},{"$error":"#NAME?"}]
["Singles\\Monsoon - Ever So Lonely.mp3",{"$error":"#NAME?"},{"$error":"#NAME?"},{"$error":"#NAME?"},{"$error":"#NAME?"}]
["Singles\\Bobby Brown - My Prerogative.mp3",{"$error":"#NAME?"},{"$error":"#NAME?"},{"$error":"#NAME?"},{"$error":"#NAME?"}]
["Singles\\Coldplay - Up And Up.mp3",{"$error":"#NAME?"},{"$error":"#NAME?"},{"$error":"#NAME?"},{"$error":"#NAME?"}]
["Singles\\Brian Hyland - Itsy Bitsy Teeny Weeny Yellow Polka Dot Bikini.mp3",{"$error":"#NAME?"},{"$error":"#NAME?"},{"$error":"#NAME?"},{"$error":"#NAME?"}]
["Singles\\Dave Berry - Now.mp3",{"$error":"#NAME?"},{"$error":"#NAME?"},{"$error":"#NAME?"},{"$error":"#NAME?"}]
["Singles\\Waylon - Wicked Way.mp3",{"$error":"#NAME?"},{"$error":"#NAME?"},{"$error":"#NAME?"},{"$error":"#NAME?"}]
["Singles\\Santana & Rob Thomas - Smooth.mp3",{"$error":"#NAME?"},{"$error":"#NAME?"},{"$error":"#NAME?"},{"$error":"#NAME?"}]
["Singles\\Avicii - Levels.mp3",{"$error":"#NAME?"},{"$error":"#NAME?"},{"$error":"#NAME?"},{"$error":"#NAME?"}]
["Singles\\Spice Girls - Mama.mp3",{"$error":"#NAME?"},{"$error":"#NAME?"},{"$error":"#NAME?"},{"$error":"#NAME?"}]
["Singles\\Stromae - Tous Les Memes.mp3",{"$error":"#NAME?"},{"$error":"#NAME?"},{"$error":"#NAME?"},{"$error":"#NAME?"}]
["Singles\\Mariah Carey - Hero.mp3",{"$error":"#NAME?"},{"$error":"#NAME?"},{"$error":"#NAME?"},{"$error":"#NAME?"}]
["Singles\\The Zombies - Tell Her No.mp3",{"$error":"#NAME?"},{"$error":"#NAME?"},{"$error":"#NAME?"},{"$error":"#NAME?"}]
["Singles\\Lodewijck Van Avezaath - Verrek, Zeg Kerel Ben Jij 't.mp3",{"$error":"#NAME?"},{"$error":"#NAME?"},{"$error":"#NAME?"},{"$error":"#NAME?"}]
["Singles\\David Guetta & Sia - Flames.mp3",{"$error":"#NAME?"},{"$error":"#NAME?"},{"$error":"#NAME?"},{"$error":"#NAME?"}]
["Singles\\Procol Harum - Grand Hotel.mp3",{"$error":"#NAME?"},{"$error":"#NAME?"},{"$error":"#NAME?"},{"$error":"#NAME?"}]
["Singles\\Shary-An - Read My Book.mp3",{"$error":"#NAME?"},{"$error":"#NAME?"},{"$error":"#NAME?"},{"$error":"#NAME?"}]
["Singles\\Three Degrees - Take Good Care Of Yourself.mp3",{"$error":"#NAME?"},{"$error":"#NAME?"},{"$error":"#NAME?"},{"$error":"#NAME?"}]
["Singles\\Jan Rot - Counting Sheep.mp3",{"$error":"#NAME?"},{"$error":"#NAME?"},{"$error":"#NAME?"},{"$error":"#NAME?"}]
["Singles\\Mick Jagger & Peter Tosh - Walk And Don't Look Back.mp3",{"$error":"#NAME?"},{"$error":"#NAME?"},{"$error":"#NAME?"},{"$error":"#NAME?"}]
["Singles\\Pearl Jam - Off He Goes.mp3",{"$error":"#NAME?"},{"$error":"#NAME?"},{"$error":"#NAME?"},{"$error":"#NAME?"}]
["Singles\\Spice Girls - Stop.mp3",{"$error":"#NAME?"},{"$error":"#NAME?"},{"$error":"#NAME?"},{"$error":"#NAME?"}]
["Singles\\Miley Cyrus - Wrecking Ball.mp3",{"$error":"#NAME?"},{"$error":"#NAME?"},{"$error":"#NAME?"},{"$error":"#NAME?"}]
["Singles\\Republica - Ready To Go.mp3",{"$f":"RegexTest(B$1,$A1539)","v":{"$error":"#NAME?"}},{"$f":"RegexCount(C$1,$A1539)","v":{"$error":"#NAME?"}},{"$f":"RegexFind(D$1,$A1539)","v":{"$error":"#NAME?"}},{"$f":"RegexReplace(E$1,$A1539,F$1)","v":{"$error":"#NAME?"}}]
["Singles\\Jack Jersey - Papa Was A Poor Man.mp3",{"$error":"#NAME?"},{"$error":"#NAME?"},{"$error":"#NAME?"},{"$error":"#NAME?"}]
["Singles\\Princess - Say I'm Your Number One.mp3",{"$error":"#NAME?"},{"$error":"#NAME?"},{"$error":"#NAME?"},{"$error":"#NAME?"}]
["Singles\\Keith West - Excerpt From A Teenage Opera.mp3",{"$error":"#NAME?"},{"$error":"#NAME?"},{"$error":"#NAME?"},{"$error":"#NAME?"}]
["Singles\\Kelly Clarkson - Piece By Piece.mp3",{"$error":"#NAME?"},{"$error":"#NAME?"},{"$error":"#NAME?"},{"$error":"#NAME?"}]
["Singles\\Lisa Lois - Promises Promises.mp3",{"$error":"#NAME?"},{"$error":"#NAME?"},{"$error":"#NAME?"},{"$error":"#NAME?"}]
["Singles\\Pat Boone - Love Letters In The Sand.mp3",{"$error":"#NAME?"},{"$error":"#NAME?"},{"$error":"#NAME?"},{"$error":"#NAME?"}]
["Singles\\Chef'Special - Try Again.mp3",{"$error":"#NAME?"},{"$error":"#NAME?"},{"$error":"#NAME?"},{"$error":"#NAME?"}]
["Singles\\Rudimental & Macklemore & Jess Glynne - These Days.mp3",{"$error":"#NAME?"},{"$error":"#NAME?"},{"$error":"#NAME?"},{"$error":"#NAME?"}]
["Singles\\Drake - Hold On, We're Going Home.mp3",{"$error":"#NAME?"},{"$error":"#NAME?"},{"$error":"#NAME?"},{"$error":"#NAME?"}]
["Singles\\T-Spoon - Mercedes Benz.mp3",{"$error":"#NAME?"},{"$error":"#NAME?"},{"$error":"#NAME?"},{"$error":"#NAME?"}]
["Singles\\Spargo - Head Up To The Sky.mp3",{"$error":"#NAME?"},{"$error":"#NAME?"},{"$error":"#NAME?"},{"$error":"#NAME?"}]
["Singles\\Marmalade - I See The Rain.mp3",{"$error":"#NAME?"},{"$error":"#NAME?"},{"$error":"#NAME?"},{"$error":"#NAME?"}]
["Singles\\Nielson - Beauty & De Brain.mp3",{"$error":"#NAME?"},{"$error":"#NAME?"},{"$error":"#NAME?"},{"$error":"#NAME?"}]
["Singles\\Elvis Presley - Kiss Me Quick.mp3",{"$error":"#NAME?"},{"$error":"#NAME?"},{"$error":"#NAME?"},{"$error":"#NAME?"}]
["Singles\\The Beatles - Strawberry Fields Forever.mp3",{"$error":"#NAME?"},{"$error":"#NAME?"},{"$error":"#NAME?"},{"$error":"#NAME?"}]
["Singles\\Starship - We Built This City.mp3",{"$error":"#NAME?"},{"$error":"#NAME?"},{"$error":"#NAME?"},{"$error":"#NAME?"}]
["Singles\\Motels - Total Control.mp3",{"$error":"#NAME?"},{"$error":"#NAME?"},{"$error":"#NAME?"},{"$error":"#NAME?"}]
["Singles\\Pointer Sisters - Jump (For My Love).mp3",{"$error":"#NAME?"},{"$error":"#NAME?"},{"$error":"#NAME?"},{"$error":"#NAME?"}]
["Singles\\Andre Van Duin - Wonderkind.mp3",{"$error":"#NAME?"},{"$error":"#NAME?"},{"$error":"#NAME?"},{"$error":"#NAME?"}]
["Singles\\Andy Grammer - Keep Your Head Up.mp3",{"$error":"#NAME?"},{"$error":"#NAME?"},{"$error":"#NAME?"},{"$error":"#NAME?"}]
["Singles\\Charles Aznavour - She.mp3",{"$error":"#NAME?"},{"$error":"#NAME?"},{"$error":"#NAME?"},{"$error":"#NAME?"}]
["Singles\\Mr Probz - Nothing Really Matters.mp3",{"$error":"#NAME?"},{"$error":"#NAME?"},{"$error":"#NAME?"},{"$error":"#NAME?"}]
["Singles\\Dean Lewis - Be Alright.mp3",{"$error":"#NAME?"},{"$error":"#NAME?"},{"$error":"#NAME?"},{"$error":"#NAME?"}]
["Singles\\Dave Berry - Mama.mp3",{"$error":"#NAME?"},{"$error":"#NAME?"},{"$error":"#NAME?"},{"$error":"#NAME?"}]
["Singles\\Harry Belafonte - Cocoanut Woman.mp3",{"$error":"#NAME?"},{"$error":"#NAME?"},{"$error":"#NAME?"},{"$error":"#NAME?"}]
["Singles\\Kool & The Gang - Big Fun.mp3",{"$error":"#NAME?"},{"$error":"#NAME?"},{"$error":"#NAME?"},{"$error":"#NAME?"}]
["Singles\\Warren Zevon - Mr Bad Example.mp3",{"$error":"#NAME?"},{"$error":"#NAME?"},{"$error":"#NAME?"},{"$error":"#NAME?"}]
["Singles\\The Doors - Touch Me.mp3",{"$error":"#NAME?"},{"$error":"#NAME?"},{"$error":"#NAME?"},{"$error":"#NAME?"}]
["Singles\\Mai Tai - What Goes On.mp3",{"$error":"#NAME?"},{"$error":"#NAME?"},{"$error":"#NAME?"},{"$error":"#NAME?"}]
["Singles\\O'Jays - For The Love Of The Money.mp3",{"$error":"#NAME?"},{"$error":"#NAME?"},{"$error":"#NAME?"},{"$error":"#NAME?"}]
["Singles\\Status Quo - In The Army Now.mp3",{"$error":"#NAME?"},{"$error":"#NAME?"},{"$error":"#NAME?"},{"$error":"#NAME?"}]
["Singles\\Gloria Estefan - Get On Your Feet.mp3",{"$error":"#NAME?"},{"$error":"#NAME?"},{"$error":"#NAME?"},{"$error":"#NAME?"}]
["Singles\\David Cassidy - Sunshine.mp3",{"$error":"#NAME?"},{"$error":"#NAME?"},{"$error":"#NAME?"},{"$error":"#NAME?"}]
["Singles\\Jaki Graham - Set Me Free.mp3",{"$error":"#NAME?"},{"$error":"#NAME?"},{"$error":"#NAME?"},{"$error":"#NAME?"}]
["Singles\\Bread - Make It With You.mp3",{"$error":"#NAME?"},{"$error":"#NAME?"},{"$error":"#NAME?"},{"$error":"#NAME?"}]
["Singles\\Electric Light Orchestra - Last Train To London.mp3",{"$error":"#NAME?"},{"$error":"#NAME?"},{"$error":"#NAME?"},{"$error":"#NAME?"}]
["Singles\\Herb Alpert & The Tijuana Brass - Tijuana Taxi.mp3",{"$error":"#NAME?"},{"$error":"#NAME?"},{"$error":"#NAME?"},{"$error":"#NAME?"}]
["Singles\\Fish & Sam Brown - Just Good Friends.mp3",{"$error":"#NAME?"},{"$error":"#NAME?"},{"$error":"#NAME?"},{"$error":"#NAME?"}]
["Singles\\Andy Williams - Somewhere, My Love.mp3",{"$error":"#NAME?"},{"$error":"#NAME?"},{"$error":"#NAME?"},{"$error":"#NAME?"}]
["Singles\\Pat Boone - Speedy Gonzales.mp3",{"$error":"#NAME?"},{"$error":"#NAME?"},{"$error":"#NAME?"},{"$error":"#NAME?"}]
["Singles\\Sweet Sixteen - Peter.mp3",{"$error":"#NAME?"},{"$error":"#NAME?"},{"$error":"#NAME?"},{"$error":"#NAME?"}]
["Singles\\Milow - Howling At The Moon.mp3",{"$error":"#NAME?"},{"$error":"#NAME?"},{"$error":"#NAME?"},{"$error":"#NAME?"}]
["Singles\\Demis Roussos - My Reason.mp3",{"$error":"#NAME?"},{"$error":"#NAME?"},{"$error":"#NAME?"},{"$error":"#NAME?"}]
["Singles\\Bon Jovi - It's My Life.mp3",{"$error":"#NAME?"},{"$error":"#NAME?"},{"$error":"#NAME?"},{"$error":"#NAME?"}]
["Singles\\Amsterdam - Lucy, Lucy.mp3",{"$error":"#NAME?"},{"$error":"#NAME?"},{"$error":"#NAME?"},{"$error":"#NAME?"}]
["Singles\\Alexander O'neal & Cherrelle - Never Knew Love Like This.mp3",{"$error":"#NAME?"},{"$error":"#NAME?"},{"$error":"#NAME?"},{"$error":"#NAME?"}]
["Singles\\REO Speedwagon - Don't Let Him Go.mp3",{"$error":"#NAME?"},{"$error":"#NAME?"},{"$error":"#NAME?"},{"$error":"#NAME?"}]
["Singles\\Cliff Richard & The Shadows - Summer Holiday.mp3",{"$error":"#NAME?"},{"$error":"#NAME?"},{"$error":"#NAME?"},{"$error":"#NAME?"}]
["Singles\\Eddy Grant - My Turn To Love You.mp3",{"$error":"#NAME?"},{"$error":"#NAME?"},{"$error":"#NAME?"},{"$error":"#NAME?"}]
["Singles\\Neil Diamond - September Morn.mp3",{"$error":"#NAME?"},{"$error":"#NAME?"},{"$error":"#NAME?"},{"$error":"#NAME?"}]
["Singles\\Yannis Markopoulos - Who Pays The Ferryman.mp3",{"$error":"#NAME?"},{"$error":"#NAME?"},{"$error":"#NAME?"},{"$error":"#NAME?"}]
["Singles\\Foreigner - I Don't Want To Live Without You.mp3",{"$error":"#NAME?"},{"$error":"#NAME?"},{"$error":"#NAME?"},{"$error":"#NAME?"}]
["Singles\\Helen Connell & Dean Martin - How Do You Like Your Eggs In The Morning.mp3",{"$error":"#NAME?"},{"$error":"#NAME?"},{"$error":"#NAME?"},{"$error":"#NAME?"}]
["Singles\\Jan Hammer - Crocket's Theme (Miami Vice).mp3",{"$error":"#NAME?"},{"$error":"#NAME?"},{"$error":"#NAME?"},{"$error":"#NAME?"}]
["Singles\\Harry Belafonte - Jamaica Farewell.mp3",{"$error":"#NAME?"},{"$error":"#NAME?"},{"$error":"#NAME?"},{"$error":"#NAME?"}]
["Singles\\Anna Kendrick - Cups.mp3",{"$error":"#NAME?"},{"$error":"#NAME?"},{"$error":"#NAME?"},{"$error":"#NAME?"}]
["Singles\\John Fred  & His Playboy Band - Judy In Disguise.mp3",{"$error":"#NAME?"},{"$error":"#NAME?"},{"$error":"#NAME?"},{"$error":"#NAME?"}]
["Singles\\Rihanna & Jay Z - Umbrella.mp3",{"$error":"#NAME?"},{"$error":"#NAME?"},{"$error":"#NAME?"},{"$error":"#NAME?"}]
["Singles\\Albert West - It Keeps Right On Hurtin.mp3",{"$error":"#NAME?"},{"$error":"#NAME?"},{"$error":"#NAME?"},{"$error":"#NAME?"}]
["Singles\\Drupi - Vado Via.mp3",{"$error":"#NAME?"},{"$error":"#NAME?"},{"$error":"#NAME?"},{"$error":"#NAME?"}]
["Singles\\Vance Joy - Riptide.mp3",{"$error":"#NAME?"},{"$error":"#NAME?"},{"$error":"#NAME?"},{"$error":"#NAME?"}]
["Singles\\Cincotti Peter - Goodbye Philadelphia.mp3",{"$error":"#NAME?"},{"$error":"#NAME?"},{"$error":"#NAME?"},{"$error":"#NAME?"}]
["Singles\\The Coasters - Yakety Yak.mp3",{"$error":"#NAME?"},{"$error":"#NAME?"},{"$error":"#NAME?"},{"$error":"#NAME?"}]
["Singles\\Diana Ross & The Supremes - Someday We'll Be Together.mp3",{"$f":"RegexTest(B$1,$A1603)","v":{"$error":"#NAME?"}},{"$f":"RegexCount(C$1,$A1603)","v":{"$error":"#NAME?"}},{"$f":"RegexFind(D$1,$A1603)","v":{"$error":"#NAME?"}},{"$f":"RegexReplace(E$1,$A1603,F$1)","v":{"$error":"#NAME?"}}]
["Singles\\Elton John - Can You Feel The Love Tonight.mp3",{"$error":"#NAME?"},{"$error":"#NAME?"},{"$error":"#NAME?"},{"$error":"#NAME?"}]
["Singles\\Di-Rect - This Is Who We Are.mp3",{"$error":"#NAME?"},{"$error":"#NAME?"},{"$error":"#NAME?"},{"$error":"#NAME?"}]
["Singles\\Blof - Omarm.mp3",{"$error":"#NAME?"},{"$error":"#NAME?"},{"$error":"#NAME?"},{"$error":"#NAME?"}]
["Singles\\Robbie Williams - Advertising Space.mp3",{"$error":"#NAME?"},{"$error":"#NAME?"},{"$error":"#NAME?"},{"$error":"#NAME?"}]
["Singles\\CJ Lewis - Everything Is Alright (Uptight).mp3",{"$error":"#NAME?"},{"$error":"#NAME?"},{"$error":"#NAME?"},{"$error":"#NAME?"}]
["Singles\\Pointer Sisters - He's So Shy.mp3",{"$error":"#NAME?"},{"$error":"#NAME?"},{"$error":"#NAME?"},{"$error":"#NAME?"}]
["Singles\\Cymarron - Rings.mp3",{"$error":"#NAME?"},{"$error":"#NAME?"},{"$error":"#NAME?"},{"$error":"#NAME?"}]
["Singles\\BB King - Ain't Nobody Home.mp3",{"$error":"#NAME?"},{"$error":"#NAME?"},{"$error":"#NAME?"},{"$error":"#NAME?"}]
["Singles\\Milli Vanilli - Girl You Know Its True.mp3",{"$error":"#NAME?"},{"$error":"#NAME?"},{"$error":"#NAME?"},{"$error":"#NAME?"}]
["Singles\\Fleetwood Mac - Albatross.mp3",{"$error":"#NAME?"},{"$error":"#NAME?"},{"$error":"#NAME?"},{"$error":"#NAME?"}]
["Singles\\Celia Cruz & Buena Vista Social Club - Guantanamera.mp3",{"$error":"#NAME?"},{"$error":"#NAME?"},{"$error":"#NAME?"},{"$error":"#NAME?"}]
["Singles\\Eva Cassidy - Songbird.mp3",{"$error":"#NAME?"},{"$error":"#NAME?"},{"$error":"#NAME?"},{"$error":"#NAME?"}]
["Singles\\Stevie Wonder - A Place In The Sun.mp3",{"$error":"#NAME?"},{"$error":"#NAME?"},{"$error":"#NAME?"},{"$error":"#NAME?"}]
["Singles\\Dionne Warwick - Heartbreaker.mp3",{"$error":"#NAME?"},{"$error":"#NAME?"},{"$error":"#NAME?"},{"$error":"#NAME?"}]
["Singles\\Andre Van Duin & Ramses Shaffy - Doorgaan.mp3",{"$error":"#NAME?"},{"$error":"#NAME?"},{"$error":"#NAME?"},{"$error":"#NAME?"}]
["Singles\\Acda & De Munnik - Schoolplein.mp3",{"$error":"#NAME?"},{"$error":"#NAME?"},{"$error":"#NAME?"},{"$error":"#NAME?"}]
["Singles\\Maroon 5 - She Will Be Loved.mp3",{"$error":"#NAME?"},{"$error":"#NAME?"},{"$error":"#NAME?"},{"$error":"#NAME?"}]
["Singles\\Peter Maffay - Du (Bist Alles).mp3",{"$error":"#NAME?"},{"$error":"#NAME?"},{"$error":"#NAME?"},{"$error":"#NAME?"}]
["Singles\\Anne-Marie - Ciao Adios.mp3",{"$error":"#NAME?"},{"$error":"#NAME?"},{"$error":"#NAME?"},{"$error":"#NAME?"}]
["Singles\\Katy Perry - The One That Got Away.mp3",{"$error":"#NAME?"},{"$error":"#NAME?"},{"$error":"#NAME?"},{"$error":"#NAME?"}]
["Singles\\Kraftwerk - Autobahn.mp3",{"$error":"#NAME?"},{"$error":"#NAME?"},{"$error":"#NAME?"},{"$error":"#NAME?"}]
["Singles\\First Class - Beach Baby.mp3",{"$error":"#NAME?"},{"$error":"#NAME?"},{"$error":"#NAME?"},{"$error":"#NAME?"}]
["Singles\\Matt Simons - We Can Do Better.mp3",{"$error":"#NAME?"},{"$error":"#NAME?"},{"$error":"#NAME?"},{"$error":"#NAME?"}]
["Singles\\Klaatu - Calling Occupants Of Interplanetary Craft.mp3",{"$error":"#NAME?"},{"$error":"#NAME?"},{"$error":"#NAME?"},{"$error":"#NAME?"}]
["Singles\\Paula Abdul - Rush Rush.mp3",{"$error":"#NAME?"},{"$error":"#NAME?"},{"$error":"#NAME?"},{"$error":"#NAME?"}]
["Singles\\Klein Orkest - Koos Werkeloos.mp3",{"$error":"#NAME?"},{"$error":"#NAME?"},{"$error":"#NAME?"},{"$error":"#NAME?"}]
["Singles\\Smokey Robinson - Being With You.mp3",{"$error":"#NAME?"},{"$error":"#NAME?"},{"$error":"#NAME?"},{"$error":"#NAME?"}]
["Singles\\John Denver - Thank God I'm A Country Boy.mp3",{"$error":"#NAME?"},{"$error":"#NAME?"},{"$error":"#NAME?"},{"$error":"#NAME?"}]
["Singles\\Survivor - Burning Heart.mp3",{"$error":"#NAME?"},{"$error":"#NAME?"},{"$error":"#NAME?"},{"$error":"#NAME?"}]
["Singles\\Grapefruit - Deep Water.mp3",{"$error":"#NAME?"},{"$error":"#NAME?"},{"$error":"#NAME?"},{"$error":"#NAME?"}]
["Singles\\TLC - Waterfalls.mp3",{"$error":"#NAME?"},{"$error":"#NAME?"},{"$error":"#NAME?"},{"$error":"#NAME?"}]
["Singles\\Jackson Browne - Doctor My Eyes.mp3",{"$error":"#NAME?"},{"$error":"#NAME?"},{"$error":"#NAME?"},{"$error":"#NAME?"}]
["Singles\\The Carpenters - Only Yesterday.mp3",{"$error":"#NAME?"},{"$error":"#NAME?"},{"$error":"#NAME?"},{"$error":"#NAME?"}]
["Singles\\Dionne Warwick &  Gladys Knight & Stevie Wonder & Elton John - That's What Friends Are For.mp3",{"$error":"#NAME?"},{"$error":"#NAME?"},{"$error":"#NAME?"},{"$error":"#NAME?"}]
["Singles\\Paul McCartney & Wings - Hi Hi Hi.mp3",{"$error":"#NAME?"},{"$error":"#NAME?"},{"$error":"#NAME?"},{"$error":"#NAME?"}]
["Singles\\Allman Brothers Band - Ramblin' Man.mp3",{"$error":"#NAME?"},{"$error":"#NAME?"},{"$error":"#NAME?"},{"$error":"#NAME?"}]
["Singles\\Abba - Mamma Mia.mp3",{"$error":"#NAME?"},{"$error":"#NAME?"},{"$error":"#NAME?"},{"$error":"#NAME?"}]
["Singles\\Paul De Leeuw - Ik Wil Niet Dat Je Liegt.mp3",{"$error":"#NAME?"},{"$error":"#NAME?"},{"$error":"#NAME?"},{"$error":"#NAME?"}]
["Singles\\Suzi Quatro - 48 Crash.mp3",{"$error":"#NAME?"},{"$error":"#NAME?"},{"$error":"#NAME?"},{"$error":"#NAME?"}]
["Singles\\Limahl - Never Ending Story.mp3",{"$error":"#NAME?"},{"$error":"#NAME?"},{"$error":"#NAME?"},{"$error":"#NAME?"}]
["Singles\\Fleetwood Mac - Seven Wonders.mp3",{"$error":"#NAME?"},{"$error":"#NAME?"},{"$error":"#NAME?"},{"$error":"#NAME?"}]
["Singles\\Peter Tetteroo - Red Red Wine.mp3",{"$error":"#NAME?"},{"$error":"#NAME?"},{"$error":"#NAME?"},{"$error":"#NAME?"}]
["Singles\\The Kinks - All Day And All Of The Night.mp3",{"$error":"#NAME?"},{"$error":"#NAME?"},{"$error":"#NAME?"},{"$error":"#NAME?"}]
["Singles\\Pat Benetar - We Belong.mp3",{"$error":"#NAME?"},{"$error":"#NAME?"},{"$error":"#NAME?"},{"$error":"#NAME?"}]
["Singles\\Razorlight - America.mp3",{"$error":"#NAME?"},{"$error":"#NAME?"},{"$error":"#NAME?"},{"$error":"#NAME?"}]
["Singles\\Adele - Water Under The Bridge.mp3",{"$error":"#NAME?"},{"$error":"#NAME?"},{"$error":"#NAME?"},{"$error":"#NAME?"}]
["Singles\\Zager & Evans - In The Year 2525.mp3",{"$error":"#NAME?"},{"$error":"#NAME?"},{"$error":"#NAME?"},{"$error":"#NAME?"}]
["Singles\\Avicii - Heaven.mp3",{"$error":"#NAME?"},{"$error":"#NAME?"},{"$error":"#NAME?"},{"$error":"#NAME?"}]
["Singles\\The Baseballs - California Gurls.mp3",{"$error":"#NAME?"},{"$error":"#NAME?"},{"$error":"#NAME?"},{"$error":"#NAME?"}]
["Singles\\David Gates - Goodbye Girl.mp3",{"$error":"#NAME?"},{"$error":"#NAME?"},{"$error":"#NAME?"},{"$error":"#NAME?"}]
["Singles\\The Beach Boys - Surfin' USA.mp3",{"$error":"#NAME?"},{"$error":"#NAME?"},{"$error":"#NAME?"},{"$error":"#NAME?"}]
["Singles\\Mumford & Sons - Lover Of The Light.mp3",{"$error":"#NAME?"},{"$error":"#NAME?"},{"$error":"#NAME?"},{"$error":"#NAME?"}]
["Singles\\Alice Cooper - School's Out.mp3",{"$error":"#NAME?"},{"$error":"#NAME?"},{"$error":"#NAME?"},{"$error":"#NAME?"}]
["Singles\\Nick & Simon - Het Masker.mp3",{"$error":"#NAME?"},{"$error":"#NAME?"},{"$error":"#NAME?"},{"$error":"#NAME?"}]
["Singles\\Ilse DeLange - Hurricane.mp3",{"$error":"#NAME?"},{"$error":"#NAME?"},{"$error":"#NAME?"},{"$error":"#NAME?"}]
["Singles\\Westlife - Queen Of My Heart.mp3",{"$error":"#NAME?"},{"$error":"#NAME?"},{"$error":"#NAME?"},{"$error":"#NAME?"}]
["Singles\\Gruppo Sportivo - Rock & Roll.mp3",{"$error":"#NAME?"},{"$error":"#NAME?"},{"$error":"#NAME?"},{"$error":"#NAME?"}]
["Singles\\Patricia Paay - Je Bent Niet Hip.mp3",{"$error":"#NAME?"},{"$error":"#NAME?"},{"$error":"#NAME?"},{"$error":"#NAME?"}]
["Singles\\Carla Thomas & Otis Redding - Tramp.mp3",{"$error":"#NAME?"},{"$error":"#NAME?"},{"$error":"#NAME?"},{"$error":"#NAME?"}]
["Singles\\Gerard Cox & Frans Halsema - 1948.mp3",{"$error":"#NAME?"},{"$error":"#NAME?"},{"$error":"#NAME?"},{"$error":"#NAME?"}]
["Singles\\Mariah Carey - Vision Of Love.mp3",{"$error":"#NAME?"},{"$error":"#NAME?"},{"$error":"#NAME?"},{"$error":"#NAME?"}]
["Singles\\Michael Jackson & Justin Timberlake - Love Never Felt So Good.mp3",{"$error":"#NAME?"},{"$error":"#NAME?"},{"$error":"#NAME?"},{"$error":"#NAME?"}]
["Singles\\Vanessa Williams - Save The Best For Last.mp3",{"$error":"#NAME?"},{"$error":"#NAME?"},{"$error":"#NAME?"},{"$error":"#NAME?"}]
["Singles\\The Pasadenas - Riding On A Train.mp3",{"$f":"RegexTest(B$1,$A1667)","v":{"$error":"#NAME?"}},{"$f":"RegexCount(C$1,$A1667)","v":{"$error":"#NAME?"}},{"$f":"RegexFind(D$1,$A1667)","v":{"$error":"#NAME?"}},{"$f":"RegexReplace(E$1,$A1667,F$1)","v":{"$error":"#NAME?"}}]
["Singles\\Four Tops - Walk Away Renee.mp3",{"$error":"#NAME?"},{"$error":"#NAME?"},{"$error":"#NAME?"},{"$error":"#NAME?"}]
["Singles\\Robbie Williams - Rock DJ.mp3",{"$error":"#NAME?"},{"$error":"#NAME?"},{"$error":"#NAME?"},{"$error":"#NAME?"}]
["Singles\\Freddy Breck - Uberall Auf Der Welt.mp3",{"$error":"#NAME?"},{"$error":"#NAME?"},{"$error":"#NAME?"},{"$error":"#NAME?"}]
["Singles\\Outlandish - Aicha.mp3",{"$error":"#NAME?"},{"$error":"#NAME?"},{"$error":"#NAME?"},{"$error":"#NAME?"}]
["Singles\\Far East Movement ft Cover Drive - Turn Up The Love.mp3",{"$error":"#NAME?"},{"$error":"#NAME?"},{"$error":"#NAME?"},{"$error":"#NAME?"}]
["Singles\\Nick & Simon - Herwinnen.mp3",{"$error":"#NAME?"},{"$error":"#NAME?"},{"$error":"#NAME?"},{"$error":"#NAME?"}]
["Singles\\Bing Crosby & Grace Kelly - True Love.mp3",{"$error":"#NAME?"},{"$error":"#NAME?"},{"$error":"#NAME?"},{"$error":"#NAME?"}]
["Singles\\Climie Fisher - Love Changes (Everything).mp3",{"$error":"#NAME?"},{"$error":"#NAME?"},{"$error":"#NAME?"},{"$error":"#NAME?"}]
["Singles\\The Osmonds - Crazy Horses.mp3",{"$error":"#NAME?"},{"$error":"#NAME?"},{"$error":"#NAME?"},{"$error":"#NAME?"}]
["Singles\\The Beatles - Nowhere Man.mp3",{"$error":"#NAME?"},{"$error":"#NAME?"},{"$error":"#NAME?"},{"$error":"#NAME?"}]
["Singles\\Boney M - Painter Man.mp3",{"$error":"#NAME?"},{"$error":"#NAME?"},{"$error":"#NAME?"},{"$error":"#NAME?"}]
["Singles\\Frank Sinatra - New York, New York.mp3",{"$error":"#NAME?"},{"$error":"#NAME?"},{"$error":"#NAME?"},{"$error":"#NAME?"}]
["Singles\\New Kids On The Block - Tonight.mp3",{"$error":"#NAME?"},{"$error":"#NAME?"},{"$error":"#NAME?"},{"$error":"#NAME?"}]
["Singles\\The Beatles - Lady Madonna.mp3",{"$error":"#NAME?"},{"$error":"#NAME?"},{"$error":"#NAME?"},{"$error":"#NAME?"}]
["Singles\\Lowland Trio - Mijn Naam Is Haas.mp3",{"$error":"#NAME?"},{"$error":"#NAME?"},{"$error":"#NAME?"},{"$error":"#NAME?"}]
["Singles\\Lindisfarne - Lady Eleanor.mp3",{"$error":"#NAME?"},{"$error":"#NAME?"},{"$error":"#NAME?"},{"$error":"#NAME?"}]
["Singles\\Esmee Denters - Outta Here.mp3",{"$error":"#NAME?"},{"$error":"#NAME?"},{"$error":"#NAME?"},{"$error":"#NAME?"}]
["Singles\\Vicky Brown - Stay With Me Till The Morning.mp3",{"$error":"#NAME?"},{"$error":"#NAME?"},{"$error":"#NAME?"},{"$error":"#NAME?"}]
["Singles\\Lou Rawls & Diana Reeves - Fine Brown Frame.mp3",{"$error":"#NAME?"},{"$error":"#NAME?"},{"$error":"#NAME?"},{"$error":"#NAME?"}]
["Singles\\Luis Fonsi ft Daddy Yankee - Despacito.mp3",{"$error":"#NAME?"},{"$error":"#NAME?"},{"$error":"#NAME?"},{"$error":"#NAME?"}]
["Singles\\Lionel Richie - Running With The Night.mp3",{"$error":"#NAME?"},{"$error":"#NAME?"},{"$error":"#NAME?"},{"$error":"#NAME?"}]
["Singles\\Yes - Roundabout.mp3",{"$error":"#NAME?"},{"$error":"#NAME?"},{"$error":"#NAME?"},{"$error":"#NAME?"}]
["Singles\\Smokey Robinson & The Miracles - The Tracks Of My Tears.mp3",{"$error":"#NAME?"},{"$error":"#NAME?"},{"$error":"#NAME?"},{"$error":"#NAME?"}]
["Singles\\Juan Luis Guerra - Burbujas De Amor.mp3",{"$error":"#NAME?"},{"$error":"#NAME?"},{"$error":"#NAME?"},{"$error":"#NAME?"}]
["Singles\\Tina Turner - I Don't Wanna Lose You.mp3",{"$error":"#NAME?"},{"$error":"#NAME?"},{"$error":"#NAME?"},{"$error":"#NAME?"}]
["Singles\\Colbie Caillat - Realize.mp3",{"$error":"#NAME?"},{"$error":"#NAME?"},{"$error":"#NAME?"},{"$error":"#NAME?"}]
["Singles\\Imany - Don't Be So Shy.mp3",{"$error":"#NAME?"},{"$error":"#NAME?"},{"$error":"#NAME?"},{"$error":"#NAME?"}]
["Singles\\Mr Probz - Till You're Loved.mp3",{"$error":"#NAME?"},{"$error":"#NAME?"},{"$error":"#NAME?"},{"$error":"#NAME?"}]
["Singles\\Cliff Richard - Congratulations.mp3",{"$error":"#NAME?"},{"$error":"#NAME?"},{"$error":"#NAME?"},{"$error":"#NAME?"}]
["Singles\\Rednex - Cotton Eye Joe.mp3",{"$error":"#NAME?"},{"$error":"#NAME?"},{"$error":"#NAME?"},{"$error":"#NAME?"}]
["Singles\\The Baseballs - Candy Shop.mp3",{"$error":"#NAME?"},{"$error":"#NAME?"},{"$error":"#NAME?"},{"$error":"#NAME?"}]
["Singles\\Shirley Bassey - Goldfinger.mp3",{"$error":"#NAME?"},{"$error":"#NAME?"},{"$error":"#NAME?"},{"$error":"#NAME?"}]
["Singles\\Blof - Hier.mp3",{"$error":"#NAME?"},{"$error":"#NAME?"},{"$error":"#NAME?"},{"$error":"#NAME?"}]
["Singles\\Bontjie Stars - Ma-Di-Wo-Do.mp3",{"$error":"#NAME?"},{"$error":"#NAME?"},{"$error":"#NAME?"},{"$error":"#NAME?"}]
["Singles\\Michael Jackson - Ben.mp3",{"$error":"#NAME?"},{"$error":"#NAME?"},{"$error":"#NAME?"},{"$error":"#NAME?"}]
["Singles\\Massada - Arumbai.mp3",{"$error":"#NAME?"},{"$error":"#NAME?"},{"$error":"#NAME?"},{"$error":"#NAME?"}]
["Singles\\Lutricia McNeal - Stranded.mp3",{"$error":"#NAME?"},{"$error":"#NAME?"},{"$error":"#NAME?"},{"$error":"#NAME?"}]
["Singles\\Showaddywaddy - I Wonder Why.mp3",{"$error":"#NAME?"},{"$error":"#NAME?"},{"$error":"#NAME?"},{"$error":"#NAME?"}]
["Singles\\Icona Pop - I Love It.mp3",{"$error":"#NAME?"},{"$error":"#NAME?"},{"$error":"#NAME?"},{"$error":"#NAME?"}]
["Singles\\Rachel Platten - Fight Song.mp3",{"$error":"#NAME?"},{"$error":"#NAME?"},{"$error":"#NAME?"},{"$error":"#NAME?"}]
["Singles\\The Isley Brothers - Behind A Painted Smile.mp3",{"$error":"#NAME?"},{"$error":"#NAME?"},{"$error":"#NAME?"},{"$error":"#NAME?"}]
["Singles\\Urban Heroes - Habadaba Riwikidi.mp3",{"$error":"#NAME?"},{"$error":"#NAME?"},{"$error":"#NAME?"},{"$error":"#NAME?"}]
["Singles\\Casey Jones & The Governors - Don't Ha Ha.mp3",{"$error":"#NAME?"},{"$error":"#NAME?"},{"$error":"#NAME?"},{"$error":"#NAME?"}]
["Singles\\Inner Circle - Rock With You.mp3",{"$error":"#NAME?"},{"$error":"#NAME?"},{"$error":"#NAME?"},{"$error":"#NAME?"}]
["Singles\\Peter Schilling - Major Tom.mp3",{"$error":"#NAME?"},{"$error":"#NAME?"},{"$error":"#NAME?"},{"$error":"#NAME?"}]
["Singles\\Pink - Blow Me (One Last Kiss).mp3",{"$error":"#NAME?"},{"$error":"#NAME?"},{"$error":"#NAME?"},{"$error":"#NAME?"}]
["Singles\\Dimitri Van Toren - Jij Bent De Mooiste.mp3",{"$error":"#NAME?"},{"$error":"#NAME?"},{"$error":"#NAME?"},{"$error":"#NAME?"}]
["Singles\\Rihanna - Take A Bow.mp3",{"$error":"#NAME?"},{"$error":"#NAME?"},{"$error":"#NAME?"},{"$error":"#NAME?"}]
["Singles\\Simple Minds - Biko.mp3",{"$error":"#NAME?"},{"$error":"#NAME?"},{"$error":"#NAME?"},{"$error":"#NAME?"}]
["Singles\\Boney M - Daddy Cool.mp3",{"$error":"#NAME?"},{"$error":"#NAME?"},{"$error":"#NAME?"},{"$error":"#NAME?"}]
["Singles\\The Bee Gees - He's A Liar.mp3",{"$error":"#NAME?"},{"$error":"#NAME?"},{"$error":"#NAME?"},{"$error":"#NAME?"}]
["Singles\\Eiffel 65 - Blue (Da Ba Dee).mp3",{"$error":"#NAME?"},{"$error":"#NAME?"},{"$error":"#NAME?"},{"$error":"#NAME?"}]
["Singles\\Take That - How Deep Is Your Love.mp3",{"$error":"#NAME?"},{"$error":"#NAME?"},{"$error":"#NAME?"},{"$error":"#NAME?"}]
["Singles\\Rob De Nijs - Alles Wat Ademt.mp3",{"$error":"#NAME?"},{"$error":"#NAME?"},{"$error":"#NAME?"},{"$error":"#NAME?"}]
["Singles\\Zara Larsson - Lush Life.mp3",{"$error":"#NAME?"},{"$error":"#NAME?"},{"$error":"#NAME?"},{"$error":"#NAME?"}]
["Singles\\Abba - Chiquitita.mp3",{"$error":"#NAME?"},{"$error":"#NAME?"},{"$error":"#NAME?"},{"$error":"#NAME?"}]
["Singles\\Martin Garrix & Bebe Rexha - In The Name Of Love.mp3",{"$error":"#NAME?"},{"$error":"#NAME?"},{"$error":"#NAME?"},{"$error":"#NAME?"}]
["Singles\\U2 - Pride (In The Name Of Love).mp3",{"$error":"#NAME?"},{"$error":"#NAME?"},{"$error":"#NAME?"},{"$error":"#NAME?"}]
["Singles\\Marco Borsato & Do - Voorbij.mp3",{"$error":"#NAME?"},{"$error":"#NAME?"},{"$error":"#NAME?"},{"$error":"#NAME?"}]
["Singles\\Cliff Richard - My Kinda Life.mp3",{"$error":"#NAME?"},{"$error":"#NAME?"},{"$error":"#NAME?"},{"$error":"#NAME?"}]
["Singles\\Justin Timberlake - Mirrors.mp3",{"$error":"#NAME?"},{"$error":"#NAME?"},{"$error":"#NAME?"},{"$error":"#NAME?"}]
["Singles\\Scaffold - Thank You Very Much.mp3",{"$error":"#NAME?"},{"$error":"#NAME?"},{"$error":"#NAME?"},{"$error":"#NAME?"}]
["Singles\\Concrete Blonde - Someday.mp3",{"$error":"#NAME?"},{"$error":"#NAME?"},{"$error":"#NAME?"},{"$error":"#NAME?"}]
["Singles\\Lost Frequencies ft Sandro Cavazza - Beautiful Life.mp3",{"$f":"RegexTest(B$1,$A1731)","v":{"$error":"#NAME?"}},{"$f":"RegexCount(C$1,$A1731)","v":{"$error":"#NAME?"}},{"$f":"RegexFind(D$1,$A1731)","v":{"$error":"#NAME?"}},{"$f":"RegexReplace(E$1,$A1731,F$1)","v":{"$error":"#NAME?"}}]
["Singles\\Ray Parker Jr - Ghostbusters.mp3",{"$error":"#NAME?"},{"$error":"#NAME?"},{"$error":"#NAME?"},{"$error":"#NAME?"}]
["Singles\\Cat Stevens - Matthew And Son.mp3",{"$error":"#NAME?"},{"$error":"#NAME?"},{"$error":"#NAME?"},{"$error":"#NAME?"}]
["Singles\\Stevie Wonder - I Was Made To Love Her.mp3",{"$error":"#NAME?"},{"$error":"#NAME?"},{"$error":"#NAME?"},{"$error":"#NAME?"}]
["Singles\\Garland Jeffreys - The Contortionist.mp3",{"$error":"#NAME?"},{"$error":"#NAME?"},{"$error":"#NAME?"},{"$error":"#NAME?"}]
["Singles\\PJ Proby - Somewhere.mp3",{"$error":"#NAME?"},{"$error":"#NAME?"},{"$error":"#NAME?"},{"$error":"#NAME?"}]
["Singles\\Green Day - Good Riddance.mp3",{"$error":"#NAME?"},{"$error":"#NAME?"},{"$error":"#NAME?"},{"$error":"#NAME?"}]
["Singles\\The Baseballs - I Don't Feel Like Dancin'.mp3",{"$error":"#NAME?"},{"$error":"#NAME?"},{"$error":"#NAME?"},{"$error":"#NAME?"}]
["Singles\\BJ Thomas - I Just Can't Help Believing.mp3",{"$error":"#NAME?"},{"$error":"#NAME?"},{"$error":"#NAME?"},{"$error":"#NAME?"}]
["Singles\\Marlene Dietrich - Lili Marlene.mp3",{"$error":"#NAME?"},{"$error":"#NAME?"},{"$error":"#NAME?"},{"$error":"#NAME?"}]
["Singles\\The Cats - Where Have I Been Wrong.mp3",{"$error":"#NAME?"},{"$error":"#NAME?"},{"$error":"#NAME?"},{"$error":"#NAME?"}]
["Singles\\Waylon - The Escapist.mp3",{"$error":"#NAME?"},{"$error":"#NAME?"},{"$error":"#NAME?"},{"$error":"#NAME?"}]
["Singles\\Depeche Mode - Enjoy The Silence.mp3",{"$error":"#NAME?"},{"$error":"#NAME?"},{"$error":"#NAME?"},{"$error":"#NAME?"}]
["Singles\\Bob Dylan - The Times They Are A Changin'.mp3",{"$error":"#NAME?"},{"$error":"#NAME?"},{"$error":"#NAME?"},{"$error":"#NAME?"}]
["Singles\\Perry Como - And I Love You So.mp3",{"$error":"#NAME?"},{"$error":"#NAME?"},{"$error":"#NAME?"},{"$error":"#NAME?"}]
["Singles\\Frans Halsema - Voor Haar.mp3",{"$error":"#NAME?"},{"$error":"#NAME?"},{"$error":"#NAME?"},{"$error":"#NAME?"}]
["Singles\\Pharrell Williams - Freedom.mp3",{"$error":"#NAME?"},{"$error":"#NAME?"},{"$error":"#NAME?"},{"$error":"#NAME?"}]
["Singles\\Bolland & Bolland - Ooh La La.mp3",{"$error":"#NAME?"},{"$error":"#NAME?"},{"$error":"#NAME?"},{"$error":"#NAME?"}]
["Singles\\Bob Dylan - Lay Lady Lay.mp3",{"$error":"#NAME?"},{"$error":"#NAME?"},{"$error":"#NAME?"},{"$error":"#NAME?"}]
["Singles\\Beck - The New Pollution.mp3",{"$error":"#NAME?"},{"$error":"#NAME?"},{"$error":"#NAME?"},{"$error":"#NAME?"}]
["Singles\\Tina Turner - What's Love Got To Do With It.mp3",{"$error":"#NAME?"},{"$error":"#NAME?"},{"$error":"#NAME?"},{"$error":"#NAME?"}]
["Singles\\Fun. - Carry On.mp3",{"$error":"#NAME?"},{"$error":"#NAME?"},{"$error":"#NAME?"},{"$error":"#NAME?"}]
["Singles\\Pussycat Dolls - I Don't Need A Man.mp3",{"$error":"#NAME?"},{"$error":"#NAME?"},{"$error":"#NAME?"},{"$error":"#NAME?"}]
["Singles\\Grace Slick - Seasons.mp3",{"$error":"#NAME?"},{"$error":"#NAME?"},{"$error":"#NAME?"},{"$error":"#NAME?"}]
["Singles\\Phil Collins - You'll Be In My Heart.mp3",{"$error":"#NAME?"},{"$error":"#NAME?"},{"$error":"#NAME?"},{"$error":"#NAME?"}]
["Singles\\Dalida - Gigi L'amoroso.mp3",{"$error":"#NAME?"},{"$error":"#NAME?"},{"$error":"#NAME?"},{"$error":"#NAME?"}]
["Singles\\Peter & Gordon - To Know You Is To Love You.mp3",{"$error":"#NAME?"},{"$error":"#NAME?"},{"$error":"#NAME?"},{"$error":"#NAME?"}]
["Singles\\Hollywood Beyond - Whats The Colour Of Money.mp3",{"$error":"#NAME?"},{"$error":"#NAME?"},{"$error":"#NAME?"},{"$error":"#NAME?"}]
["Singles\\Buffoons - Tomorrow Is Another Day.mp3",{"$error":"#NAME?"},{"$error":"#NAME?"},{"$error":"#NAME?"},{"$error":"#NAME?"}]
["Singles\\Abba - Fernando.mp3",{"$error":"#NAME?"},{"$error":"#NAME?"},{"$error":"#NAME?"},{"$error":"#NAME?"}]
["Singles\\David Bowie - Absolute Beginners.mp3",{"$error":"#NAME?"},{"$error":"#NAME?"},{"$error":"#NAME?"},{"$error":"#NAME?"}]
["Singles\\Sting - They Dance Alone (Cueca Solo).mp3",{"$error":"#NAME?"},{"$error":"#NAME?"},{"$error":"#NAME?"},{"$error":"#NAME?"}]
["Singles\\John Miles - Music.mp3",{"$error":"#NAME?"},{"$error":"#NAME?"},{"$error":"#NAME?"},{"$error":"#NAME?"}]
["Singles\\Rod McKuen - Soldiers Who Want To Be Heroes.mp3",{"$error":"#NAME?"},{"$error":"#NAME?"},{"$error":"#NAME?"},{"$error":"#NAME?"}]
["Singles\\Santana - Samba Pa Ti.mp3",{"$error":"#NAME?"},{"$error":"#NAME?"},{"$error":"#NAME?"},{"$error":"#NAME?"}]
["Singles\\Alan Parsons Project - La Sagrada Familia.mp3",{"$error":"#NAME?"},{"$error":"#NAME?"},{"$error":"#NAME?"},{"$error":"#NAME?"}]
["Singles\\Georgie Fame - The Ballad Of Bonnie And Clyde.mp3",{"$error":"#NAME?"},{"$error":"#NAME?"},{"$error":"#NAME?"},{"$error":"#NAME?"}]
["Singles\\Eric Clapton - Let It Grow.mp3",{"$error":"#NAME?"},{"$error":"#NAME?"},{"$error":"#NAME?"},{"$error":"#NAME?"}]
["Singles\\The Swinging Soul Machine - Spooky's Day Off.mp3",{"$error":"#NAME?"},{"$error":"#NAME?"},{"$error":"#NAME?"},{"$error":"#NAME?"}]
["Singles\\Resonance - OK Chicago.mp3",{"$error":"#NAME?"},{"$error":"#NAME?"},{"$error":"#NAME?"},{"$error":"#NAME?"}]
["Singles\\T-Rex - Hot Love.mp3",{"$error":"#NAME?"},{"$error":"#NAME?"},{"$error":"#NAME?"},{"$error":"#NAME?"}]
["Singles\\Crowded House - Chocolate Cake.mp3",{"$error":"#NAME?"},{"$error":"#NAME?"},{"$error":"#NAME?"},{"$error":"#NAME?"}]
["Singles\\Eagles - Take It Easy.mp3",{"$error":"#NAME?"},{"$error":"#NAME?"},{"$error":"#NAME?"},{"$error":"#NAME?"}]
["Singles\\Sam & Dave - Hold On, I'm Coming.mp3",{"$error":"#NAME?"},{"$error":"#NAME?"},{"$error":"#NAME?"},{"$error":"#NAME?"}]
["Singles\\Whistling Jack Smith - I Was Kaiser Bill's Batman.mp3",{"$error":"#NAME?"},{"$error":"#NAME?"},{"$error":"#NAME?"},{"$error":"#NAME?"}]
["Singles\\Katie Melua - The Closest Thing To Crazy.mp3",{"$error":"#NAME?"},{"$error":"#NAME?"},{"$error":"#NAME?"},{"$error":"#NAME?"}]
["Singles\\Keane - Higher Than The Sun.mp3",{"$error":"#NAME?"},{"$error":"#NAME?"},{"$error":"#NAME?"},{"$error":"#NAME?"}]
["Singles\\The Rolling Stones - Harlem Shuffle.mp3",{"$error":"#NAME?"},{"$error":"#NAME?"},{"$error":"#NAME?"},{"$error":"#NAME?"}]
["Singles\\Sia - Clap Your Hands.mp3",{"$error":"#NAME?"},{"$error":"#NAME?"},{"$error":"#NAME?"},{"$error":"#NAME?"}]
["Singles\\Alesso Ft Tove Lo - Heroes (We Could Be).mp3",{"$error":"#NAME?"},{"$error":"#NAME?"},{"$error":"#NAME?"},{"$error":"#NAME?"}]
["Singles\\Chuck Mangione - Feels So Good.mp3",{"$error":"#NAME?"},{"$error":"#NAME?"},{"$error":"#NAME?"},{"$error":"#NAME?"}]
["Singles\\John Mayer - Shadow Days.mp3",{"$error":"#NAME?"},{"$error":"#NAME?"},{"$error":"#NAME?"},{"$error":"#NAME?"}]
["Singles\\Tom Walker - Leave A Light On.mp3",{"$error":"#NAME?"},{"$error":"#NAME?"},{"$error":"#NAME?"},{"$error":"#NAME?"}]
["Singles\\Afrojack - The Spark.mp3",{"$error":"#NAME?"},{"$error":"#NAME?"},{"$error":"#NAME?"},{"$error":"#NAME?"}]
["Singles\\Carl Douglas - Kung Fu Fighting.mp3",{"$error":"#NAME?"},{"$error":"#NAME?"},{"$error":"#NAME?"},{"$error":"#NAME?"}]
["Singles\\Drs P - Dodenrit.mp3",{"$error":"#NAME?"},{"$error":"#NAME?"},{"$error":"#NAME?"},{"$error":"#NAME?"}]
["Singles\\The Rolling Stones - She's A Rainbow.mp3",{"$error":"#NAME?"},{"$error":"#NAME?"},{"$error":"#NAME?"},{"$error":"#NAME?"}]
["Singles\\Level 42 - Love Games.mp3",{"$error":"#NAME?"},{"$error":"#NAME?"},{"$error":"#NAME?"},{"$error":"#NAME?"}]
["Singles\\The Nice - America.mp3",{"$error":"#NAME?"},{"$error":"#NAME?"},{"$error":"#NAME?"},{"$error":"#NAME?"}]
["Singles\\Mood Mosaic - A Touch Of Velvet.mp3",{"$error":"#NAME?"},{"$error":"#NAME?"},{"$error":"#NAME?"},{"$error":"#NAME?"}]
["Singles\\Rose Royce - RR Express.mp3",{"$error":"#NAME?"},{"$error":"#NAME?"},{"$error":"#NAME?"},{"$error":"#NAME?"}]
["Singles\\Bob Marley - Get Up Stand Up.mp3",{"$error":"#NAME?"},{"$error":"#NAME?"},{"$error":"#NAME?"},{"$error":"#NAME?"}]
["Singles\\Samantha Sang ft The Bee Gees - Emotions.mp3",{"$error":"#NAME?"},{"$error":"#NAME?"},{"$error":"#NAME?"},{"$error":"#NAME?"}]
["Singles\\Shakatak - Easier Said Than Done.mp3",{"$error":"#NAME?"},{"$error":"#NAME?"},{"$error":"#NAME?"},{"$error":"#NAME?"}]
["Singles\\Jonas Blue ft Dakota - Fast Car.mp3",{"$f":"RegexTest(B$1,$A1795)","v":{"$error":"#NAME?"}},{"$f":"RegexCount(C$1,$A1795)","v":{"$error":"#NAME?"}},{"$f":"RegexFind(D$1,$A1795)","v":{"$error":"#NAME?"}},{"$f":"RegexReplace(E$1,$A1795,F$1)","v":{"$error":"#NAME?"}}]
["Singles\\Sting - Love Is The Seventh Wave.mp3",{"$error":"#NAME?"},{"$error":"#NAME?"},{"$error":"#NAME?"},{"$error":"#NAME?"}]
["Singles\\Rory Block - Gypsie Boy.mp3",{"$error":"#NAME?"},{"$error":"#NAME?"},{"$error":"#NAME?"},{"$error":"#NAME?"}]
["Singles\\Queen - Spread Your Wings.mp3",{"$error":"#NAME?"},{"$error":"#NAME?"},{"$error":"#NAME?"},{"$error":"#NAME?"}]
["Singles\\Cat Stevens - I'm Gonna Get Me A Gun.mp3",{"$error":"#NAME?"},{"$error":"#NAME?"},{"$error":"#NAME?"},{"$error":"#NAME?"}]
["Singles\\Strawbs - Part Of The Union.mp3",{"$error":"#NAME?"},{"$error":"#NAME?"},{"$error":"#NAME?"},{"$error":"#NAME?"}]
["Singles\\XYP - Body To Body.mp3",{"$error":"#NAME?"},{"$error":"#NAME?"},{"$error":"#NAME?"},{"$error":"#NAME?"}]
["Singles\\James Blunt - Bonfire Heart.mp3",{"$error":"#NAME?"},{"$error":"#NAME?"},{"$error":"#NAME?"},{"$error":"#NAME?"}]
["Singles\\Coldplay - Talk.mp3",{"$error":"#NAME?"},{"$error":"#NAME?"},{"$error":"#NAME?"},{"$error":"#NAME?"}]
["Singles\\Long Tall Ernie & The Shakers - Get Yourself Together.mp3",{"$error":"#NAME?"},{"$error":"#NAME?"},{"$error":"#NAME?"},{"$error":"#NAME?"}]
["Singles\\Talk Talk - Life's What You Make It.mp3",{"$error":"#NAME?"},{"$error":"#NAME?"},{"$error":"#NAME?"},{"$error":"#NAME?"}]
["Singles\\Ariana Grande - Into You.mp3",{"$error":"#NAME?"},{"$error":"#NAME?"},{"$error":"#NAME?"},{"$error":"#NAME?"}]
["Singles\\Will Smith - Miami.mp3",{"$error":"#NAME?"},{"$error":"#NAME?"},{"$error":"#NAME?"},{"$error":"#NAME?"}]
["Singles\\Tom Jones - Green, Green Grass Of Home.mp3",{"$error":"#NAME?"},{"$error":"#NAME?"},{"$error":"#NAME?"},{"$error":"#NAME?"}]
["Singles\\Engelbert Humperdinck - Quando Quando Quando.mp3",{"$error":"#NAME?"},{"$error":"#NAME?"},{"$error":"#NAME?"},{"$error":"#NAME?"}]
["Singles\\Hotlegs - Neanderthal Man.mp3",{"$error":"#NAME?"},{"$error":"#NAME?"},{"$error":"#NAME?"},{"$error":"#NAME?"}]
["Singles\\T'Pau - Heart And Soul.mp3",{"$error":"#NAME?"},{"$error":"#NAME?"},{"$error":"#NAME?"},{"$error":"#NAME?"}]
["Singles\\Gary Glitter - I'm The Leader Of The Gang.mp3",{"$error":"#NAME?"},{"$error":"#NAME?"},{"$error":"#NAME?"},{"$error":"#NAME?"}]
["Singles\\Calvin Harris - Summer.mp3",{"$error":"#NAME?"},{"$error":"#NAME?"},{"$error":"#NAME?"},{"$error":"#NAME?"}]
["Singles\\Snow Patrol - Crack The Shutters.mp3",{"$error":"#NAME?"},{"$error":"#NAME?"},{"$error":"#NAME?"},{"$error":"#NAME?"}]
["Singles\\Rod Stewart - Passion.mp3",{"$error":"#NAME?"},{"$error":"#NAME?"},{"$error":"#NAME?"},{"$error":"#NAME?"}]
["Singles\\The Beatles - While My Guitar Gently Weeps.mp3",{"$error":"#NAME?"},{"$error":"#NAME?"},{"$error":"#NAME?"},{"$error":"#NAME?"}]
["Singles\\Pearl Jam - Man Of The Hour.mp3",{"$error":"#NAME?"},{"$error":"#NAME?"},{"$error":"#NAME?"},{"$error":"#NAME?"}]
["Singles\\Eagles - Life In The Fast Lane.mp3",{"$error":"#NAME?"},{"$error":"#NAME?"},{"$error":"#NAME?"},{"$error":"#NAME?"}]
["Singles\\Massive Attack - Unfinished Sympathy.mp3",{"$error":"#NAME?"},{"$error":"#NAME?"},{"$error":"#NAME?"},{"$error":"#NAME?"}]
["Singles\\Esther & Abi Ofarim - Cinderella Rockefella.mp3",{"$error":"#NAME?"},{"$error":"#NAME?"},{"$error":"#NAME?"},{"$error":"#NAME?"}]
["Singles\\Madonna - Papa Don't Preach.mp3",{"$error":"#NAME?"},{"$error":"#NAME?"},{"$error":"#NAME?"},{"$error":"#NAME?"}]
["Singles\\Tones And I - Dance Monkey.mp3",{"$error":"#NAME?"},{"$error":"#NAME?"},{"$error":"#NAME?"},{"$error":"#NAME?"}]
["Singles\\Selena Gomez - Back 2 You.mp3",{"$error":"#NAME?"},{"$error":"#NAME?"},{"$error":"#NAME?"},{"$error":"#NAME?"}]
["Singles\\Scissor Sisters - I Don't Feel Like Dancing.mp3",{"$error":"#NAME?"},{"$error":"#NAME?"},{"$error":"#NAME?"},{"$error":"#NAME?"}]
["Singles\\Niels Geusebroek - Take Your Time Girl.mp3",{"$error":"#NAME?"},{"$error":"#NAME?"},{"$error":"#NAME?"},{"$error":"#NAME?"}]
["Singles\\Dan Hill & Vonda Shepherd - Can't We Try.mp3",{"$error":"#NAME?"},{"$error":"#NAME?"},{"$error":"#NAME?"},{"$error":"#NAME?"}]
["Singles\\Marco Borsato - Rood.mp3",{"$error":"#NAME?"},{"$error":"#NAME?"},{"$error":"#NAME?"},{"$error":"#NAME?"}]
["Singles\\Harpo - Moviestar.mp3",{"$error":"#NAME?"},{"$error":"#NAME?"},{"$error":"#NAME?"},{"$error":"#NAME?"}]
["Singles\\Backstreet Boys - Incomplete.mp3",{"$error":"#NAME?"},{"$error":"#NAME?"},{"$error":"#NAME?"},{"$error":"#NAME?"}]
["Singles\\Osibisa - The Coffee Song.mp3",{"$error":"#NAME?"},{"$error":"#NAME?"},{"$error":"#NAME?"},{"$error":"#NAME?"}]
["Singles\\Rene Froger - Just Say Hello.mp3",{"$error":"#NAME?"},{"$error":"#NAME?"},{"$error":"#NAME?"},{"$error":"#NAME?"}]
["Singles\\Flo Rida - Whistle.mp3",{"$error":"#NAME?"},{"$error":"#NAME?"},{"$error":"#NAME?"},{"$error":"#NAME?"}]
["Singles\\Spandau Ballet - Chant No 1.Mp3",{"$error":"#NAME?"},{"$error":"#NAME?"},{"$error":"#NAME?"},{"$error":"#NAME?"}]
["Singles\\Kate Bush - Babooshka.mp3",{"$error":"#NAME?"},{"$error":"#NAME?"},{"$error":"#NAME?"},{"$error":"#NAME?"}]
["Singles\\Lenny Kravitz - Let Love Rule.mp3",{"$error":"#NAME?"},{"$error":"#NAME?"},{"$error":"#NAME?"},{"$error":"#NAME?"}]
["Singles\\Gloria Estefan - Here We Are.mp3",{"$error":"#NAME?"},{"$error":"#NAME?"},{"$error":"#NAME?"},{"$error":"#NAME?"}]
["Singles\\The Rolling Stones - It's Only Rock And Roll.mp3",{"$error":"#NAME?"},{"$error":"#NAME?"},{"$error":"#NAME?"},{"$error":"#NAME?"}]
["Singles\\Ultimate Kaos - Casanova.mp3",{"$error":"#NAME?"},{"$error":"#NAME?"},{"$error":"#NAME?"},{"$error":"#NAME?"}]
["Singles\\The Christians - Born Again.mp3",{"$error":"#NAME?"},{"$error":"#NAME?"},{"$error":"#NAME?"},{"$error":"#NAME?"}]
["Singles\\Culture Beat - Mr Vain.mp3",{"$error":"#NAME?"},{"$error":"#NAME?"},{"$error":"#NAME?"},{"$error":"#NAME?"}]
["Singles\\Cher - Dark Lady.mp3",{"$error":"#NAME?"},{"$error":"#NAME?"},{"$error":"#NAME?"},{"$error":"#NAME?"}]
["Singles\\The Beatles - Paperback Writer.mp3",{"$error":"#NAME?"},{"$error":"#NAME?"},{"$error":"#NAME?"},{"$error":"#NAME?"}]
["Singles\\Chris Hordijk - Won't You Stay.mp3",{"$error":"#NAME?"},{"$error":"#NAME?"},{"$error":"#NAME?"},{"$error":"#NAME?"}]
["Singles\\Troye Sivan - Youth.mp3",{"$error":"#NAME?"},{"$error":"#NAME?"},{"$error":"#NAME?"},{"$error":"#NAME?"}]
["Singles\\Hello - Tell Him.mp3",{"$error":"#NAME?"},{"$error":"#NAME?"},{"$error":"#NAME?"},{"$error":"#NAME?"}]
["Singles\\Matt Simons - With You.mp3",{"$error":"#NAME?"},{"$error":"#NAME?"},{"$error":"#NAME?"},{"$error":"#NAME?"}]
["Singles\\Trafassi - Wasmasjien.mp3",{"$error":"#NAME?"},{"$error":"#NAME?"},{"$error":"#NAME?"},{"$error":"#NAME?"}]
["Singles\\Clouseau - Passie.mp3",{"$error":"#NAME?"},{"$error":"#NAME?"},{"$error":"#NAME?"},{"$error":"#NAME?"}]
["Singles\\Anouk - What Have You Done.mp3",{"$error":"#NAME?"},{"$error":"#NAME?"},{"$error":"#NAME?"},{"$error":"#NAME?"}]
["Singles\\John Travolta - Greased Lightning.mp3",{"$error":"#NAME?"},{"$error":"#NAME?"},{"$error":"#NAME?"},{"$error":"#NAME?"}]
["Singles\\Glitter Band - People Like You And People Like Me.mp3",{"$error":"#NAME?"},{"$error":"#NAME?"},{"$error":"#NAME?"},{"$error":"#NAME?"}]
["Singles\\UB40 - Can't Help Falling In Love.mp3",{"$error":"#NAME?"},{"$error":"#NAME?"},{"$error":"#NAME?"},{"$error":"#NAME?"}]
["Singles\\Amalia Rodriguez - Uma Casa Portuguesa.mp3",{"$error":"#NAME?"},{"$error":"#NAME?"},{"$error":"#NAME?"},{"$error":"#NAME?"}]
["Singles\\De Kast - Hart Van Mijn Gevoel.mp3",{"$error":"#NAME?"},{"$error":"#NAME?"},{"$error":"#NAME?"},{"$error":"#NAME?"}]
["Singles\\Shawn Mendes & Camila Cabello - I Know What You Did Last Summer.mp3",{"$error":"#NAME?"},{"$error":"#NAME?"},{"$error":"#NAME?"},{"$error":"#NAME?"}]
["Singles\\London Beat - Failing In Love Again.mp3",{"$error":"#NAME?"},{"$error":"#NAME?"},{"$error":"#NAME?"},{"$error":"#NAME?"}]
["Singles\\Leo Sayer - Thunder In My Heart.mp3",{"$error":"#NAME?"},{"$error":"#NAME?"},{"$error":"#NAME?"},{"$error":"#NAME?"}]
["Singles\\Chef'Special - Amigo.mp3",{"$error":"#NAME?"},{"$error":"#NAME?"},{"$error":"#NAME?"},{"$error":"#NAME?"}]
["Singles\\Frankie Miller - Love Letters.mp3",{"$f":"RegexTest(B$1,$A1859)","v":{"$error":"#NAME?"}},{"$f":"RegexCount(C$1,$A1859)","v":{"$error":"#NAME?"}},{"$f":"RegexFind(D$1,$A1859)","v":{"$error":"#NAME?"}},{"$f":"RegexReplace(E$1,$A1859,F$1)","v":{"$error":"#NAME?"}}]
["Singles\\Gloria Estefan - I Can't Stay Away From You.mp3",{"$error":"#NAME?"},{"$error":"#NAME?"},{"$error":"#NAME?"},{"$error":"#NAME?"}]
["Singles\\Venga Boys - We Like To Party.mp3",{"$error":"#NAME?"},{"$error":"#NAME?"},{"$error":"#NAME?"},{"$error":"#NAME?"}]
["Singles\\Tsjechov - Vanmorgen Vloog Ze Nog.mp3",{"$error":"#NAME?"},{"$error":"#NAME?"},{"$error":"#NAME?"},{"$error":"#NAME?"}]
["Singles\\Pretty Things - Roadrunner.mp3",{"$error":"#NAME?"},{"$error":"#NAME?"},{"$error":"#NAME?"},{"$error":"#NAME?"}]
["Singles\\Reynolds Girls - I'd Rather Jack.mp3",{"$error":"#NAME?"},{"$error":"#NAME?"},{"$error":"#NAME?"},{"$error":"#NAME?"}]
["Singles\\Lemming - Father John.mp3",{"$error":"#NAME?"},{"$error":"#NAME?"},{"$error":"#NAME?"},{"$error":"#NAME?"}]
["Singles\\Robbie Williams - Tripping.mp3",{"$error":"#NAME?"},{"$error":"#NAME?"},{"$error":"#NAME?"},{"$error":"#NAME?"}]
["Singles\\Joost Nuissl - Ik Ben Blij Dat Ik Je Niet Vergeten Ben.mp3",{"$error":"#NAME?"},{"$error":"#NAME?"},{"$error":"#NAME?"},{"$error":"#NAME?"}]
["Singles\\Genesis - In Too Deep.mp3",{"$error":"#NAME?"},{"$error":"#NAME?"},{"$error":"#NAME?"},{"$error":"#NAME?"}]
["Singles\\Sabrina - Boys.mp3",{"$error":"#NAME?"},{"$error":"#NAME?"},{"$error":"#NAME?"},{"$error":"#NAME?"}]
["Singles\\Ronan Keating - Lovin' Each Day.mp3",{"$error":"#NAME?"},{"$error":"#NAME?"},{"$error":"#NAME?"},{"$error":"#NAME?"}]
["Singles\\Gipsy Kings - Gypsy King Megamix.mp3",{"$error":"#NAME?"},{"$error":"#NAME?"},{"$error":"#NAME?"},{"$error":"#NAME?"}]
["Singles\\Three Dog Night - Joy To The World.mp3",{"$error":"#NAME?"},{"$error":"#NAME?"},{"$error":"#NAME?"},{"$error":"#NAME?"}]
["Singles\\Bakermat - Vandaag.mp3",{"$error":"#NAME?"},{"$error":"#NAME?"},{"$error":"#NAME?"},{"$error":"#NAME?"}]
["Singles\\Noel Harrison - The Windmills Of Your Mind.mp3",{"$error":"#NAME?"},{"$error":"#NAME?"},{"$error":"#NAME?"},{"$error":"#NAME?"}]
["Singles\\Tiesto - Red Lights.mp3",{"$error":"#NAME?"},{"$error":"#NAME?"},{"$error":"#NAME?"},{"$error":"#NAME?"}]
["Singles\\Usher - More.mp3",{"$error":"#NAME?"},{"$error":"#NAME?"},{"$error":"#NAME?"},{"$error":"#NAME?"}]
["Singles\\Lost Frequencies - Are You With Me.mp3",{"$error":"#NAME?"},{"$error":"#NAME?"},{"$error":"#NAME?"},{"$error":"#NAME?"}]
["Singles\\Peter Gabriel - Biko.mp3",{"$error":"#NAME?"},{"$error":"#NAME?"},{"$error":"#NAME?"},{"$error":"#NAME?"}]
["Singles\\Keane ft K'Naan - Stop For A Minute.mp3",{"$error":"#NAME?"},{"$error":"#NAME?"},{"$error":"#NAME?"},{"$error":"#NAME?"}]
["Singles\\Gene Chandler - Duke Of Earl.mp3",{"$error":"#NAME?"},{"$error":"#NAME?"},{"$error":"#NAME?"},{"$error":"#NAME?"}]
["Singles\\Gerry & The Pacemakers - Ferry Across The Mersey.mp3",{"$error":"#NAME?"},{"$error":"#NAME?"},{"$error":"#NAME?"},{"$error":"#NAME?"}]
["Singles\\Tony Joe White - Good In Blues.mp3",{"$error":"#NAME?"},{"$error":"#NAME?"},{"$error":"#NAME?"},{"$error":"#NAME?"}]
["Singles\\Bruce Hornsby & The Range - The Way It Is.mp3",{"$error":"#NAME?"},{"$error":"#NAME?"},{"$error":"#NAME?"},{"$error":"#NAME?"}]
["Singles\\UB40 - Kingston Town.mp3",{"$error":"#NAME?"},{"$error":"#NAME?"},{"$error":"#NAME?"},{"$error":"#NAME?"}]
["Singles\\Imagine Dragons - On Top Of The World.mp3",{"$error":"#NAME?"},{"$error":"#NAME?"},{"$error":"#NAME?"},{"$error":"#NAME?"}]
["Singles\\Viktor Lazlo - Breathless.mp3",{"$error":"#NAME?"},{"$error":"#NAME?"},{"$error":"#NAME?"},{"$error":"#NAME?"}]
["Singles\\Monty Python - Always Look On The Bright Side Of Life.mp3",{"$error":"#NAME?"},{"$error":"#NAME?"},{"$error":"#NAME?"},{"$error":"#NAME?"}]
["Singles\\The Monkees - Daydream Believer.mp3",{"$error":"#NAME?"},{"$error":"#NAME?"},{"$error":"#NAME?"},{"$error":"#NAME?"}]
["Singles\\George Baker Selection - Morning Light.mp3",{"$error":"#NAME?"},{"$error":"#NAME?"},{"$error":"#NAME?"},{"$error":"#NAME?"}]
["Singles\\Sugababes - Round Round.mp3",{"$error":"#NAME?"},{"$error":"#NAME?"},{"$error":"#NAME?"},{"$error":"#NAME?"}]
["Singles\\Prince Buster - Dance Cleopatra.mp3",{"$error":"#NAME?"},{"$error":"#NAME?"},{"$error":"#NAME?"},{"$error":"#NAME?"}]
["Singles\\Doe Maar - Is Dit Alles.mp3",{"$error":"#NAME?"},{"$error":"#NAME?"},{"$error":"#NAME?"},{"$error":"#NAME?"}]
["Singles\\Major Lazer & DJ Snake - Lean On.mp3",{"$error":"#NAME?"},{"$error":"#NAME?"},{"$error":"#NAME?"},{"$error":"#NAME?"}]
["Singles\\Marco Borsato - Emozioni.mp3",{"$error":"#NAME?"},{"$error":"#NAME?"},{"$error":"#NAME?"},{"$error":"#NAME?"}]
["Singles\\Coldplay - Paradise.mp3",{"$error":"#NAME?"},{"$error":"#NAME?"},{"$error":"#NAME?"},{"$error":"#NAME?"}]
["Singles\\Dolly Dots - Hela-Di-Ladi-Lo.mp3",{"$error":"#NAME?"},{"$error":"#NAME?"},{"$error":"#NAME?"},{"$error":"#NAME?"}]
["Singles\\Cam - Burning House.mp3",{"$error":"#NAME?"},{"$error":"#NAME?"},{"$error":"#NAME?"},{"$error":"#NAME?"}]
["Singles\\Queen - I Want It All.mp3",{"$error":"#NAME?"},{"$error":"#NAME?"},{"$error":"#NAME?"},{"$error":"#NAME?"}]
["Singles\\Prince - Kiss.mp3",{"$error":"#NAME?"},{"$error":"#NAME?"},{"$error":"#NAME?"},{"$error":"#NAME?"}]
["Singles\\The Bee Gees - Don't Forget To Remember Me.mp3",{"$error":"#NAME?"},{"$error":"#NAME?"},{"$error":"#NAME?"},{"$error":"#NAME?"}]
["Singles\\Stromae - Formidable.mp3",{"$error":"#NAME?"},{"$error":"#NAME?"},{"$error":"#NAME?"},{"$error":"#NAME?"}]
["Singles\\Celine Dion - Its All Coming Back To Me Now.mp3",{"$error":"#NAME?"},{"$error":"#NAME?"},{"$error":"#NAME?"},{"$error":"#NAME?"}]
["Singles\\Gavin DeGraw - I Don't Want To Be.mp3",{"$error":"#NAME?"},{"$error":"#NAME?"},{"$error":"#NAME?"},{"$error":"#NAME?"}]
["Singles\\Aphrodite's Child - Rain And Tears.mp3",{"$error":"#NAME?"},{"$error":"#NAME?"},{"$error":"#NAME?"},{"$error":"#NAME?"}]
["Singles\\Brother Beyond - The Harder I Try.mp3",{"$error":"#NAME?"},{"$error":"#NAME?"},{"$error":"#NAME?"},{"$error":"#NAME?"}]
["Singles\\Gala - Freed From Desire.mp3",{"$error":"#NAME?"},{"$error":"#NAME?"},{"$error":"#NAME?"},{"$error":"#NAME?"}]
["Singles\\U2 - Ordinary Love.mp3",{"$error":"#NAME?"},{"$error":"#NAME?"},{"$error":"#NAME?"},{"$error":"#NAME?"}]
["Singles\\Diana Ross - I'm Coming Out.mp3",{"$error":"#NAME?"},{"$error":"#NAME?"},{"$error":"#NAME?"},{"$error":"#NAME?"}]
["Singles\\David Guetta ft Sam Martin - Dangerous.mp3",{"$error":"#NAME?"},{"$error":"#NAME?"},{"$error":"#NAME?"},{"$error":"#NAME?"}]
["Singles\\Tammy Wynette - D-I-V-O-R-C-E.mp3",{"$error":"#NAME?"},{"$error":"#NAME?"},{"$error":"#NAME?"},{"$error":"#NAME?"}]
["Singles\\Janis Ian - Fly Too High.mp3",{"$error":"#NAME?"},{"$error":"#NAME?"},{"$error":"#NAME?"},{"$error":"#NAME?"}]
["Singles\\Laura Pausini - La Solitudine.mp3",{"$error":"#NAME?"},{"$error":"#NAME?"},{"$error":"#NAME?"},{"$error":"#NAME?"}]
["Singles\\The Chi-Lites - Yes I'm Ready.mp3",{"$error":"#NAME?"},{"$error":"#NAME?"},{"$error":"#NAME?"},{"$error":"#NAME?"}]
["Singles\\Queen - You Don't Fool Me.mp3",{"$error":"#NAME?"},{"$error":"#NAME?"},{"$error":"#NAME?"},{"$error":"#NAME?"}]
["Singles\\Marco Borsato - Stop De Tijd.mp3",{"$error":"#NAME?"},{"$error":"#NAME?"},{"$error":"#NAME?"},{"$error":"#NAME?"}]
["Singles\\Reinhard Mey - Gute Nacht Freunde.mp3",{"$error":"#NAME?"},{"$error":"#NAME?"},{"$error":"#NAME?"},{"$error":"#NAME?"}]
["Singles\\James Blunt - 1973.mp3",{"$error":"#NAME?"},{"$error":"#NAME?"},{"$error":"#NAME?"},{"$error":"#NAME?"}]
["Singles\\The Heights - How Do You Talk To An Angel.mp3",{"$error":"#NAME?"},{"$error":"#NAME?"},{"$error":"#NAME?"},{"$error":"#NAME?"}]
["Singles\\Mike Perry ft Shy Martin - The Ocean.mp3",{"$error":"#NAME?"},{"$error":"#NAME?"},{"$error":"#NAME?"},{"$error":"#NAME?"}]
["Singles\\Marilyn - You Don't Love Me.mp3",{"$error":"#NAME?"},{"$error":"#NAME?"},{"$error":"#NAME?"},{"$error":"#NAME?"}]
["Singles\\Big Country - Look Away.mp3",{"$error":"#NAME?"},{"$error":"#NAME?"},{"$error":"#NAME?"},{"$error":"#NAME?"}]
["Singles\\John Barry - Midnight Cowboy.mp3",{"$error":"#NAME?"},{"$error":"#NAME?"},{"$error":"#NAME?"},{"$error":"#NAME?"}]
["Singles\\Dave Dee, Dozy, Beaky, Mick & Tich - Zabadak.mp3",{"$f":"RegexTest(B$1,$A1923)","v":{"$error":"#NAME?"}},{"$f":"RegexCount(C$1,$A1923)","v":{"$error":"#NAME?"}},{"$f":"RegexFind(D$1,$A1923)","v":{"$error":"#NAME?"}},{"$f":"RegexReplace(E$1,$A1923,F$1)","v":{"$error":"#NAME?"}}]
["Singles\\Joe Buck - The Way You Take Time.mp3",{"$error":"#NAME?"},{"$error":"#NAME?"},{"$error":"#NAME?"},{"$error":"#NAME?"}]
["Singles\\Derek & The Dominos - Layla.mp3",{"$error":"#NAME?"},{"$error":"#NAME?"},{"$error":"#NAME?"},{"$error":"#NAME?"}]
["Singles\\Train - Drive By.mp3",{"$error":"#NAME?"},{"$error":"#NAME?"},{"$error":"#NAME?"},{"$error":"#NAME?"}]
["Singles\\Climax Blues Band - I Love You.mp3",{"$error":"#NAME?"},{"$error":"#NAME?"},{"$error":"#NAME?"},{"$error":"#NAME?"}]
["Singles\\Ellie Goulding - Something In The Way You Move.mp3",{"$error":"#NAME?"},{"$error":"#NAME?"},{"$error":"#NAME?"},{"$error":"#NAME?"}]
["Singles\\The Beatles - I Saw Her Standing There.mp3",{"$error":"#NAME?"},{"$error":"#NAME?"},{"$error":"#NAME?"},{"$error":"#NAME?"}]
["Singles\\Bananarama - Rough Justice.mp3",{"$error":"#NAME?"},{"$error":"#NAME?"},{"$error":"#NAME?"},{"$error":"#NAME?"}]
["Singles\\The Verve - Bittersweet Symphony.mp3",{"$error":"#NAME?"},{"$error":"#NAME?"},{"$error":"#NAME?"},{"$error":"#NAME?"}]
["Singles\\One Direction - History.mp3",{"$error":"#NAME?"},{"$error":"#NAME?"},{"$error":"#NAME?"},{"$error":"#NAME?"}]
["Singles\\Inna - Hot.mp3",{"$error":"#NAME?"},{"$error":"#NAME?"},{"$error":"#NAME?"},{"$error":"#NAME?"}]
["Singles\\Seal - Love's Divine.mp3",{"$error":"#NAME?"},{"$error":"#NAME?"},{"$error":"#NAME?"},{"$error":"#NAME?"}]
["Singles\\Calvin Harris ft Rihanna - This Is What You Came For.mp3",{"$error":"#NAME?"},{"$error":"#NAME?"},{"$error":"#NAME?"},{"$error":"#NAME?"}]
["Singles\\Herman's Hermits - There's A Kind Of Hush.mp3",{"$error":"#NAME?"},{"$error":"#NAME?"},{"$error":"#NAME?"},{"$error":"#NAME?"}]
["Singles\\Lene Lovich - Say When.mp3",{"$error":"#NAME?"},{"$error":"#NAME?"},{"$error":"#NAME?"},{"$error":"#NAME?"}]
["Singles\\Modjo - Lady (Hear Me Tonight).mp3",{"$error":"#NAME?"},{"$error":"#NAME?"},{"$error":"#NAME?"},{"$error":"#NAME?"}]
["Singles\\Squeeze - Cool For Cats.mp3",{"$error":"#NAME?"},{"$error":"#NAME?"},{"$error":"#NAME?"},{"$error":"#NAME?"}]
["Singles\\Quarterflash - Harden My Heart.mp3",{"$error":"#NAME?"},{"$error":"#NAME?"},{"$error":"#NAME?"},{"$error":"#NAME?"}]
["Singles\\Emilia - Big Big World.mp3",{"$error":"#NAME?"},{"$error":"#NAME?"},{"$error":"#NAME?"},{"$error":"#NAME?"}]
["Singles\\Hailee Steinfeld & Grey ft Zedd - Starving.mp3",{"$error":"#NAME?"},{"$error":"#NAME?"},{"$error":"#NAME?"},{"$error":"#NAME?"}]
["Singles\\Diana Ross - Theme From Mahogany (Do You Know Where You're Going To).mp3",{"$error":"#NAME?"},{"$error":"#NAME?"},{"$error":"#NAME?"},{"$error":"#NAME?"}]
["Singles\\American Authors - Best Day Of My Life.mp3",{"$error":"#NAME?"},{"$error":"#NAME?"},{"$error":"#NAME?"},{"$error":"#NAME?"}]
["Singles\\Yello - I Love You.mp3",{"$error":"#NAME?"},{"$error":"#NAME?"},{"$error":"#NAME?"},{"$error":"#NAME?"}]
["Singles\\Eurythmics - Sisters Are Doing It For Themselves.mp3",{"$error":"#NAME?"},{"$error":"#NAME?"},{"$error":"#NAME?"},{"$error":"#NAME?"}]
["Singles\\Jackie Wilson - Reet Petite.mp3",{"$error":"#NAME?"},{"$error":"#NAME?"},{"$error":"#NAME?"},{"$error":"#NAME?"}]
["Singles\\Del Shannon - Little Town Flirt.mp3",{"$error":"#NAME?"},{"$error":"#NAME?"},{"$error":"#NAME?"},{"$error":"#NAME?"}]
["Singles\\Glenn Miller & The Andrews Sisters - Chatanooga Choo Choo.mp3",{"$error":"#NAME?"},{"$error":"#NAME?"},{"$error":"#NAME?"},{"$error":"#NAME?"}]
["Singles\\Gloria Estefan & The Miami Sound Machine - Conga.mp3",{"$error":"#NAME?"},{"$error":"#NAME?"},{"$error":"#NAME?"},{"$error":"#NAME?"}]
["Singles\\Dua Lipa - Hotter Than Hell.mp3",{"$error":"#NAME?"},{"$error":"#NAME?"},{"$error":"#NAME?"},{"$error":"#NAME?"}]
["Singles\\R Kelly - I Wish.mp3",{"$error":"#NAME?"},{"$error":"#NAME?"},{"$error":"#NAME?"},{"$error":"#NAME?"}]
["Singles\\Tom Jones - I'm Coming Home.mp3",{"$error":"#NAME?"},{"$error":"#NAME?"},{"$error":"#NAME?"},{"$error":"#NAME?"}]
["Singles\\Four Tops - A Simple Game.mp3",{"$error":"#NAME?"},{"$error":"#NAME?"},{"$error":"#NAME?"},{"$error":"#NAME?"}]
["Singles\\Nat King Cole & Natalie Cole - Unforgettable.mp3",{"$error":"#NAME?"},{"$error":"#NAME?"},{"$error":"#NAME?"},{"$error":"#NAME?"}]
["Singles\\Ferre Grignard - Drunken Sailor.mp3",{"$error":"#NAME?"},{"$error":"#NAME?"},{"$error":"#NAME?"},{"$error":"#NAME?"}]
["Singles\\Tim Immers - Liever Dan Lief.mp3",{"$error":"#NAME?"},{"$error":"#NAME?"},{"$error":"#NAME?"},{"$error":"#NAME?"}]
["Singles\\Sting - Moon Over Bourbon Street.mp3",{"$error":"#NAME?"},{"$error":"#NAME?"},{"$error":"#NAME?"},{"$error":"#NAME?"}]
["Singles\\ZZ & De Maskers - La Comparsa.mp3",{"$error":"#NAME?"},{"$error":"#NAME?"},{"$error":"#NAME?"},{"$error":"#NAME?"}]
["Singles\\The Beatles - The Long And Winding Road.mp3",{"$error":"#NAME?"},{"$error":"#NAME?"},{"$error":"#NAME?"},{"$error":"#NAME?"}]
["Singles\\Elton John - Your Song.mp3",{"$error":"#NAME?"},{"$error":"#NAME?"},{"$error":"#NAME?"},{"$error":"#NAME?"}]
["Singles\\Theo & Marjan - He Schat, Weet Je Dat.mp3",{"$error":"#NAME?"},{"$error":"#NAME?"},{"$error":"#NAME?"},{"$error":"#NAME?"}]
["Singles\\Milli Vanilli - Blame It On The Rain.mp3",{"$error":"#NAME?"},{"$error":"#NAME?"},{"$error":"#NAME?"},{"$error":"#NAME?"}]
["Singles\\Ricchi & Poveri - M'Innamoro Di Te.mp3",{"$error":"#NAME?"},{"$error":"#NAME?"},{"$error":"#NAME?"},{"$error":"#NAME?"}]
["Singles\\Time Bandits - Reach Out.mp3",{"$error":"#NAME?"},{"$error":"#NAME?"},{"$error":"#NAME?"},{"$error":"#NAME?"}]
["Singles\\John Legend ft Estelle - No Other Love.mp3",{"$error":"#NAME?"},{"$error":"#NAME?"},{"$error":"#NAME?"},{"$error":"#NAME?"}]
["Singles\\Alcazar - This Is The World We Live In.mp3",{"$error":"#NAME?"},{"$error":"#NAME?"},{"$error":"#NAME?"},{"$error":"#NAME?"}]
["Singles\\Kings Of Leon - Use Somebody.mp3",{"$error":"#NAME?"},{"$error":"#NAME?"},{"$error":"#NAME?"},{"$error":"#NAME?"}]
["Singles\\Total Touch - Touch Me There.mp3",{"$error":"#NAME?"},{"$error":"#NAME?"},{"$error":"#NAME?"},{"$error":"#NAME?"}]
["Singles\\Billy Ocean - There'll Be Sad Songs (to Make You Cry).mp3",{"$error":"#NAME?"},{"$error":"#NAME?"},{"$error":"#NAME?"},{"$error":"#NAME?"}]
["Singles\\Birdy - People Help The People.mp3",{"$error":"#NAME?"},{"$error":"#NAME?"},{"$error":"#NAME?"},{"$error":"#NAME?"}]
["Singles\\Engelbert Humperdinck - The Last Waltz.mp3",{"$error":"#NAME?"},{"$error":"#NAME?"},{"$error":"#NAME?"},{"$error":"#NAME?"}]
["Singles\\The Fray - How To Save A Life.mp3",{"$error":"#NAME?"},{"$error":"#NAME?"},{"$error":"#NAME?"},{"$error":"#NAME?"}]
["Singles\\Percy Faith - Crunchy Granola Suite.mp3",{"$error":"#NAME?"},{"$error":"#NAME?"},{"$error":"#NAME?"},{"$error":"#NAME?"}]
["Singles\\Donna Summer - Lady Of The Night.mp3",{"$error":"#NAME?"},{"$error":"#NAME?"},{"$error":"#NAME?"},{"$error":"#NAME?"}]
["Singles\\David Guetta ft Zara Larsson - This One's For You.mp3",{"$error":"#NAME?"},{"$error":"#NAME?"},{"$error":"#NAME?"},{"$error":"#NAME?"}]
["Singles\\Bad Company - Cant Get Enough Of Your Love.mp3",{"$error":"#NAME?"},{"$error":"#NAME?"},{"$error":"#NAME?"},{"$error":"#NAME?"}]
["Singles\\Leen Jongewaard & André Van Den Heuvel - Op Een Mooie Pinksterdag.mp3",{"$error":"#NAME?"},{"$error":"#NAME?"},{"$error":"#NAME?"},{"$error":"#NAME?"}]
["Singles\\Rod Stewart - Hot Legs.mp3",{"$error":"#NAME?"},{"$error":"#NAME?"},{"$error":"#NAME?"},{"$error":"#NAME?"}]
["Singles\\Neon Trees - Animal.mp3",{"$error":"#NAME?"},{"$error":"#NAME?"},{"$error":"#NAME?"},{"$error":"#NAME?"}]
["Singles\\Arne Jansen - Meisjes Met Rode Haren.mp3",{"$error":"#NAME?"},{"$error":"#NAME?"},{"$error":"#NAME?"},{"$error":"#NAME?"}]
["Singles\\Catapult - Teeny Bopperband.mp3",{"$error":"#NAME?"},{"$error":"#NAME?"},{"$error":"#NAME?"},{"$error":"#NAME?"}]
["Singles\\Sergio Mendes & Brasil '66 - Mas Que Nada.mp3",{"$error":"#NAME?"},{"$error":"#NAME?"},{"$error":"#NAME?"},{"$error":"#NAME?"}]
["Singles\\The Beatles - Tell Me What You See.mp3",{"$error":"#NAME?"},{"$error":"#NAME?"},{"$error":"#NAME?"},{"$error":"#NAME?"}]
["Singles\\The Hollies - Dear Eloise.mp3",{"$error":"#NAME?"},{"$error":"#NAME?"},{"$error":"#NAME?"},{"$error":"#NAME?"}]
["Singles\\Rose Royce - Love Don't Live Here Anymore.mp3",{"$error":"#NAME?"},{"$error":"#NAME?"},{"$error":"#NAME?"},{"$error":"#NAME?"}]
["Singles\\John Mayer - In The Blood.mp3",{"$f":"RegexTest(B$1,$A1987)","v":{"$error":"#NAME?"}},{"$f":"RegexCount(C$1,$A1987)","v":{"$error":"#NAME?"}},{"$f":"RegexFind(D$1,$A1987)","v":{"$error":"#NAME?"}},{"$f":"RegexReplace(E$1,$A1987,F$1)","v":{"$error":"#NAME?"}}]
["Singles\\Davina Michelle - Duurt Te Lang.mp3",{"$error":"#NAME?"},{"$error":"#NAME?"},{"$error":"#NAME?"},{"$error":"#NAME?"}]
["Singles\\Johnny & The Hurricanes - Red River Rock.mp3",{"$error":"#NAME?"},{"$error":"#NAME?"},{"$error":"#NAME?"},{"$error":"#NAME?"}]
["Singles\\The Chainsmokers - Paris.mp3",{"$error":"#NAME?"},{"$error":"#NAME?"},{"$error":"#NAME?"},{"$error":"#NAME?"}]
["Singles\\Little Peggy March - I Will Follow Him.mp3",{"$error":"#NAME?"},{"$error":"#NAME?"},{"$error":"#NAME?"},{"$error":"#NAME?"}]
["Singles\\Change - Change Of Heart.mp3",{"$error":"#NAME?"},{"$error":"#NAME?"},{"$error":"#NAME?"},{"$error":"#NAME?"}]
["Singles\\Andrews Sisters - Rum And Coca Cola.mp3",{"$error":"#NAME?"},{"$error":"#NAME?"},{"$error":"#NAME?"},{"$error":"#NAME?"}]
["Singles\\Earth & Fire - Invitation.mp3",{"$error":"#NAME?"},{"$error":"#NAME?"},{"$error":"#NAME?"},{"$error":"#NAME?"}]
["Singles\\Elvis Costello - Good Year For The Roses.mp3",{"$error":"#NAME?"},{"$error":"#NAME?"},{"$error":"#NAME?"},{"$error":"#NAME?"}]
["Singles\\Gordon Lightfoot - Wreck Of The Edmund Fitzgerald.mp3",{"$error":"#NAME?"},{"$error":"#NAME?"},{"$error":"#NAME?"},{"$error":"#NAME?"}]
["Singles\\Noah Kahan & Julia Michaels - Hurt Somebody.mp3",{"$error":"#NAME?"},{"$error":"#NAME?"},{"$error":"#NAME?"},{"$error":"#NAME?"}]
["Singles\\Doe Maar - De Bom.mp3",{"$error":"#NAME?"},{"$error":"#NAME?"},{"$error":"#NAME?"},{"$error":"#NAME?"}]
["Singles\\De Poema's - Mijn Houten Hart.mp3",{"$error":"#NAME?"},{"$error":"#NAME?"},{"$error":"#NAME?"},{"$error":"#NAME?"}]
["Singles\\John Lennon - (Just Like) Starting Over.mp3",{"$error":"#NAME?"},{"$error":"#NAME?"},{"$error":"#NAME?"},{"$error":"#NAME?"}]
["Singles\\Bata Illic - Michaela.mp3",{"$error":"#NAME?"},{"$error":"#NAME?"},{"$error":"#NAME?"},{"$error":"#NAME?"}]
["Singles\\Them - Here Comes The Night.mp3",{"$error":"#NAME?"},{"$error":"#NAME?"},{"$error":"#NAME?"},{"$error":"#NAME?"}]
["Singles\\Omi - Cheerleader.mp3",{"$error":"#NAME?"},{"$error":"#NAME?"},{"$error":"#NAME?"},{"$error":"#NAME?"}]
["Singles\\UB40 - Homely Girl.mp3",{"$error":"#NAME?"},{"$error":"#NAME?"},{"$error":"#NAME?"},{"$error":"#NAME?"}]
["Singles\\Gers Pardoel - Ik Neem Je Mee.mp3",{"$error":"#NAME?"},{"$error":"#NAME?"},{"$error":"#NAME?"},{"$error":"#NAME?"}]
["Singles\\Justin Bieber - Love Yourself.mp3",{"$error":"#NAME?"},{"$error":"#NAME?"},{"$error":"#NAME?"},{"$error":"#NAME?"}]
["Singles\\UB40 - Food (For Thought).mp3",{"$error":"#NAME?"},{"$error":"#NAME?"},{"$error":"#NAME?"},{"$error":"#NAME?"}]
["Singles\\Lou Rawls - You're Gonna Miss My Lovin.mp3",{"$error":"#NAME?"},{"$error":"#NAME?"},{"$error":"#NAME?"},{"$error":"#NAME?"}]
["Singles\\Chris Barber's Jazzband - Petite Fleur.mp3",{"$error":"#NAME?"},{"$error":"#NAME?"},{"$error":"#NAME?"},{"$error":"#NAME?"}]
["Singles\\The Beatles - I Should Have Known Better.mp3",{"$error":"#NAME?"},{"$error":"#NAME?"},{"$error":"#NAME?"},{"$error":"#NAME?"}]
["Singles\\The Ventures - Walk Don't Run.mp3",{"$error":"#NAME?"},{"$error":"#NAME?"},{"$error":"#NAME?"},{"$error":"#NAME?"}]
["Singles\\Bolland & Bolland - Mexico I Can't Say Goodbye.mp3",{"$error":"#NAME?"},{"$error":"#NAME?"},{"$error":"#NAME?"},{"$error":"#NAME?"}]
["Singles\\Kids From Fame - Starmaker.mp3",{"$error":"#NAME?"},{"$error":"#NAME?"},{"$error":"#NAME?"},{"$error":"#NAME?"}]
["Singles\\Young Disciples - Apparently Nothin'.mp3",{"$error":"#NAME?"},{"$error":"#NAME?"},{"$error":"#NAME?"},{"$error":"#NAME?"}]
["Singles\\Steely Dan - Dirty Work.mp3",{"$error":"#NAME?"},{"$error":"#NAME?"},{"$error":"#NAME?"},{"$error":"#NAME?"}]
["Singles\\Dave Dee, Dozy, Beaky, Mick & Tich - Don Juan.mp3",{"$error":"#NAME?"},{"$error":"#NAME?"},{"$error":"#NAME?"},{"$error":"#NAME?"}]
["Singles\\Robin Schulz ft James Blunt - Ok.mp3",{"$error":"#NAME?"},{"$error":"#NAME?"},{"$error":"#NAME?"},{"$error":"#NAME?"}]
["Singles\\The Drifters - Up On The Roof.mp3",{"$error":"#NAME?"},{"$error":"#NAME?"},{"$error":"#NAME?"},{"$error":"#NAME?"}]
["Singles\\The Kinks - Days.mp3",{"$error":"#NAME?"},{"$error":"#NAME?"},{"$error":"#NAME?"},{"$error":"#NAME?"}]
["Singles\\Blof - Wat Zou Je Doen.mp3",{"$error":"#NAME?"},{"$error":"#NAME?"},{"$error":"#NAME?"},{"$error":"#NAME?"}]
["Singles\\Fun. - Some Nights.mp3",{"$error":"#NAME?"},{"$error":"#NAME?"},{"$error":"#NAME?"},{"$error":"#NAME?"}]
["Singles\\Robbie Williams - Candy.mp3",{"$error":"#NAME?"},{"$error":"#NAME?"},{"$error":"#NAME?"},{"$error":"#NAME?"}]
["Singles\\Tony Dallara - Come Prima.mp3",{"$error":"#NAME?"},{"$error":"#NAME?"},{"$error":"#NAME?"},{"$error":"#NAME?"}]
["Singles\\Vanity Fair - Early In The Morning.mp3",{"$error":"#NAME?"},{"$error":"#NAME?"},{"$error":"#NAME?"},{"$error":"#NAME?"}]
["Singles\\The Tremeloes - Helule Helule.mp3",{"$error":"#NAME?"},{"$error":"#NAME?"},{"$error":"#NAME?"},{"$error":"#NAME?"}]
["Singles\\Dan Fogelberg - Netherlands.mp3",{"$error":"#NAME?"},{"$error":"#NAME?"},{"$error":"#NAME?"},{"$error":"#NAME?"}]
["Singles\\Armin Van Buuren ft Kensington - Heading Up High.mp3",{"$error":"#NAME?"},{"$error":"#NAME?"},{"$error":"#NAME?"},{"$error":"#NAME?"}]
["Singles\\New Radicals - You Get What You Give.mp3",{"$error":"#NAME?"},{"$error":"#NAME?"},{"$error":"#NAME?"},{"$error":"#NAME?"}]
["Singles\\Kelly Clarkson - Mr Know It All.mp3",{"$error":"#NAME?"},{"$error":"#NAME?"},{"$error":"#NAME?"},{"$error":"#NAME?"}]
["Singles\\The Supremes - I Hear A Symphony.mp3",{"$error":"#NAME?"},{"$error":"#NAME?"},{"$error":"#NAME?"},{"$error":"#NAME?"}]
["Singles\\Donny & Marie Osmond - I'm Leaving It All Up To You.mp3",{"$error":"#NAME?"},{"$error":"#NAME?"},{"$error":"#NAME?"},{"$error":"#NAME?"}]
["Singles\\Venga Boys - We're Going To Ibiza.mp3",{"$error":"#NAME?"},{"$error":"#NAME?"},{"$error":"#NAME?"},{"$error":"#NAME?"}]
["Singles\\Lou Rawls - See You When I Get There.mp3",{"$error":"#NAME?"},{"$error":"#NAME?"},{"$error":"#NAME?"},{"$error":"#NAME?"}]
["Singles\\Elvis Presley - Love Me Tender.mp3",{"$error":"#NAME?"},{"$error":"#NAME?"},{"$error":"#NAME?"},{"$error":"#NAME?"}]
["Singles\\War - Slippin' Into Darkness.mp3",{"$error":"#NAME?"},{"$error":"#NAME?"},{"$error":"#NAME?"},{"$error":"#NAME?"}]
["Singles\\Mitch Miller - March From The River Kwai.mp3",{"$error":"#NAME?"},{"$error":"#NAME?"},{"$error":"#NAME?"},{"$error":"#NAME?"}]
["Singles\\Diana King - Shy Guy.mp3",{"$error":"#NAME?"},{"$error":"#NAME?"},{"$error":"#NAME?"},{"$error":"#NAME?"}]
["Singles\\Zedd ft Alessia Cara - Stay.mp3",{"$error":"#NAME?"},{"$error":"#NAME?"},{"$error":"#NAME?"},{"$error":"#NAME?"}]
["Singles\\Latin Quarter - Radio Africa.mp3",{"$error":"#NAME?"},{"$error":"#NAME?"},{"$error":"#NAME?"},{"$error":"#NAME?"}]
["Singles\\Kelly Family - Fell In Love With An Alien.mp3",{"$error":"#NAME?"},{"$error":"#NAME?"},{"$error":"#NAME?"},{"$error":"#NAME?"}]
["Singles\\BB King - The Thrill Is Gone.mp3",{"$error":"#NAME?"},{"$error":"#NAME?"},{"$error":"#NAME?"},{"$error":"#NAME?"}]
["Singles\\Cliff Richard - The Day I Met Marie.mp3",{"$error":"#NAME?"},{"$error":"#NAME?"},{"$error":"#NAME?"},{"$error":"#NAME?"}]
["Singles\\Paul De Leeuw & Simone Kleinsma - Zonder Jou.mp3",{"$error":"#NAME?"},{"$error":"#NAME?"},{"$error":"#NAME?"},{"$error":"#NAME?"}]
["Singles\\Sigma - Nobody To Love.mp3",{"$error":"#NAME?"},{"$error":"#NAME?"},{"$error":"#NAME?"},{"$error":"#NAME?"}]
["Singles\\Elton John - Nobody Wins.mp3",{"$error":"#NAME?"},{"$error":"#NAME?"},{"$error":"#NAME?"},{"$error":"#NAME?"}]
["Singles\\Donna Summer - I Feel Love.mp3",{"$error":"#NAME?"},{"$error":"#NAME?"},{"$error":"#NAME?"},{"$error":"#NAME?"}]
["Singles\\Ray Price - You're Nobody 'til Somebody Loves You.mp3",{"$error":"#NAME?"},{"$error":"#NAME?"},{"$error":"#NAME?"},{"$error":"#NAME?"}]
["Singles\\Ramses Shaffy - Laat Me.mp3",{"$error":"#NAME?"},{"$error":"#NAME?"},{"$error":"#NAME?"},{"$error":"#NAME?"}]
["Singles\\Bucks Fizz - When We Were Young.mp3",{"$error":"#NAME?"},{"$error":"#NAME?"},{"$error":"#NAME?"},{"$error":"#NAME?"}]
["Singles\\Howard Jones - Life In One Day.mp3",{"$error":"#NAME?"},{"$error":"#NAME?"},{"$error":"#NAME?"},{"$error":"#NAME?"}]
["Singles\\The Beatles - Norwegian Wood (This Bird Has Flown).mp3",{"$f":"RegexTest(B$1,$A2051)","v":{"$error":"#NAME?"}},{"$f":"RegexCount(C$1,$A2051)","v":{"$error":"#NAME?"}},{"$f":"RegexFind(D$1,$A2051)","v":{"$error":"#NAME?"}},{"$f":"RegexReplace(E$1,$A2051,F$1)","v":{"$error":"#NAME?"}}]
["Singles\\Gary Glitter - I Love You Love Me Love.mp3",{"$error":"#NAME?"},{"$error":"#NAME?"},{"$error":"#NAME?"},{"$error":"#NAME?"}]
["Singles\\Wham - Wake Me Up Before You Go Go.mp3",{"$error":"#NAME?"},{"$error":"#NAME?"},{"$error":"#NAME?"},{"$error":"#NAME?"}]
["Singles\\Gino Vannelli - Powerful People.mp3",{"$error":"#NAME?"},{"$error":"#NAME?"},{"$error":"#NAME?"},{"$error":"#NAME?"}]
["Singles\\Roy Orbison - Ooby Dooby.mp3",{"$error":"#NAME?"},{"$error":"#NAME?"},{"$error":"#NAME?"},{"$error":"#NAME?"}]
["Singles\\Wim Sonneveld - De Kat Van Ome Willem.mp3",{"$error":"#NAME?"},{"$error":"#NAME?"},{"$error":"#NAME?"},{"$error":"#NAME?"}]
["Singles\\Bastille - Things We Lost In The Fire.mp3",{"$error":"#NAME?"},{"$error":"#NAME?"},{"$error":"#NAME?"},{"$error":"#NAME?"}]
["Singles\\Judy Collins - Send In The Clowns.mp3",{"$error":"#NAME?"},{"$error":"#NAME?"},{"$error":"#NAME?"},{"$error":"#NAME?"}]
["Singles\\Earth Wind & Fire - Fantasy.mp3",{"$error":"#NAME?"},{"$error":"#NAME?"},{"$error":"#NAME?"},{"$error":"#NAME?"}]
["Singles\\Maroon 5 - Sugar.mp3",{"$error":"#NAME?"},{"$error":"#NAME?"},{"$error":"#NAME?"},{"$error":"#NAME?"}]
["Singles\\Kygo ft Kodaline - Raging.mp3",{"$error":"#NAME?"},{"$error":"#NAME?"},{"$error":"#NAME?"},{"$error":"#NAME?"}]
["Singles\\Jason Derulo - It Girl.mp3",{"$error":"#NAME?"},{"$error":"#NAME?"},{"$error":"#NAME?"},{"$error":"#NAME?"}]
["Singles\\The Nits - J.O.S. Days.mp3",{"$error":"#NAME?"},{"$error":"#NAME?"},{"$error":"#NAME?"},{"$error":"#NAME?"}]
["Singles\\Them - Baby Please Don't Go.mp3",{"$error":"#NAME?"},{"$error":"#NAME?"},{"$error":"#NAME?"},{"$error":"#NAME?"}]
["Singles\\Connie Francis - Stupid Cupid.mp3",{"$error":"#NAME?"},{"$error":"#NAME?"},{"$error":"#NAME?"},{"$error":"#NAME?"}]
["Singles\\Vanessa Williams - Colors Of The Wind.mp3",{"$error":"#NAME?"},{"$error":"#NAME?"},{"$error":"#NAME?"},{"$error":"#NAME?"}]
["Singles\\Sergio Mendes & Brasil '66 - The Girl From Ipanema.mp3",{"$error":"#NAME?"},{"$error":"#NAME?"},{"$error":"#NAME?"},{"$error":"#NAME?"}]
["Singles\\Agnetha Faltskog - Wrap Your Arms Around Me.MP3",{"$error":"#NAME?"},{"$error":"#NAME?"},{"$error":"#NAME?"},{"$error":"#NAME?"}]
["Singles\\Manau - La Tribu De Dana.mp3",{"$error":"#NAME?"},{"$error":"#NAME?"},{"$error":"#NAME?"},{"$error":"#NAME?"}]
["Singles\\Hip Hop Sugar Hill Gang - Rappers Delight.mp3",{"$error":"#NAME?"},{"$error":"#NAME?"},{"$error":"#NAME?"},{"$error":"#NAME?"}]
["Singles\\Two Man Sound - Disco Samba.mp3",{"$error":"#NAME?"},{"$error":"#NAME?"},{"$error":"#NAME?"},{"$error":"#NAME?"}]
["Singles\\Ariana Grande - Dangerous Woman.mp3",{"$error":"#NAME?"},{"$error":"#NAME?"},{"$error":"#NAME?"},{"$error":"#NAME?"}]
["Singles\\Jackson Browne - Running On Empty.mp3",{"$error":"#NAME?"},{"$error":"#NAME?"},{"$error":"#NAME?"},{"$error":"#NAME?"}]
["Singles\\Birdy - Wings.mp3",{"$error":"#NAME?"},{"$error":"#NAME?"},{"$error":"#NAME?"},{"$error":"#NAME?"}]
["Singles\\Anastacia - I Can Feel You.mp3",{"$error":"#NAME?"},{"$error":"#NAME?"},{"$error":"#NAME?"},{"$error":"#NAME?"}]
["Singles\\Red Hot Chili Peppers - Dark Necessities.mp3",{"$error":"#NAME?"},{"$error":"#NAME?"},{"$error":"#NAME?"},{"$error":"#NAME?"}]
["Singles\\Sly & The Family Stone - Dance To The Music.mp3",{"$error":"#NAME?"},{"$error":"#NAME?"},{"$error":"#NAME?"},{"$error":"#NAME?"}]
["Singles\\OneRepublic - Secrets.mp3",{"$error":"#NAME?"},{"$error":"#NAME?"},{"$error":"#NAME?"},{"$error":"#NAME?"}]
["Singles\\Freddie & The Dreamers - You Were Made For Me.mp3",{"$error":"#NAME?"},{"$error":"#NAME?"},{"$error":"#NAME?"},{"$error":"#NAME?"}]
["Singles\\Herman Van Veen - Toveren.mp3",{"$error":"#NAME?"},{"$error":"#NAME?"},{"$error":"#NAME?"},{"$error":"#NAME?"}]
["Singles\\Billy Idol - Hot In The City.mp3",{"$error":"#NAME?"},{"$error":"#NAME?"},{"$error":"#NAME?"},{"$error":"#NAME?"}]
["Singles\\Graham Parker & Rumour - (Hey Lord) Don't Ask Me Questions.mp3",{"$error":"#NAME?"},{"$error":"#NAME?"},{"$error":"#NAME?"},{"$error":"#NAME?"}]
["Singles\\Volumia! - Afscheid.mp3",{"$error":"#NAME?"},{"$error":"#NAME?"},{"$error":"#NAME?"},{"$error":"#NAME?"}]
["Singles\\Tiesto ft Bright Sparks - On My Way.mp3",{"$error":"#NAME?"},{"$error":"#NAME?"},{"$error":"#NAME?"},{"$error":"#NAME?"}]
["Singles\\Heart - Barracuda.mp3",{"$error":"#NAME?"},{"$error":"#NAME?"},{"$error":"#NAME?"},{"$error":"#NAME?"}]
["Singles\\Alle Farben ft Graham Candy - She Moves (Far Away).mp3",{"$error":"#NAME?"},{"$error":"#NAME?"},{"$error":"#NAME?"},{"$error":"#NAME?"}]
["Singles\\Udo Jürgens - Zeig Mir Den Platz.mp3",{"$error":"#NAME?"},{"$error":"#NAME?"},{"$error":"#NAME?"},{"$error":"#NAME?"}]
["Singles\\Wind - Lass Die Sonne In Dein Herz.mp3",{"$error":"#NAME?"},{"$error":"#NAME?"},{"$error":"#NAME?"},{"$error":"#NAME?"}]
["Singles\\Three Degrees - When Will I See You Again.mp3",{"$error":"#NAME?"},{"$error":"#NAME?"},{"$error":"#NAME?"},{"$error":"#NAME?"}]
["Singles\\The Beat - Hands Off...She's Mine.mp3",{"$error":"#NAME?"},{"$error":"#NAME?"},{"$error":"#NAME?"},{"$error":"#NAME?"}]
["Singles\\Enrique Iglesias - Can You Hear Me.mp3",{"$error":"#NAME?"},{"$error":"#NAME?"},{"$error":"#NAME?"},{"$error":"#NAME?"}]
["Singles\\Dubliners - The Wild Rover.mp3",{"$error":"#NAME?"},{"$error":"#NAME?"},{"$error":"#NAME?"},{"$error":"#NAME?"}]
["Singles\\The Bee Gees - Words.mp3",{"$error":"#NAME?"},{"$error":"#NAME?"},{"$error":"#NAME?"},{"$error":"#NAME?"}]
["Singles\\Right Said Fred - Daydream.mp3",{"$error":"#NAME?"},{"$error":"#NAME?"},{"$error":"#NAME?"},{"$error":"#NAME?"}]
["Singles\\Del Shannon - Keep Searchin' (We'll Follow The Sun).mp3",{"$error":"#NAME?"},{"$error":"#NAME?"},{"$error":"#NAME?"},{"$error":"#NAME?"}]
["Singles\\Westlife - My Love.mp3",{"$error":"#NAME?"},{"$error":"#NAME?"},{"$error":"#NAME?"},{"$error":"#NAME?"}]
["Singles\\Bon Jovi - Always.mp3",{"$error":"#NAME?"},{"$error":"#NAME?"},{"$error":"#NAME?"},{"$error":"#NAME?"}]
["Singles\\Pink Floyd - Grantchester Meadows.mp3",{"$error":"#NAME?"},{"$error":"#NAME?"},{"$error":"#NAME?"},{"$error":"#NAME?"}]
["Singles\\Earth & Fire - Song Of The Marching Children.mp3",{"$error":"#NAME?"},{"$error":"#NAME?"},{"$error":"#NAME?"},{"$error":"#NAME?"}]
["Singles\\Jaki Graham - Breaking Away.mp3",{"$error":"#NAME?"},{"$error":"#NAME?"},{"$error":"#NAME?"},{"$error":"#NAME?"}]
["Singles\\Adele - Turning Tables.mp3",{"$error":"#NAME?"},{"$error":"#NAME?"},{"$error":"#NAME?"},{"$error":"#NAME?"}]
["Singles\\Guus Meeuwis & Vagant - Het Is Een Nacht (Levensecht).mp3",{"$error":"#NAME?"},{"$error":"#NAME?"},{"$error":"#NAME?"},{"$error":"#NAME?"}]
["Singles\\Europe - Carrie.mp3",{"$error":"#NAME?"},{"$error":"#NAME?"},{"$error":"#NAME?"},{"$error":"#NAME?"}]
["Singles\\Michael Jackson - Beat It.mp3",{"$error":"#NAME?"},{"$error":"#NAME?"},{"$error":"#NAME?"},{"$error":"#NAME?"}]
["Singles\\Chicago - Hard To Say I'm Sorry.mp3",{"$error":"#NAME?"},{"$error":"#NAME?"},{"$error":"#NAME?"},{"$error":"#NAME?"}]
["Singles\\Los Fieras - En La Playa.mp3",{"$error":"#NAME?"},{"$error":"#NAME?"},{"$error":"#NAME?"},{"$error":"#NAME?"}]
["Singles\\Coldplay - A Sky Full Of Stars.mp3",{"$error":"#NAME?"},{"$error":"#NAME?"},{"$error":"#NAME?"},{"$error":"#NAME?"}]
["Singles\\Moewe & Daniel Nitt - Lovers Friends.mp3",{"$error":"#NAME?"},{"$error":"#NAME?"},{"$error":"#NAME?"},{"$error":"#NAME?"}]
["Singles\\Mary Mary - Shackles (Praise You).mp3",{"$error":"#NAME?"},{"$error":"#NAME?"},{"$error":"#NAME?"},{"$error":"#NAME?"}]
["Singles\\Bruce Springsteen - Born In The USA.mp3",{"$error":"#NAME?"},{"$error":"#NAME?"},{"$error":"#NAME?"},{"$error":"#NAME?"}]
["Singles\\Harry Belafonte - Island In The Sun.mp3",{"$error":"#NAME?"},{"$error":"#NAME?"},{"$error":"#NAME?"},{"$error":"#NAME?"}]
["Singles\\Sparks - Never Turn Your Back On Mother Earth.mp3",{"$error":"#NAME?"},{"$error":"#NAME?"},{"$error":"#NAME?"},{"$error":"#NAME?"}]
["Singles\\Ricky Martin - Un Dos Tres Maria.mp3",{"$error":"#NAME?"},{"$error":"#NAME?"},{"$error":"#NAME?"},{"$error":"#NAME?"}]
["Singles\\Ed Sheeran ft Khalid - Beautiful People.mp3",{"$error":"#NAME?"},{"$error":"#NAME?"},{"$error":"#NAME?"},{"$error":"#NAME?"}]
["Singles\\Corry Brokken - La Mamma.mp3",{"$f":"RegexTest(B$1,$A2115)","v":{"$error":"#NAME?"}},{"$f":"RegexCount(C$1,$A2115)","v":{"$error":"#NAME?"}},{"$f":"RegexFind(D$1,$A2115)","v":{"$error":"#NAME?"}},{"$f":"RegexReplace(E$1,$A2115,F$1)","v":{"$error":"#NAME?"}}]
["Singles\\Ginger Ale - The Flood.mp3",{"$error":"#NAME?"},{"$error":"#NAME?"},{"$error":"#NAME?"},{"$error":"#NAME?"}]
["Singles\\U2 - The Unforgettable Fire.mp3",{"$error":"#NAME?"},{"$error":"#NAME?"},{"$error":"#NAME?"},{"$error":"#NAME?"}]
["Singles\\Merrilee Rush - Angel Of The Morning.mp3",{"$error":"#NAME?"},{"$error":"#NAME?"},{"$error":"#NAME?"},{"$error":"#NAME?"}]
["Singles\\Alan Parsons Project - Don't Answer Me.mp3",{"$error":"#NAME?"},{"$error":"#NAME?"},{"$error":"#NAME?"},{"$error":"#NAME?"}]
["Singles\\Cream - Strange Brew.mp3",{"$error":"#NAME?"},{"$error":"#NAME?"},{"$error":"#NAME?"},{"$error":"#NAME?"}]
["Singles\\Frank Boeijen Groep - De Verzoening.mp3",{"$error":"#NAME?"},{"$error":"#NAME?"},{"$error":"#NAME?"},{"$error":"#NAME?"}]
["Singles\\Toto - Pamela.mp3",{"$error":"#NAME?"},{"$error":"#NAME?"},{"$error":"#NAME?"},{"$error":"#NAME?"}]
["Singles\\Future World Orchestra - Roulette.mp3",{"$error":"#NAME?"},{"$error":"#NAME?"},{"$error":"#NAME?"},{"$error":"#NAME?"}]
["Singles\\Maywood - Give Me Back My Love.mp3",{"$error":"#NAME?"},{"$error":"#NAME?"},{"$error":"#NAME?"},{"$error":"#NAME?"}]
["Singles\\Crosby, Stills, Nash & Young - Helpless.mp3",{"$error":"#NAME?"},{"$error":"#NAME?"},{"$error":"#NAME?"},{"$error":"#NAME?"}]
["Singles\\Bonnie St Claire - I Won't Stand Between Them.mp3",{"$error":"#NAME?"},{"$error":"#NAME?"},{"$error":"#NAME?"},{"$error":"#NAME?"}]
["Singles\\Celine Dion - I'm Alive.mp3",{"$error":"#NAME?"},{"$error":"#NAME?"},{"$error":"#NAME?"},{"$error":"#NAME?"}]
["Singles\\Michael Buble - Haven't Met You Yet.mp3",{"$error":"#NAME?"},{"$error":"#NAME?"},{"$error":"#NAME?"},{"$error":"#NAME?"}]
["Singles\\Kylie Minogue - I Should Be So Lucky.mp3",{"$error":"#NAME?"},{"$error":"#NAME?"},{"$error":"#NAME?"},{"$error":"#NAME?"}]
["Singles\\Bananarama - Robert De Niro's Waiting.mp3",{"$error":"#NAME?"},{"$error":"#NAME?"},{"$error":"#NAME?"},{"$error":"#NAME?"}]
["Singles\\Kungs ft Cookin On 3 Burners - This Girl.mp3",{"$error":"#NAME?"},{"$error":"#NAME?"},{"$error":"#NAME?"},{"$error":"#NAME?"}]
["Singles\\Abc - Poison Arrow.mp3",{"$error":"#NAME?"},{"$error":"#NAME?"},{"$error":"#NAME?"},{"$error":"#NAME?"}]
["Singles\\Mans Zelmerlow - Heroes.mp3",{"$error":"#NAME?"},{"$error":"#NAME?"},{"$error":"#NAME?"},{"$error":"#NAME?"}]
["Singles\\Pet Shop Boys - Suburbia.mp3",{"$error":"#NAME?"},{"$error":"#NAME?"},{"$error":"#NAME?"},{"$error":"#NAME?"}]
["Singles\\Pat Boone - April Love.mp3",{"$error":"#NAME?"},{"$error":"#NAME?"},{"$error":"#NAME?"},{"$error":"#NAME?"}]
["Singles\\VOF De Kunst - Dikkertje Dap.mp3",{"$error":"#NAME?"},{"$error":"#NAME?"},{"$error":"#NAME?"},{"$error":"#NAME?"}]
["Singles\\A-Ha - Touchy!.mp3",{"$error":"#NAME?"},{"$error":"#NAME?"},{"$error":"#NAME?"},{"$error":"#NAME?"}]
["Singles\\Kings Of Leon - Wait For Me.mp3",{"$error":"#NAME?"},{"$error":"#NAME?"},{"$error":"#NAME?"},{"$error":"#NAME?"}]
["Singles\\Gladys Knight - Licence To Kill.mp3",{"$error":"#NAME?"},{"$error":"#NAME?"},{"$error":"#NAME?"},{"$error":"#NAME?"}]
["Singles\\Outsiders - Lying All The Time.mp3",{"$error":"#NAME?"},{"$error":"#NAME?"},{"$error":"#NAME?"},{"$error":"#NAME?"}]
["Singles\\Jim Capaldi - Something So Strong.mp3",{"$error":"#NAME?"},{"$error":"#NAME?"},{"$error":"#NAME?"},{"$error":"#NAME?"}]
["Singles\\Joan Baez - The Night They Drove Old Dixie Down.mp3",{"$error":"#NAME?"},{"$error":"#NAME?"},{"$error":"#NAME?"},{"$error":"#NAME?"}]
["Singles\\Maggie MacNeal - Amsterdam.mp3",{"$error":"#NAME?"},{"$error":"#NAME?"},{"$error":"#NAME?"},{"$error":"#NAME?"}]
["Singles\\The Voice Of Holland - One Thousand Voices.mp3",{"$error":"#NAME?"},{"$error":"#NAME?"},{"$error":"#NAME?"},{"$error":"#NAME?"}]
["Singles\\Q65 - Ann.mp3",{"$error":"#NAME?"},{"$error":"#NAME?"},{"$error":"#NAME?"},{"$error":"#NAME?"}]
["Singles\\Zucchero & Paul Young - Senza Una Donna.mp3",{"$error":"#NAME?"},{"$error":"#NAME?"},{"$error":"#NAME?"},{"$error":"#NAME?"}]
["Singles\\Harold Faltermeyer - Axel F.mp3",{"$error":"#NAME?"},{"$error":"#NAME?"},{"$error":"#NAME?"},{"$error":"#NAME?"}]
["Singles\\Twenty One Pilots - Ride.mp3",{"$error":"#NAME?"},{"$error":"#NAME?"},{"$error":"#NAME?"},{"$error":"#NAME?"}]
["Singles\\Barry & Eileen - If You Go.mp3",{"$error":"#NAME?"},{"$error":"#NAME?"},{"$error":"#NAME?"},{"$error":"#NAME?"}]
["Singles\\Abba - I Have A Dream.mp3",{"$error":"#NAME?"},{"$error":"#NAME?"},{"$error":"#NAME?"},{"$error":"#NAME?"}]
["Singles\\Little Richard - Twins.mp3",{"$error":"#NAME?"},{"$error":"#NAME?"},{"$error":"#NAME?"},{"$error":"#NAME?"}]
["Singles\\Blof - Ze Is Er Niet.mp3",{"$error":"#NAME?"},{"$error":"#NAME?"},{"$error":"#NAME?"},{"$error":"#NAME?"}]
["Singles\\Santana ft Wyclef Jean - Maria Maria.mp3",{"$error":"#NAME?"},{"$error":"#NAME?"},{"$error":"#NAME?"},{"$error":"#NAME?"}]
["Singles\\Robbie Williams - Sexed Up.mp3",{"$error":"#NAME?"},{"$error":"#NAME?"},{"$error":"#NAME?"},{"$error":"#NAME?"}]
["Singles\\The White Stripes - Seven Nation Army.mp3",{"$error":"#NAME?"},{"$error":"#NAME?"},{"$error":"#NAME?"},{"$error":"#NAME?"}]
["Singles\\Demis Roussos - Schönes Mädchen Aus Arcadia.mp3",{"$error":"#NAME?"},{"$error":"#NAME?"},{"$error":"#NAME?"},{"$error":"#NAME?"}]
["Singles\\Julia Michaels - Issues.mp3",{"$error":"#NAME?"},{"$error":"#NAME?"},{"$error":"#NAME?"},{"$error":"#NAME?"}]
["Singles\\The Beatles - She Loves You.mp3",{"$error":"#NAME?"},{"$error":"#NAME?"},{"$error":"#NAME?"},{"$error":"#NAME?"}]
["Singles\\Pleps - 'k Wis Niet Dat Je Kwaad Werd.mp3",{"$error":"#NAME?"},{"$error":"#NAME?"},{"$error":"#NAME?"},{"$error":"#NAME?"}]
["Singles\\Bananarama - Really Saying Something.mp3",{"$error":"#NAME?"},{"$error":"#NAME?"},{"$error":"#NAME?"},{"$error":"#NAME?"}]
["Singles\\Shakira ft Wyclef Jean - Hips Don't Lie.mp3",{"$error":"#NAME?"},{"$error":"#NAME?"},{"$error":"#NAME?"},{"$error":"#NAME?"}]
["Singles\\Maitre Gims - J'me Tire.mp3",{"$error":"#NAME?"},{"$error":"#NAME?"},{"$error":"#NAME?"},{"$error":"#NAME?"}]
["Singles\\Splitsing - Wind En Zeilen.mp3",{"$error":"#NAME?"},{"$error":"#NAME?"},{"$error":"#NAME?"},{"$error":"#NAME?"}]
["Singles\\The Beach Boys - God Only Knows.mp3",{"$error":"#NAME?"},{"$error":"#NAME?"},{"$error":"#NAME?"},{"$error":"#NAME?"}]
["Singles\\Ace Of Base - Living In Danger.mp3",{"$error":"#NAME?"},{"$error":"#NAME?"},{"$error":"#NAME?"},{"$error":"#NAME?"}]
["Singles\\The Bee Gees - How Deep Is Your Love.mp3",{"$error":"#NAME?"},{"$error":"#NAME?"},{"$error":"#NAME?"},{"$error":"#NAME?"}]
["Singles\\Oliver Onions - Sandokan.mp3",{"$error":"#NAME?"},{"$error":"#NAME?"},{"$error":"#NAME?"},{"$error":"#NAME?"}]
["Singles\\Safri Duo - Played A Live (The Bongo Song).mp3",{"$error":"#NAME?"},{"$error":"#NAME?"},{"$error":"#NAME?"},{"$error":"#NAME?"}]
["Singles\\Fluitsma & Van Tijn - 15 Miljoen Mensen.mp3",{"$error":"#NAME?"},{"$error":"#NAME?"},{"$error":"#NAME?"},{"$error":"#NAME?"}]
["Singles\\Tol Hansse - Achter De Rhodondendron.mp3",{"$error":"#NAME?"},{"$error":"#NAME?"},{"$error":"#NAME?"},{"$error":"#NAME?"}]
["Singles\\Dave A Stewart & Candy Dulfer - Lily Was Here.mp3",{"$error":"#NAME?"},{"$error":"#NAME?"},{"$error":"#NAME?"},{"$error":"#NAME?"}]
["Singles\\Donovan - Catch The Wind.mp3",{"$error":"#NAME?"},{"$error":"#NAME?"},{"$error":"#NAME?"},{"$error":"#NAME?"}]
["Singles\\Pink Floyd - The Nile Song.mp3",{"$error":"#NAME?"},{"$error":"#NAME?"},{"$error":"#NAME?"},{"$error":"#NAME?"}]
["Singles\\Neil Sedaka - Stupid Cupid.mp3",{"$error":"#NAME?"},{"$error":"#NAME?"},{"$error":"#NAME?"},{"$error":"#NAME?"}]
["Singles\\One Direction - Drag Me Down.mp3",{"$error":"#NAME?"},{"$error":"#NAME?"},{"$error":"#NAME?"},{"$error":"#NAME?"}]
["Singles\\John Lennon - Whatever Gets You Through The Night.mp3",{"$error":"#NAME?"},{"$error":"#NAME?"},{"$error":"#NAME?"},{"$error":"#NAME?"}]
["Singles\\Jim Reeves - I Won't Forget You.mp3",{"$error":"#NAME?"},{"$error":"#NAME?"},{"$error":"#NAME?"},{"$error":"#NAME?"}]
["Singles\\Katy Perry - Rise.mp3",{"$error":"#NAME?"},{"$error":"#NAME?"},{"$error":"#NAME?"},{"$error":"#NAME?"}]
["Singles\\Steve Forbert - Romeo's Tune.mp3",{"$f":"RegexTest(B$1,$A2179)","v":{"$error":"#NAME?"}},{"$f":"RegexCount(C$1,$A2179)","v":{"$error":"#NAME?"}},{"$f":"RegexFind(D$1,$A2179)","v":{"$error":"#NAME?"}},{"$f":"RegexReplace(E$1,$A2179,F$1)","v":{"$error":"#NAME?"}}]
["Singles\\Bananarama & Lananeeneenoonoo - Help.mp3",{"$error":"#NAME?"},{"$error":"#NAME?"},{"$error":"#NAME?"},{"$error":"#NAME?"}]
["Singles\\Abba - The Winner Takes It All.mp3",{"$error":"#NAME?"},{"$error":"#NAME?"},{"$error":"#NAME?"},{"$error":"#NAME?"}]
["Singles\\The Beatles - Baby's In Black.mp3",{"$error":"#NAME?"},{"$error":"#NAME?"},{"$error":"#NAME?"},{"$error":"#NAME?"}]
["Singles\\Pink - Raise Your Glass.mp3",{"$error":"#NAME?"},{"$error":"#NAME?"},{"$error":"#NAME?"},{"$error":"#NAME?"}]
["Singles\\Peaches & Herb - Reunited.mp3",{"$error":"#NAME?"},{"$error":"#NAME?"},{"$error":"#NAME?"},{"$error":"#NAME?"}]
["Singles\\Rob De Nijs - Mirella.mp3",{"$error":"#NAME?"},{"$error":"#NAME?"},{"$error":"#NAME?"},{"$error":"#NAME?"}]
["Singles\\Bob Carlisle - Butterfly Kisses.mp3",{"$error":"#NAME?"},{"$error":"#NAME?"},{"$error":"#NAME?"},{"$error":"#NAME?"}]
["Singles\\The Rolling Stones - Undercover Of The Night.mp3",{"$error":"#NAME?"},{"$error":"#NAME?"},{"$error":"#NAME?"},{"$error":"#NAME?"}]
["Singles\\Peggy Lee - Hey Big Spender.mp3",{"$error":"#NAME?"},{"$error":"#NAME?"},{"$error":"#NAME?"},{"$error":"#NAME?"}]
["Singles\\Klique - Stop Doggin' Me Around.mp3",{"$error":"#NAME?"},{"$error":"#NAME?"},{"$error":"#NAME?"},{"$error":"#NAME?"}]
["Singles\\Smokie - Lay Back In The Arms Of Someone.mp3",{"$error":"#NAME?"},{"$error":"#NAME?"},{"$error":"#NAME?"},{"$error":"#NAME?"}]
["Singles\\Vera Lynn - We'll Meet Again.mp3",{"$error":"#NAME?"},{"$error":"#NAME?"},{"$error":"#NAME?"},{"$error":"#NAME?"}]
["Singles\\Sunclub - Fiesta De Los Tamborileros.mp3",{"$error":"#NAME?"},{"$error":"#NAME?"},{"$error":"#NAME?"},{"$error":"#NAME?"}]
["Singles\\Marco Borsato & Lucie Silvas - Everytime I Think Of You.mp3",{"$error":"#NAME?"},{"$error":"#NAME?"},{"$error":"#NAME?"},{"$error":"#NAME?"}]
["Singles\\Edith Piaf - Non, Je Ne Regrette Rien.mp3",{"$error":"#NAME?"},{"$error":"#NAME?"},{"$error":"#NAME?"},{"$error":"#NAME?"}]
["Singles\\Ramses Shaffy - Wij Zullen Doorgaan.mp3",{"$error":"#NAME?"},{"$error":"#NAME?"},{"$error":"#NAME?"},{"$error":"#NAME?"}]
["Singles\\Cat Stevens - The First Cut Is The Deepest.mp3",{"$error":"#NAME?"},{"$error":"#NAME?"},{"$error":"#NAME?"},{"$error":"#NAME?"}]
["Singles\\ZZ Top - Sharp Dressed Man.mp3",{"$error":"#NAME?"},{"$error":"#NAME?"},{"$error":"#NAME?"},{"$error":"#NAME?"}]
["Singles\\The Move - Flowers In The Rain.mp3",{"$error":"#NAME?"},{"$error":"#NAME?"},{"$error":"#NAME?"},{"$error":"#NAME?"}]
["Singles\\Era - The Mass.mp3",{"$error":"#NAME?"},{"$error":"#NAME?"},{"$error":"#NAME?"},{"$error":"#NAME?"}]
["Singles\\The Foundations - Build Me Up Buttercup.mp3",{"$error":"#NAME?"},{"$error":"#NAME?"},{"$error":"#NAME?"},{"$error":"#NAME?"}]
["Singles\\Medicine Head - Slip And Slide.mp3",{"$error":"#NAME?"},{"$error":"#NAME?"},{"$error":"#NAME?"},{"$error":"#NAME?"}]
["Singles\\Joe Dassin - L'été Indien.mp3",{"$error":"#NAME?"},{"$error":"#NAME?"},{"$error":"#NAME?"},{"$error":"#NAME?"}]
["Singles\\Passenger - Let Her Go.mp3",{"$error":"#NAME?"},{"$error":"#NAME?"},{"$error":"#NAME?"},{"$error":"#NAME?"}]
["Singles\\Bette Midler - From A Distance.mp3",{"$error":"#NAME?"},{"$error":"#NAME?"},{"$error":"#NAME?"},{"$error":"#NAME?"}]
["Singles\\Armin van Buuren ft James Newman - Therapy.mp3",{"$error":"#NAME?"},{"$error":"#NAME?"},{"$error":"#NAME?"},{"$error":"#NAME?"}]
["Singles\\Wet Willie - Keep On Smilin'.mp3",{"$error":"#NAME?"},{"$error":"#NAME?"},{"$error":"#NAME?"},{"$error":"#NAME?"}]
["Singles\\Gordon & Re-Play - Never Nooit Meer.mp3",{"$error":"#NAME?"},{"$error":"#NAME?"},{"$error":"#NAME?"},{"$error":"#NAME?"}]
["Singles\\Jimmy The Hoover - Tantalise.mp3",{"$error":"#NAME?"},{"$error":"#NAME?"},{"$error":"#NAME?"},{"$error":"#NAME?"}]
["Singles\\Henry Mancini - Moon River.mp3",{"$error":"#NAME?"},{"$error":"#NAME?"},{"$error":"#NAME?"},{"$error":"#NAME?"}]
["Singles\\World Of Oz - King Croesus.mp3",{"$error":"#NAME?"},{"$error":"#NAME?"},{"$error":"#NAME?"},{"$error":"#NAME?"}]
["Singles\\Will To Power - Baby I Love Your Way.mp3",{"$error":"#NAME?"},{"$error":"#NAME?"},{"$error":"#NAME?"},{"$error":"#NAME?"}]
["Singles\\September - Cry For You.mp3",{"$error":"#NAME?"},{"$error":"#NAME?"},{"$error":"#NAME?"},{"$error":"#NAME?"}]
["Singles\\Galantis - Runaway (U & I).mp3",{"$error":"#NAME?"},{"$error":"#NAME?"},{"$error":"#NAME?"},{"$error":"#NAME?"}]
["Singles\\Status Quo - Hold You Back.Mp3",{"$error":"#NAME?"},{"$error":"#NAME?"},{"$error":"#NAME?"},{"$error":"#NAME?"}]
["Singles\\Anouk - R U Kiddin' Me.mp3",{"$error":"#NAME?"},{"$error":"#NAME?"},{"$error":"#NAME?"},{"$error":"#NAME?"}]
["Singles\\Tavares - Heaven Must Be Missing An Angel.mp3",{"$error":"#NAME?"},{"$error":"#NAME?"},{"$error":"#NAME?"},{"$error":"#NAME?"}]
["Singles\\The Who - Pinball Wizard.mp3",{"$error":"#NAME?"},{"$error":"#NAME?"},{"$error":"#NAME?"},{"$error":"#NAME?"}]
["Singles\\Diana Ross - Ain't No Mountain High Enough.mp3",{"$error":"#NAME?"},{"$error":"#NAME?"},{"$error":"#NAME?"},{"$error":"#NAME?"}]
["Singles\\The Imperials - Who's Gonna Love Me.mp3",{"$error":"#NAME?"},{"$error":"#NAME?"},{"$error":"#NAME?"},{"$error":"#NAME?"}]
["Singles\\The Dell Vikings - Come Go With Me.mp3",{"$error":"#NAME?"},{"$error":"#NAME?"},{"$error":"#NAME?"},{"$error":"#NAME?"}]
["Singles\\The Christians - Man Don't Cry.mp3",{"$error":"#NAME?"},{"$error":"#NAME?"},{"$error":"#NAME?"},{"$error":"#NAME?"}]
["Singles\\Steve Miller Band - Take The Money And Run.mp3",{"$error":"#NAME?"},{"$error":"#NAME?"},{"$error":"#NAME?"},{"$error":"#NAME?"}]
["Singles\\Jermaine Stewart - We Don't Have To Take Our Clothes Off.mp3",{"$error":"#NAME?"},{"$error":"#NAME?"},{"$error":"#NAME?"},{"$error":"#NAME?"}]
["Singles\\Sting - Fragile.mp3",{"$error":"#NAME?"},{"$error":"#NAME?"},{"$error":"#NAME?"},{"$error":"#NAME?"}]
["Singles\\Madonna - Like A Virgin.mp3",{"$error":"#NAME?"},{"$error":"#NAME?"},{"$error":"#NAME?"},{"$error":"#NAME?"}]
["Singles\\Humble Pie - Natural Born Bugie.mp3",{"$error":"#NAME?"},{"$error":"#NAME?"},{"$error":"#NAME?"},{"$error":"#NAME?"}]
["Singles\\John Newman - Love Me Again.mp3",{"$error":"#NAME?"},{"$error":"#NAME?"},{"$error":"#NAME?"},{"$error":"#NAME?"}]
["Singles\\Wham - Bad Boys.mp3",{"$error":"#NAME?"},{"$error":"#NAME?"},{"$error":"#NAME?"},{"$error":"#NAME?"}]
["Singles\\Barry White - Never Never Gonna Give You Up.mp3",{"$error":"#NAME?"},{"$error":"#NAME?"},{"$error":"#NAME?"},{"$error":"#NAME?"}]
["Singles\\Clean Bandit ft Jess Glynne - Rather Be.mp3",{"$error":"#NAME?"},{"$error":"#NAME?"},{"$error":"#NAME?"},{"$error":"#NAME?"}]
["Singles\\Peter Koelewijn - KL 204 (Als Ik God Was).mp3",{"$error":"#NAME?"},{"$error":"#NAME?"},{"$error":"#NAME?"},{"$error":"#NAME?"}]
["Singles\\Moses - We Just.mp3",{"$error":"#NAME?"},{"$error":"#NAME?"},{"$error":"#NAME?"},{"$error":"#NAME?"}]
["Singles\\Manhattans - Hurt.mp3",{"$error":"#NAME?"},{"$error":"#NAME?"},{"$error":"#NAME?"},{"$error":"#NAME?"}]
["Singles\\Dorus - Figaro Parodie.mp3",{"$error":"#NAME?"},{"$error":"#NAME?"},{"$error":"#NAME?"},{"$error":"#NAME?"}]
["Singles\\Wulf - Mind Made Up.mp3",{"$error":"#NAME?"},{"$error":"#NAME?"},{"$error":"#NAME?"},{"$error":"#NAME?"}]
["Singles\\Pitbull ft Christina Aguilera - Feel This Moment.mp3",{"$error":"#NAME?"},{"$error":"#NAME?"},{"$error":"#NAME?"},{"$error":"#NAME?"}]
["Singles\\Marco Borsato - Waarom Nou Jij.mp3",{"$error":"#NAME?"},{"$error":"#NAME?"},{"$error":"#NAME?"},{"$error":"#NAME?"}]
["Singles\\Tippa Irie - Hello Darling.mp3",{"$error":"#NAME?"},{"$error":"#NAME?"},{"$error":"#NAME?"},{"$error":"#NAME?"}]
["Singles\\Bros - When Will I Be Famous.mp3",{"$error":"#NAME?"},{"$error":"#NAME?"},{"$error":"#NAME?"},{"$error":"#NAME?"}]
["Singles\\Bill Haley & Comets - R.O.C.K..mp3",{"$error":"#NAME?"},{"$error":"#NAME?"},{"$error":"#NAME?"},{"$error":"#NAME?"}]
["Singles\\Van Dik Hout - Dromendief.mp3",{"$error":"#NAME?"},{"$error":"#NAME?"},{"$error":"#NAME?"},{"$error":"#NAME?"}]
["Singles\\Chicago - 25 Or 6 To 4.mp3",{"$error":"#NAME?"},{"$error":"#NAME?"},{"$error":"#NAME?"},{"$error":"#NAME?"}]
["Singles\\Noordkaap - Ik Hou Van U.mp3",{"$f":"RegexTest(B$1,$A2243)","v":{"$error":"#NAME?"}},{"$f":"RegexCount(C$1,$A2243)","v":{"$error":"#NAME?"}},{"$f":"RegexFind(D$1,$A2243)","v":{"$error":"#NAME?"}},{"$f":"RegexReplace(E$1,$A2243,F$1)","v":{"$error":"#NAME?"}}]
["Singles\\Blondie - (I'm Always Touched By Your) Presence Dear.mp3",{"$error":"#NAME?"},{"$error":"#NAME?"},{"$error":"#NAME?"},{"$error":"#NAME?"}]
["Singles\\Clairy Browne - Pool.mp3",{"$error":"#NAME?"},{"$error":"#NAME?"},{"$error":"#NAME?"},{"$error":"#NAME?"}]
["Singles\\Tal Bachman - She's So High.mp3",{"$error":"#NAME?"},{"$error":"#NAME?"},{"$error":"#NAME?"},{"$error":"#NAME?"}]
["Singles\\James Lloyd - Keep On Smiling.mp3",{"$error":"#NAME?"},{"$error":"#NAME?"},{"$error":"#NAME?"},{"$error":"#NAME?"}]
["Singles\\Colin Blunstone - Andorra.mp3",{"$error":"#NAME?"},{"$error":"#NAME?"},{"$error":"#NAME?"},{"$error":"#NAME?"}]
["Singles\\Gerry & The Pacemakers - I Like It.mp3",{"$error":"#NAME?"},{"$error":"#NAME?"},{"$error":"#NAME?"},{"$error":"#NAME?"}]
["Singles\\Tears For Fears - Sowing The Seeds Of Love.mp3",{"$error":"#NAME?"},{"$error":"#NAME?"},{"$error":"#NAME?"},{"$error":"#NAME?"}]
["Singles\\Wally Tax - Bridges Are Burning.mp3",{"$error":"#NAME?"},{"$error":"#NAME?"},{"$error":"#NAME?"},{"$error":"#NAME?"}]
["Singles\\Dotan - This Town.mp3",{"$error":"#NAME?"},{"$error":"#NAME?"},{"$error":"#NAME?"},{"$error":"#NAME?"}]
["Singles\\Kygo & Selena Gomez - It Ain't Me.mp3",{"$error":"#NAME?"},{"$error":"#NAME?"},{"$error":"#NAME?"},{"$error":"#NAME?"}]
["Singles\\Spice Girls - Viva Forever.mp3",{"$error":"#NAME?"},{"$error":"#NAME?"},{"$error":"#NAME?"},{"$error":"#NAME?"}]
["Singles\\Ke$ha - Take It Off.mp3",{"$error":"#NAME?"},{"$error":"#NAME?"},{"$error":"#NAME?"},{"$error":"#NAME?"}]
["Singles\\Billy Joel - Leningrad.mp3",{"$error":"#NAME?"},{"$error":"#NAME?"},{"$error":"#NAME?"},{"$error":"#NAME?"}]
["Singles\\Eurythmics - Right By Your Side.mp3",{"$error":"#NAME?"},{"$error":"#NAME?"},{"$error":"#NAME?"},{"$error":"#NAME?"}]
["Singles\\Slade - The Bangin' Man.mp3",{"$error":"#NAME?"},{"$error":"#NAME?"},{"$error":"#NAME?"},{"$error":"#NAME?"}]
["Singles\\Jamelia - Superstar.mp3",{"$error":"#NAME?"},{"$error":"#NAME?"},{"$error":"#NAME?"},{"$error":"#NAME?"}]
["Singles\\Adele - Rumour Has It.mp3",{"$error":"#NAME?"},{"$error":"#NAME?"},{"$error":"#NAME?"},{"$error":"#NAME?"}]
["Singles\\Shoes - Don't You Cry For A Girl.mp3",{"$error":"#NAME?"},{"$error":"#NAME?"},{"$error":"#NAME?"},{"$error":"#NAME?"}]
["Singles\\The Blow Monkeys - It Doesn't Have To Be This Way.mp3",{"$error":"#NAME?"},{"$error":"#NAME?"},{"$error":"#NAME?"},{"$error":"#NAME?"}]
["Singles\\The Beatles - Lucy In The Sky With Diamonds.mp3",{"$error":"#NAME?"},{"$error":"#NAME?"},{"$error":"#NAME?"},{"$error":"#NAME?"}]
["Singles\\Alice Cooper - No More Mr Nice Guy.mp3",{"$error":"#NAME?"},{"$error":"#NAME?"},{"$error":"#NAME?"},{"$error":"#NAME?"}]
["Singles\\Dorus - Bij De Marine.mp3",{"$error":"#NAME?"},{"$error":"#NAME?"},{"$error":"#NAME?"},{"$error":"#NAME?"}]
["Singles\\Slade - Get Down And Get With It.mp3",{"$error":"#NAME?"},{"$error":"#NAME?"},{"$error":"#NAME?"},{"$error":"#NAME?"}]
["Singles\\The Shadows - Wonderful Land.mp3",{"$error":"#NAME?"},{"$error":"#NAME?"},{"$error":"#NAME?"},{"$error":"#NAME?"}]
["Singles\\Bruno Mars - Treasure.mp3",{"$error":"#NAME?"},{"$error":"#NAME?"},{"$error":"#NAME?"},{"$error":"#NAME?"}]
["Singles\\Leen Jongewaard & Piet Romer - Vissen.mp3",{"$error":"#NAME?"},{"$error":"#NAME?"},{"$error":"#NAME?"},{"$error":"#NAME?"}]
["Singles\\Sammy Davis Jr - Baretta's Theme.mp3",{"$error":"#NAME?"},{"$error":"#NAME?"},{"$error":"#NAME?"},{"$error":"#NAME?"}]
["Singles\\Meduza & Becky Hill & Goodboys - Lose Control.mp3",{"$error":"#NAME?"},{"$error":"#NAME?"},{"$error":"#NAME?"},{"$error":"#NAME?"}]
["Singles\\De La Soul - Say No Go.mp3",{"$error":"#NAME?"},{"$error":"#NAME?"},{"$error":"#NAME?"},{"$error":"#NAME?"}]
["Singles\\Shawn Mendes - Treat You Better.mp3",{"$error":"#NAME?"},{"$error":"#NAME?"},{"$error":"#NAME?"},{"$error":"#NAME?"}]
["Singles\\Don Mclean - Crying.mp3",{"$error":"#NAME?"},{"$error":"#NAME?"},{"$error":"#NAME?"},{"$error":"#NAME?"}]
["Singles\\Cliff Richard & The Shadows - Blue Turns To Grey.mp3",{"$error":"#NAME?"},{"$error":"#NAME?"},{"$error":"#NAME?"},{"$error":"#NAME?"}]
["Singles\\Salix Alba - Marina.mp3",{"$error":"#NAME?"},{"$error":"#NAME?"},{"$error":"#NAME?"},{"$error":"#NAME?"}]
["Singles\\James Taylor & JD Souther - Her Town Too.mp3",{"$error":"#NAME?"},{"$error":"#NAME?"},{"$error":"#NAME?"},{"$error":"#NAME?"}]
["Singles\\Shuffles - Cha La La I Need You.mp3",{"$error":"#NAME?"},{"$error":"#NAME?"},{"$error":"#NAME?"},{"$error":"#NAME?"}]
["Singles\\The Stranglers - No Mercy.mp3",{"$error":"#NAME?"},{"$error":"#NAME?"},{"$error":"#NAME?"},{"$error":"#NAME?"}]
["Singles\\Julio Iglesias - Por Un Pocco De Tu Amor.mp3",{"$error":"#NAME?"},{"$error":"#NAME?"},{"$error":"#NAME?"},{"$error":"#NAME?"}]
["Singles\\Tavares - More Than A Woman.mp3",{"$error":"#NAME?"},{"$error":"#NAME?"},{"$error":"#NAME?"},{"$error":"#NAME?"}]
["Singles\\Showtek ft Leon Sherman - Listen To Your Momma.mp3",{"$error":"#NAME?"},{"$error":"#NAME?"},{"$error":"#NAME?"},{"$error":"#NAME?"}]
["Singles\\Yves Duteil - Prendre Un Enfant.mp3",{"$error":"#NAME?"},{"$error":"#NAME?"},{"$error":"#NAME?"},{"$error":"#NAME?"}]
["Singles\\Charlie Puth ft Meghan Trainor - Marvin Gaye.mp3",{"$error":"#NAME?"},{"$error":"#NAME?"},{"$error":"#NAME?"},{"$error":"#NAME?"}]
["Singles\\Krezip - I Apologize.mp3",{"$error":"#NAME?"},{"$error":"#NAME?"},{"$error":"#NAME?"},{"$error":"#NAME?"}]
["Singles\\Long Tall Ernie & The Shakers - Do You Remember.mp3",{"$error":"#NAME?"},{"$error":"#NAME?"},{"$error":"#NAME?"},{"$error":"#NAME?"}]
["Singles\\Marty Robbins - Devil Woman.mp3",{"$error":"#NAME?"},{"$error":"#NAME?"},{"$error":"#NAME?"},{"$error":"#NAME?"}]
["Singles\\Lady GaGa - Eh, Eh (Nothing Else I Can Say).mp3",{"$error":"#NAME?"},{"$error":"#NAME?"},{"$error":"#NAME?"},{"$error":"#NAME?"}]
["Singles\\Usher ft Pitbull - DJ Got Us Fallin In Love.mp3",{"$error":"#NAME?"},{"$error":"#NAME?"},{"$error":"#NAME?"},{"$error":"#NAME?"}]
["Singles\\Louis Neefs - Margrietje.mp3",{"$error":"#NAME?"},{"$error":"#NAME?"},{"$error":"#NAME?"},{"$error":"#NAME?"}]
["Singles\\Simply Red - Home.mp3",{"$error":"#NAME?"},{"$error":"#NAME?"},{"$error":"#NAME?"},{"$error":"#NAME?"}]
["Singles\\The Byrds - Eight Miles High.mp3",{"$error":"#NAME?"},{"$error":"#NAME?"},{"$error":"#NAME?"},{"$error":"#NAME?"}]
["Singles\\Danny & The Juniors - At The Hop.mp3",{"$error":"#NAME?"},{"$error":"#NAME?"},{"$error":"#NAME?"},{"$error":"#NAME?"}]
["Singles\\Willy William - Ego.mp3",{"$error":"#NAME?"},{"$error":"#NAME?"},{"$error":"#NAME?"},{"$error":"#NAME?"}]
["Singles\\Alice Cooper - Hello Hurray.mp3",{"$error":"#NAME?"},{"$error":"#NAME?"},{"$error":"#NAME?"},{"$error":"#NAME?"}]
["Singles\\Taylor Swift - Out Of The Woods.mp3",{"$error":"#NAME?"},{"$error":"#NAME?"},{"$error":"#NAME?"},{"$error":"#NAME?"}]
["Singles\\Rod Stewart - Some Guys Have All The Luck.mp3",{"$error":"#NAME?"},{"$error":"#NAME?"},{"$error":"#NAME?"},{"$error":"#NAME?"}]
["Singles\\Nick & Simon - Kijk Omhoog.mp3",{"$error":"#NAME?"},{"$error":"#NAME?"},{"$error":"#NAME?"},{"$error":"#NAME?"}]
["Singles\\Madonna - Dress You Up (In My Love).mp3",{"$error":"#NAME?"},{"$error":"#NAME?"},{"$error":"#NAME?"},{"$error":"#NAME?"}]
["Singles\\Bill Haley - Shake, Rattle And Roll.mp3",{"$error":"#NAME?"},{"$error":"#NAME?"},{"$error":"#NAME?"},{"$error":"#NAME?"}]
["Singles\\Tony & Los Santos - Trico Trico Tra.mp3",{"$error":"#NAME?"},{"$error":"#NAME?"},{"$error":"#NAME?"},{"$error":"#NAME?"}]
["Singles\\Jeff Wayne & Justin Hayward - The Eve Of The War.mp3",{"$error":"#NAME?"},{"$error":"#NAME?"},{"$error":"#NAME?"},{"$error":"#NAME?"}]
["Singles\\Ricky King - Verde.mp3",{"$error":"#NAME?"},{"$error":"#NAME?"},{"$error":"#NAME?"},{"$error":"#NAME?"}]
["Singles\\De Kast - In De Wolken.mp3",{"$error":"#NAME?"},{"$error":"#NAME?"},{"$error":"#NAME?"},{"$error":"#NAME?"}]
["Singles\\Roland Kaiser - Santa Maria.mp3",{"$error":"#NAME?"},{"$error":"#NAME?"},{"$error":"#NAME?"},{"$error":"#NAME?"}]
["Singles\\Axwell & Ingrosso - Sun Is Shining.mp3",{"$error":"#NAME?"},{"$error":"#NAME?"},{"$error":"#NAME?"},{"$error":"#NAME?"}]
["Singles\\Dave Loggins - Please Come To Boston.mp3",{"$f":"RegexTest(B$1,$A2307)","v":{"$error":"#NAME?"}},{"$f":"RegexCount(C$1,$A2307)","v":{"$error":"#NAME?"}},{"$f":"RegexFind(D$1,$A2307)","v":{"$error":"#NAME?"}},{"$f":"RegexReplace(E$1,$A2307,F$1)","v":{"$error":"#NAME?"}}]
["Singles\\Nick Cave & Kylie Minogue - Where The Wild Roses Grow.mp3",{"$error":"#NAME?"},{"$error":"#NAME?"},{"$error":"#NAME?"},{"$error":"#NAME?"}]
["Singles\\The Police - Spirits In The Material World.mp3",{"$error":"#NAME?"},{"$error":"#NAME?"},{"$error":"#NAME?"},{"$error":"#NAME?"}]
["Singles\\Meck & Leo Sayers - Thunder In My Heart Again.mp3",{"$error":"#NAME?"},{"$error":"#NAME?"},{"$error":"#NAME?"},{"$error":"#NAME?"}]
["Singles\\Twice As Much - True Story.mp3",{"$error":"#NAME?"},{"$error":"#NAME?"},{"$error":"#NAME?"},{"$error":"#NAME?"}]
["Singles\\Eddy Grant - Gimme Hope Joana.mp3",{"$error":"#NAME?"},{"$error":"#NAME?"},{"$error":"#NAME?"},{"$error":"#NAME?"}]
["Singles\\Krezip - All My Life.mp3",{"$error":"#NAME?"},{"$error":"#NAME?"},{"$error":"#NAME?"},{"$error":"#NAME?"}]
["Singles\\The Diamonds - Little Darlin'.mp3",{"$error":"#NAME?"},{"$error":"#NAME?"},{"$error":"#NAME?"},{"$error":"#NAME?"}]
["Singles\\Talking Heads - The Lady Don't Mind.Mp3",{"$error":"#NAME?"},{"$error":"#NAME?"},{"$error":"#NAME?"},{"$error":"#NAME?"}]
["Singles\\Lana Del Rey - Video Games.mp3",{"$error":"#NAME?"},{"$error":"#NAME?"},{"$error":"#NAME?"},{"$error":"#NAME?"}]
["Singles\\Meghan Trainor - All About That Bass.mp3",{"$error":"#NAME?"},{"$error":"#NAME?"},{"$error":"#NAME?"},{"$error":"#NAME?"}]
["Singles\\Christopher Cross - All Right.mp3",{"$error":"#NAME?"},{"$error":"#NAME?"},{"$error":"#NAME?"},{"$error":"#NAME?"}]
["Singles\\Alain Clark - Back In My World.mp3",{"$error":"#NAME?"},{"$error":"#NAME?"},{"$error":"#NAME?"},{"$error":"#NAME?"}]
["Singles\\Enrique Iglesias - Tired Of Being Sorry.mp3",{"$error":"#NAME?"},{"$error":"#NAME?"},{"$error":"#NAME?"},{"$error":"#NAME?"}]
["Singles\\Kim Wilde - Four Letter Word.mp3",{"$error":"#NAME?"},{"$error":"#NAME?"},{"$error":"#NAME?"},{"$error":"#NAME?"}]
["Singles\\Andy Gibb - Love Is Thicker Than Water.mp3",{"$error":"#NAME?"},{"$error":"#NAME?"},{"$error":"#NAME?"},{"$error":"#NAME?"}]
["Singles\\Kyu Sakamoto - Sukiyaki.mp3",{"$error":"#NAME?"},{"$error":"#NAME?"},{"$error":"#NAME?"},{"$error":"#NAME?"}]
["Singles\\Roxy Music - Virginia Plain.mp3",{"$error":"#NAME?"},{"$error":"#NAME?"},{"$error":"#NAME?"},{"$error":"#NAME?"}]
["Singles\\Cliff Richard & The Shadows - In The Country.mp3",{"$error":"#NAME?"},{"$error":"#NAME?"},{"$error":"#NAME?"},{"$error":"#NAME?"}]
["Singles\\Becky G - Shower.mp3",{"$error":"#NAME?"},{"$error":"#NAME?"},{"$error":"#NAME?"},{"$error":"#NAME?"}]
["Singles\\Double You - Please Don't Go.mp3",{"$error":"#NAME?"},{"$error":"#NAME?"},{"$error":"#NAME?"},{"$error":"#NAME?"}]
["Singles\\Kris Kross Amsterdam & Kraantje Pappie & Tabitha - Moment.mp3",{"$error":"#NAME?"},{"$error":"#NAME?"},{"$error":"#NAME?"},{"$error":"#NAME?"}]
["Singles\\Drs P - De Veerpont (Heen En Weer).mp3",{"$error":"#NAME?"},{"$error":"#NAME?"},{"$error":"#NAME?"},{"$error":"#NAME?"}]
["Singles\\Ann Lee - 2 Times.mp3",{"$error":"#NAME?"},{"$error":"#NAME?"},{"$error":"#NAME?"},{"$error":"#NAME?"}]
["Singles\\Ed Sheeran ft Beyonce - Perfect Duet.mp3",{"$error":"#NAME?"},{"$error":"#NAME?"},{"$error":"#NAME?"},{"$error":"#NAME?"}]
["Singles\\Pater Moeskroen - Roodkapje.mp3",{"$error":"#NAME?"},{"$error":"#NAME?"},{"$error":"#NAME?"},{"$error":"#NAME?"}]
["Singles\\Miguel Rios - Song Of Joy.mp3",{"$error":"#NAME?"},{"$error":"#NAME?"},{"$error":"#NAME?"},{"$error":"#NAME?"}]
["Singles\\The Associates - Breakfast.mp3",{"$error":"#NAME?"},{"$error":"#NAME?"},{"$error":"#NAME?"},{"$error":"#NAME?"}]
["Singles\\Bryan Adams - Please Forgive Me.mp3",{"$error":"#NAME?"},{"$error":"#NAME?"},{"$error":"#NAME?"},{"$error":"#NAME?"}]
["Singles\\Dave Dee, Dozy, Beaky, Mick & Tich - The Legend Of Xanadu.mp3",{"$error":"#NAME?"},{"$error":"#NAME?"},{"$error":"#NAME?"},{"$error":"#NAME?"}]
["Singles\\Andre Hazes - Bloed, Zweet En Tranen.mp3",{"$error":"#NAME?"},{"$error":"#NAME?"},{"$error":"#NAME?"},{"$error":"#NAME?"}]
["Singles\\Los Indios Tabajaras - Maria Elena.mp3",{"$error":"#NAME?"},{"$error":"#NAME?"},{"$error":"#NAME?"},{"$error":"#NAME?"}]
["Singles\\Mike Batt - Lady Of The Dawn.mp3",{"$error":"#NAME?"},{"$error":"#NAME?"},{"$error":"#NAME?"},{"$error":"#NAME?"}]
["Singles\\Engelbert Humperdinck - A Man Without Love.mp3",{"$error":"#NAME?"},{"$error":"#NAME?"},{"$error":"#NAME?"},{"$error":"#NAME?"}]
["Singles\\Jason Derulo - Don't Wanna Go Home.mp3",{"$error":"#NAME?"},{"$error":"#NAME?"},{"$error":"#NAME?"},{"$error":"#NAME?"}]
["Singles\\Travie McCoy - We'll Be Alright.mp3",{"$error":"#NAME?"},{"$error":"#NAME?"},{"$error":"#NAME?"},{"$error":"#NAME?"}]
["Singles\\Cliff Richard - Somewhere Over The Rainbow & What A Wonderful World.mp3",{"$error":"#NAME?"},{"$error":"#NAME?"},{"$error":"#NAME?"},{"$error":"#NAME?"}]
["Singles\\Love Unlimited Orchestra - Love's Theme.mp3",{"$error":"#NAME?"},{"$error":"#NAME?"},{"$error":"#NAME?"},{"$error":"#NAME?"}]
["Singles\\Warren Zevon - Lawyers, Guns And Money.mp3",{"$error":"#NAME?"},{"$error":"#NAME?"},{"$error":"#NAME?"},{"$error":"#NAME?"}]
["Singles\\Trio Hellenique - Sirtaki.mp3",{"$error":"#NAME?"},{"$error":"#NAME?"},{"$error":"#NAME?"},{"$error":"#NAME?"}]
["Singles\\Billy Joe Royal - Hush.mp3",{"$error":"#NAME?"},{"$error":"#NAME?"},{"$error":"#NAME?"},{"$error":"#NAME?"}]
["Singles\\Bay City Rollers - Bye Bye Baby.mp3",{"$error":"#NAME?"},{"$error":"#NAME?"},{"$error":"#NAME?"},{"$error":"#NAME?"}]
["Singles\\Olly Murs ft Travie McCoy - Wrapped Up.mp3",{"$error":"#NAME?"},{"$error":"#NAME?"},{"$error":"#NAME?"},{"$error":"#NAME?"}]
["Singles\\Joe Cocker - N'oubliez Jamais.mp3",{"$error":"#NAME?"},{"$error":"#NAME?"},{"$error":"#NAME?"},{"$error":"#NAME?"}]
["Singles\\The Spotnicks - The Entertainer.mp3",{"$error":"#NAME?"},{"$error":"#NAME?"},{"$error":"#NAME?"},{"$error":"#NAME?"}]
["Singles\\Cliff Richard & The Shadows - Lucky Lips.mp3",{"$error":"#NAME?"},{"$error":"#NAME?"},{"$error":"#NAME?"},{"$error":"#NAME?"}]
["Singles\\Barbra Streisand & Don Johnson - Till I Loved You.mp3",{"$error":"#NAME?"},{"$error":"#NAME?"},{"$error":"#NAME?"},{"$error":"#NAME?"}]
["Singles\\YouNotUs & Janieck & Senex - Narcotic.mp3",{"$error":"#NAME?"},{"$error":"#NAME?"},{"$error":"#NAME?"},{"$error":"#NAME?"}]
["Singles\\Michael Buble - Hollywood.mp3",{"$error":"#NAME?"},{"$error":"#NAME?"},{"$error":"#NAME?"},{"$error":"#NAME?"}]
["Singles\\Teach In - Upside Down.mp3",{"$error":"#NAME?"},{"$error":"#NAME?"},{"$error":"#NAME?"},{"$error":"#NAME?"}]
["Singles\\The Proclaimers - Letter From America.mp3",{"$error":"#NAME?"},{"$error":"#NAME?"},{"$error":"#NAME?"},{"$error":"#NAME?"}]
["Singles\\Johnny Lion - Sophietje.mp3",{"$error":"#NAME?"},{"$error":"#NAME?"},{"$error":"#NAME?"},{"$error":"#NAME?"}]
["Singles\\The Beatles - Eight Days A Week.mp3",{"$error":"#NAME?"},{"$error":"#NAME?"},{"$error":"#NAME?"},{"$error":"#NAME?"}]
["Singles\\U2 - New Years Day.mp3",{"$error":"#NAME?"},{"$error":"#NAME?"},{"$error":"#NAME?"},{"$error":"#NAME?"}]
["Singles\\Ricky Martin & Christina Aguilera - Nobody Wants To Be Lonely.mp3",{"$error":"#NAME?"},{"$error":"#NAME?"},{"$error":"#NAME?"},{"$error":"#NAME?"}]
["Singles\\Andre Van Duin - Bananenlied.mp3",{"$error":"#NAME?"},{"$error":"#NAME?"},{"$error":"#NAME?"},{"$error":"#NAME?"}]
["Singles\\Twenty One Pilots - Stressed Out.mp3",{"$error":"#NAME?"},{"$error":"#NAME?"},{"$error":"#NAME?"},{"$error":"#NAME?"}]
["Singles\\Mixtures - The Pushbike Song.mp3",{"$error":"#NAME?"},{"$error":"#NAME?"},{"$error":"#NAME?"},{"$error":"#NAME?"}]
["Singles\\KLF & Tammy Wynette - Justified And Ancient (All Bound For Mu Mu Land).mp3",{"$error":"#NAME?"},{"$error":"#NAME?"},{"$error":"#NAME?"},{"$error":"#NAME?"}]
["Singles\\Kygo ft Conrad - Firestone.mp3",{"$error":"#NAME?"},{"$error":"#NAME?"},{"$error":"#NAME?"},{"$error":"#NAME?"}]
["Singles\\Spandau Ballet - Through The Barricades.mp3",{"$error":"#NAME?"},{"$error":"#NAME?"},{"$error":"#NAME?"},{"$error":"#NAME?"}]
["Singles\\Lou Rawls - Lady Love.mp3",{"$error":"#NAME?"},{"$error":"#NAME?"},{"$error":"#NAME?"},{"$error":"#NAME?"}]
["Singles\\Celine Dion - Because You Loved Me.mp3",{"$error":"#NAME?"},{"$error":"#NAME?"},{"$error":"#NAME?"},{"$error":"#NAME?"}]
["Singles\\Mel & Kim - Respectable.mp3",{"$error":"#NAME?"},{"$error":"#NAME?"},{"$error":"#NAME?"},{"$error":"#NAME?"}]
["Singles\\UB40 - Breakfast In Bed.mp3",{"$f":"RegexTest(B$1,$A2371)","v":{"$error":"#NAME?"}},{"$f":"RegexCount(C$1,$A2371)","v":{"$error":"#NAME?"}},{"$f":"RegexFind(D$1,$A2371)","v":{"$error":"#NAME?"}},{"$f":"RegexReplace(E$1,$A2371,F$1)","v":{"$error":"#NAME?"}}]
["Singles\\Volumia! - Blijf Bij Mij.mp3",{"$error":"#NAME?"},{"$error":"#NAME?"},{"$error":"#NAME?"},{"$error":"#NAME?"}]
["Singles\\Albert Hammond & Albert West - Give A Little Love.mp3",{"$error":"#NAME?"},{"$error":"#NAME?"},{"$error":"#NAME?"},{"$error":"#NAME?"}]
["Singles\\Phil Collins - Against All Odds.mp3",{"$error":"#NAME?"},{"$error":"#NAME?"},{"$error":"#NAME?"},{"$error":"#NAME?"}]
["Singles\\The Tornados - Telstar.mp3",{"$error":"#NAME?"},{"$error":"#NAME?"},{"$error":"#NAME?"},{"$error":"#NAME?"}]
["Singles\\The Alan Price Set - I Put A Spell On You.mp3",{"$error":"#NAME?"},{"$error":"#NAME?"},{"$error":"#NAME?"},{"$error":"#NAME?"}]
["Singles\\Duck Sauce - Barbra Streisand.mp3",{"$error":"#NAME?"},{"$error":"#NAME?"},{"$error":"#NAME?"},{"$error":"#NAME?"}]
["Singles\\OneRepublic - Counting Stars.mp3",{"$error":"#NAME?"},{"$error":"#NAME?"},{"$error":"#NAME?"},{"$error":"#NAME?"}]
["Singles\\Alanis Morissette - Hands Clean.mp3",{"$error":"#NAME?"},{"$error":"#NAME?"},{"$error":"#NAME?"},{"$error":"#NAME?"}]
["Singles\\Neil Diamond - Desirée.mp3",{"$error":"#NAME?"},{"$error":"#NAME?"},{"$error":"#NAME?"},{"$error":"#NAME?"}]
["Singles\\JP Cooper - September Song.mp3",{"$error":"#NAME?"},{"$error":"#NAME?"},{"$error":"#NAME?"},{"$error":"#NAME?"}]
["Singles\\Goldie - Making Up Again.mp3",{"$error":"#NAME?"},{"$error":"#NAME?"},{"$error":"#NAME?"},{"$error":"#NAME?"}]
["Singles\\Metallica - The Unforgiven.mp3",{"$error":"#NAME?"},{"$error":"#NAME?"},{"$error":"#NAME?"},{"$error":"#NAME?"}]
["Singles\\Acda & De Munnik - Bij Haar Zijn.mp3",{"$error":"#NAME?"},{"$error":"#NAME?"},{"$error":"#NAME?"},{"$error":"#NAME?"}]
["Singles\\Rihanna - California King Bed.mp3",{"$error":"#NAME?"},{"$error":"#NAME?"},{"$error":"#NAME?"},{"$error":"#NAME?"}]
["Singles\\Olivia Newton-John & ELO - Xanadu.mp3",{"$error":"#NAME?"},{"$error":"#NAME?"},{"$error":"#NAME?"},{"$error":"#NAME?"}]
["Singles\\Spagna - Easy Lady.mp3",{"$error":"#NAME?"},{"$error":"#NAME?"},{"$error":"#NAME?"},{"$error":"#NAME?"}]
["Singles\\Electric Light Orchestra - Birmingham Blues.mp3",{"$error":"#NAME?"},{"$error":"#NAME?"},{"$error":"#NAME?"},{"$error":"#NAME?"}]
["Singles\\De Butlers - De Chinees Doet Veel Meer Met Vlees.mp3",{"$error":"#NAME?"},{"$error":"#NAME?"},{"$error":"#NAME?"},{"$error":"#NAME?"}]
["Singles\\China Crisis - Working With Fire And Steel.mp3",{"$error":"#NAME?"},{"$error":"#NAME?"},{"$error":"#NAME?"},{"$error":"#NAME?"}]
["Singles\\Earth Wind & Fire - Lets Groove Tonight.mp3",{"$error":"#NAME?"},{"$error":"#NAME?"},{"$error":"#NAME?"},{"$error":"#NAME?"}]
["Singles\\Sue Saad & The Next - Young Girl.mp3",{"$error":"#NAME?"},{"$error":"#NAME?"},{"$error":"#NAME?"},{"$error":"#NAME?"}]
["Singles\\Ray Charles - Crying Time.mp3",{"$error":"#NAME?"},{"$error":"#NAME?"},{"$error":"#NAME?"},{"$error":"#NAME?"}]
["Singles\\Ashford & Simpson - Solid.mp3",{"$error":"#NAME?"},{"$error":"#NAME?"},{"$error":"#NAME?"},{"$error":"#NAME?"}]
["Singles\\Burt Bacharach & Elvis Costello - I'll Never Fall In Love Again.mp3",{"$error":"#NAME?"},{"$error":"#NAME?"},{"$error":"#NAME?"},{"$error":"#NAME?"}]
["Singles\\The Byrds - Mr Spaceman.mp3",{"$error":"#NAME?"},{"$error":"#NAME?"},{"$error":"#NAME?"},{"$error":"#NAME?"}]
["Singles\\Shorty Long - Here Comes The Judge.mp3",{"$error":"#NAME?"},{"$error":"#NAME?"},{"$error":"#NAME?"},{"$error":"#NAME?"}]
["Singles\\Pitbull ft John Ryan - Fireball.mp3",{"$error":"#NAME?"},{"$error":"#NAME?"},{"$error":"#NAME?"},{"$error":"#NAME?"}]
["Singles\\Lady Antebellum - I Run To You.mp3",{"$error":"#NAME?"},{"$error":"#NAME?"},{"$error":"#NAME?"},{"$error":"#NAME?"}]
["Singles\\Bertus Staigerpaip - Hou Je Kop.mp3",{"$error":"#NAME?"},{"$error":"#NAME?"},{"$error":"#NAME?"},{"$error":"#NAME?"}]
["Singles\\Exile - I Wanna Kiss You All Over.mp3",{"$error":"#NAME?"},{"$error":"#NAME?"},{"$error":"#NAME?"},{"$error":"#NAME?"}]
["Singles\\John Lennon & Yoko Ono - Nobody Told Me.mp3",{"$error":"#NAME?"},{"$error":"#NAME?"},{"$error":"#NAME?"},{"$error":"#NAME?"}]
["Singles\\Benny Neyman - Waarom Fluister Ik Je Naam Nog.mp3",{"$error":"#NAME?"},{"$error":"#NAME?"},{"$error":"#NAME?"},{"$error":"#NAME?"}]
["Singles\\Lionel Richie - Ballerina Girl.mp3",{"$error":"#NAME?"},{"$error":"#NAME?"},{"$error":"#NAME?"},{"$error":"#NAME?"}]
["Singles\\Unit Gloria - The Last Seven Days.mp3",{"$error":"#NAME?"},{"$error":"#NAME?"},{"$error":"#NAME?"},{"$error":"#NAME?"}]
["Singles\\Admiral Freebee - Always On The Run.mp3",{"$error":"#NAME?"},{"$error":"#NAME?"},{"$error":"#NAME?"},{"$error":"#NAME?"}]
["Singles\\Todd Rundgren - Hello Its Me.mp3",{"$error":"#NAME?"},{"$error":"#NAME?"},{"$error":"#NAME?"},{"$error":"#NAME?"}]
["Singles\\The Newbeats - Everything's Alright.mp3",{"$error":"#NAME?"},{"$error":"#NAME?"},{"$error":"#NAME?"},{"$error":"#NAME?"}]
["Singles\\Frankie Goes To Hollywood - Two Tribes.mp3",{"$error":"#NAME?"},{"$error":"#NAME?"},{"$error":"#NAME?"},{"$error":"#NAME?"}]
["Singles\\Simon & Garfunkel - Bridge Over Troubled Water.mp3",{"$error":"#NAME?"},{"$error":"#NAME?"},{"$error":"#NAME?"},{"$error":"#NAME?"}]
["Singles\\Acdc - Highway To Hell.mp3",{"$error":"#NAME?"},{"$error":"#NAME?"},{"$error":"#NAME?"},{"$error":"#NAME?"}]
["Singles\\Ilse DeLange - Beautiful Distraction.mp3",{"$error":"#NAME?"},{"$error":"#NAME?"},{"$error":"#NAME?"},{"$error":"#NAME?"}]
["Singles\\Celine Dion - Pour Que Tu M'aimes Encore.mp3",{"$error":"#NAME?"},{"$error":"#NAME?"},{"$error":"#NAME?"},{"$error":"#NAME?"}]
["Singles\\Owl City & Carly Rae Jepsen - Good Time.mp3",{"$error":"#NAME?"},{"$error":"#NAME?"},{"$error":"#NAME?"},{"$error":"#NAME?"}]
["Singles\\Marco Borsato - Margherita.mp3",{"$error":"#NAME?"},{"$error":"#NAME?"},{"$error":"#NAME?"},{"$error":"#NAME?"}]
["Singles\\Jason Mraz - Hello You Beautiful Thing.mp3",{"$error":"#NAME?"},{"$error":"#NAME?"},{"$error":"#NAME?"},{"$error":"#NAME?"}]
["Singles\\Swedish House Mafia - Save The World.mp3",{"$error":"#NAME?"},{"$error":"#NAME?"},{"$error":"#NAME?"},{"$error":"#NAME?"}]
["Singles\\Saskia & Serge - Zomer In Zeeland.mp3",{"$error":"#NAME?"},{"$error":"#NAME?"},{"$error":"#NAME?"},{"$error":"#NAME?"}]
["Singles\\Eurythmics - Would I Lie To You.mp3",{"$error":"#NAME?"},{"$error":"#NAME?"},{"$error":"#NAME?"},{"$error":"#NAME?"}]
["Singles\\Jackie DeShannon - What The World Needs Now Is Love.mp3",{"$error":"#NAME?"},{"$error":"#NAME?"},{"$error":"#NAME?"},{"$error":"#NAME?"}]
["Singles\\The Penguins - Earth Angel.mp3",{"$error":"#NAME?"},{"$error":"#NAME?"},{"$error":"#NAME?"},{"$error":"#NAME?"}]
["Singles\\The Mama's & The Papa's - Dedicated To The One I Love.mp3",{"$error":"#NAME?"},{"$error":"#NAME?"},{"$error":"#NAME?"},{"$error":"#NAME?"}]
["Singles\\Freddie Aguilar - Anak.mp3",{"$error":"#NAME?"},{"$error":"#NAME?"},{"$error":"#NAME?"},{"$error":"#NAME?"}]
["Singles\\REM - Bang And Blame.mp3",{"$error":"#NAME?"},{"$error":"#NAME?"},{"$error":"#NAME?"},{"$error":"#NAME?"}]
["Singles\\Galantis - No Money.mp3",{"$error":"#NAME?"},{"$error":"#NAME?"},{"$error":"#NAME?"},{"$error":"#NAME?"}]
["Singles\\Kylie Minogue - Spinning Around.mp3",{"$error":"#NAME?"},{"$error":"#NAME?"},{"$error":"#NAME?"},{"$error":"#NAME?"}]
["Singles\\Tina Turner - We Don't Need Another Hero.mp3",{"$error":"#NAME?"},{"$error":"#NAME?"},{"$error":"#NAME?"},{"$error":"#NAME?"}]
["Singles\\Irene Cara - Fame.mp3",{"$error":"#NAME?"},{"$error":"#NAME?"},{"$error":"#NAME?"},{"$error":"#NAME?"}]
["Singles\\Sandra Van Nieuwland - Hunter.mp3",{"$error":"#NAME?"},{"$error":"#NAME?"},{"$error":"#NAME?"},{"$error":"#NAME?"}]
["Singles\\Agnes Carlsson - Release Me.mp3",{"$error":"#NAME?"},{"$error":"#NAME?"},{"$error":"#NAME?"},{"$error":"#NAME?"}]
["Singles\\Kate Bush - Running Up That Hill.mp3",{"$error":"#NAME?"},{"$error":"#NAME?"},{"$error":"#NAME?"},{"$error":"#NAME?"}]
["Singles\\Boney M - Rasputin.mp3",{"$error":"#NAME?"},{"$error":"#NAME?"},{"$error":"#NAME?"},{"$error":"#NAME?"}]
["Singles\\Racoon - Fun We Had.mp3",{"$error":"#NAME?"},{"$error":"#NAME?"},{"$error":"#NAME?"},{"$error":"#NAME?"}]
["Singles\\Guus Meeuwis - Tranen Gelachen.mp3",{"$error":"#NAME?"},{"$error":"#NAME?"},{"$error":"#NAME?"},{"$error":"#NAME?"}]
["Singles\\Abba - Under Attack.mp3",{"$f":"RegexTest(B$1,$A2435)","v":{"$error":"#NAME?"}},{"$f":"RegexCount(C$1,$A2435)","v":{"$error":"#NAME?"}},{"$f":"RegexFind(D$1,$A2435)","v":{"$error":"#NAME?"}},{"$f":"RegexReplace(E$1,$A2435,F$1)","v":{"$error":"#NAME?"}}]
["Singles\\Elvis Presley - In The Ghetto.mp3",{"$error":"#NAME?"},{"$error":"#NAME?"},{"$error":"#NAME?"},{"$error":"#NAME?"}]
["Singles\\Anouk - Wigger.mp3",{"$error":"#NAME?"},{"$error":"#NAME?"},{"$error":"#NAME?"},{"$error":"#NAME?"}]
["Singles\\Henry Gross - Shannon.mp3",{"$error":"#NAME?"},{"$error":"#NAME?"},{"$error":"#NAME?"},{"$error":"#NAME?"}]
["Singles\\Cliff Richard - Goodbye Sam, Hello Samantha.mp3",{"$error":"#NAME?"},{"$error":"#NAME?"},{"$error":"#NAME?"},{"$error":"#NAME?"}]
["Singles\\Grace Jones - Victor Should Have Been A Jazz Musician.mp3",{"$error":"#NAME?"},{"$error":"#NAME?"},{"$error":"#NAME?"},{"$error":"#NAME?"}]
["Singles\\Santana - Europa.mp3",{"$error":"#NAME?"},{"$error":"#NAME?"},{"$error":"#NAME?"},{"$error":"#NAME?"}]
["Singles\\Cocktail Trio - Leve De Man Die Het Bier Uitvond (Batje Vier).mp3",{"$error":"#NAME?"},{"$error":"#NAME?"},{"$error":"#NAME?"},{"$error":"#NAME?"}]
["Singles\\Paul McCartney & Wings - Coming Up.mp3",{"$error":"#NAME?"},{"$error":"#NAME?"},{"$error":"#NAME?"},{"$error":"#NAME?"}]
["Singles\\Richie Valens - La Bamba.mp3",{"$error":"#NAME?"},{"$error":"#NAME?"},{"$error":"#NAME?"},{"$error":"#NAME?"}]
["Singles\\Manfred Mann - Semi-Detached Suburban Mr James.mp3",{"$error":"#NAME?"},{"$error":"#NAME?"},{"$error":"#NAME?"},{"$error":"#NAME?"}]
["Singles\\Elvis Presley - Can't Help Falling In Love.mp3",{"$error":"#NAME?"},{"$error":"#NAME?"},{"$error":"#NAME?"},{"$error":"#NAME?"}]
["Singles\\Colin Blunstone - I Want Some More.mp3",{"$error":"#NAME?"},{"$error":"#NAME?"},{"$error":"#NAME?"},{"$error":"#NAME?"}]
["Singles\\Bonnie Tyler - It's A Heartache.mp3",{"$error":"#NAME?"},{"$error":"#NAME?"},{"$error":"#NAME?"},{"$error":"#NAME?"}]
["Singles\\The Yardbirds - For Your Love.mp3",{"$error":"#NAME?"},{"$error":"#NAME?"},{"$error":"#NAME?"},{"$error":"#NAME?"}]
["Singles\\Guus Meeuwis - Ik Wil Nog Niet Naar Huis.mp3",{"$error":"#NAME?"},{"$error":"#NAME?"},{"$error":"#NAME?"},{"$error":"#NAME?"}]
["Singles\\Vinchenzo - Daily.mp3",{"$error":"#NAME?"},{"$error":"#NAME?"},{"$error":"#NAME?"},{"$error":"#NAME?"}]
["Singles\\Marshmello ft Chvrches - Here With Me.mp3",{"$error":"#NAME?"},{"$error":"#NAME?"},{"$error":"#NAME?"},{"$error":"#NAME?"}]
["Singles\\Novastar - Because.mp3",{"$error":"#NAME?"},{"$error":"#NAME?"},{"$error":"#NAME?"},{"$error":"#NAME?"}]
["Singles\\Marc Anthony & Tina Arena - I Want To Spend My Lifetime Loving You.mp3",{"$error":"#NAME?"},{"$error":"#NAME?"},{"$error":"#NAME?"},{"$error":"#NAME?"}]
["Singles\\Small Faces - All Or Nothing.mp3",{"$error":"#NAME?"},{"$error":"#NAME?"},{"$error":"#NAME?"},{"$error":"#NAME?"}]
["Singles\\Bangles - Eternal Flame.mp3",{"$error":"#NAME?"},{"$error":"#NAME?"},{"$error":"#NAME?"},{"$error":"#NAME?"}]
["Singles\\Deee-Lite - Groove Is In The Heart.mp3",{"$error":"#NAME?"},{"$error":"#NAME?"},{"$error":"#NAME?"},{"$error":"#NAME?"}]
["Singles\\Duran Duran - A View To A Kill.mp3",{"$error":"#NAME?"},{"$error":"#NAME?"},{"$error":"#NAME?"},{"$error":"#NAME?"}]
["Singles\\James Morrison - Nothing Ever Hurt Like You .mp3",{"$error":"#NAME?"},{"$error":"#NAME?"},{"$error":"#NAME?"},{"$error":"#NAME?"}]
["Singles\\The B-52's - Love Shack.mp3",{"$error":"#NAME?"},{"$error":"#NAME?"},{"$error":"#NAME?"},{"$error":"#NAME?"}]
["Singles\\Duran Duran - Notorious.mp3",{"$error":"#NAME?"},{"$error":"#NAME?"},{"$error":"#NAME?"},{"$error":"#NAME?"}]
["Singles\\Gibson Brothers - Cuba.mp3",{"$error":"#NAME?"},{"$error":"#NAME?"},{"$error":"#NAME?"},{"$error":"#NAME?"}]
["Singles\\Bolland & Bolland - The Last Apache.mp3",{"$error":"#NAME?"},{"$error":"#NAME?"},{"$error":"#NAME?"},{"$error":"#NAME?"}]
["Singles\\Wulf - Switching Gears.mp3",{"$error":"#NAME?"},{"$error":"#NAME?"},{"$error":"#NAME?"},{"$error":"#NAME?"}]
["Singles\\Kim Wilde - Cambodia.mp3",{"$error":"#NAME?"},{"$error":"#NAME?"},{"$error":"#NAME?"},{"$error":"#NAME?"}]
["Singles\\Boney M - Gotta Go Home.mp3",{"$error":"#NAME?"},{"$error":"#NAME?"},{"$error":"#NAME?"},{"$error":"#NAME?"}]
["Singles\\Alexia - Uh La La La.mp3",{"$error":"#NAME?"},{"$error":"#NAME?"},{"$error":"#NAME?"},{"$error":"#NAME?"}]
["Singles\\Demi Lovato - Let It Go.mp3",{"$error":"#NAME?"},{"$error":"#NAME?"},{"$error":"#NAME?"},{"$error":"#NAME?"}]
["Singles\\Spider Murphy Gang - Skandal Im Sperrbezirk.mp3",{"$error":"#NAME?"},{"$error":"#NAME?"},{"$error":"#NAME?"},{"$error":"#NAME?"}]
["Singles\\Kim Carnes - Bon Voyage.mp3",{"$error":"#NAME?"},{"$error":"#NAME?"},{"$error":"#NAME?"},{"$error":"#NAME?"}]
["Singles\\Ronnie Tober - Iedere Avond.mp3",{"$error":"#NAME?"},{"$error":"#NAME?"},{"$error":"#NAME?"},{"$error":"#NAME?"}]
["Singles\\John Mayer - Waiting On The World To Change.mp3",{"$error":"#NAME?"},{"$error":"#NAME?"},{"$error":"#NAME?"},{"$error":"#NAME?"}]
["Singles\\Metallica - One.mp3",{"$error":"#NAME?"},{"$error":"#NAME?"},{"$error":"#NAME?"},{"$error":"#NAME?"}]
["Singles\\Leo Sayer - Orchard Road.mp3",{"$error":"#NAME?"},{"$error":"#NAME?"},{"$error":"#NAME?"},{"$error":"#NAME?"}]
["Singles\\Queen - '39.mp3",{"$error":"#NAME?"},{"$error":"#NAME?"},{"$error":"#NAME?"},{"$error":"#NAME?"}]
["Singles\\Maroon 5 - Makes Me Wonder.mp3",{"$error":"#NAME?"},{"$error":"#NAME?"},{"$error":"#NAME?"},{"$error":"#NAME?"}]
["Singles\\Luv' - U O Me.mp3",{"$error":"#NAME?"},{"$error":"#NAME?"},{"$error":"#NAME?"},{"$error":"#NAME?"}]
["Singles\\Paul McCartney - We All Stand Together.mp3",{"$error":"#NAME?"},{"$error":"#NAME?"},{"$error":"#NAME?"},{"$error":"#NAME?"}]
["Singles\\Chesney Hawkes - The One And Only.mp3",{"$error":"#NAME?"},{"$error":"#NAME?"},{"$error":"#NAME?"},{"$error":"#NAME?"}]
["Singles\\Marc Anthony - You Sang To Me In Love.mp3",{"$error":"#NAME?"},{"$error":"#NAME?"},{"$error":"#NAME?"},{"$error":"#NAME?"}]
["Singles\\Sam The Sham & The Pharaohs - Wooly Bully.mp3",{"$error":"#NAME?"},{"$error":"#NAME?"},{"$error":"#NAME?"},{"$error":"#NAME?"}]
["Singles\\The Rolling Stones - Like A Rolling Stone.mp3",{"$error":"#NAME?"},{"$error":"#NAME?"},{"$error":"#NAME?"},{"$error":"#NAME?"}]
["Singles\\Wham - Club Tropicana.mp3",{"$error":"#NAME?"},{"$error":"#NAME?"},{"$error":"#NAME?"},{"$error":"#NAME?"}]
["Singles\\Andy Kim - Baby I Love You.mp3",{"$error":"#NAME?"},{"$error":"#NAME?"},{"$error":"#NAME?"},{"$error":"#NAME?"}]
["Singles\\Highway - Kiddy Kiddy Kiss Me.mp3",{"$error":"#NAME?"},{"$error":"#NAME?"},{"$error":"#NAME?"},{"$error":"#NAME?"}]
["Singles\\Elvis Presley - Blue Suede Shoes.mp3",{"$error":"#NAME?"},{"$error":"#NAME?"},{"$error":"#NAME?"},{"$error":"#NAME?"}]
["Singles\\Pretenders - Talk Of The Town.mp3",{"$error":"#NAME?"},{"$error":"#NAME?"},{"$error":"#NAME?"},{"$error":"#NAME?"}]
["Singles\\Kelly Clarkson - Because Of You.mp3",{"$error":"#NAME?"},{"$error":"#NAME?"},{"$error":"#NAME?"},{"$error":"#NAME?"}]
["Singles\\Martin Garrix ft Bonn - Home.mp3",{"$error":"#NAME?"},{"$error":"#NAME?"},{"$error":"#NAME?"},{"$error":"#NAME?"}]
["Singles\\Racoon - Brother.mp3",{"$error":"#NAME?"},{"$error":"#NAME?"},{"$error":"#NAME?"},{"$error":"#NAME?"}]
["Singles\\The Beach Boys - Fun, Fun, Fun.mp3",{"$error":"#NAME?"},{"$error":"#NAME?"},{"$error":"#NAME?"},{"$error":"#NAME?"}]
["Singles\\James Blunt - Stay The Night.mp3",{"$error":"#NAME?"},{"$error":"#NAME?"},{"$error":"#NAME?"},{"$error":"#NAME?"}]
["Singles\\The Bee Gees - Night Fever.mp3",{"$error":"#NAME?"},{"$error":"#NAME?"},{"$error":"#NAME?"},{"$error":"#NAME?"}]
["Singles\\MC Hammer - Pray.mp3",{"$error":"#NAME?"},{"$error":"#NAME?"},{"$error":"#NAME?"},{"$error":"#NAME?"}]
["Singles\\George Michael - Fast Love.mp3",{"$error":"#NAME?"},{"$error":"#NAME?"},{"$error":"#NAME?"},{"$error":"#NAME?"}]
["Singles\\Maroon 5 - Daylight.mp3",{"$error":"#NAME?"},{"$error":"#NAME?"},{"$error":"#NAME?"},{"$error":"#NAME?"}]
["Singles\\Scott Fitzgerald & Yvonne Keeley - If I Had Words.mp3",{"$error":"#NAME?"},{"$error":"#NAME?"},{"$error":"#NAME?"},{"$error":"#NAME?"}]
["Singles\\Wiz Stars - A Brand New Day.mp3",{"$error":"#NAME?"},{"$error":"#NAME?"},{"$error":"#NAME?"},{"$error":"#NAME?"}]
["Singles\\Madonna - Beautiful Stranger.mp3",{"$f":"RegexTest(B$1,$A2499)","v":{"$error":"#NAME?"}},{"$f":"RegexCount(C$1,$A2499)","v":{"$error":"#NAME?"}},{"$f":"RegexFind(D$1,$A2499)","v":{"$error":"#NAME?"}},{"$f":"RegexReplace(E$1,$A2499,F$1)","v":{"$error":"#NAME?"}}]
["Singles\\Magna Carta - Airport Song.mp3",{"$error":"#NAME?"},{"$error":"#NAME?"},{"$error":"#NAME?"},{"$error":"#NAME?"}]
["Singles\\Birdy - Skinny Love.mp3",{"$error":"#NAME?"},{"$error":"#NAME?"},{"$error":"#NAME?"},{"$error":"#NAME?"}]
["Singles\\Dan The Banjoman - Dan The Banjoman.mp3",{"$error":"#NAME?"},{"$error":"#NAME?"},{"$error":"#NAME?"},{"$error":"#NAME?"}]
["Singles\\Crowded House - Better Be Home Soon.mp3",{"$error":"#NAME?"},{"$error":"#NAME?"},{"$error":"#NAME?"},{"$error":"#NAME?"}]
["Singles\\Ray Peterson - Tell Laura I Love Her.mp3",{"$error":"#NAME?"},{"$error":"#NAME?"},{"$error":"#NAME?"},{"$error":"#NAME?"}]
["Singles\\The Beatles - Your Mother Should Know.mp3",{"$error":"#NAME?"},{"$error":"#NAME?"},{"$error":"#NAME?"},{"$error":"#NAME?"}]
["Singles\\Deep Purple - Woman From Tokyo.mp3",{"$error":"#NAME?"},{"$error":"#NAME?"},{"$error":"#NAME?"},{"$error":"#NAME?"}]
["Singles\\Meghan Trainor - Lips Are Movin.mp3",{"$error":"#NAME?"},{"$error":"#NAME?"},{"$error":"#NAME?"},{"$error":"#NAME?"}]
["Singles\\Sister Sledge - We Are Family.mp3",{"$error":"#NAME?"},{"$error":"#NAME?"},{"$error":"#NAME?"},{"$error":"#NAME?"}]
["Singles\\Robbie Williams - Eternity.mp3",{"$error":"#NAME?"},{"$error":"#NAME?"},{"$error":"#NAME?"},{"$error":"#NAME?"}]
["Singles\\The Coasters - Charlie Brown.mp3",{"$error":"#NAME?"},{"$error":"#NAME?"},{"$error":"#NAME?"},{"$error":"#NAME?"}]
["Singles\\The Rolling Stones - Waiting On A Friend.mp3",{"$error":"#NAME?"},{"$error":"#NAME?"},{"$error":"#NAME?"},{"$error":"#NAME?"}]
["Singles\\David Guetta ft Usher - Without You.mp3",{"$error":"#NAME?"},{"$error":"#NAME?"},{"$error":"#NAME?"},{"$error":"#NAME?"}]
["Singles\\Bobby Vee - Rubber Ball.mp3",{"$error":"#NAME?"},{"$error":"#NAME?"},{"$error":"#NAME?"},{"$error":"#NAME?"}]
["Singles\\Leaf - New Song.mp3",{"$error":"#NAME?"},{"$error":"#NAME?"},{"$error":"#NAME?"},{"$error":"#NAME?"}]
["Singles\\Julie Rogers - The Wedding.mp3",{"$error":"#NAME?"},{"$error":"#NAME?"},{"$error":"#NAME?"},{"$error":"#NAME?"}]
["Singles\\Bay City Rollers - Keep On Dancing.mp3",{"$error":"#NAME?"},{"$error":"#NAME?"},{"$error":"#NAME?"},{"$error":"#NAME?"}]
["Singles\\Yolanda Be Cool & DCup - We Speak No Americano.mp3",{"$error":"#NAME?"},{"$error":"#NAME?"},{"$error":"#NAME?"},{"$error":"#NAME?"}]
["Singles\\Paul Hardcastle - 19.mp3",{"$error":"#NAME?"},{"$error":"#NAME?"},{"$error":"#NAME?"},{"$error":"#NAME?"}]
["Singles\\Vulcano - Een Beetje Van Dit.mp3",{"$error":"#NAME?"},{"$error":"#NAME?"},{"$error":"#NAME?"},{"$error":"#NAME?"}]
["Singles\\Joan Franka - You And Me.mp3",{"$error":"#NAME?"},{"$error":"#NAME?"},{"$error":"#NAME?"},{"$error":"#NAME?"}]
["Singles\\Eva Cassidy - Fields Of Gold.mp3",{"$error":"#NAME?"},{"$error":"#NAME?"},{"$error":"#NAME?"},{"$error":"#NAME?"}]
["Singles\\Thin Lizzy - Whiskey In The Jar.mp3",{"$error":"#NAME?"},{"$error":"#NAME?"},{"$error":"#NAME?"},{"$error":"#NAME?"}]
["Singles\\Trini Lopez - Adalita.mp3",{"$error":"#NAME?"},{"$error":"#NAME?"},{"$error":"#NAME?"},{"$error":"#NAME?"}]
["Singles\\Caro Emerald - Back It Up.mp3",{"$error":"#NAME?"},{"$error":"#NAME?"},{"$error":"#NAME?"},{"$error":"#NAME?"}]
["Singles\\The Rolling Stones - Start Me Up.mp3",{"$error":"#NAME?"},{"$error":"#NAME?"},{"$error":"#NAME?"},{"$error":"#NAME?"}]
["Singles\\Ellert - Love Lies.mp3",{"$error":"#NAME?"},{"$error":"#NAME?"},{"$error":"#NAME?"},{"$error":"#NAME?"}]
["Singles\\Peter & Gordon - True Love Ways.mp3",{"$error":"#NAME?"},{"$error":"#NAME?"},{"$error":"#NAME?"},{"$error":"#NAME?"}]
["Singles\\Willy Deville - Hey Joe.mp3",{"$error":"#NAME?"},{"$error":"#NAME?"},{"$error":"#NAME?"},{"$error":"#NAME?"}]
["Singles\\Vicky Leandros - Comme Je Suis.mp3",{"$error":"#NAME?"},{"$error":"#NAME?"},{"$error":"#NAME?"},{"$error":"#NAME?"}]
["Singles\\Wilson Phillips - A Reason To Believe.mp3",{"$error":"#NAME?"},{"$error":"#NAME?"},{"$error":"#NAME?"},{"$error":"#NAME?"}]
["Singles\\Eagle Eye Cherry - Are You Still Having Fun.mp3",{"$error":"#NAME?"},{"$error":"#NAME?"},{"$error":"#NAME?"},{"$error":"#NAME?"}]
["Singles\\Chris De Burgh - The Head And The Heart.mp3",{"$error":"#NAME?"},{"$error":"#NAME?"},{"$error":"#NAME?"},{"$error":"#NAME?"}]
["Singles\\Ramses Shaffy & Liesbeth List - Pastorale.mp3",{"$error":"#NAME?"},{"$error":"#NAME?"},{"$error":"#NAME?"},{"$error":"#NAME?"}]
["Singles\\Stealers Wheel - Everyone's Agreed That Everything Will Turn Out Fine.mp3",{"$error":"#NAME?"},{"$error":"#NAME?"},{"$error":"#NAME?"},{"$error":"#NAME?"}]
["Singles\\Teach In - Dinge-Dong.mp3",{"$error":"#NAME?"},{"$error":"#NAME?"},{"$error":"#NAME?"},{"$error":"#NAME?"}]
["Singles\\Bellamy Brothers - Some Broken Hearts.mp3",{"$error":"#NAME?"},{"$error":"#NAME?"},{"$error":"#NAME?"},{"$error":"#NAME?"}]
["Singles\\Cuby & The Blizzards - Window Of My Eyes.mp3",{"$error":"#NAME?"},{"$error":"#NAME?"},{"$error":"#NAME?"},{"$error":"#NAME?"}]
["Singles\\Gusttavo Lima - Balada.mp3",{"$error":"#NAME?"},{"$error":"#NAME?"},{"$error":"#NAME?"},{"$error":"#NAME?"}]
["Singles\\The Shadows - Kon-tiki.mp3",{"$error":"#NAME?"},{"$error":"#NAME?"},{"$error":"#NAME?"},{"$error":"#NAME?"}]
["Singles\\Bruce Springsteen - Glory Days.mp3",{"$error":"#NAME?"},{"$error":"#NAME?"},{"$error":"#NAME?"},{"$error":"#NAME?"}]
["Singles\\Space Art - Onyx.mp3",{"$error":"#NAME?"},{"$error":"#NAME?"},{"$error":"#NAME?"},{"$error":"#NAME?"}]
["Singles\\Van Velzen - The Rush Of Life.mp3",{"$error":"#NAME?"},{"$error":"#NAME?"},{"$error":"#NAME?"},{"$error":"#NAME?"}]
["Singles\\Charlie Dore - Pilot Of The Airwaves.mp3",{"$error":"#NAME?"},{"$error":"#NAME?"},{"$error":"#NAME?"},{"$error":"#NAME?"}]
["Singles\\Daddy Yankee & Snow - Con Calma.mp3",{"$error":"#NAME?"},{"$error":"#NAME?"},{"$error":"#NAME?"},{"$error":"#NAME?"}]
["Singles\\Studio Killers - Ode To The Bouncer.mp3",{"$error":"#NAME?"},{"$error":"#NAME?"},{"$error":"#NAME?"},{"$error":"#NAME?"}]
["Singles\\G'Race - Dr. Rhythm.mp3",{"$error":"#NAME?"},{"$error":"#NAME?"},{"$error":"#NAME?"},{"$error":"#NAME?"}]
["Singles\\Thembi - Take Me Back To The Old Transvaal.mp3",{"$error":"#NAME?"},{"$error":"#NAME?"},{"$error":"#NAME?"},{"$error":"#NAME?"}]
["Singles\\Mahna MacKay - Mah Na Mah Na.mp3",{"$error":"#NAME?"},{"$error":"#NAME?"},{"$error":"#NAME?"},{"$error":"#NAME?"}]
["Singles\\Marc Anthony - When I Dream At Night.mp3",{"$error":"#NAME?"},{"$error":"#NAME?"},{"$error":"#NAME?"},{"$error":"#NAME?"}]
["Singles\\WTF! - Da Bop.mp3",{"$error":"#NAME?"},{"$error":"#NAME?"},{"$error":"#NAME?"},{"$error":"#NAME?"}]
["Singles\\Whispers - Its A Love Thing.mp3",{"$error":"#NAME?"},{"$error":"#NAME?"},{"$error":"#NAME?"},{"$error":"#NAME?"}]
["Singles\\Michael Jackson & Paul McCartney - The Girl Is Mine.mp3",{"$error":"#NAME?"},{"$error":"#NAME?"},{"$error":"#NAME?"},{"$error":"#NAME?"}]
["Singles\\Pratt & McClain - Happy Days.mp3",{"$error":"#NAME?"},{"$error":"#NAME?"},{"$error":"#NAME?"},{"$error":"#NAME?"}]
["Singles\\Queen - Bicycle Race.mp3",{"$error":"#NAME?"},{"$error":"#NAME?"},{"$error":"#NAME?"},{"$error":"#NAME?"}]
["Singles\\Electric Light Orchestra - Wild West Hero.mp3",{"$error":"#NAME?"},{"$error":"#NAME?"},{"$error":"#NAME?"},{"$error":"#NAME?"}]
["Singles\\Fleetwood Mac - Songbird.mp3",{"$error":"#NAME?"},{"$error":"#NAME?"},{"$error":"#NAME?"},{"$error":"#NAME?"}]
["Singles\\Blof - Beter.mp3",{"$error":"#NAME?"},{"$error":"#NAME?"},{"$error":"#NAME?"},{"$error":"#NAME?"}]
["Singles\\Anouk - Run Away Together.mp3",{"$error":"#NAME?"},{"$error":"#NAME?"},{"$error":"#NAME?"},{"$error":"#NAME?"}]
["Singles\\Kenny Rogers & Dottie West - All I Ever Need Is You.mp3",{"$error":"#NAME?"},{"$error":"#NAME?"},{"$error":"#NAME?"},{"$error":"#NAME?"}]
["Singles\\The Smiths - Bigmouth Strikes Again.mp3",{"$error":"#NAME?"},{"$error":"#NAME?"},{"$error":"#NAME?"},{"$error":"#NAME?"}]
["Singles\\Johnny Kendall & The Heralds - See See Rider.mp3",{"$error":"#NAME?"},{"$error":"#NAME?"},{"$error":"#NAME?"},{"$error":"#NAME?"}]
["Singles\\Matt Simons - You Can Come Back Home.mp3",{"$error":"#NAME?"},{"$error":"#NAME?"},{"$error":"#NAME?"},{"$error":"#NAME?"}]
["Singles\\Tavares - Don't Take Away The Music.mp3",{"$f":"RegexTest(B$1,$A2563)","v":{"$error":"#NAME?"}},{"$f":"RegexCount(C$1,$A2563)","v":{"$error":"#NAME?"}},{"$f":"RegexFind(D$1,$A2563)","v":{"$error":"#NAME?"}},{"$f":"RegexReplace(E$1,$A2563,F$1)","v":{"$error":"#NAME?"}}]
["Singles\\Pitbull ft Marc Anthony - Rain Over Me.mp3",{"$error":"#NAME?"},{"$error":"#NAME?"},{"$error":"#NAME?"},{"$error":"#NAME?"}]
["Singles\\Roy Orbison - In Dreams.mp3",{"$error":"#NAME?"},{"$error":"#NAME?"},{"$error":"#NAME?"},{"$error":"#NAME?"}]
["Singles\\Lionel Richie - Angel.mp3",{"$error":"#NAME?"},{"$error":"#NAME?"},{"$error":"#NAME?"},{"$error":"#NAME?"}]
["Singles\\EG Daily - Say It Say It.mp3",{"$error":"#NAME?"},{"$error":"#NAME?"},{"$error":"#NAME?"},{"$error":"#NAME?"}]
["Singles\\Ed Sheeran - The A Team.mp3",{"$error":"#NAME?"},{"$error":"#NAME?"},{"$error":"#NAME?"},{"$error":"#NAME?"}]
["Singles\\Avicii - Wake Me Up.mp3",{"$error":"#NAME?"},{"$error":"#NAME?"},{"$error":"#NAME?"},{"$error":"#NAME?"}]
["Singles\\The Beat - Mirror In The Bathroom.mp3",{"$error":"#NAME?"},{"$error":"#NAME?"},{"$error":"#NAME?"},{"$error":"#NAME?"}]
["Singles\\Dolly Parton - I Will Always Love You.mp3",{"$error":"#NAME?"},{"$error":"#NAME?"},{"$error":"#NAME?"},{"$error":"#NAME?"}]
["Singles\\Suzanne Vega - Luka.mp3",{"$error":"#NAME?"},{"$error":"#NAME?"},{"$error":"#NAME?"},{"$error":"#NAME?"}]
["Singles\\Michael Schulte - You Let Me Walk Alone.mp3",{"$error":"#NAME?"},{"$error":"#NAME?"},{"$error":"#NAME?"},{"$error":"#NAME?"}]
["Singles\\London Grammar - Strong.mp3",{"$error":"#NAME?"},{"$error":"#NAME?"},{"$error":"#NAME?"},{"$error":"#NAME?"}]
["Singles\\Stevie Wonder - Lately.mp3",{"$error":"#NAME?"},{"$error":"#NAME?"},{"$error":"#NAME?"},{"$error":"#NAME?"}]
["Singles\\Barry White - Let The Music Play.mp3",{"$error":"#NAME?"},{"$error":"#NAME?"},{"$error":"#NAME?"},{"$error":"#NAME?"}]
["Singles\\Diggy Dex ft JW Roy - Treur Niet (Ode Aan Het Leven).mp3",{"$error":"#NAME?"},{"$error":"#NAME?"},{"$error":"#NAME?"},{"$error":"#NAME?"}]
["Singles\\The Walkers - Taboo.mp3",{"$error":"#NAME?"},{"$error":"#NAME?"},{"$error":"#NAME?"},{"$error":"#NAME?"}]
["Singles\\Mark Ronson & Miley Cyrus - Nothing Breaks Like A Heart.mp3",{"$error":"#NAME?"},{"$error":"#NAME?"},{"$error":"#NAME?"},{"$error":"#NAME?"}]
["Singles\\Leaf - Oh No No No.mp3",{"$error":"#NAME?"},{"$error":"#NAME?"},{"$error":"#NAME?"},{"$error":"#NAME?"}]
["Singles\\The Troggs - I Can't Control Myself.mp3",{"$error":"#NAME?"},{"$error":"#NAME?"},{"$error":"#NAME?"},{"$error":"#NAME?"}]
["Singles\\Herman's Hermits - I'm Henry The Eighth I Am.mp3",{"$error":"#NAME?"},{"$error":"#NAME?"},{"$error":"#NAME?"},{"$error":"#NAME?"}]
["Singles\\Phil Collins - (Love Is Like A) Heatwave.mp3",{"$error":"#NAME?"},{"$error":"#NAME?"},{"$error":"#NAME?"},{"$error":"#NAME?"}]
["Singles\\Marlon Roudette - New Age.mp3",{"$error":"#NAME?"},{"$error":"#NAME?"},{"$error":"#NAME?"},{"$error":"#NAME?"}]
["Singles\\Level 42 - It's Over.mp3",{"$error":"#NAME?"},{"$error":"#NAME?"},{"$error":"#NAME?"},{"$error":"#NAME?"}]
["Singles\\Elvis Presley - Crying In The Chapel.mp3",{"$error":"#NAME?"},{"$error":"#NAME?"},{"$error":"#NAME?"},{"$error":"#NAME?"}]
["Singles\\Nathalie - My Love Won't Let You Down.mp3",{"$error":"#NAME?"},{"$error":"#NAME?"},{"$error":"#NAME?"},{"$error":"#NAME?"}]
["Singles\\Kim Wilde - View From A Bridge.mp3",{"$error":"#NAME?"},{"$error":"#NAME?"},{"$error":"#NAME?"},{"$error":"#NAME?"}]
["Singles\\Talk Talk - Living In Another World.mp3",{"$error":"#NAME?"},{"$error":"#NAME?"},{"$error":"#NAME?"},{"$error":"#NAME?"}]
["Singles\\Eva De Roovere -  Fantastig Toch.mp3",{"$error":"#NAME?"},{"$error":"#NAME?"},{"$error":"#NAME?"},{"$error":"#NAME?"}]
["Singles\\Culture Club - The War Song.mp3",{"$error":"#NAME?"},{"$error":"#NAME?"},{"$error":"#NAME?"},{"$error":"#NAME?"}]
["Singles\\Mildred Douglas - One More Night.mp3",{"$error":"#NAME?"},{"$error":"#NAME?"},{"$error":"#NAME?"},{"$error":"#NAME?"}]
["Singles\\The Cats - Times Were When.mp3",{"$error":"#NAME?"},{"$error":"#NAME?"},{"$error":"#NAME?"},{"$error":"#NAME?"}]
["Singles\\Adele - Hometown Glory.mp3",{"$error":"#NAME?"},{"$error":"#NAME?"},{"$error":"#NAME?"},{"$error":"#NAME?"}]
["Singles\\James Bay - Hold Back The River.mp3",{"$error":"#NAME?"},{"$error":"#NAME?"},{"$error":"#NAME?"},{"$error":"#NAME?"}]
["Singles\\Boney M - Rivers Of Babylon.mp3",{"$error":"#NAME?"},{"$error":"#NAME?"},{"$error":"#NAME?"},{"$error":"#NAME?"}]
["Singles\\Leonard Cohen - Suzanne.mp3",{"$error":"#NAME?"},{"$error":"#NAME?"},{"$error":"#NAME?"},{"$error":"#NAME?"}]
["Singles\\Cilla Black - Anyone Who Had A Heart.mp3",{"$error":"#NAME?"},{"$error":"#NAME?"},{"$error":"#NAME?"},{"$error":"#NAME?"}]
["Singles\\Avicii - Fade Into Darkness.mp3",{"$error":"#NAME?"},{"$error":"#NAME?"},{"$error":"#NAME?"},{"$error":"#NAME?"}]
["Singles\\Katie Melua - If The Lights Go Out.mp3",{"$error":"#NAME?"},{"$error":"#NAME?"},{"$error":"#NAME?"},{"$error":"#NAME?"}]
["Singles\\Amen Corner - Gin House Blues.mp3",{"$error":"#NAME?"},{"$error":"#NAME?"},{"$error":"#NAME?"},{"$error":"#NAME?"}]
["Singles\\Miss Montreal - Wish I Could.mp3",{"$error":"#NAME?"},{"$error":"#NAME?"},{"$error":"#NAME?"},{"$error":"#NAME?"}]
["Singles\\Ugly Kid Joe - Everything About You.mp3",{"$error":"#NAME?"},{"$error":"#NAME?"},{"$error":"#NAME?"},{"$error":"#NAME?"}]
["Singles\\Marco Borsato & Trijntje Oosterhuis - Een Wereld Zonder Jou.mp3",{"$error":"#NAME?"},{"$error":"#NAME?"},{"$error":"#NAME?"},{"$error":"#NAME?"}]
["Singles\\Celine Dion - Falling Into You.mp3",{"$error":"#NAME?"},{"$error":"#NAME?"},{"$error":"#NAME?"},{"$error":"#NAME?"}]
["Singles\\Ricky Nelson - Tell Laura I Love Her.mp3",{"$error":"#NAME?"},{"$error":"#NAME?"},{"$error":"#NAME?"},{"$error":"#NAME?"}]
["Singles\\Suzan & Freek - Blauwe Dag.mp3",{"$error":"#NAME?"},{"$error":"#NAME?"},{"$error":"#NAME?"},{"$error":"#NAME?"}]
["Singles\\Sheena Easton - You Could Have Been With Me.mp3",{"$error":"#NAME?"},{"$error":"#NAME?"},{"$error":"#NAME?"},{"$error":"#NAME?"}]
["Singles\\Laura Jansen - Queen Of Elba.mp3",{"$error":"#NAME?"},{"$error":"#NAME?"},{"$error":"#NAME?"},{"$error":"#NAME?"}]
["Singles\\BJ Thomas - (Hey Won't You Play) Another Somebody Done Somebody Wrong Song.mp3",{"$error":"#NAME?"},{"$error":"#NAME?"},{"$error":"#NAME?"},{"$error":"#NAME?"}]
["Singles\\Manhattans - Kiss And Say Goodbye.mp3",{"$error":"#NAME?"},{"$error":"#NAME?"},{"$error":"#NAME?"},{"$error":"#NAME?"}]
["Singles\\Jarcha - Libertad Sin Ira.mp3",{"$error":"#NAME?"},{"$error":"#NAME?"},{"$error":"#NAME?"},{"$error":"#NAME?"}]
["Singles\\Doris D & The Pins - Shine Up.mp3",{"$error":"#NAME?"},{"$error":"#NAME?"},{"$error":"#NAME?"},{"$error":"#NAME?"}]
["Singles\\Major Lazer ft Justin Bieber & MO - Cold Water.mp3",{"$error":"#NAME?"},{"$error":"#NAME?"},{"$error":"#NAME?"},{"$error":"#NAME?"}]
["Singles\\Bachman Turner Overdrive - Taking Care Of Business.mp3",{"$error":"#NAME?"},{"$error":"#NAME?"},{"$error":"#NAME?"},{"$error":"#NAME?"}]
["Singles\\Rihanna - Don't Stop The Music.mp3",{"$error":"#NAME?"},{"$error":"#NAME?"},{"$error":"#NAME?"},{"$error":"#NAME?"}]
["Singles\\Wham - The Edge Of Heaven.mp3",{"$error":"#NAME?"},{"$error":"#NAME?"},{"$error":"#NAME?"},{"$error":"#NAME?"}]
["Singles\\James Morrison - Undiscovered.mp3",{"$error":"#NAME?"},{"$error":"#NAME?"},{"$error":"#NAME?"},{"$error":"#NAME?"}]
["Singles\\Davina Michelle - Better Now.mp3",{"$error":"#NAME?"},{"$error":"#NAME?"},{"$error":"#NAME?"},{"$error":"#NAME?"}]
["Singles\\Andrea Bocelli & Laura Pausini - Vivo Per Lei.mp3",{"$error":"#NAME?"},{"$error":"#NAME?"},{"$error":"#NAME?"},{"$error":"#NAME?"}]
["Singles\\Shirley Bassey - Hey Big Spender.mp3",{"$error":"#NAME?"},{"$error":"#NAME?"},{"$error":"#NAME?"},{"$error":"#NAME?"}]
["Singles\\Paul Anka - Hello Jim.mp3",{"$error":"#NAME?"},{"$error":"#NAME?"},{"$error":"#NAME?"},{"$error":"#NAME?"}]
["Singles\\Marco Borsato - Je Hoeft Niet Naar Huis Vannacht.mp3",{"$error":"#NAME?"},{"$error":"#NAME?"},{"$error":"#NAME?"},{"$error":"#NAME?"}]
["Singles\\The Chainsmokers ft Halsey - Closer.mp3",{"$error":"#NAME?"},{"$error":"#NAME?"},{"$error":"#NAME?"},{"$error":"#NAME?"}]
["Singles\\Ben Saunders - Dry Your Eyes.mp3",{"$error":"#NAME?"},{"$error":"#NAME?"},{"$error":"#NAME?"},{"$error":"#NAME?"}]
["Singles\\Daniel - Julie.mp3",{"$error":"#NAME?"},{"$error":"#NAME?"},{"$error":"#NAME?"},{"$error":"#NAME?"}]
["Singles\\Ziggy Marley - Tomorrow People.mp3",{"$f":"RegexTest(B$1,$A2627)","v":{"$error":"#NAME?"}},{"$f":"RegexCount(C$1,$A2627)","v":{"$error":"#NAME?"}},{"$f":"RegexFind(D$1,$A2627)","v":{"$error":"#NAME?"}},{"$f":"RegexReplace(E$1,$A2627,F$1)","v":{"$error":"#NAME?"}}]
["Singles\\Bar-Kays - Soulfinger.mp3",{"$error":"#NAME?"},{"$error":"#NAME?"},{"$error":"#NAME?"},{"$error":"#NAME?"}]
["Singles\\Lady GaGa - Just Dance.mp3",{"$error":"#NAME?"},{"$error":"#NAME?"},{"$error":"#NAME?"},{"$error":"#NAME?"}]
["Singles\\Sick Puppies - Maybe.mp3",{"$error":"#NAME?"},{"$error":"#NAME?"},{"$error":"#NAME?"},{"$error":"#NAME?"}]
["Singles\\Aloe Blacc - The Man.mp3",{"$error":"#NAME?"},{"$error":"#NAME?"},{"$error":"#NAME?"},{"$error":"#NAME?"}]
["Singles\\John Legend - Wake Up Everybody.mp3",{"$error":"#NAME?"},{"$error":"#NAME?"},{"$error":"#NAME?"},{"$error":"#NAME?"}]
["Singles\\Elton John - Nikita.mp3",{"$error":"#NAME?"},{"$error":"#NAME?"},{"$error":"#NAME?"},{"$error":"#NAME?"}]
["Singles\\Ferrante & Teicher - Midnight Cowboy.mp3",{"$error":"#NAME?"},{"$error":"#NAME?"},{"$error":"#NAME?"},{"$error":"#NAME?"}]
["Singles\\Rob De Nijs - Het Werd Zomer.mp3",{"$error":"#NAME?"},{"$error":"#NAME?"},{"$error":"#NAME?"},{"$error":"#NAME?"}]
["Singles\\Ramses Shaffy - Sammy.mp3",{"$error":"#NAME?"},{"$error":"#NAME?"},{"$error":"#NAME?"},{"$error":"#NAME?"}]
["Singles\\Del The Funky Homosapian - Mistadobalina (Mr Bob Dobolina).mp3",{"$error":"#NAME?"},{"$error":"#NAME?"},{"$error":"#NAME?"},{"$error":"#NAME?"}]
["Singles\\Guus Meeuwis & Vagant - Per Spoor (Kedeng Kedeng).mp3",{"$error":"#NAME?"},{"$error":"#NAME?"},{"$error":"#NAME?"},{"$error":"#NAME?"}]
["Singles\\Sly & The Family Stone - Family Affair.mp3",{"$error":"#NAME?"},{"$error":"#NAME?"},{"$error":"#NAME?"},{"$error":"#NAME?"}]
["Singles\\Kane - Shot Of A Gun.mp3",{"$error":"#NAME?"},{"$error":"#NAME?"},{"$error":"#NAME?"},{"$error":"#NAME?"}]
["Singles\\Andre Van Duin - Als Je Huilt.mp3",{"$error":"#NAME?"},{"$error":"#NAME?"},{"$error":"#NAME?"},{"$error":"#NAME?"}]
["Singles\\The Weeknd ft Daft Punk - I Feel It Coming.mp3",{"$error":"#NAME?"},{"$error":"#NAME?"},{"$error":"#NAME?"},{"$error":"#NAME?"}]
["Singles\\Alan Parsons Project - I Robot.mp3",{"$error":"#NAME?"},{"$error":"#NAME?"},{"$error":"#NAME?"},{"$error":"#NAME?"}]
["Singles\\Mac Kissoon - Lavender Blue.mp3",{"$error":"#NAME?"},{"$error":"#NAME?"},{"$error":"#NAME?"},{"$error":"#NAME?"}]
["Singles\\Jaki Graham & David Grant - Mated.mp3",{"$error":"#NAME?"},{"$error":"#NAME?"},{"$error":"#NAME?"},{"$error":"#NAME?"}]
["Singles\\Linda De Suza - Un Portugais.mp3",{"$error":"#NAME?"},{"$error":"#NAME?"},{"$error":"#NAME?"},{"$error":"#NAME?"}]
["Singles\\Honeybus - I Can't Let Maggie Go.mp3",{"$error":"#NAME?"},{"$error":"#NAME?"},{"$error":"#NAME?"},{"$error":"#NAME?"}]
["Singles\\Fox The Fox - Precious Little Diamond.mp3",{"$error":"#NAME?"},{"$error":"#NAME?"},{"$error":"#NAME?"},{"$error":"#NAME?"}]
["Singles\\Helen Reddy - You're My World.mp3",{"$error":"#NAME?"},{"$error":"#NAME?"},{"$error":"#NAME?"},{"$error":"#NAME?"}]
["Singles\\Michael Jackson - Leave Me Alone.mp3",{"$error":"#NAME?"},{"$error":"#NAME?"},{"$error":"#NAME?"},{"$error":"#NAME?"}]
["Singles\\Enrique Iglesias & Whitney Houston - Could I Have This Kiss Forever.mp3",{"$error":"#NAME?"},{"$error":"#NAME?"},{"$error":"#NAME?"},{"$error":"#NAME?"}]
["Singles\\Michael Jackson - One Day In Your Life.mp3",{"$error":"#NAME?"},{"$error":"#NAME?"},{"$error":"#NAME?"},{"$error":"#NAME?"}]
["Singles\\World Of Oz - The Muffin Man.mp3",{"$error":"#NAME?"},{"$error":"#NAME?"},{"$error":"#NAME?"},{"$error":"#NAME?"}]
["Singles\\Slade - Skweeze Me Pleeze Me.mp3",{"$error":"#NAME?"},{"$error":"#NAME?"},{"$error":"#NAME?"},{"$error":"#NAME?"}]
["Singles\\Five For Figthing - Superman (It's Not Easy).mp3",{"$error":"#NAME?"},{"$error":"#NAME?"},{"$error":"#NAME?"},{"$error":"#NAME?"}]
["Singles\\Robbie Williams - Love My Life.mp3",{"$error":"#NAME?"},{"$error":"#NAME?"},{"$error":"#NAME?"},{"$error":"#NAME?"}]
["Singles\\Jim Croce - Time In A Bottle.mp3",{"$error":"#NAME?"},{"$error":"#NAME?"},{"$error":"#NAME?"},{"$error":"#NAME?"}]
["Singles\\Jules De Corte - Ik Zou Wel Eens Willen Weten.mp3",{"$error":"#NAME?"},{"$error":"#NAME?"},{"$error":"#NAME?"},{"$error":"#NAME?"}]
["Singles\\Nat King Cole - When I Fall In Love.mp3",{"$error":"#NAME?"},{"$error":"#NAME?"},{"$error":"#NAME?"},{"$error":"#NAME?"}]
["Singles\\Abc - The Night You Murdered Love.mp3",{"$error":"#NAME?"},{"$error":"#NAME?"},{"$error":"#NAME?"},{"$error":"#NAME?"}]
["Singles\\Neil Diamond - Stargazer.mp3",{"$error":"#NAME?"},{"$error":"#NAME?"},{"$error":"#NAME?"},{"$error":"#NAME?"}]
["Singles\\Gerry & The Pacemakers - You'll Never Walk Alone.mp3",{"$error":"#NAME?"},{"$error":"#NAME?"},{"$error":"#NAME?"},{"$error":"#NAME?"}]
["Singles\\Joshua Kadison - Jessie.mp3",{"$error":"#NAME?"},{"$error":"#NAME?"},{"$error":"#NAME?"},{"$error":"#NAME?"}]
["Singles\\Guys 'n' Dolls - You Don't Have To Say You Love Me.mp3",{"$error":"#NAME?"},{"$error":"#NAME?"},{"$error":"#NAME?"},{"$error":"#NAME?"}]
["Singles\\Unheilig - Geboren Um Zu Leben (Der Graf).mp3",{"$error":"#NAME?"},{"$error":"#NAME?"},{"$error":"#NAME?"},{"$error":"#NAME?"}]
["Singles\\Elvis Presley - Suspicious Minds.mp3",{"$error":"#NAME?"},{"$error":"#NAME?"},{"$error":"#NAME?"},{"$error":"#NAME?"}]
["Singles\\Olivia Newton-John - A Little More Love.mp3",{"$error":"#NAME?"},{"$error":"#NAME?"},{"$error":"#NAME?"},{"$error":"#NAME?"}]
["Singles\\Ace Of Base - Happy Nation.mp3",{"$error":"#NAME?"},{"$error":"#NAME?"},{"$error":"#NAME?"},{"$error":"#NAME?"}]
["Singles\\Linda De Suza - Une Fille De Tous Les Pays.mp3",{"$error":"#NAME?"},{"$error":"#NAME?"},{"$error":"#NAME?"},{"$error":"#NAME?"}]
["Singles\\Joe Jackson & Elaine Caswell - Happy Ending.mp3",{"$error":"#NAME?"},{"$error":"#NAME?"},{"$error":"#NAME?"},{"$error":"#NAME?"}]
["Singles\\Bryan Adams - All I Want Is You.mp3",{"$error":"#NAME?"},{"$error":"#NAME?"},{"$error":"#NAME?"},{"$error":"#NAME?"}]
["Singles\\Doobie Brothers - (Music Is) The Doctor.mp3",{"$error":"#NAME?"},{"$error":"#NAME?"},{"$error":"#NAME?"},{"$error":"#NAME?"}]
["Singles\\Cliff Richard - All My Love.mp3",{"$error":"#NAME?"},{"$error":"#NAME?"},{"$error":"#NAME?"},{"$error":"#NAME?"}]
["Singles\\Blue Mink - Melting Pot.mp3",{"$error":"#NAME?"},{"$error":"#NAME?"},{"$error":"#NAME?"},{"$error":"#NAME?"}]
["Singles\\Grandmaster Chicken & DJ Duck - Check Out The Chicken.mp3",{"$error":"#NAME?"},{"$error":"#NAME?"},{"$error":"#NAME?"},{"$error":"#NAME?"}]
["Singles\\Deco - A Room With A View.mp3",{"$error":"#NAME?"},{"$error":"#NAME?"},{"$error":"#NAME?"},{"$error":"#NAME?"}]
["Singles\\Wally Tax - Miss Wonderful.mp3",{"$error":"#NAME?"},{"$error":"#NAME?"},{"$error":"#NAME?"},{"$error":"#NAME?"}]
["Singles\\Andy Williams - Battle Hymn Of The Republic.mp3",{"$error":"#NAME?"},{"$error":"#NAME?"},{"$error":"#NAME?"},{"$error":"#NAME?"}]
["Singles\\Marco Borsato - This Moment.mp3",{"$error":"#NAME?"},{"$error":"#NAME?"},{"$error":"#NAME?"},{"$error":"#NAME?"}]
["Singles\\Blood, Sweat & Tears - Hi-De-Ho.mp3",{"$error":"#NAME?"},{"$error":"#NAME?"},{"$error":"#NAME?"},{"$error":"#NAME?"}]
["Singles\\Pearl Jam - Just Breathe.mp3",{"$error":"#NAME?"},{"$error":"#NAME?"},{"$error":"#NAME?"},{"$error":"#NAME?"}]
["Singles\\Jimmy James & The Vagabonds - I'll Go Where Your Music Takes Me.mp3",{"$error":"#NAME?"},{"$error":"#NAME?"},{"$error":"#NAME?"},{"$error":"#NAME?"}]
["Singles\\Colin Blunstone - I Don't Believe In Miracles.mp3",{"$error":"#NAME?"},{"$error":"#NAME?"},{"$error":"#NAME?"},{"$error":"#NAME?"}]
["Singles\\Martin Garrix ft Bonn - High On Life.mp3",{"$error":"#NAME?"},{"$error":"#NAME?"},{"$error":"#NAME?"},{"$error":"#NAME?"}]
["Singles\\Jack Jersey - In The Still Of The Night.mp3",{"$error":"#NAME?"},{"$error":"#NAME?"},{"$error":"#NAME?"},{"$error":"#NAME?"}]
["Singles\\The Hollies - Listen To Me (Do The Best You Can).mp3",{"$error":"#NAME?"},{"$error":"#NAME?"},{"$error":"#NAME?"},{"$error":"#NAME?"}]
["Singles\\The Doors - People Are Strange.mp3",{"$error":"#NAME?"},{"$error":"#NAME?"},{"$error":"#NAME?"},{"$error":"#NAME?"}]
["Singles\\Lady GaGa - Bad Romance.mp3",{"$error":"#NAME?"},{"$error":"#NAME?"},{"$error":"#NAME?"},{"$error":"#NAME?"}]
["Singles\\David Guetta ft Bebe Rexha & J Balvin - Say My Name.mp3",{"$error":"#NAME?"},{"$error":"#NAME?"},{"$error":"#NAME?"},{"$error":"#NAME?"}]
["Singles\\Judie Tzuke - Stay With Me Till Dawn.mp3",{"$error":"#NAME?"},{"$error":"#NAME?"},{"$error":"#NAME?"},{"$error":"#NAME?"}]
["Singles\\Marty Wilde - Abergavenny.mp3",{"$f":"RegexTest(B$1,$A2691)","v":{"$error":"#NAME?"}},{"$f":"RegexCount(C$1,$A2691)","v":{"$error":"#NAME?"}},{"$f":"RegexFind(D$1,$A2691)","v":{"$error":"#NAME?"}},{"$f":"RegexReplace(E$1,$A2691,F$1)","v":{"$error":"#NAME?"}}]
["Singles\\Zayn ft Sia - Dusk Till Dawn.mp3",{"$error":"#NAME?"},{"$error":"#NAME?"},{"$error":"#NAME?"},{"$error":"#NAME?"}]
["Singles\\Labrinth ft Emeli Sande - Beneath Your Beautiful.mp3",{"$error":"#NAME?"},{"$error":"#NAME?"},{"$error":"#NAME?"},{"$error":"#NAME?"}]
["Singles\\Frank Sinatra - Let Me Try Again.mp3",{"$error":"#NAME?"},{"$error":"#NAME?"},{"$error":"#NAME?"},{"$error":"#NAME?"}]
["Singles\\Diana Ross & Lionel Richie - My Endless Love.mp3",{"$error":"#NAME?"},{"$error":"#NAME?"},{"$error":"#NAME?"},{"$error":"#NAME?"}]
["Singles\\Muse - Uprising.mp3",{"$error":"#NAME?"},{"$error":"#NAME?"},{"$error":"#NAME?"},{"$error":"#NAME?"}]
["Singles\\Level 42 - Lessons In Love.mp3",{"$error":"#NAME?"},{"$error":"#NAME?"},{"$error":"#NAME?"},{"$error":"#NAME?"}]
["Singles\\The Beatles - Ticket To Ride.mp3",{"$error":"#NAME?"},{"$error":"#NAME?"},{"$error":"#NAME?"},{"$error":"#NAME?"}]
["Singles\\The Scene - Blauw.mp3",{"$error":"#NAME?"},{"$error":"#NAME?"},{"$error":"#NAME?"},{"$error":"#NAME?"}]
["Singles\\Edison Lighthouse - Love Grows (Where My Rosemary Goes).mp3",{"$error":"#NAME?"},{"$error":"#NAME?"},{"$error":"#NAME?"},{"$error":"#NAME?"}]
["Singles\\Frank Boeijen Groep - 1.000.000 Sterren.mp3",{"$error":"#NAME?"},{"$error":"#NAME?"},{"$error":"#NAME?"},{"$error":"#NAME?"}]
["Singles\\The Bee Gees - Secret Love.mp3",{"$error":"#NAME?"},{"$error":"#NAME?"},{"$error":"#NAME?"},{"$error":"#NAME?"}]
["Singles\\Adiemus - Adiemus.mp3",{"$error":"#NAME?"},{"$error":"#NAME?"},{"$error":"#NAME?"},{"$error":"#NAME?"}]
["Singles\\Emeli Sande - Read All About It.mp3",{"$error":"#NAME?"},{"$error":"#NAME?"},{"$error":"#NAME?"},{"$error":"#NAME?"}]
["Singles\\Johnny Kraaykamp & Rijk De Gooyer - De Bostella.mp3",{"$error":"#NAME?"},{"$error":"#NAME?"},{"$error":"#NAME?"},{"$error":"#NAME?"}]
["Singles\\Elvis Presley - Always On My Mind.mp3",{"$error":"#NAME?"},{"$error":"#NAME?"},{"$error":"#NAME?"},{"$error":"#NAME?"}]
["Singles\\John Spencer - Een Meisje Voor Altijd.mp3",{"$error":"#NAME?"},{"$error":"#NAME?"},{"$error":"#NAME?"},{"$error":"#NAME?"}]
["Singles\\Mando Diao - Dance With Somebody.mp3",{"$error":"#NAME?"},{"$error":"#NAME?"},{"$error":"#NAME?"},{"$error":"#NAME?"}]
["Singles\\Smith - Baby It's You.mp3",{"$error":"#NAME?"},{"$error":"#NAME?"},{"$error":"#NAME?"},{"$error":"#NAME?"}]
["Singles\\Axwell ft Ingrosso - More Than You Know.mp3",{"$error":"#NAME?"},{"$error":"#NAME?"},{"$error":"#NAME?"},{"$error":"#NAME?"}]
["Singles\\Doe Maar - Smoorverliefd.mp3",{"$error":"#NAME?"},{"$error":"#NAME?"},{"$error":"#NAME?"},{"$error":"#NAME?"}]
["Singles\\Five - Everybody Get Up.mp3",{"$error":"#NAME?"},{"$error":"#NAME?"},{"$error":"#NAME?"},{"$error":"#NAME?"}]
["Singles\\John Lamers - Ik Bewonder Jou.mp3",{"$error":"#NAME?"},{"$error":"#NAME?"},{"$error":"#NAME?"},{"$error":"#NAME?"}]
["Singles\\Los Payos - Maria Isabel.mp3",{"$error":"#NAME?"},{"$error":"#NAME?"},{"$error":"#NAME?"},{"$error":"#NAME?"}]
["Singles\\Wim Sonneveld - Aan De Amsterdamse Grachten.mp3",{"$error":"#NAME?"},{"$error":"#NAME?"},{"$error":"#NAME?"},{"$error":"#NAME?"}]
["Singles\\Coldplay - Every Teardrop Is A Waterfall.mp3",{"$error":"#NAME?"},{"$error":"#NAME?"},{"$error":"#NAME?"},{"$error":"#NAME?"}]
["Singles\\The Beatles - Girl.mp3",{"$error":"#NAME?"},{"$error":"#NAME?"},{"$error":"#NAME?"},{"$error":"#NAME?"}]
["Singles\\Jaap Reesema - Don't Stop Believin'.mp3",{"$error":"#NAME?"},{"$error":"#NAME?"},{"$error":"#NAME?"},{"$error":"#NAME?"}]
["Singles\\Johnny 'Guitar' Watson - A Real Mother For Ya.mp3",{"$error":"#NAME?"},{"$error":"#NAME?"},{"$error":"#NAME?"},{"$error":"#NAME?"}]
["Singles\\Taylor Swift ft Ed Sheeran - Everything Has Changed.mp3",{"$error":"#NAME?"},{"$error":"#NAME?"},{"$error":"#NAME?"},{"$error":"#NAME?"}]
["Singles\\Jimmy Castor Bunch - King Kong.mp3",{"$error":"#NAME?"},{"$error":"#NAME?"},{"$error":"#NAME?"},{"$error":"#NAME?"}]
["Singles\\Rod Stewart, Sting & Bryan Adams - All For Love.mp3",{"$error":"#NAME?"},{"$error":"#NAME?"},{"$error":"#NAME?"},{"$error":"#NAME?"}]
["Singles\\Pointer Sisters - Slow Hand.mp3",{"$error":"#NAME?"},{"$error":"#NAME?"},{"$error":"#NAME?"},{"$error":"#NAME?"}]
["Singles\\Sailor - La Cumbia.mp3",{"$error":"#NAME?"},{"$error":"#NAME?"},{"$error":"#NAME?"},{"$error":"#NAME?"}]
["Singles\\Tee Set - She Likes Weeds.mp3",{"$error":"#NAME?"},{"$error":"#NAME?"},{"$error":"#NAME?"},{"$error":"#NAME?"}]
["Singles\\Solid Harmonie - I'll Be There For You.mp3",{"$error":"#NAME?"},{"$error":"#NAME?"},{"$error":"#NAME?"},{"$error":"#NAME?"}]
["Singles\\Rose Royce - Best Love.mp3",{"$error":"#NAME?"},{"$error":"#NAME?"},{"$error":"#NAME?"},{"$error":"#NAME?"}]
["Singles\\Benny Neyman - Ik Weet Niet Hoe.mp3",{"$error":"#NAME?"},{"$error":"#NAME?"},{"$error":"#NAME?"},{"$error":"#NAME?"}]
["Singles\\Amazing Stroopwafels - Ik Ga Naar Frankrijk.mp3",{"$error":"#NAME?"},{"$error":"#NAME?"},{"$error":"#NAME?"},{"$error":"#NAME?"}]
["Singles\\Michael Bolton - To  Love Somebody.mp3",{"$error":"#NAME?"},{"$error":"#NAME?"},{"$error":"#NAME?"},{"$error":"#NAME?"}]
["Singles\\Hues Corporation - Rockin' Soul.mp3",{"$error":"#NAME?"},{"$error":"#NAME?"},{"$error":"#NAME?"},{"$error":"#NAME?"}]
["Singles\\The Scene - Open.mp3",{"$error":"#NAME?"},{"$error":"#NAME?"},{"$error":"#NAME?"},{"$error":"#NAME?"}]
["Singles\\John Mayer - Paper Doll.mp3",{"$error":"#NAME?"},{"$error":"#NAME?"},{"$error":"#NAME?"},{"$error":"#NAME?"}]
["Singles\\The Christians - There You Go Again.mp3",{"$error":"#NAME?"},{"$error":"#NAME?"},{"$error":"#NAME?"},{"$error":"#NAME?"}]
["Singles\\Alok & Bruno Martini ft Zeeba - Hear Me Now.mp3",{"$error":"#NAME?"},{"$error":"#NAME?"},{"$error":"#NAME?"},{"$error":"#NAME?"}]
["Singles\\Long Tall Ernie & The Shakers - Golden Years Of Rock 'N Roll.mp3",{"$error":"#NAME?"},{"$error":"#NAME?"},{"$error":"#NAME?"},{"$error":"#NAME?"}]
["Singles\\Frank Sinatra - That's Life.mp3",{"$error":"#NAME?"},{"$error":"#NAME?"},{"$error":"#NAME?"},{"$error":"#NAME?"}]
["Singles\\The Asteroids Galaxy Tour - Heart Attack.mp3",{"$error":"#NAME?"},{"$error":"#NAME?"},{"$error":"#NAME?"},{"$error":"#NAME?"}]
["Singles\\Elvis Presley - Good Luck Charm.mp3",{"$error":"#NAME?"},{"$error":"#NAME?"},{"$error":"#NAME?"},{"$error":"#NAME?"}]
["Singles\\Little River Band - Forever Blue.mp3",{"$error":"#NAME?"},{"$error":"#NAME?"},{"$error":"#NAME?"},{"$error":"#NAME?"}]
["Singles\\Arjan Brass - Leonie.mp3",{"$error":"#NAME?"},{"$error":"#NAME?"},{"$error":"#NAME?"},{"$error":"#NAME?"}]
["Singles\\Gerhard Wendland - Tanze Mit Mir In Den Morgen.mp3",{"$error":"#NAME?"},{"$error":"#NAME?"},{"$error":"#NAME?"},{"$error":"#NAME?"}]
["Singles\\Elton John - Blue Eyes.mp3",{"$error":"#NAME?"},{"$error":"#NAME?"},{"$error":"#NAME?"},{"$error":"#NAME?"}]
["Singles\\Corinne Bailey Rae - Put Your Records On.mp3",{"$error":"#NAME?"},{"$error":"#NAME?"},{"$error":"#NAME?"},{"$error":"#NAME?"}]
["Singles\\Hotcha Trio - Galloping Comedians.mp3",{"$error":"#NAME?"},{"$error":"#NAME?"},{"$error":"#NAME?"},{"$error":"#NAME?"}]
["Singles\\Elvis Presley - Surrender.mp3",{"$error":"#NAME?"},{"$error":"#NAME?"},{"$error":"#NAME?"},{"$error":"#NAME?"}]
["Singles\\Heather Nova - Walk This World.mp3",{"$error":"#NAME?"},{"$error":"#NAME?"},{"$error":"#NAME?"},{"$error":"#NAME?"}]
["Singles\\Little Jimmy Osmond - Tweedle Dee.mp3",{"$error":"#NAME?"},{"$error":"#NAME?"},{"$error":"#NAME?"},{"$error":"#NAME?"}]
["Singles\\Naughty Boy ft Beyonce & Arrow Benjamin - Runnin (Lose It All).mp3",{"$error":"#NAME?"},{"$error":"#NAME?"},{"$error":"#NAME?"},{"$error":"#NAME?"}]
["Singles\\Nicky Jam & Enrique Iglesias - El Perdon.mp3",{"$error":"#NAME?"},{"$error":"#NAME?"},{"$error":"#NAME?"},{"$error":"#NAME?"}]
["Singles\\The Commodores - Sail On.mp3",{"$error":"#NAME?"},{"$error":"#NAME?"},{"$error":"#NAME?"},{"$error":"#NAME?"}]
["Singles\\Paco Paco - Taka Takata.mp3",{"$error":"#NAME?"},{"$error":"#NAME?"},{"$error":"#NAME?"},{"$error":"#NAME?"}]
["Singles\\Desmond Dekker - Israelites.mp3",{"$error":"#NAME?"},{"$error":"#NAME?"},{"$error":"#NAME?"},{"$error":"#NAME?"}]
["Singles\\Gavin DeGraw - Best I Ever Had.mp3",{"$error":"#NAME?"},{"$error":"#NAME?"},{"$error":"#NAME?"},{"$error":"#NAME?"}]
["Singles\\Rob De Nijs - Zonder Jou.mp3",{"$f":"RegexTest(B$1,$A2755)","v":{"$error":"#NAME?"}},{"$f":"RegexCount(C$1,$A2755)","v":{"$error":"#NAME?"}},{"$f":"RegexFind(D$1,$A2755)","v":{"$error":"#NAME?"}},{"$f":"RegexReplace(E$1,$A2755,F$1)","v":{"$error":"#NAME?"}}]
["Singles\\John Lennon - Instant Karma (We All Shine On).mp3",{"$error":"#NAME?"},{"$error":"#NAME?"},{"$error":"#NAME?"},{"$error":"#NAME?"}]
["Singles\\The Kinks - Autumn Almanac.mp3",{"$error":"#NAME?"},{"$error":"#NAME?"},{"$error":"#NAME?"},{"$error":"#NAME?"}]
["Singles\\Liquido - Narcotic.mp3",{"$error":"#NAME?"},{"$error":"#NAME?"},{"$error":"#NAME?"},{"$error":"#NAME?"}]
["Singles\\Neil Diamond - Skybird.mp3",{"$error":"#NAME?"},{"$error":"#NAME?"},{"$error":"#NAME?"},{"$error":"#NAME?"}]
["Singles\\Abba - One Of Us.mp3",{"$error":"#NAME?"},{"$error":"#NAME?"},{"$error":"#NAME?"},{"$error":"#NAME?"}]
["Singles\\Spice Girls - Too Much.mp3",{"$error":"#NAME?"},{"$error":"#NAME?"},{"$error":"#NAME?"},{"$error":"#NAME?"}]
["Singles\\Gavin DeGraw - Fire.mp3",{"$error":"#NAME?"},{"$error":"#NAME?"},{"$error":"#NAME?"},{"$error":"#NAME?"}]
["Singles\\Enrique Iglesias ft Wisin - Duele El Corazon.mp3",{"$error":"#NAME?"},{"$error":"#NAME?"},{"$error":"#NAME?"},{"$error":"#NAME?"}]
["Singles\\The Beat - The Tears Of A Clown.mp3",{"$error":"#NAME?"},{"$error":"#NAME?"},{"$error":"#NAME?"},{"$error":"#NAME?"}]
["Singles\\Unit Gloria - Our Father.mp3",{"$error":"#NAME?"},{"$error":"#NAME?"},{"$error":"#NAME?"},{"$error":"#NAME?"}]
["Singles\\Douwe Bob - Slow Down.mp3",{"$error":"#NAME?"},{"$error":"#NAME?"},{"$error":"#NAME?"},{"$error":"#NAME?"}]
["Singles\\Rene Froger - Nobody Else.mp3",{"$error":"#NAME?"},{"$error":"#NAME?"},{"$error":"#NAME?"},{"$error":"#NAME?"}]
["Singles\\Luv' - You're The Greatest Lover.mp3",{"$error":"#NAME?"},{"$error":"#NAME?"},{"$error":"#NAME?"},{"$error":"#NAME?"}]
["Singles\\Calum Scott - Dancing On My Own (Tiesto).mp3",{"$error":"#NAME?"},{"$error":"#NAME?"},{"$error":"#NAME?"},{"$error":"#NAME?"}]
["Singles\\George Benson - Lady Love Me (One More Time).mp3",{"$error":"#NAME?"},{"$error":"#NAME?"},{"$error":"#NAME?"},{"$error":"#NAME?"}]
["Singles\\Crash Test Dummies - Mmm Mmm Mmm Mmm.mp3",{"$error":"#NAME?"},{"$error":"#NAME?"},{"$error":"#NAME?"},{"$error":"#NAME?"}]
["Singles\\Krystl - Undefeatable.mp3",{"$error":"#NAME?"},{"$error":"#NAME?"},{"$error":"#NAME?"},{"$error":"#NAME?"}]
["Singles\\The Allisons - Are You Sure.mp3",{"$error":"#NAME?"},{"$error":"#NAME?"},{"$error":"#NAME?"},{"$error":"#NAME?"}]
["Singles\\Enrique Iglesias & Sean Garrett - Away.mp3",{"$error":"#NAME?"},{"$error":"#NAME?"},{"$error":"#NAME?"},{"$error":"#NAME?"}]
["Singles\\Bruce Hornsby & The Range - The Valley Road.mp3",{"$error":"#NAME?"},{"$error":"#NAME?"},{"$error":"#NAME?"},{"$error":"#NAME?"}]
["Singles\\Nana Mouskouri - Quad Tu Chantes.mp3",{"$error":"#NAME?"},{"$error":"#NAME?"},{"$error":"#NAME?"},{"$error":"#NAME?"}]

{"sheet":"Filter","index":6,"n_rows":8,"n_cols":5,"rows_kept":8}
["Day","Time","DateTime","Integer","String"]
["2020-07-27","10:10:00","2020-07-27T10:10:00",3,"Alpha"]
["2020-01-01","10:10:10","2020-01-01T10:10:02",6,"Beta"]
["2020-05-03","23:59:59","2020-06-03T23:59:59",21,"Gamma"]
["1990-05-04","00:00:01","1990-05-04T00:00:01",-102,"Delta"]
["1990-05-04","00:00:02","1990-05-04T00:00:02",54.7,"Omega"]
["1990-05-03","12:00:00","1990-05-03T12:00:00",0,"Phi"]
["2011-10-06","07:00:00","2011-10-06T07:00:00",10,"Eta"]